Workbook

Sheet Instructions
A1: Project Name: | C1: Reclaim Model - Overview of Program
B2: Goose Project | C2: All users are urged to read the Reclaim Model User Manual - Scroll down for overview description of program.
C3: Important! Reclaim 7.0 Works better With no other excel files open.
C4: If other excel files are open ignore run time error and proceed
A5: Reclaim Menu | C5: The default Excel menu bar has an additional tab labelled "Add-Ins" that provides options specific to the Reclaim Model.
B6: Clear | C6: This option deletes all input data, deletes any duplicated elements and blanks out the project name. It also allows for segregation into land costs vs Water costs if required.
B7: Duplicate | C7: This option Duplicates components of the project. E.g. if there is more than one Open Pit, use duplicate to add a second Open Pit. Quantities for the new Open Pit are erased, but the Activities and Cost Codes are carried over from the original Open Pit. The new Open Pit subtotal is added to the Summary page.
B8: Unit Costs | C8: This option opens a Window of unit costs to provide easy reference. NOTE: the unit cost table has a filter in the 'UNITS' column. You can select to only see a particular unit (e.g. km) or multiple units (km and m3) or all units.
B9: Print All | C9: This option prints the Summary Worksheet, Unit Cost Worksheet, and the individual component Worksheets having non-zero balances. Individual Worksheets can be printed directly using standard printing methods, such as Ctl - P.
B10: Quit | C10: Select Quit to exit the program
B11: Help | C11: Redirects user to Instructions Worksheet.
A13: Worksheets
B14: Summary | C14: This Worksheet contains a cumulative summary of costs for each component of the project. Associated costs such as engineering and project management are added as a percentage of the component costs.
B15: Components | C15: Costs are derived for individual closure and reclamation activities by multiplying a "quantity" of activity by a "unit cost". An activity can be edited, added, or deleted from Worksheet. However, care should be taken not to modify cells that are defined and used elsewhere in the program.
C16: Do not change the content or column Width of the first column of each component Worksheet.
B17: Unit Costs | C17: This Worksheet contains a look up table With costs for typical Work associated With each closure and reclamation activity
A19: Limitations | C19: The Reclaim Program will NOT work if the worksheets are changed such that the following requirements are not met. Please review the following prior to modifiying worksheets.
B20: Worksheet Names | C20: The names of the Worksheets must not be changed.
B21: Defined Names | C21: Certain cells have defined names, which must not be changed. Where the cell is named, the name will appear in the "Name Box" to the left of the formula bar.
B22: First line of data | C22: The first line of data for any component Worksheet starts on line 4. Do not change the first line of a component Worksheet, i.e. the component name.
B23: Cell A1 | C23: Cell A1 on the component sheet MUST always contain the count of that component for the duplicate function to operate. DO NOT CHANGE.
B24: Adding Lines | C24: You can add lines to components and the unit cost table, as long as they are not the last lines. The last line might fall outside the named ranges. You can check the size of the named range by selecting the name from the drop down box at the top left of the sheet. Usually this box has a cell reference, or a name.
B25: Printing | C25: A component Will only be printed if its sub-total is greater than zero. In addition, a component and the summary sheet cannot be printed if there is an error. Printing has been set to print 1 page per component.
A27: Conditions of Use | C27: The Reclamation Cost Estimating Model was prepared to serve as a guide for Government Agencies, mining companies, and others to estimate the cost of mine reclamation. This model is not intended to replace reclamation planning or to be used to determine the activities required to reclaim a site or to dictate how much should be spent on reclamation.
C29: Reclaim was prepared by Brodie Consulting Ltd. on behalf of AANDC. AANDC and Brodie Consulting Ltd. are not responsible for the completeness or accuracy of any reclamation estimate made using this model. The user agrees to check and take responsibility for all aspects of any cost estimate made using this model.
A31: The following table provides guidance as to Whether Water management and treatment is considered short term or long term. Short term closure activities
A32: may be costed Within a component (e.g. 'Open Pit' or 'Rock Pile') or 'Water Management'. Long term or post-closure Water treatment is costed in 'Water Treatment'.
D33: Short Term/ Capital Ex. | E33: Long term/ NPV
A34: Open Pit | C34: flood pit - install/operate pumping system | D34: x
C35: construct diversion ditches | D35: x
C36: treat 1st filling | D36: x
C37: install pump/decant system | D37: x
C38: passive/biological treatment | D38: x
C39: overflow treatment | E39: x
A40: Rock Pile/Heap Leach Facility | C40: construct diversion ditches | D40: x
C41: install groundwater collection system | D41: x
C42: install toe seepage collection system | D42: x
C43: collect and treat groundwater | E43: x
C44: collect and treat seepage (ARD/ML) | E44: x
C45: install passive treatment system | D45: x
C46: operate and maintain passive treatment system | E46: x
C47: operate pump and detoxify heap leach pile (cyanide destruction) | D47: x
A48: Tailings Facility | C48: construct diversion ditches | D48: x
C49: pump supernatant (to pit, U/G) | D49: x
C50: treat supernatant | D50: x
C51: install toe seepage collection system | D51: x
C52: collect and treat seepage (ARD/ML) | E52: x
C53: install passive treatment system | D53: x
C54: operate and maintain passive treatment system | E54: x
A55: U/G Mine | C55: accelerate flooding | D55: x
C56: install seepage collection system | D56: x
C57: install dewatering/pumping system | D57: x
C58: operate seepage/dewatering system (ARD/ML) | E58: x
A59: Water Management | C59: refill lakes
C60: redirect creeks/streams | D60: x
C61: stabilize water management ponds | D61: x
C62: stabilize/close sediment ponds | D62: x
C63: fresh water supply - breach embankment | D63: x
C64: fresh water supply - remove piping system | D64: x
C65: construct water treatment plant | D65: x
C66: construct sludge pond | D66: x
C67: water control in reclamation quarry | D67: x
C68: operate/maintain water treatment plant | E68: x

Sheet Summary
A4: SUMMARY OF COSTS | K4: SUMMARY OF PAYMENT STAGES
K7: Approximate Timing
K8: Y-2 | L8: Y-1 | M8: Y-1 | N8: NA | O8: NA | P8: Y2Q4 | Q8: Y5Q1 | R8: Y-1 | S8: Y6Q2 | T8: Y10Q2 | U8: Y10Q3 | V8: Y1
A9: CAPITAL COSTS | B9: COMPONENT NAME | D9: COST | F9: LAND LIABILITY | H9: TOTAL LIABILITY | K9: Initial Infrastructure | L9: Umwelt UG | M9: Umwelt OP | N9: TSF - Dam Construction | O9: TSF - Tailings Deposition & Use | P9: Llama OP | Q9: Goose Main OP | R9: Echo OP (to Year 4 Only) | S9: Llama UG | T9: Goose Main UG | U9: Echo UG | V9: Mill Start up Long Term Water Treatment (LTWT)
A10: OPEN PIT | B10: =IF(ISBLANK('Open Pit'!$C$1),"",'Open Pit'!$C$1) -> Umwelt | D10: =Pit1Total -> 60120.2393 | F10: =Pit1LandTotal -> 0 | H10: =Pit1WaterTotal -> 60120.2392 | M10: =H10 -> 60120.2392
B11: =IF(ISBLANK('Open Pit'!$N$1),"",'Open Pit'!$N$1) -> Llama | D11: ='Open Pit'!$S$63 -> 66015.71187 | F11: ='Open Pit'!$U$63 -> 0 | H11: ='Open Pit'!$V$63 -> 66015.71177 | P11: =H11 -> 66015.71177
B12: =IF(ISBLANK('Open Pit'!$Y$1),"",'Open Pit'!$Y$1) -> Echo (to Project Year 4) | D12: ='Open Pit'!$AD$63 -> 19697.76725 | F12: ='Open Pit'!$AF$63 -> 0 | H12: ='Open Pit'!$AG$63 -> 19697.76715 | R12: =H12 -> 19697.76715
B13: =IF(ISBLANK('Open Pit'!$AJ$1),"",'Open Pit'!$AJ$1) -> Goose Main | D13: ='Open Pit'!$AO$63 -> 102333.7501 | F13: ='Open Pit'!$AQ$63 -> 0 | H13: ='Open Pit'!$AR$63 -> 102333.75 | Q13: =H13 -> 102333.75
A14: QUARRY (under OPEN PIT TAB estimate) | B14: =IF(ISBLANK('Open Pit'!$AU$1),"",'Open Pit'!$AU$1) -> Airstrip Quarry | D14: ='Open Pit'!$AZ$63 -> 4675.190617 | F14: ='Open Pit'!$BB$63 -> 0 | H14: ='Open Pit'!$BC$63 -> 4675.190517 | K14: =H14 -> 4675.190517
A15: UNDERGROUND MINE | B15: =IF(ISBLANK('UG Mine'!$C$1),"",'UG Mine'!$C$1) -> Umwelt | D15: =UG1Total -> 444319.0803 | F15: =UG1LandTotal -> 0 | H15: =UG1WaterTotal -> 444319.0802 | L15: =H15 -> 444319.0802
B16: =IF(ISBLANK('UG Mine'!$N$1),"",'UG Mine'!$N$1) -> Llama | D16: ='UG Mine'!$S$42 -> 124878.8817 | F16: ='UG Mine'!$U$42 -> 0 | H16: ='UG Mine'!$V$42 -> 124878.8816 | S16: =H16 -> 124878.8816
B17: =IF(ISBLANK('UG Mine'!$Y$1),"",'UG Mine'!$Y$1) -> Goose Main | D17: ='UG Mine'!$AD$42 -> 334322.9837 | F17: ='UG Mine'!$AF$42 -> 0 | H17: ='UG Mine'!$AG$42 -> 334322.9836 | T17: =H17 -> 334322.9836
B18: =IF(ISBLANK('UG Mine'!$AJ$1),"",'UG Mine'!$AJ$1) -> Echo | D18: ='UG Mine'!$AO$42 -> 116121.288 | F18: ='UG Mine'!$AQ$42 -> 0 | H18: ='UG Mine'!$AR$42 -> 116121.2879 | U18: =H18 -> 116121.2879
A19: TAILINGS FACILITIES | B19: =IF(ISBLANK(Tailings!$C$1),"",Tailings!$C$1) -> TSF | D19: =Tailings1Total -> 0.0001 | F19: =Tailings1LandTotal -> 0 | H19: =Tailings1WaterTotal -> 0 | N19: =SUM(Tailings!K51:K64) -> 0 | O19: =D19-N19 -> 0.0001
A20: ROCK PILE | B20: =IF(ISBLANK('Rock Pile'!$C$1),"",'Rock Pile'!$C$1) -> Umwelt, Llama, Goose Main, and Echo | D20: =RP1Total -> 12770177.15 | F20: =RP1LandTotal -> 0 | H20: =D20 -> 12770177.15 | M20: 0 | O20: 0 | P20: =$H$20*0.25 -> 3192544.288 | Q20: =$H$20*0.75 -> 9577632.863
A21: BUILDINGS AND EQUIPMENT | B21: =IF(ISBLANK('Bldgs & Equip'!$C$1),"",'Bldgs & Equip'!$C$1) ->  | D21: =Bldg1Total -> 2952159.785 | F21: =Bldg1LandTotal -> 0 | H21: =Bldg1WaterTotal -> 2952159.785 | K21: ='Bldgs & Equip'!M63 -> 2784983.922 | L21: ='Bldgs & Equip'!N63 -> 0 | M21: ='Bldgs & Equip'!O63 -> 8955.142887 | N21: ='Bldgs & Equip'!P63 -> 0 | O21: ='Bldgs & Equip'!Q63 -> 0 | P21: ='Bldgs & Equip'!R63 -> 0 | Q21: ='Bldgs & Equip'!S63 -> 135046.8766 | R21: ='Bldgs & Equip'!T63 -> 23173.8437 | S21: ='Bldgs & Equip'!U63 -> 0 | T21: ='Bldgs & Equip'!V63 -> 0 | U21: ='Bldgs & Equip'!W63 -> 0 | V21: ='Bldgs & Equip'!X63 -> 0
A22: CHEMICALS AND CONTAMINATED SOIL MANAGEMENT | B22: =IF(ISBLANK(Chemicals!$C$1),"",Chemicals!$C$1) ->  | D22: =Chem1Total -> 1659101.494 | F22: =Chem1LandTotal -> 0 | H22: =Chem1WaterTotal -> 1659101.494 | K22: =Chemicals!M54 -> 696664.7042 | L22: =Chemicals!N54 -> 116844.3426 | M22: =Chemicals!O54 -> 116844.3426 | N22: =Chemicals!P54 -> 0 | O22: =Chemicals!Q54 -> 0 | P22: =Chemicals!R54 -> 116844.3426 | Q22: =Chemicals!S54 -> 144526.3917 | R22: =Chemicals!T54 -> 116844.3426 | S22: =Chemicals!U54 -> 116844.3426 | T22: =Chemicals!V54 -> 116844.3426 | U22: =Chemicals!W54 -> 116844.3426 | V22: =Chemicals!X54 -> 0
A23: SURFACE AND GROUNDWATER MANAGEMENT | B23: =IF(ISBLANK('Water Treatment'!$C$1),"",'Water Treatment'!$C$1) ->  | D23: =Water1Total -> 3624752.967 | F23: - | H23: =Water1Total -> 3624752.967 | K23: ='Water Management'!J85 -> 161376.2747 | L23: ='Water Management'!K85 -> 34453.71212 | M23: ='Water Management'!L85 -> 29382.79089 | N23: ='Water Management'!M85 -> 0 | O23: ='Water Management'!N85 -> 0 | P23: ='Water Management'!O85 -> 18818.89912 | Q23: ='Water Management'!P85 -> 101402.0732 | R23: ='Water Management'!Q85 -> 2410.659091 | S23: ='Water Management'!R85 -> 49516.71053 | T23: ='Water Management'!S85 -> 47662.80303 | U23: ='Water Management'!T85 -> 34453.71212 | V23: ='Water Management'!U85 -> 3145275.332
A24: INTERIM CARE AND MAINTENANCE | B24: =IF(ISBLANK(ICM!$C$1),"",ICM!$C$1) ->  | D24: =ICMTotal -> 1160490.007 | F24: - | H24: =ICMTotal -> 1160490.007 | K24: =H24*0.5 -> 580245.0037 | M24: =$H$24*0.1 -> 116049.0007 | P24: =$H$24*0.1 -> 116049.0007 | Q24: =$H$24*0.2 -> 232098.0015 | R24: =$H$24*0.1 -> 116049.0007
B25: SUBTOTAL: Capital Costs | D25: =SUM(D10:D24) -> 23439166.3 | F25: =SUM(F10:F24) -> 0 | H25: =SUM(H10:H24) -> 23439166.3 | K25: =SUM(K10:K24) -> 4227945.095 | L25: =SUM(L10:L24) -> 595617.1349 | M25: 331351.5163 | N25: 0 | O25: 0.0001 | P25: 3510272.242 | Q25: 10293039.96 | R25: 278175.6133 | S25: 291239.9348 | T25: 498830.1292 | U25: 267419.3427 | V25: 3145275.332
B26: PERCENT OF SUBTOTAL | F26: =IF(F25<0.01,0,F25/D25) -> 0 | H26: =IF(H25<0.01,0,H25/D25) -> 0.9999999999 | J26: ALL STAGES [%] | K26: =K25/$H$25 -> 0.1803794999 | L26: =L25/$H$25 -> 0.02541119114 | M26: 0.01413665965 | N26: 0 | O26: 4.266363348e-12 | P26: 0.1497609684 | Q26: 0.4391384841 | R26: 0.01186798241 | S26: 0.01242535383 | T26: 0.0212819058 | U26: 0.01140908082 | V26: 0.134188874
K27: =K25/SUM($K25:$U25) -> 0.2083358535 | L27: =L25/SUM($K25:$U25) -> 0.02934957796 | M27: 0.0163276484 | N27: 0 | O27: 4.927591272e-12 | P27: 0.1729718686 | Q27: 0.5071989385 | R27: 0.01370735724 | S27: 0.01435111361 | T27: 0.02458030991 | U27: 0.01317733219
A28: INDIRECT COSTS | D28: COST | F28: LAND LIABILITY | H28: TOTAL LIABILITY
A29: MOBILIZATION/DEMOBILIZATION | B29: =IF(ISBLANK(Mobilization!$C$1),"",Mobilization!$C$1) ->  | D29: =MobTotal -> 4993793.244 | F29: =D29*$F$26 -> 0 | H29: =D29*$H$26 -> 4993793.244 | K29: =$H29*K27 -> 1040386.178 | L29: =$H29*L27 -> 146565.7241 | M29: 81536.90027 | N29: 0 | O29: 2.460737201e-05 | P29: 863785.749 | Q29: 2532846.633 | R29: 68451.70799 | S29: 71666.49418 | T29: 122748.9856 | U29: 65804.87246 | V29: 0
A30: POST-CLOSURE MONITORING AND MAINTENANCE | B30: =IF(ISBLANK(PostClosure!$K$1),"",PostClosure!$K$1) ->  | D30: =PC1Total -> 2253538.776 | F30: =D30*$F$26 -> 0 | H30: =D30*$H$26 -> 2253538.776 | K30: =$H30*K27 -> 469492.9242 | L30: =$H30*L27 -> 66140.41198 | M30: 36794.98879 | N30: 0 | O30: 1.1104518e-05 | P30: 389798.8131 | Q30: 1142992.475 | R30: 30890.06106 | S30: 32340.79099 | T30: 55392.68151 | U30: 29695.62905 | V30: 0
A31: ENGINEERING | B31: 0.1 | D31: =B31*$D$25 -> 2343916.63 | F31: =+$F$26*D31 -> 0 | H31: =+$H$26*D31 -> 2343916.63 | K31: =$H$31*K26 -> 422794.5095 | L31: =$H$31*L26 -> 59561.71349 | M31: 33135.15163 | N31: 0 | O31: 1e-05 | P31: 351027.2242 | Q31: 1029303.996 | R31: 27817.56133 | S31: 29123.99348 | T31: 49883.01292 | U31: 26741.93427 | V31: 314527.5332
A32: PROJECT MANAGEMENT | B32: 0.05 | D32: =B32*$D$25 -> 1171958.315 | F32: 0 | H32: 1171958.315 | K32: =$H$32*K26 -> 211397.2547 | L32: =$H$32*L26 -> 29780.85675 | M32: 16567.57582 | N32: 0 | O32: 5e-06 | P32: 175513.6121 | Q32: 514651.9978 | R32: 13908.78067 | S32: 14561.99674 | T32: 24941.50646 | U32: 13370.96713 | V32: 157263.7666
A33: HEALTH AND SAFETY PLANS/MONITORING & QA/QC | B33: 0.01 | D33: 234391.663 | F33: 0 | H33: 234391.663 | K33: =$H$33*K26 -> 42279.45095 | L33: =$H$33*L26 -> 5956.171349 | M33: 3313.515163 | N33: 0 | O33: 1e-06 | P33: 35102.72242 | Q33: 102930.3996 | R33: 2781.756133 | S33: 2912.399348 | T33: 4988.301292 | U33: 2674.193427 | V33: 31452.75332
A34: BONDING/INSURANCE | B34: 0.01 | D34: 234391.663 | F34: 0 | H34: 234391.663 | K34: =$H$34*K26 -> 42279.45095 | L34: =$H$34*L26 -> 5956.171349 | M34: 3313.515163 | N34: 0 | O34: 1e-06 | P34: 35102.72242 | Q34: 102930.3996 | R34: 2781.756133 | S34: 2912.399348 | T34: 4988.301292 | U34: 2674.193427 | V34: 31452.75332
A35: CONTINGENCY | B35: 0.2 | D35: 4687833.26 | F35: 0 | H35: 4687833.259 | K35: =$H$35*K26 -> 845589.019 | L35: =$H$35*L26 -> 119123.427 | M35: 66270.30327 | N35: 0 | O35: 2e-05 | P35: 702054.4484 | Q35: 2058607.991 | R35: 55635.12266 | S35: 58247.98696 | T35: 99766.02585 | U35: 53483.86853 | V35: 629055.0665
A36: MARKET PRICE FACTOR ADJUSTMENT | B36: 0 | D36: 0 | F36: 0 | H36: 0 | K36: =$H$36*K26 -> 0 | L36: =$H$36*L26 -> 0 | M36: 0 | N36: 0 | O36: 0 | P36: 0 | Q36: 0 | R36: 0 | S36: 0 | T36: 0 | U36: 0 | V36: 0
B37: SUBTOTAL: Indirect Costs | D37: =SUM(D29:D36) -> 15919823.55 | F37: =SUM(F29:F36) -> 0 | H37: =SUM(H29:H36) -> 15919823.55 | K37: =SUM(K29:K36) -> 3074218.787 | L37: =SUM(L29:L36) -> 433084.476 | M37: 240931.9501 | N37: 0 | O37: 7.271189001e-05 | P37: 2552385.292 | Q37: 7484263.891 | R37: 202266.746 | S37: 211766.061 | T37: 362708.8149 | U37: 194445.6583 | V37: 1163751.873
A39: TOTAL COSTS | D39: =D25+D37 -> 39358989.85 | F39: =F25+F37 -> 0 | H39: =H25+H37 -> 39358989.85 | K39: =K25+K37 -> 7302163.882 | L39: =L25+L37 -> 1028701.611 | M39: 572283.4665 | N39: =N25+N37 -> 0 | O39: 0.00017271189 | P39: 6062657.534 | Q39: 17777303.85 | R39: 480442.3593 | S39: 503005.9958 | T39: 861538.9441 | U39: 461865.001 | V39: =V25+V37 -> 4309027.205
P42: CURRENT
P43: REQUIREMENT
P44: =K39+L39+M39+R39+V39+P39 -> 19755276.06 | Q44: (June 2026)

Sheet Open Pit
A1: 5 | B1: Open Pit Name: | C1: Umwelt | G1: Pit # | H1: 1 | K1: =H1 -> 1 | M1: Open Pit Name: | N1: Llama | R1: Pit # | S1: =H1+1 -> 2 | V1: =S1 -> 2 | X1: Open Pit Name: | Y1: Echo (to Project Year 4) | AC1: Pit # | AD1: =S1+1 -> 3 | AG1: =AD1 -> 3 | AI1: Open Pit Name: | AJ1: Goose Main | AN1: Pit # | AO1: =AD1+1 -> 4 | AR1: =AO1 -> 4 | AT1: Quarry Name: | AU1: Airstrip Quarry | AY1: Quarry # | AZ1: 1 | BC1: =AZ1 -> 1
B3: ACTIVITY/MATERIAL | C3: Notes | D3: Units | E3: Quantity | F3: Cost Code | G3: Unit Cost | H3: Cost | I3: % Land | J3: Land Cost | K3: Total Cost | M3: ACTIVITY/MATERIAL | N3: Notes | O3: Units | P3: Quantity | Q3: Cost Code | R3: Unit Cost | S3: Cost | T3: % Land | U3: Land Cost | V3: Total Cost | X3: ACTIVITY/MATERIAL | Y3: Notes | Z3: Units | AA3: Quantity | AB3: Cost Code | AC3: Unit Cost | AD3: Cost | AE3: % Land | AF3: Land Cost | AG3: Total Cost | AI3: ACTIVITY/MATERIAL | AJ3: Notes | AK3: Units | AL3: Quantity | AM3: Cost Code | AN3: Unit Cost | AO3: Cost | AP3: % Land | AQ3: Land Cost | AR3: Total Cost | AT3: ACTIVITY/MATERIAL | AU3: Notes | AV3: Units | AW3: Quantity | AX3: Cost Code | AY3: Unit Cost | AZ3: Cost | BA3: % Land | BB3: Land Cost | BC3: Total Cost
B4: CONTROL ACCESS | M4: CONTROL ACCESS | X4: CONTROL ACCESS | AI4: CONTROL ACCESS | AT4: CONTROL ACCESS
B5: Fence | D5: m | F5: =NA() ->  | G5: =IF(ISNA(F5),0,INDEX(IF(UPPER(RIGHT(F5,1))=Low,UnitCostLow, IF(UPPER(RIGHT(F5,1))=High,UnitCostHigh,UnitCostSpecified)),MATCH(UPPER(LEFT(F5,LEN(F5)-1)),CostCode,0))) -> 0 | H5: =G5*E5 -> 0 | J5: =H5*I5 -> 0 | K5: =H5*(1-I5) -> 0 | M5: Fence | O5: m | Q5: =NA() ->  | R5: =IF(ISNA(Q5),0,INDEX(IF(UPPER(RIGHT(Q5,1))=Low,UnitCostLow, IF(UPPER(RIGHT(Q5,1))=High,UnitCostHigh,UnitCostSpecified)),MATCH(UPPER(LEFT(Q5,LEN(Q5)-1)),CostCode,0))) -> 0 | S5: =R5*P5 -> 0 | U5: =S5*T5 -> 0 | V5: =S5*(1-T5) -> 0 | X5: Fence | Z5: m | AB5: =NA() ->  | AC5: =IF(ISNA(AB5),0,INDEX(IF(UPPER(RIGHT(AB5,1))=Low,UnitCostLow, IF(UPPER(RIGHT(AB5,1))=High,UnitCostHigh,UnitCostSpecified)),MATCH(UPPER(LEFT(AB5,LEN(AB5)-1)),CostCode,0))) -> 0 | AD5: =AC5*AA5 -> 0 | AF5: =AD5*AE5 -> 0 | AG5: =AD5*(1-AE5) -> 0 | AI5: Fence | AK5: m | AM5: =NA() ->  | AN5: =IF(ISNA(AM5),0,INDEX(IF(UPPER(RIGHT(AM5,1))=Low,UnitCostLow, IF(UPPER(RIGHT(AM5,1))=High,UnitCostHigh,UnitCostSpecified)),MATCH(UPPER(LEFT(AM5,LEN(AM5)-1)),CostCode,0))) -> 0 | AO5: =AN5*AL5 -> 0 | AQ5: =AO5*AP5 -> 0 | AR5: =AO5*(1-AP5) -> 0 | AT5: Fence | AV5: m | AX5: =NA() ->  | AY5: =IF(ISNA(AX5),0,INDEX(IF(UPPER(RIGHT(AX5,1))=Low,UnitCostLow, IF(UPPER(RIGHT(AX5,1))=High,UnitCostHigh,UnitCostSpecified)),MATCH(UPPER(LEFT(AX5,LEN(AX5)-1)),CostCode,0))) -> 0 | AZ5: =AY5*AW5 -> 0 | BB5: =AZ5*BA5 -> 0 | BC5: =AZ5*(1-BA5) -> 0
B6: Signs | C6: Assumed | D6: each | E6: 4 | F6: Sabina | G6: =Unit_Costs!F177 -> 86.90191388 | H6: =G6*E6 -> 347.6076555 | J6: =H6*I6 -> 0 | K6: =H6*(1-I6) -> 347.6076555 | M6: Signs | N6: Assumed | O6: each | P6: 4 | Q6: Sabina | R6: =Unit_Costs!F177 -> 86.90191388 | S6: =R6*P6 -> 347.6076555 | U6: 0 | V6: 347.6076555 | X6: Signs | Z6: each | AA6: 0 | AB6: Sabina | AC6: =Unit_Costs!F177 -> 86.90191388 | AD6: =AC6*AA6 -> 0 | AF6: 0 | AG6: 0 | AI6: Signs | AJ6: Assumed | AK6: each | AL6: 4 | AM6: Sabina | AN6: =Unit_Costs!F177 -> 86.90191388 | AO6: =AN6*AL6 -> 347.6076555 | AQ6: 0 | AR6: 347.6076555 | AT6: Signs | AV6: each | AX6: =NA() ->  | AY6: =IF(ISNA(AX6),0,INDEX(IF(UPPER(RIGHT(AX6,1))=Low,UnitCostLow, IF(UPPER(RIGHT(AX6,1))=High,UnitCostHigh,UnitCostSpecified)),MATCH(UPPER(LEFT(AX6,LEN(AX6)-1)),CostCode,0))) -> 0 | AZ6: =AY6*AW6 -> 0 | BB6: =AZ6*BA6 -> 0 | BC6: =AZ6*(1-BA6) -> 0
B7: Berm at crest | C7: Estimated for continuous berm with 1m diameter boulders, no spacing between boulders - 0.52 m3/m - assumed 50 % done during Operations | D7: m3 | E7: =ROUNDUP('SBB Comp. Est.'!F7*0.52*0.5,0)*1.05 -> 432.6 | F7: RR1H | G7: 21.83806097 | H7: =G7*E7 -> 9447.145174 | J7: 0 | K7: 9447.145174 | M7: Berm at crest | N7: Estimated for berm with 1m diameter boulders, no spacing between boulders - 0.52 m3/m; berm needed only where pit edge will not abut the final flooded lake footprint. | O7: m3 | P7: =ROUNDUP('SBB Comp. Est.'!F10*0.52,0)*1.05 -> 327.6 | Q7: RR1H | R7: 21.83806097 | S7: =R7*P7 -> 7154.148772 | U7: 0 | V7: 7154.148772 | X7: Berm at crest | Z7: m3 | AA7: 0 | AB7: RR1H | AC7: 21.83806097 | AD7: =AC7*AA7 -> 0 | AF7: 0 | AG7: 0 | AI7: Berm at crest | AJ7: Estimated for continuous berm with 1m diameter boulders, no spacing between boulders - 0.52 m3/m - assumed 50 % done during Operations | AK7: m3 | AL7: =ROUNDUP('SBB Comp. Est.'!F9*0.52*0.5,0)*1.05 -> 639.45 | AM7: RR1H | AN7: 21.83806097 | AO7: =AN7*AL7 -> 13964.34808 | AQ7: 0 | AR7: 13964.34808 | AT7: Berm at crest | AV7: m3 | AX7: RB1H | AY7: =IF(ISNA(AX7),0,INDEX(IF(UPPER(RIGHT(AX7,1))=Low,UnitCostLow, IF(UPPER(RIGHT(AX7,1))=High,UnitCostHigh,UnitCostSpecified)),MATCH(UPPER(LEFT(AX7,LEN(AX7)-1)),CostCode,0))) -> 20.97684166 | AZ7: =AY7*AW7 -> 0 | BB7: 0 | BC7: 0
B8: Block roads | C8: Temporary gate installation to allow water monitoring. It includes decommissioning of gate when no longer required. Exposed area after gate has been decommissioned will be blocked with boulders (exposed area along with block of roads with boulders included in berm cost above) | D8: allow | E8: 1 | F8: Sabina | G8: =Unit_Costs!F178 -> 5793.460925 | H8: =G8*E8 -> 5793.460925 | J8: 0 | K8: 5793.460925 | M8: Block roads | N8: Temporary gate installation to allow water monitoring. It includes decommissioning of gate when no longer required. Exposed area after gate has been decommissioned will be blocked with boulders (exposed area along with block of roads with boulders included in berm cost above) | O8: allow | P8: 1 | Q8: Sabina | R8: =Unit_Costs!F178 -> 5793.460925 | S8: =R8*P8 -> 5793.460925 | U8: 0 | V8: 5793.460925 | X8: Block roads | Z8: allow | AA8: 0 | AB8: Sabina | AC8: =Unit_Costs!F178 -> 5793.460925 | AD8: =AC8*AA8 -> 0 | AF8: 0 | AG8: 0 | AI8: Block roads | AJ8: Temporary gate installation to allow water monitoring. It includes decommissioning of gate when no longer required. Exposed area after gate has been decommissioned will be blocked with boulders (exposed area along with block of roads with boulders included in berm cost above) | AK8: allow | AL8: 1 | AM8: Sabina | AN8: =Unit_Costs!F178 -> 5793.460925 | AO8: =AN8*AL8 -> 5793.460925 | AQ8: 0 | AR8: 5793.460925 | AT8: Block roads | AV8: allow | AX8: =NA() ->  | AY8: 0 | AZ8: =AY8*AW8 -> 0 | BB8: 0 | BC8: 0
B9: Other | F9: =NA() ->  | G9: =IF(ISNA(F9),0,INDEX(IF(UPPER(RIGHT(F9,1))=Low,UnitCostLow, IF(UPPER(RIGHT(F9,1))=High,UnitCostHigh,UnitCostSpecified)),MATCH(UPPER(LEFT(F9,LEN(F9)-1)),CostCode,0))) -> 0 | H9: =G9*E9 -> 0 | J9: =H9*I9 -> 0 | K9: =H9*(1-I9) -> 0 | M9: Other | Q9: =NA() ->  | R9: =IF(ISNA(Q9),0,INDEX(IF(UPPER(RIGHT(Q9,1))=Low,UnitCostLow, IF(UPPER(RIGHT(Q9,1))=High,UnitCostHigh,UnitCostSpecified)),MATCH(UPPER(LEFT(Q9,LEN(Q9)-1)),CostCode,0))) -> 0 | S9: =R9*P9 -> 0 | U9: =S9*T9 -> 0 | V9: =S9*(1-T9) -> 0 | X9: Other | AB9: =NA() ->  | AC9: =IF(ISNA(AB9),0,INDEX(IF(UPPER(RIGHT(AB9,1))=Low,UnitCostLow, IF(UPPER(RIGHT(AB9,1))=High,UnitCostHigh,UnitCostSpecified)),MATCH(UPPER(LEFT(AB9,LEN(AB9)-1)),CostCode,0))) -> 0 | AD9: =AC9*AA9 -> 0 | AF9: =AD9*AE9 -> 0 | AG9: =AD9*(1-AE9) -> 0 | AI9: Other | AM9: =NA() ->  | AN9: =IF(ISNA(AM9),0,INDEX(IF(UPPER(RIGHT(AM9,1))=Low,UnitCostLow, IF(UPPER(RIGHT(AM9,1))=High,UnitCostHigh,UnitCostSpecified)),MATCH(UPPER(LEFT(AM9,LEN(AM9)-1)),CostCode,0))) -> 0 | AO9: =AN9*AL9 -> 0 | AQ9: =AO9*AP9 -> 0 | AR9: =AO9*(1-AP9) -> 0 | AT9: Other | AX9: =NA() ->  | AY9: =IF(ISNA(AX9),0,INDEX(IF(UPPER(RIGHT(AX9,1))=Low,UnitCostLow, IF(UPPER(RIGHT(AX9,1))=High,UnitCostHigh,UnitCostSpecified)),MATCH(UPPER(LEFT(AX9,LEN(AX9)-1)),CostCode,0))) -> 0 | AZ9: =AY9*AW9 -> 0 | BB9: =AZ9*BA9 -> 0 | BC9: =AZ9*(1-BA9) -> 0
B10: STABILITY STUDY | M10: STABILITY STUDY | X10: STABILITY STUDY | AI10: STABILITY STUDY | AT10: STABILITY STUDY
B11: Conduct stability and setback study | D11: allow | E11: 1 | F11: Sabina | G11: =Unit_Costs!F179 -> 19697.76715 | H11: =G11*E11 -> 19697.76715 | J11: =H11*I11 -> 0 | K11: =H11*(1-I11) -> 19697.76715 | M11: Conduct stability and setback study | O11: allow | P11: 1 | Q11: Sabina | R11: =Unit_Costs!F179 -> 19697.76715 | S11: =R11*P11 -> 19697.76715 | U11: =S11*T11 -> 0 | V11: =S11*(1-T11) -> 19697.76715 | X11: Conduct stability and setback study | Z11: allow | AA11: 1 | AB11: Sabina | AC11: =Unit_Costs!F179 -> 19697.76715 | AD11: =AC11*AA11 -> 19697.76715 | AF11: =AD11*AE11 -> 0 | AG11: =AD11*(1-AE11) -> 19697.76715 | AI11: Conduct stability and setback study | AK11: allow | AL11: 1 | AM11: Sabina | AN11: =Unit_Costs!F179 -> 19697.76715 | AO11: =AN11*AL11 -> 19697.76715 | AQ11: =AO11*AP11 -> 0 | AR11: =AO11*(1-AP11) -> 19697.76715 | AT11: Conduct stability and setback study | AU11: Not required for quarry | AV11: allow | AX11: =NA() ->  | AY11: =IF(ISNA(AX11),0,INDEX(IF(UPPER(RIGHT(AX11,1))=Low,UnitCostLow, IF(UPPER(RIGHT(AX11,1))=High,UnitCostHigh,UnitCostSpecified)),MATCH(UPPER(LEFT(AX11,LEN(AX11)-1)),CostCode,0))) -> 0 | AZ11: =AY11*AW11 -> 0 | BB11: =AZ11*BA11 -> 0 | BC11: =AZ11*(1-BA11) -> 0
B12: STABILIZE SLOPES | M12: STABILIZE SLOPES | X12: STABILIZE SLOPES | AI12: STABILIZE SLOPES | AT12: STABILIZE SLOPES
B13: Off-load crest, soil A | D13: m3 | F13: =NA() ->  | G13: 0 | H13: =G13*E13 -> 0 | J13: 0 | K13: 0 | M13: Off-load crest, soil A | O13: m3 | Q13: =NA() ->  | R13: =IF(ISNA(Q13),0,INDEX(IF(UPPER(RIGHT(Q13,1))=Low,UnitCostLow, IF(UPPER(RIGHT(Q13,1))=High,UnitCostHigh,UnitCostSpecified)),MATCH(UPPER(LEFT(Q13,LEN(Q13)-1)),CostCode,0))) -> 0 | S13: =R13*P13 -> 0 | U13: =S13*T13 -> 0 | V13: =S13*(1-T13) -> 0 | X13: Off-load crest, soil A | Z13: m3 | AB13: =NA() ->  | AC13: =IF(ISNA(AB13),0,INDEX(IF(UPPER(RIGHT(AB13,1))=Low,UnitCostLow, IF(UPPER(RIGHT(AB13,1))=High,UnitCostHigh,UnitCostSpecified)),MATCH(UPPER(LEFT(AB13,LEN(AB13)-1)),CostCode,0))) -> 0 | AD13: =AC13*AA13 -> 0 | AF13: =AD13*AE13 -> 0 | AG13: =AD13*(1-AE13) -> 0 | AI13: Off-load crest, soil A | AK13: m3 | AM13: =NA() ->  | AN13: =IF(ISNA(AM13),0,INDEX(IF(UPPER(RIGHT(AM13,1))=Low,UnitCostLow, IF(UPPER(RIGHT(AM13,1))=High,UnitCostHigh,UnitCostSpecified)),MATCH(UPPER(LEFT(AM13,LEN(AM13)-1)),CostCode,0))) -> 0 | AO13: =AN13*AL13 -> 0 | AQ13: =AO13*AP13 -> 0 | AR13: =AO13*(1-AP13) -> 0 | AT13: Off-load crest, soil A | AV13: m3 | AX13: =NA() ->  | AY13: =IF(ISNA(AX13),0,INDEX(IF(UPPER(RIGHT(AX13,1))=Low,UnitCostLow, IF(UPPER(RIGHT(AX13,1))=High,UnitCostHigh,UnitCostSpecified)),MATCH(UPPER(LEFT(AX13,LEN(AX13)-1)),CostCode,0))) -> 0 | AZ13: =AY13*AW13 -> 0 | BB13: =AZ13*BA13 -> 0 | BC13: =AZ13*(1-BA13) -> 0
B14: Off-load crest, soil B | D14: m3 | F14: =NA() ->  | G14: 0 | H14: 0 | J14: 0 | K14: 0 | M14: Off-load crest, soil B | O14: m3 | Q14: =NA() ->  | R14: 0 | S14: 0 | U14: 0 | V14: 0 | X14: Off-load crest, soil B | Z14: m3 | AB14: =NA() ->  | AC14: 0 | AD14: 0 | AF14: 0 | AG14: 0 | AI14: Off-load crest, soil B | AK14: m3 | AM14: =NA() ->  | AN14: 0 | AO14: 0 | AQ14: 0 | AR14: 0 | AT14: Off-load crest, soil B | AV14: m3 | AX14: =NA() ->  | AY14: 0 | AZ14: 0 | BB14: 0 | BC14: 0
B15: Doze/trim overburden at crest | D15: m3 | F15: =NA() ->  | G15: 0 | H15: 0 | J15: 0 | K15: 0 | M15: Doze/trim overburden at crest | O15: m3 | Q15: =NA() ->  | R15: 0 | S15: 0 | U15: 0 | V15: 0 | X15: Doze/trim overburden at crest | Z15: m3 | AB15: =NA() ->  | AC15: 0 | AD15: 0 | AF15: 0 | AG15: 0 | AI15: Doze/trim overburden at crest | AK15: m3 | AM15: =NA() ->  | AN15: 0 | AO15: 0 | AQ15: 0 | AR15: 0 | AT15: Doze/trim overburden at crest | AV15: m3 | AX15: =NA() ->  | AY15: 0 | AZ15: 0 | BB15: 0 | BC15: 0
B16: Drill & blast pit crest | D16: m3 | F16: =NA() ->  | G16: 0 | H16: 0 | J16: 0 | K16: 0 | M16: Drill & blast pit crest | O16: m3 | Q16: =NA() ->  | R16: 0 | S16: 0 | U16: 0 | V16: 0 | X16: Drill & blast pit crest | Z16: m3 | AB16: =NA() ->  | AC16: 0 | AD16: 0 | AF16: 0 | AG16: 0 | AI16: Drill & blast pit crest | AK16: m3 | AM16: =NA() ->  | AN16: 0 | AO16: 0 | AQ16: 0 | AR16: 0 | AT16: Drill & blast pit crest | AV16: m3 | AX16: =NA() ->  | AY16: 0 | AZ16: 0 | BB16: 0 | BC16: 0
B17: Buttress slope | D17: m3 | F17: =NA() ->  | G17: 0 | H17: 0 | J17: 0 | K17: 0 | M17: Buttress slope | O17: m3 | Q17: =NA() ->  | R17: 0 | S17: 0 | U17: 0 | V17: 0 | X17: Buttress slope | Z17: m3 | AB17: =NA() ->  | AC17: 0 | AD17: 0 | AF17: 0 | AG17: 0 | AI17: Buttress slope | AK17: m3 | AM17: =NA() ->  | AN17: 0 | AO17: 0 | AQ17: 0 | AR17: 0 | AT17: Buttress slope | AV17: m3 | AX17: =NA() ->  | AY17: 0 | AZ17: 0 | BB17: 0 | BC17: 0
B18: Other | F18: =NA() ->  | G18: 0 | H18: 0 | J18: 0 | K18: 0 | M18: Other | Q18: =NA() ->  | R18: 0 | S18: 0 | U18: 0 | V18: 0 | X18: Other | AB18: =NA() ->  | AC18: 0 | AD18: 0 | AF18: 0 | AG18: 0 | AI18: Other | AM18: =NA() ->  | AN18: 0 | AO18: 0 | AQ18: 0 | AR18: 0 | AT18: Other | AU18: Backhoe to pull down loose rock on bedrock backslope - assumed | AV18: hrs | AW18: 20 | AX18: exc-sL | AY18: 233.7595258 | AZ18: 4675.190517 | BB18: 0 | BC18: 4675.190517
B19: COVER/CONTOUR SLOPES | M19: COVER/CONTOUR SLOPES | X19: COVER/CONTOUR SLOPES | AI19: COVER/CONTOUR SLOPES | AT19: COVER/CONTOUR SLOPES
B20: Place fill, soil A | D20: m3 | F20: =NA() ->  | G20: 0 | H20: =G20*E20 -> 0 | J20: 0 | K20: 0 | M20: Place fill, soil A | O20: m3 | Q20: =NA() ->  | R20: =IF(ISNA(Q20),0,INDEX(IF(UPPER(RIGHT(Q20,1))=Low,UnitCostLow, IF(UPPER(RIGHT(Q20,1))=High,UnitCostHigh,UnitCostSpecified)),MATCH(UPPER(LEFT(Q20,LEN(Q20)-1)),CostCode,0))) -> 0 | S20: =R20*P20 -> 0 | U20: =S20*T20 -> 0 | V20: =S20*(1-T20) -> 0 | X20: Place fill, soil A | Z20: m3 | AB20: =NA() ->  | AC20: =IF(ISNA(AB20),0,INDEX(IF(UPPER(RIGHT(AB20,1))=Low,UnitCostLow, IF(UPPER(RIGHT(AB20,1))=High,UnitCostHigh,UnitCostSpecified)),MATCH(UPPER(LEFT(AB20,LEN(AB20)-1)),CostCode,0))) -> 0 | AD20: =AC20*AA20 -> 0 | AF20: =AD20*AE20 -> 0 | AG20: =AD20*(1-AE20) -> 0 | AI20: Place fill, soil A | AK20: m3 | AM20: =NA() ->  | AN20: =IF(ISNA(AM20),0,INDEX(IF(UPPER(RIGHT(AM20,1))=Low,UnitCostLow, IF(UPPER(RIGHT(AM20,1))=High,UnitCostHigh,UnitCostSpecified)),MATCH(UPPER(LEFT(AM20,LEN(AM20)-1)),CostCode,0))) -> 0 | AO20: =AN20*AL20 -> 0 | AQ20: =AO20*AP20 -> 0 | AR20: =AO20*(1-AP20) -> 0 | AT20: Place fill, soil A | AV20: m3 | AX20: =NA() ->  | AY20: =IF(ISNA(AX20),0,INDEX(IF(UPPER(RIGHT(AX20,1))=Low,UnitCostLow, IF(UPPER(RIGHT(AX20,1))=High,UnitCostHigh,UnitCostSpecified)),MATCH(UPPER(LEFT(AX20,LEN(AX20)-1)),CostCode,0))) -> 0 | AZ20: =AY20*AW20 -> 0 | BB20: =AZ20*BA20 -> 0 | BC20: =AZ20*(1-BA20) -> 0
B21: Place fill, soil B | D21: m3 | F21: =NA() ->  | G21: 0 | H21: 0 | J21: 0 | K21: 0 | M21: Place fill, soil B | O21: m3 | Q21: =NA() ->  | R21: 0 | S21: 0 | U21: 0 | V21: 0 | X21: Place fill, soil B | Z21: m3 | AB21: =NA() ->  | AC21: 0 | AD21: 0 | AF21: 0 | AG21: 0 | AI21: Place fill, soil B | AK21: m3 | AM21: =NA() ->  | AN21: 0 | AO21: 0 | AQ21: 0 | AR21: 0 | AT21: Place fill, soil B | AV21: m3 | AX21: =NA() ->  | AY21: 0 | AZ21: 0 | BB21: 0 | BC21: 0
B22: Rip rap | D22: m3 | F22: =NA() ->  | G22: 0 | H22: 0 | J22: 0 | K22: 0 | M22: Rip rap | O22: m3 | Q22: =NA() ->  | R22: 0 | S22: 0 | U22: 0 | V22: 0 | X22: Rip rap | Z22: m3 | AB22: =NA() ->  | AC22: 0 | AD22: 0 | AF22: 0 | AG22: 0 | AI22: Rip rap | AK22: m3 | AM22: =NA() ->  | AN22: 0 | AO22: 0 | AQ22: 0 | AR22: 0 | AT22: Rip rap | AV22: m3 | AX22: =NA() ->  | AY22: 0 | AZ22: 0 | BB22: 0 | BC22: 0
B23: Vegetate slopes | D23: ha | F23: =NA() ->  | G23: 0 | H23: 0 | J23: 0 | K23: 0 | M23: Vegetate slopes | O23: ha | Q23: =NA() ->  | R23: 0 | S23: 0 | U23: 0 | V23: 0 | X23: Vegetate slopes | Z23: ha | AB23: =NA() ->  | AC23: 0 | AD23: 0 | AF23: 0 | AG23: 0 | AI23: Vegetate slopes | AK23: ha | AM23: =NA() ->  | AN23: 0 | AO23: 0 | AQ23: 0 | AR23: 0 | AT23: Vegetate slopes | AU23: Allow to revegetate naturally | AV23: ha | AX23: =NA() ->  | AY23: 0 | AZ23: 0 | BB23: 0 | BC23: 0
B24: Vegetate pit floor | D24: ha | F24: =NA() ->  | G24: 0 | H24: 0 | J24: 0 | K24: 0 | M24: Vegetate pit floor | O24: ha | Q24: =NA() ->  | R24: 0 | S24: 0 | U24: 0 | V24: 0 | X24: Vegetate pit floor | Z24: ha | AB24: =NA() ->  | AC24: 0 | AD24: 0 | AF24: 0 | AG24: 0 | AI24: Vegetate pit floor | AK24: ha | AM24: =NA() ->  | AN24: 0 | AO24: 0 | AQ24: 0 | AR24: 0 | AT24: Vegetate pit floor | AV24: ha | AX24: =NA() ->  | AY24: 0 | AZ24: 0 | BB24: 0 | BC24: 0
B25: Other | F25: =NA() ->  | G25: 0 | H25: 0 | J25: 0 | K25: 0 | M25: Other | Q25: =NA() ->  | R25: 0 | S25: 0 | U25: 0 | V25: 0 | X25: Other | AB25: =NA() ->  | AC25: 0 | AD25: 0 | AF25: 0 | AG25: 0 | AI25: Other | AM25: =NA() ->  | AN25: 0 | AO25: 0 | AQ25: 0 | AR25: 0 | AT25: Other | AX25: =NA() ->  | AY25: 0 | AZ25: 0 | BB25: 0 | BC25: 0
B26: CONSTRUCT DIVERSION DITCHES | M26: CONSTRUCT DIVERSION DITCHES | X26: CONSTRUCT DIVERSION DITCHES | AI26: CONSTRUCT DIVERSION DITCHES | AT26: CONSTRUCT DIVERSION DITCHES
B27: Excavate ditches -soil | D27: m3 | F27: =NA() ->  | G27: =IF(ISNA(F27),0,INDEX(IF(UPPER(RIGHT(F27,1))=Low,UnitCostLow, IF(UPPER(RIGHT(F27,1))=High,UnitCostHigh,UnitCostSpecified)),MATCH(UPPER(LEFT(F27,LEN(F27)-1)),CostCode,0))) -> 0 | H27: =G27*E27 -> 0 | J27: =H27*I27 -> 0 | K27: =H27*(1-I27) -> 0 | M27: Excavate ditches -soil | O27: m3 | Q27: =NA() ->  | R27: =IF(ISNA(Q27),0,INDEX(IF(UPPER(RIGHT(Q27,1))=Low,UnitCostLow, IF(UPPER(RIGHT(Q27,1))=High,UnitCostHigh,UnitCostSpecified)),MATCH(UPPER(LEFT(Q27,LEN(Q27)-1)),CostCode,0))) -> 0 | S27: =R27*P27 -> 0 | U27: =S27*T27 -> 0 | V27: =S27*(1-T27) -> 0 | X27: Excavate ditches -soil | Z27: m3 | AB27: =NA() ->  | AC27: =IF(ISNA(AB27),0,INDEX(IF(UPPER(RIGHT(AB27,1))=Low,UnitCostLow, IF(UPPER(RIGHT(AB27,1))=High,UnitCostHigh,UnitCostSpecified)),MATCH(UPPER(LEFT(AB27,LEN(AB27)-1)),CostCode,0))) -> 0 | AD27: =AC27*AA27 -> 0 | AF27: =AD27*AE27 -> 0 | AG27: =AD27*(1-AE27) -> 0 | AI27: Excavate ditches -soil | AK27: m3 | AM27: =NA() ->  | AN27: =IF(ISNA(AM27),0,INDEX(IF(UPPER(RIGHT(AM27,1))=Low,UnitCostLow, IF(UPPER(RIGHT(AM27,1))=High,UnitCostHigh,UnitCostSpecified)),MATCH(UPPER(LEFT(AM27,LEN(AM27)-1)),CostCode,0))) -> 0 | AO27: =AN27*AL27 -> 0 | AQ27: =AO27*AP27 -> 0 | AR27: =AO27*(1-AP27) -> 0 | AT27: Excavate ditches -soil | AV27: m3 | AX27: =NA() ->  | AY27: =IF(ISNA(AX27),0,INDEX(IF(UPPER(RIGHT(AX27,1))=Low,UnitCostLow, IF(UPPER(RIGHT(AX27,1))=High,UnitCostHigh,UnitCostSpecified)),MATCH(UPPER(LEFT(AX27,LEN(AX27)-1)),CostCode,0))) -> 0 | AZ27: =AY27*AW27 -> 0 | BB27: =AZ27*BA27 -> 0 | BC27: =AZ27*(1-BA27) -> 0
B28: Excavate ditches -rock | D28: m3 | F28: =NA() ->  | G28: =IF(ISNA(F28),0,INDEX(IF(UPPER(RIGHT(F28,1))=Low,UnitCostLow, IF(UPPER(RIGHT(F28,1))=High,UnitCostHigh,UnitCostSpecified)),MATCH(UPPER(LEFT(F28,LEN(F28)-1)),CostCode,0))) -> 0 | H28: 0 | J28: 0 | K28: 0 | M28: Excavate ditches -rock | O28: m3 | Q28: =NA() ->  | R28: =IF(ISNA(Q28),0,INDEX(IF(UPPER(RIGHT(Q28,1))=Low,UnitCostLow, IF(UPPER(RIGHT(Q28,1))=High,UnitCostHigh,UnitCostSpecified)),MATCH(UPPER(LEFT(Q28,LEN(Q28)-1)),CostCode,0))) -> 0 | S28: =R28*P28 -> 0 | U28: 0 | V28: 0 | X28: Excavate ditches -rock | Z28: m3 | AB28: =NA() ->  | AC28: =IF(ISNA(AB28),0,INDEX(IF(UPPER(RIGHT(AB28,1))=Low,UnitCostLow, IF(UPPER(RIGHT(AB28,1))=High,UnitCostHigh,UnitCostSpecified)),MATCH(UPPER(LEFT(AB28,LEN(AB28)-1)),CostCode,0))) -> 0 | AD28: =AC28*AA28 -> 0 | AF28: 0 | AG28: 0 | AI28: Excavate ditches -rock | AK28: m3 | AM28: =NA() ->  | AN28: =IF(ISNA(AM28),0,INDEX(IF(UPPER(RIGHT(AM28,1))=Low,UnitCostLow, IF(UPPER(RIGHT(AM28,1))=High,UnitCostHigh,UnitCostSpecified)),MATCH(UPPER(LEFT(AM28,LEN(AM28)-1)),CostCode,0))) -> 0 | AO28: =AN28*AL28 -> 0 | AQ28: 0 | AR28: 0 | AT28: Excavate ditches -rock | AV28: m3 | AX28: =NA() ->  | AY28: =IF(ISNA(AX28),0,INDEX(IF(UPPER(RIGHT(AX28,1))=Low,UnitCostLow, IF(UPPER(RIGHT(AX28,1))=High,UnitCostHigh,UnitCostSpecified)),MATCH(UPPER(LEFT(AX28,LEN(AX28)-1)),CostCode,0))) -> 0 | AZ28: =AY28*AW28 -> 0 | BB28: 0 | BC28: 0
B29: Rip rap in channel base | D29: m3 | F29: =NA() ->  | G29: =IF(ISNA(F29),0,INDEX(IF(UPPER(RIGHT(F29,1))=Low,UnitCostLow, IF(UPPER(RIGHT(F29,1))=High,UnitCostHigh,UnitCostSpecified)),MATCH(UPPER(LEFT(F29,LEN(F29)-1)),CostCode,0))) -> 0 | H29: 0 | J29: 0 | K29: 0 | M29: Rip rap in channel base | O29: m3 | Q29: =NA() ->  | R29: =IF(ISNA(Q29),0,INDEX(IF(UPPER(RIGHT(Q29,1))=Low,UnitCostLow, IF(UPPER(RIGHT(Q29,1))=High,UnitCostHigh,UnitCostSpecified)),MATCH(UPPER(LEFT(Q29,LEN(Q29)-1)),CostCode,0))) -> 0 | S29: =R29*P29 -> 0 | U29: 0 | V29: 0 | X29: Rip rap in channel base | Z29: m3 | AB29: =NA() ->  | AC29: =IF(ISNA(AB29),0,INDEX(IF(UPPER(RIGHT(AB29,1))=Low,UnitCostLow, IF(UPPER(RIGHT(AB29,1))=High,UnitCostHigh,UnitCostSpecified)),MATCH(UPPER(LEFT(AB29,LEN(AB29)-1)),CostCode,0))) -> 0 | AD29: =AC29*AA29 -> 0 | AF29: 0 | AG29: 0 | AI29: Rip rap in channel base | AK29: m3 | AM29: =NA() ->  | AN29: =IF(ISNA(AM29),0,INDEX(IF(UPPER(RIGHT(AM29,1))=Low,UnitCostLow, IF(UPPER(RIGHT(AM29,1))=High,UnitCostHigh,UnitCostSpecified)),MATCH(UPPER(LEFT(AM29,LEN(AM29)-1)),CostCode,0))) -> 0 | AO29: =AN29*AL29 -> 0 | AQ29: 0 | AR29: 0 | AT29: Rip rap in channel base | AV29: m3 | AX29: =NA() ->  | AY29: =IF(ISNA(AX29),0,INDEX(IF(UPPER(RIGHT(AX29,1))=Low,UnitCostLow, IF(UPPER(RIGHT(AX29,1))=High,UnitCostHigh,UnitCostSpecified)),MATCH(UPPER(LEFT(AX29,LEN(AX29)-1)),CostCode,0))) -> 0 | AZ29: =AY29*AW29 -> 0 | BB29: 0 | BC29: 0
B30: CONSTRUCT SPILLWAY | H30: 0 | J30: 0 | M30: CONSTRUCT SPILLWAY | X30: CONSTRUCT SPILLWAY | AI30: CONSTRUCT SPILLWAY | AT30: CONSTRUCT SPILLWAY
B31: Excavate channel | C31: 200 m long, 6 m wide and 1 m deep | D31: m3 | E31: ='SBB Comp. Est.'!F17 -> 1200 | F31: SB1L | G31: =IF(ISNA(F31),0,INDEX(IF(UPPER(RIGHT(F31,1))=Low,UnitCostLow, IF(UPPER(RIGHT(F31,1))=High,UnitCostHigh,UnitCostSpecified)),MATCH(UPPER(LEFT(F31,LEN(F31)-1)),CostCode,0))) -> 5.290347163 | H31: 6348.416596 | J31: 0 | K31: 6348.416596 | M31: Excavate channel | N31: Spillway not required; will follow natural drainage to Umwelt Lake. | O31: m3 | Q31: =NA() ->  | R31: =IF(ISNA(Q31),0,INDEX(IF(UPPER(RIGHT(Q31,1))=Low,UnitCostLow, IF(UPPER(RIGHT(Q31,1))=High,UnitCostHigh,UnitCostSpecified)),MATCH(UPPER(LEFT(Q31,LEN(Q31)-1)),CostCode,0))) -> 0 | S31: =R31*P31 -> 0 | U31: =S31*T31 -> 0 | V31: =S31*(1-T31) -> 0 | X31: Excavate channel | Y31: Spillway not required. | Z31: m3 | AB31: =NA() ->  | AC31: =IF(ISNA(AB31),0,INDEX(IF(UPPER(RIGHT(AB31,1))=Low,UnitCostLow, IF(UPPER(RIGHT(AB31,1))=High,UnitCostHigh,UnitCostSpecified)),MATCH(UPPER(LEFT(AB31,LEN(AB31)-1)),CostCode,0))) -> 0 | AD31: =AC31*AA31 -> 0 | AF31: =AD31*AE31 -> 0 | AG31: =AD31*(1-AE31) -> 0 | AI31: Excavate channel | AJ31: 100 m long, 6 m wide and 1 m deep | AK31: m3 | AL31: ='SBB Comp. Est.'!F20 -> 600 | AM31: SB1L | AN31: =IF(ISNA(AM31),0,INDEX(IF(UPPER(RIGHT(AM31,1))=Low,UnitCostLow, IF(UPPER(RIGHT(AM31,1))=High,UnitCostHigh,UnitCostSpecified)),MATCH(UPPER(LEFT(AM31,LEN(AM31)-1)),CostCode,0))) -> 5.290347163 | AO31: =AN31*AL31 -> 3174.208298 | AQ31: =AO31*AP31 -> 0 | AR31: =AO31*(1-AP31) -> 3174.208298 | AT31: Excavate channel | AU31: Not required. Quarry base will be graded for sheet drainage. | AV31: m3 | AX31: SB1L | AY31: =IF(ISNA(AX31),0,INDEX(IF(UPPER(RIGHT(AX31,1))=Low,UnitCostLow, IF(UPPER(RIGHT(AX31,1))=High,UnitCostHigh,UnitCostSpecified)),MATCH(UPPER(LEFT(AX31,LEN(AX31)-1)),CostCode,0))) -> 5.290347163 | AZ31: =AY31*AW31 -> 0 | BB31: =AZ31*BA31 -> 0 | BC31: =AZ31*(1-BA31) -> 0
B32: Concrete | D32: m3 | F32: =NA() ->  | G32: 0 | H32: 0 | J32: 0 | K32: 0 | M32: Concrete | O32: m3 | Q32: =NA() ->  | R32: 0 | S32: =R32*P32 -> 0 | U32: 0 | V32: 0 | X32: Concrete | Z32: m3 | AB32: =NA() ->  | AC32: 0 | AD32: =AC32*AA32 -> 0 | AF32: 0 | AG32: 0 | AI32: Concrete | AK32: m3 | AM32: =NA() ->  | AN32: 0 | AO32: =AN32*AL32 -> 0 | AQ32: 0 | AR32: 0 | AT32: Concrete | AV32: m3 | AX32: =NA() ->  | AY32: 0 | AZ32: =AY32*AW32 -> 0 | BB32: 0 | BC32: 0
B33: Rip rap | D33: m3 | E33: 400 | F33: RR1H | G33: 21.83806097 | H33: 8735.224386 | J33: 0 | K33: 8735.224386 | M33: Rip rap | O33: m3 | Q33: =NA() ->  | R33: 0 | S33: =R33*P33 -> 0 | U33: 0 | V33: 0 | X33: Rip rap | Z33: m3 | AB33: =NA() ->  | AC33: 0 | AD33: =AC33*AA33 -> 0 | AF33: 0 | AG33: 0 | AI33: Rip rap | AK33: m3 | AL33: 200 | AM33: RR1H | AN33: 21.83806097 | AO33: =AN33*AL33 -> 4367.612193 | AQ33: 0 | AR33: 4367.612193 | AT33: Rip rap | AV33: m3 | AX33: RR1L | AY33: 16.60922947 | AZ33: =AY33*AW33 -> 0 | BB33: 0 | BC33: 0
B34: Other | C34: Geotextile | D34: m2 | E34: =((SQRT(1^2+2^2))*2+6)*200*1.1 -> 2303.86991 | F34: GSTL | G34: 4.232277731 | H34: 9750.617315 | J34: 0 | K34: 9750.617315 | M34: Other | Q34: =NA() ->  | R34: 0 | S34: =R34*P34 -> 0 | U34: 0 | V34: 0 | X34: Other | AB34: =NA() ->  | AC34: 0 | AD34: =AC34*AA34 -> 0 | AF34: 0 | AG34: 0 | AI34: Other | AJ34: Geotextile | AK34: m2 | AL34: =((SQRT(1^2+2^2))*2+6)*100*1.1 -> 1151.934955 | AM34: GSTL | AN34: 4.232277731 | AO34: =AN34*AL34 -> 4875.308658 | AQ34: 0 | AR34: 4875.308658 | AT34: Other | AV34: m2 | AX34: GSTL | AY34: 4.232277731 | AZ34: =AY34*AW34 -> 0 | BB34: 0 | BC34: 0
B35: RECLAIM QUARRIES | M35: RECLAIM QUARRIES | X35: RECLAIM QUARRIES | AI35: RECLAIM QUARRIES | AT35: RECLAIM QUARRIES
B36: Contour slopes | D36: m3 | F36: =NA() ->  | G36: =IF(ISNA(F36),0,INDEX(IF(UPPER(RIGHT(F36,1))=Low,UnitCostLow, IF(UPPER(RIGHT(F36,1))=High,UnitCostHigh,UnitCostSpecified)),MATCH(UPPER(LEFT(F36,LEN(F36)-1)),CostCode,0))) -> 0 | H36: =G36*E36 -> 0 | J36: =H36*I36 -> 0 | K36: =H36*(1-I36) -> 0 | M36: Contour slopes | O36: m3 | Q36: =NA() ->  | R36: =IF(ISNA(Q36),0,INDEX(IF(UPPER(RIGHT(Q36,1))=Low,UnitCostLow, IF(UPPER(RIGHT(Q36,1))=High,UnitCostHigh,UnitCostSpecified)),MATCH(UPPER(LEFT(Q36,LEN(Q36)-1)),CostCode,0))) -> 0 | S36: =R36*P36 -> 0 | U36: =S36*T36 -> 0 | V36: =S36*(1-T36) -> 0 | X36: Contour slopes | Z36: m3 | AB36: =NA() ->  | AC36: =IF(ISNA(AB36),0,INDEX(IF(UPPER(RIGHT(AB36,1))=Low,UnitCostLow, IF(UPPER(RIGHT(AB36,1))=High,UnitCostHigh,UnitCostSpecified)),MATCH(UPPER(LEFT(AB36,LEN(AB36)-1)),CostCode,0))) -> 0 | AD36: =AC36*AA36 -> 0 | AF36: =AD36*AE36 -> 0 | AG36: =AD36*(1-AE36) -> 0 | AI36: Contour slopes | AK36: m3 | AM36: =NA() ->  | AN36: =IF(ISNA(AM36),0,INDEX(IF(UPPER(RIGHT(AM36,1))=Low,UnitCostLow, IF(UPPER(RIGHT(AM36,1))=High,UnitCostHigh,UnitCostSpecified)),MATCH(UPPER(LEFT(AM36,LEN(AM36)-1)),CostCode,0))) -> 0 | AO36: =AN36*AL36 -> 0 | AQ36: =AO36*AP36 -> 0 | AR36: =AO36*(1-AP36) -> 0 | AT36: Contour slopes | AU36: Quarry will not be flooded - development will occur below water level and the areas will be contoured to drain positively | AV36: m3 | AX36: =NA() ->  | AY36: =IF(ISNA(AX36),0,INDEX(IF(UPPER(RIGHT(AX36,1))=Low,UnitCostLow, IF(UPPER(RIGHT(AX36,1))=High,UnitCostHigh,UnitCostSpecified)),MATCH(UPPER(LEFT(AX36,LEN(AX36)-1)),CostCode,0))) -> 0 | AZ36: =AY36*AW36 -> 0 | BB36: =AZ36*BA36 -> 0 | BC36: =AZ36*(1-BA36) -> 0
B37: Place overburden | D37: m3 | F37: =NA() ->  | G37: =IF(ISNA(F37),0,INDEX(IF(UPPER(RIGHT(F37,1))=Low,UnitCostLow, IF(UPPER(RIGHT(F37,1))=High,UnitCostHigh,UnitCostSpecified)),MATCH(UPPER(LEFT(F37,LEN(F37)-1)),CostCode,0))) -> 0 | H37: =G37*E37 -> 0 | J37: =H37*I37 -> 0 | K37: =H37*(1-I37) -> 0 | M37: Place overburden | O37: m3 | Q37: =NA() ->  | R37: =IF(ISNA(Q37),0,INDEX(IF(UPPER(RIGHT(Q37,1))=Low,UnitCostLow, IF(UPPER(RIGHT(Q37,1))=High,UnitCostHigh,UnitCostSpecified)),MATCH(UPPER(LEFT(Q37,LEN(Q37)-1)),CostCode,0))) -> 0 | S37: =R37*P37 -> 0 | U37: =S37*T37 -> 0 | V37: =S37*(1-T37) -> 0 | X37: Place overburden | Z37: m3 | AB37: =NA() ->  | AC37: =IF(ISNA(AB37),0,INDEX(IF(UPPER(RIGHT(AB37,1))=Low,UnitCostLow, IF(UPPER(RIGHT(AB37,1))=High,UnitCostHigh,UnitCostSpecified)),MATCH(UPPER(LEFT(AB37,LEN(AB37)-1)),CostCode,0))) -> 0 | AD37: =AC37*AA37 -> 0 | AF37: =AD37*AE37 -> 0 | AG37: =AD37*(1-AE37) -> 0 | AI37: Place overburden | AK37: m3 | AM37: =NA() ->  | AN37: =IF(ISNA(AM37),0,INDEX(IF(UPPER(RIGHT(AM37,1))=Low,UnitCostLow, IF(UPPER(RIGHT(AM37,1))=High,UnitCostHigh,UnitCostSpecified)),MATCH(UPPER(LEFT(AM37,LEN(AM37)-1)),CostCode,0))) -> 0 | AO37: =AN37*AL37 -> 0 | AQ37: =AO37*AP37 -> 0 | AR37: =AO37*(1-AP37) -> 0 | AT37: Place overburden | AV37: m3 | AX37: =NA() ->  | AY37: =IF(ISNA(AX37),0,INDEX(IF(UPPER(RIGHT(AX37,1))=Low,UnitCostLow, IF(UPPER(RIGHT(AX37,1))=High,UnitCostHigh,UnitCostSpecified)),MATCH(UPPER(LEFT(AX37,LEN(AX37)-1)),CostCode,0))) -> 0 | AZ37: =AY37*AW37 -> 0 | BB37: =AZ37*BA37 -> 0 | BC37: =AZ37*(1-BA37) -> 0
B38: Vegetate | D38: m3 | F38: =NA() ->  | G38: =IF(ISNA(F38),0,INDEX(IF(UPPER(RIGHT(F38,1))=Low,UnitCostLow, IF(UPPER(RIGHT(F38,1))=High,UnitCostHigh,UnitCostSpecified)),MATCH(UPPER(LEFT(F38,LEN(F38)-1)),CostCode,0))) -> 0 | H38: =G38*E38 -> 0 | J38: =H38*I38 -> 0 | K38: =H38*(1-I38) -> 0 | M38: Vegetate | O38: m3 | Q38: =NA() ->  | R38: =IF(ISNA(Q38),0,INDEX(IF(UPPER(RIGHT(Q38,1))=Low,UnitCostLow, IF(UPPER(RIGHT(Q38,1))=High,UnitCostHigh,UnitCostSpecified)),MATCH(UPPER(LEFT(Q38,LEN(Q38)-1)),CostCode,0))) -> 0 | S38: =R38*P38 -> 0 | U38: =S38*T38 -> 0 | V38: =S38*(1-T38) -> 0 | X38: Vegetate | Z38: m3 | AB38: =NA() ->  | AC38: =IF(ISNA(AB38),0,INDEX(IF(UPPER(RIGHT(AB38,1))=Low,UnitCostLow, IF(UPPER(RIGHT(AB38,1))=High,UnitCostHigh,UnitCostSpecified)),MATCH(UPPER(LEFT(AB38,LEN(AB38)-1)),CostCode,0))) -> 0 | AD38: =AC38*AA38 -> 0 | AF38: =AD38*AE38 -> 0 | AG38: =AD38*(1-AE38) -> 0 | AI38: Vegetate | AK38: m3 | AM38: =NA() ->  | AN38: =IF(ISNA(AM38),0,INDEX(IF(UPPER(RIGHT(AM38,1))=Low,UnitCostLow, IF(UPPER(RIGHT(AM38,1))=High,UnitCostHigh,UnitCostSpecified)),MATCH(UPPER(LEFT(AM38,LEN(AM38)-1)),CostCode,0))) -> 0 | AO38: =AN38*AL38 -> 0 | AQ38: =AO38*AP38 -> 0 | AR38: =AO38*(1-AP38) -> 0 | AT38: Vegetate | AV38: m3 | AX38: =NA() ->  | AY38: =IF(ISNA(AX38),0,INDEX(IF(UPPER(RIGHT(AX38,1))=Low,UnitCostLow, IF(UPPER(RIGHT(AX38,1))=High,UnitCostHigh,UnitCostSpecified)),MATCH(UPPER(LEFT(AX38,LEN(AX38)-1)),CostCode,0))) -> 0 | AZ38: =AY38*AW38 -> 0 | BB38: =AZ38*BA38 -> 0 | BC38: =AZ38*(1-BA38) -> 0
B39: FLOOD PIT-Capital | M39: FLOOD PIT-Capital | X39: FLOOD PIT-Capital | AI39: FLOOD PIT-Capital | AT39: FLOOD PIT-Capital
B40: Remove stationary equipment (sump pumps) and Pipeline | C40: Umwelt TF will be used to store tailings in Years 4 to 11; it will be passively flooded with site runoff and direct precipitation throughout the end of Operations and into the Closure Phase. Recirculation treatment is planned following use as a TF. | D40: m | F40: =NA() ->  | G40: =IF(ISNA(F40),0,INDEX(IF(UPPER(RIGHT(F40,1))=Low,UnitCostLow, IF(UPPER(RIGHT(F40,1))=High,UnitCostHigh,UnitCostSpecified)),MATCH(UPPER(LEFT(F40,LEN(F40)-1)),CostCode,0))) -> 0 | H40: =G40*E40 -> 0 | J40: =H40*I40 -> 0 | K40: =H40*(1-I40) -> 0 | M40: Remove stationary equipment (sump pumps) and Pipeline | N40: Llama TF will be used to store tailings in Years 11 to 14 (end of operations); it will be passively flooded following use as a TF with site runoff and direct precipitation throughout the end of Operations and into the Closure Phase. Water may be pumped from Goose Lake if required. At Closure, reclaim water pump will be at top of TF and pipeline leads to WTP. Costing here to remove pipeline to closure landfill; dispose of fuel in diesel day tank and oil from pump and landfill cleaned pump. Recirculation treatment may be provided following use as a TF if required (not costed here). | O40: m | P40: ='SBB Comp. Est.'!F13 -> 2850 | Q40: Sabina | R40: ='SBB Comp. Est.'!X13 -> 11.58692185 | S40: =R40*P40 -> 33022.72727 | U40: =S40*T40 -> 0 | V40: =S40*(1-T40) -> 33022.72727 | X40: Remove stationary equipment (sump pumps) and Pipeline | Y40: Echo TF will be used to store tailings in Years 1 to 4; it will be incoprorated into and reclaimed as part of the Goose Main WRSA follwing use as a TF. Pipelines/pumps will be relocated during Operations for use in the other activities (i.e., not a closure cost). | Z40: m | AA40: 0 | AB40: =NA() ->  | AC40: ='SBB Comp. Est.'!X15 -> 11.58692185 | AD40: =AC40*AA40 -> 0 | AF40: =AD40*AE40 -> 0 | AG40: =AD40*(1-AE40) -> 0 | AI40: Remove stationary equipment (sump pumps) and Pipeline | AJ40: At closure, pump will be at top of Goose Reservoir. Remove pipeline to closure landfill; dispose of fuel in diesel day tank and oil from pump and landfill cleaned pump. | AK40: m | AL40: ='SBB Comp. Est.'!F14 -> 4325 | AM40: Sabina | AN40: ='SBB Comp. Est.'!X14 -> 11.58692185 | AO40: =AN40*AL40 -> 50113.437 | AQ40: =AO40*AP40 -> 0 | AR40: =AO40*(1-AP40) -> 50113.437 | AT40: Remove stationary equipment (sump pumps) and Pipeline | AV40: m | AX40: =NA() ->  | AY40: =IF(ISNA(AX40),0,INDEX(IF(UPPER(RIGHT(AX40,1))=Low,UnitCostLow, IF(UPPER(RIGHT(AX40,1))=High,UnitCostHigh,UnitCostSpecified)),MATCH(UPPER(LEFT(AX40,LEN(AX40)-1)),CostCode,0))) -> 0 | AZ40: =AY40*AW40 -> 0 | BB40: =AZ40*BA40 -> 0 | BC40: =AZ40*(1-BA40) -> 0
B41: Remove dewatering pipeline | D41: m | F41: =NA() ->  | G41: =IF(ISNA(F41),0,INDEX(IF(UPPER(RIGHT(F41,1))=Low,UnitCostLow, IF(UPPER(RIGHT(F41,1))=High,UnitCostHigh,UnitCostSpecified)),MATCH(UPPER(LEFT(F41,LEN(F41)-1)),CostCode,0))) -> 0 | H41: =G41*E41 -> 0 | J41: =H41*I41 -> 0 | K41: =H41*(1-I41) -> 0 | M41: Remove dewatering pipeline | O41: m | Q41: =NA() ->  | R41: =IF(ISNA(Q41),0,INDEX(IF(UPPER(RIGHT(Q41,1))=Low,UnitCostLow, IF(UPPER(RIGHT(Q41,1))=High,UnitCostHigh,UnitCostSpecified)),MATCH(UPPER(LEFT(Q41,LEN(Q41)-1)),CostCode,0))) -> 0 | S41: =R41*P41 -> 0 | U41: =S41*T41 -> 0 | V41: =S41*(1-T41) -> 0 | X41: Remove dewatering pipeline | Z41: m | AB41: =NA() ->  | AC41: =IF(ISNA(AB41),0,INDEX(IF(UPPER(RIGHT(AB41,1))=Low,UnitCostLow, IF(UPPER(RIGHT(AB41,1))=High,UnitCostHigh,UnitCostSpecified)),MATCH(UPPER(LEFT(AB41,LEN(AB41)-1)),CostCode,0))) -> 0 | AD41: =AC41*AA41 -> 0 | AF41: =AD41*AE41 -> 0 | AG41: =AD41*(1-AE41) -> 0 | AI41: Remove dewatering pipeline | AK41: m | AM41: =NA() ->  | AN41: =IF(ISNA(AM41),0,INDEX(IF(UPPER(RIGHT(AM41,1))=Low,UnitCostLow, IF(UPPER(RIGHT(AM41,1))=High,UnitCostHigh,UnitCostSpecified)),MATCH(UPPER(LEFT(AM41,LEN(AM41)-1)),CostCode,0))) -> 0 | AO41: =AN41*AL41 -> 0 | AQ41: =AO41*AP41 -> 0 | AR41: =AO41*(1-AP41) -> 0 | AT41: Remove dewatering pipeline | AV41: m | AX41: =NA() ->  | AY41: =IF(ISNA(AX41),0,INDEX(IF(UPPER(RIGHT(AX41,1))=Low,UnitCostLow, IF(UPPER(RIGHT(AX41,1))=High,UnitCostHigh,UnitCostSpecified)),MATCH(UPPER(LEFT(AX41,LEN(AX41)-1)),CostCode,0))) -> 0 | AZ41: =AY41*AW41 -> 0 | BB41: =AZ41*BA41 -> 0 | BC41: =AZ41*(1-BA41) -> 0
B42: Remove power lines | D42: each | F42: =NA() ->  | G42: 0 | H42: =G42*E42 -> 0 | J42: 0 | K42: 0 | M42: Remove power lines | O42: each | Q42: =NA() ->  | R42: =IF(ISNA(Q42),0,INDEX(IF(UPPER(RIGHT(Q42,1))=Low,UnitCostLow, IF(UPPER(RIGHT(Q42,1))=High,UnitCostHigh,UnitCostSpecified)),MATCH(UPPER(LEFT(Q42,LEN(Q42)-1)),CostCode,0))) -> 0 | S42: =R42*P42 -> 0 | U42: =S42*T42 -> 0 | V42: =S42*(1-T42) -> 0 | X42: Remove power lines | Z42: each | AB42: =NA() ->  | AC42: =IF(ISNA(AB42),0,INDEX(IF(UPPER(RIGHT(AB42,1))=Low,UnitCostLow, IF(UPPER(RIGHT(AB42,1))=High,UnitCostHigh,UnitCostSpecified)),MATCH(UPPER(LEFT(AB42,LEN(AB42)-1)),CostCode,0))) -> 0 | AD42: =AC42*AA42 -> 0 | AF42: =AD42*AE42 -> 0 | AG42: =AD42*(1-AE42) -> 0 | AI42: Remove power lines | AK42: each | AM42: =NA() ->  | AN42: =IF(ISNA(AM42),0,INDEX(IF(UPPER(RIGHT(AM42,1))=Low,UnitCostLow, IF(UPPER(RIGHT(AM42,1))=High,UnitCostHigh,UnitCostSpecified)),MATCH(UPPER(LEFT(AM42,LEN(AM42)-1)),CostCode,0))) -> 0 | AO42: =AN42*AL42 -> 0 | AQ42: =AO42*AP42 -> 0 | AR42: =AO42*(1-AP42) -> 0 | AT42: Remove power lines | AV42: each | AX42: =NA() ->  | AY42: =IF(ISNA(AX42),0,INDEX(IF(UPPER(RIGHT(AX42,1))=Low,UnitCostLow, IF(UPPER(RIGHT(AX42,1))=High,UnitCostHigh,UnitCostSpecified)),MATCH(UPPER(LEFT(AX42,LEN(AX42)-1)),CostCode,0))) -> 0 | AZ42: =AY42*AW42 -> 0 | BB42: =AZ42*BA42 -> 0 | BC42: =AZ42*(1-BA42) -> 0
B43: Construct diversion ditches | D43: m3 | F43: =NA() ->  | G43: =IF(ISNA(F43),0,INDEX(IF(UPPER(RIGHT(F43,1))=Low,UnitCostLow, IF(UPPER(RIGHT(F43,1))=High,UnitCostHigh,UnitCostSpecified)),MATCH(UPPER(LEFT(F43,LEN(F43)-1)),CostCode,0))) -> 0 | H43: =G43*E43 -> 0 | J43: =H43*I43 -> 0 | K43: =H43*(1-I43) -> 0 | M43: Construct diversion ditches | O43: m3 | Q43: =NA() ->  | R43: 0 | S43: 0 | U43: 0 | V43: 0 | X43: Construct diversion ditches | Z43: m3 | AB43: =NA() ->  | AC43: 0 | AD43: 0 | AF43: 0 | AG43: 0 | AI43: Construct diversion ditches | AK43: m3 | AM43: =NA() ->  | AN43: 0 | AO43: 0 | AQ43: 0 | AR43: 0 | AT43: Construct diversion ditches | AV43: m3 | AX43: =NA() ->  | AY43: 0 | AZ43: 0 | BB43: 0 | BC43: 0
B44: -Ditch, mat'l A | D44: m3 | F44: =NA() ->  | G44: 0 | H44: =G44*E44 -> 0 | J44: 0 | K44: =+H44*(1-I44) -> 0 | M44: -Ditch, mat'l A | O44: m3 | Q44: =NA() ->  | R44: 0 | S44: =R44*P44 -> 0 | U44: 0 | V44: =+S44*(1-T44) -> 0 | X44: -Ditch, mat'l A | Z44: m3 | AB44: =NA() ->  | AC44: 0 | AD44: =AC44*AA44 -> 0 | AF44: 0 | AG44: =+AD44*(1-AE44) -> 0 | AI44: -Ditch, mat'l A | AK44: m3 | AM44: =NA() ->  | AN44: 0 | AO44: =AN44*AL44 -> 0 | AQ44: 0 | AR44: =+AO44*(1-AP44) -> 0 | AT44: -Ditch, mat'l A | AV44: m3 | AX44: =NA() ->  | AY44: 0 | AZ44: =AY44*AW44 -> 0 | BB44: 0 | BC44: =+AZ44*(1-BA44) -> 0
B45: -Ditch, mat'l B | D45: m3 | F45: =NA() ->  | G45: 0 | H45: =G45*E45 -> 0 | J45: 0 | K45: 0 | M45: -Ditch, mat'l B | O45: m3 | Q45: =NA() ->  | R45: 0 | S45: =R45*P45 -> 0 | U45: 0 | V45: 0 | X45: -Ditch, mat'l B | Z45: m3 | AB45: =NA() ->  | AC45: 0 | AD45: =AC45*AA45 -> 0 | AF45: 0 | AG45: 0 | AI45: -Ditch, mat'l B | AK45: m3 | AM45: =NA() ->  | AN45: 0 | AO45: =AN45*AL45 -> 0 | AQ45: 0 | AR45: 0 | AT45: -Ditch, mat'l B | AV45: m3 | AX45: =NA() ->  | AY45: 0 | AZ45: =AY45*AW45 -> 0 | BB45: 0 | BC45: 0
B46: Construct embankment/dam | D46: m3 | F46: =NA() ->  | G46: 0 | H46: 0 | J46: 0 | K46: 0 | M46: Construct embankment/dam | O46: m3 | Q46: =NA() ->  | R46: 0 | S46: =R46*P46 -> 0 | U46: 0 | V46: =S46*(1-T46) -> 0 | X46: Construct embankment/dam | Z46: m3 | AB46: =NA() ->  | AC46: 0 | AD46: =AC46*AA46 -> 0 | AF46: 0 | AG46: =AD46*(1-AE46) -> 0 | AI46: Construct embankment/dam | AK46: m3 | AM46: =NA() ->  | AN46: 0 | AO46: =AN46*AL46 -> 0 | AQ46: 0 | AR46: =AO46*(1-AP46) -> 0 | AT46: Construct embankment/dam | AV46: m3 | AX46: =NA() ->  | AY46: 0 | AZ46: =AY46*AW46 -> 0 | BB46: 0 | BC46: =AZ46*(1-BA46) -> 0
B47: Supply/install pump station | D47: each | F47: =NA() ->  | G47: 0 | H47: 0 | J47: 0 | K47: 0 | M47: Supply/install pump station | O47: each | Q47: =NA() ->  | R47: 0 | S47: 0 | U47: 0 | V47: 0 | X47: Supply/install pump station | Z47: each | AB47: =NA() ->  | AC47: 0 | AD47: 0 | AF47: 0 | AG47: 0 | AI47: Supply/install pump station | AK47: each | AM47: =NA() ->  | AN47: 0 | AO47: 0 | AQ47: 0 | AR47: 0 | AT47: Supply/install pump station | AV47: each | AX47: =NA() ->  | AY47: 0 | AZ47: 0 | BB47: 0 | BC47: 0
B48: Supply/install piping system | D48: m | F48: =NA() ->  | G48: =IF(ISNA(F48),0,INDEX(IF(UPPER(RIGHT(F48,1))=Low,UnitCostLow, IF(UPPER(RIGHT(F48,1))=High,UnitCostHigh,UnitCostSpecified)),MATCH(UPPER(LEFT(F48,LEN(F48)-1)),CostCode,0))) -> 0 | H48: =G48*E48 -> 0 | J48: =H48*I48 -> 0 | K48: =H48*(1-I48) -> 0 | M48: Supply/install piping system | O48: m | Q48: =NA() ->  | R48: 0 | S48: 0 | U48: 0 | V48: 0 | X48: Supply/install piping system | Z48: m | AB48: =NA() ->  | AC48: 0 | AD48: 0 | AF48: 0 | AG48: 0 | AI48: Supply/install piping system | AK48: m | AM48: =NA() ->  | AN48: 0 | AO48: 0 | AQ48: 0 | AR48: 0 | AT48: Supply/install piping system | AV48: m | AX48: =NA() ->  | AY48: 0 | AZ48: 0 | BB48: 0 | BC48: 0
B49: Remove pump post-closure | D49: each | F49: =NA() ->  | G49: =IF(ISNA(F49),0,INDEX(IF(UPPER(RIGHT(F49,1))=Low,UnitCostLow, IF(UPPER(RIGHT(F49,1))=High,UnitCostHigh,UnitCostSpecified)),MATCH(UPPER(LEFT(F49,LEN(F49)-1)),CostCode,0))) -> 0 | H49: =G49*E49 -> 0 | J49: =H49*I49 -> 0 | K49: =H49*(1-I49) -> 0 | M49: Remove pump post-closure | O49: each | Q49: =NA() ->  | R49: 0 | S49: 0 | U49: 0 | V49: 0 | X49: Remove pump post-closure | Z49: each | AB49: =NA() ->  | AC49: 0 | AD49: 0 | AF49: 0 | AG49: 0 | AI49: Remove pump post-closure | AK49: each | AM49: =NA() ->  | AN49: 0 | AO49: 0 | AQ49: 0 | AR49: 0 | AT49: Remove pump post-closure | AV49: each | AX49: =NA() ->  | AY49: 0 | AZ49: 0 | BB49: 0 | BC49: 0
B50: Remove pipeline post-closure | D50: m | F50: =NA() ->  | G50: =IF(ISNA(F50),0,INDEX(IF(UPPER(RIGHT(F50,1))=Low,UnitCostLow, IF(UPPER(RIGHT(F50,1))=High,UnitCostHigh,UnitCostSpecified)),MATCH(UPPER(LEFT(F50,LEN(F50)-1)),CostCode,0))) -> 0 | H50: =G50*E50 -> 0 | J50: =H50*I50 -> 0 | K50: =H50*(1-I50) -> 0 | M50: Remove pipeline post-closure | O50: m | Q50: =NA() ->  | R50: 0 | S50: 0 | U50: 0 | V50: 0 | X50: Remove pipeline post-closure | Z50: m | AB50: =NA() ->  | AC50: 0 | AD50: 0 | AF50: 0 | AG50: 0 | AI50: Remove pipeline post-closure | AK50: m | AM50: =NA() ->  | AN50: 0 | AO50: 0 | AQ50: 0 | AR50: 0 | AT50: Remove pipeline post-closure | AV50: m | AX50: =NA() ->  | AY50: 0 | AZ50: 0 | BB50: 0 | BC50: 0
B51: FLOOD PIT-Annual Cost | M51: FLOOD PIT-Annual Cost | X51: FLOOD PIT-Annual Cost | AI51: FLOOD PIT-Annual Cost | AT51: FLOOD PIT-Annual Cost
B52: Operate pumps (power) | D52: m3 | F52: =NA() ->  | G52: 0 | H52: 0 | J52: 0 | K52: 0 | M52: Operate pumps (power) | O52: m3 | Q52: =NA() ->  | R52: =IF(ISNA(Q52),0,INDEX(IF(UPPER(RIGHT(Q52,1))=Low,UnitCostLow, IF(UPPER(RIGHT(Q52,1))=High,UnitCostHigh,UnitCostSpecified)),MATCH(UPPER(LEFT(Q52,LEN(Q52)-1)),CostCode,0))) -> 0 | S52: =R52*P52 -> 0 | U52: =S52*T52 -> 0 | V52: =S52*(1-T52) -> 0 | X52: Operate pumps (power) | Z52: m3 | AB52: =NA() ->  | AC52: =IF(ISNA(AB52),0,INDEX(IF(UPPER(RIGHT(AB52,1))=Low,UnitCostLow, IF(UPPER(RIGHT(AB52,1))=High,UnitCostHigh,UnitCostSpecified)),MATCH(UPPER(LEFT(AB52,LEN(AB52)-1)),CostCode,0))) -> 0 | AD52: =AC52*AA52 -> 0 | AF52: =AD52*AE52 -> 0 | AG52: =AD52*(1-AE52) -> 0 | AI52: Operate pumps (power) | AK52: m3 | AM52: =NA() ->  | AN52: =IF(ISNA(AM52),0,INDEX(IF(UPPER(RIGHT(AM52,1))=Low,UnitCostLow, IF(UPPER(RIGHT(AM52,1))=High,UnitCostHigh,UnitCostSpecified)),MATCH(UPPER(LEFT(AM52,LEN(AM52)-1)),CostCode,0))) -> 0 | AO52: =AN52*AL52 -> 0 | AQ52: =AO52*AP52 -> 0 | AR52: =AO52*(1-AP52) -> 0 | AT52: Operate pumps (power) | AV52: m3 | AX52: =NA() ->  | AY52: =IF(ISNA(AX52),0,INDEX(IF(UPPER(RIGHT(AX52,1))=Low,UnitCostLow, IF(UPPER(RIGHT(AX52,1))=High,UnitCostHigh,UnitCostSpecified)),MATCH(UPPER(LEFT(AX52,LEN(AX52)-1)),CostCode,0))) -> 0 | AZ52: =AY52*AW52 -> 0 | BB52: =AZ52*BA52 -> 0 | BC52: =AZ52*(1-BA52) -> 0
B53: Maintain pump/pipeline | D53: allow | F53: =NA() ->  | G53: =IF(ISNA(F53),0,INDEX(IF(UPPER(RIGHT(F53,1))=Low,UnitCostLow, IF(UPPER(RIGHT(F53,1))=High,UnitCostHigh,UnitCostSpecified)),MATCH(UPPER(LEFT(F53,LEN(F53)-1)),CostCode,0))) -> 0 | H53: =G53*E53 -> 0 | J53: =H53*I53 -> 0 | K53: =H53*(1-I53) -> 0 | M53: Maintain pump/pipeline | O53: allow | Q53: =NA() ->  | R53: 0 | S53: 0 | U53: 0 | V53: 0 | X53: Maintain pump/pipeline | Z53: allow | AB53: =NA() ->  | AC53: 0 | AD53: 0 | AF53: 0 | AG53: 0 | AI53: Maintain pump/pipeline | AK53: allow | AM53: =NA() ->  | AN53: 0 | AO53: 0 | AQ53: 0 | AR53: 0 | AT53: Maintain pump/pipeline | AV53: allow | AX53: =NA() ->  | AY53: 0 | AZ53: 0 | BB53: 0 | BC53: 0
B54: Labour: fuel management, commissioning/decom | D54: $/h | F54: =NA() ->  | G54: =IF(ISNA(F54),0,INDEX(IF(UPPER(RIGHT(F54,1))=Low,UnitCostLow, IF(UPPER(RIGHT(F54,1))=High,UnitCostHigh,UnitCostSpecified)),MATCH(UPPER(LEFT(F54,LEN(F54)-1)),CostCode,0))) -> 0 | H54: =G54*E54 -> 0 | J54: =H54*I54 -> 0 | K54: =H54*(1-I54) -> 0 | M54: Labour: fuel management, commissioning/decom | O54: $/h | Q54: =NA() ->  | R54: 0 | S54: 0 | U54: 0 | V54: 0 | X54: Labour: fuel management, commissioning/decom | Z54: $/h | AB54: =NA() ->  | AC54: 0 | AD54: 0 | AF54: 0 | AG54: 0 | AI54: Labour: fuel management, commissioning/decom | AK54: $/h | AM54: =NA() ->  | AN54: 0 | AO54: 0 | AQ54: 0 | AR54: 0 | AT54: Labour: fuel management, commissioning/decom | AV54: $/h | AX54: =NA() ->  | AY54: 0 | AZ54: 0 | BB54: 0 | BC54: 0
B55: Chemical addition, _____ kg/m3 of water | D55: tonne | F55: =NA() ->  | G55: 0 | H55: 0 | J55: 0 | K55: 0 | M55: Chemical addition, _____ kg/m3 of water | O55: tonne | Q55: =NA() ->  | R55: 0 | S55: 0 | U55: 0 | V55: 0 | X55: Chemical addition, _____ kg/m3 of water | Z55: tonne | AB55: =NA() ->  | AC55: 0 | AD55: 0 | AF55: 0 | AG55: 0 | AI55: Chemical addition, _____ kg/m3 of water | AK55: tonne | AM55: =NA() ->  | AN55: 0 | AO55: 0 | AQ55: 0 | AR55: 0 | AT55: Chemical addition, _____ kg/m3 of water | AV55: tonne | AX55: =NA() ->  | AY55: 0 | AZ55: 0 | BB55: 0 | BC55: 0
B56: Chemicals, purchase and shipping | D56: tonne | F56: =NA() ->  | G56: 0 | H56: 0 | J56: 0 | K56: 0 | M56: Chemicals, purchase and shipping | O56: tonne | Q56: =NA() ->  | R56: 0 | S56: 0 | U56: 0 | V56: 0 | X56: Chemicals, purchase and shipping | Z56: tonne | AB56: =NA() ->  | AC56: 0 | AD56: 0 | AF56: 0 | AG56: 0 | AI56: Chemicals, purchase and shipping | AK56: tonne | AM56: =NA() ->  | AN56: 0 | AO56: 0 | AQ56: 0 | AR56: 0 | AT56: Chemicals, purchase and shipping | AV56: tonne | AX56: =NA() ->  | AY56: 0 | AZ56: 0 | BB56: 0 | BC56: 0
B57: Passive/biological additives | D57: $/ha | F57: =NA() ->  | G57: =IF(ISNA(F57),0,INDEX(IF(UPPER(RIGHT(F57,1))=Low,UnitCostLow, IF(UPPER(RIGHT(F57,1))=High,UnitCostHigh,UnitCostSpecified)),MATCH(UPPER(LEFT(F57,LEN(F57)-1)),CostCode,0))) -> 0 | H57: =G57*E57 -> 0 | J57: =H57*I57 -> 0 | K57: =H57*(1-I57) -> 0 | M57: Passive/biological additives | O57: $/ha | Q57: =NA() ->  | R57: =IF(ISNA(Q57),0,INDEX(IF(UPPER(RIGHT(Q57,1))=Low,UnitCostLow, IF(UPPER(RIGHT(Q57,1))=High,UnitCostHigh,UnitCostSpecified)),MATCH(UPPER(LEFT(Q57,LEN(Q57)-1)),CostCode,0))) -> 0 | S57: =R57*P57 -> 0 | U57: =S57*T57 -> 0 | V57: =S57*(1-T57) -> 0 | X57: Passive/biological additives | Z57: $/ha | AB57: =NA() ->  | AC57: =IF(ISNA(AB57),0,INDEX(IF(UPPER(RIGHT(AB57,1))=Low,UnitCostLow, IF(UPPER(RIGHT(AB57,1))=High,UnitCostHigh,UnitCostSpecified)),MATCH(UPPER(LEFT(AB57,LEN(AB57)-1)),CostCode,0))) -> 0 | AD57: =AC57*AA57 -> 0 | AF57: =AD57*AE57 -> 0 | AG57: =AD57*(1-AE57) -> 0 | AI57: Passive/biological additives | AK57: $/ha | AM57: =NA() ->  | AN57: =IF(ISNA(AM57),0,INDEX(IF(UPPER(RIGHT(AM57,1))=Low,UnitCostLow, IF(UPPER(RIGHT(AM57,1))=High,UnitCostHigh,UnitCostSpecified)),MATCH(UPPER(LEFT(AM57,LEN(AM57)-1)),CostCode,0))) -> 0 | AO57: =AN57*AL57 -> 0 | AQ57: =AO57*AP57 -> 0 | AR57: =AO57*(1-AP57) -> 0 | AT57: Passive/biological additives | AV57: $/ha | AX57: =NA() ->  | AY57: =IF(ISNA(AX57),0,INDEX(IF(UPPER(RIGHT(AX57,1))=Low,UnitCostLow, IF(UPPER(RIGHT(AX57,1))=High,UnitCostHigh,UnitCostSpecified)),MATCH(UPPER(LEFT(AX57,LEN(AX57)-1)),CostCode,0))) -> 0 | AZ57: =AY57*AW57 -> 0 | BB57: =AZ57*BA57 -> 0 | BC57: =AZ57*(1-BA57) -> 0
B58: Passive additives purchase and shipping | D58: tonne | F58: =NA() ->  | G58: =IF(ISNA(F58),0,INDEX(IF(UPPER(RIGHT(F58,1))=Low,UnitCostLow, IF(UPPER(RIGHT(F58,1))=High,UnitCostHigh,UnitCostSpecified)),MATCH(UPPER(LEFT(F58,LEN(F58)-1)),CostCode,0))) -> 0 | H58: =G58*E58 -> 0 | J58: =H58*I58 -> 0 | K58: =H58*(1-I58) -> 0 | M58: Passive additives purchase and shipping | O58: tonne | Q58: =NA() ->  | R58: =IF(ISNA(Q58),0,INDEX(IF(UPPER(RIGHT(Q58,1))=Low,UnitCostLow, IF(UPPER(RIGHT(Q58,1))=High,UnitCostHigh,UnitCostSpecified)),MATCH(UPPER(LEFT(Q58,LEN(Q58)-1)),CostCode,0))) -> 0 | S58: =R58*P58 -> 0 | U58: =S58*T58 -> 0 | V58: =S58*(1-T58) -> 0 | X58: Passive additives purchase and shipping | Z58: tonne | AB58: =NA() ->  | AC58: =IF(ISNA(AB58),0,INDEX(IF(UPPER(RIGHT(AB58,1))=Low,UnitCostLow, IF(UPPER(RIGHT(AB58,1))=High,UnitCostHigh,UnitCostSpecified)),MATCH(UPPER(LEFT(AB58,LEN(AB58)-1)),CostCode,0))) -> 0 | AD58: =AC58*AA58 -> 0 | AF58: =AD58*AE58 -> 0 | AG58: =AD58*(1-AE58) -> 0 | AI58: Passive additives purchase and shipping | AK58: tonne | AM58: =NA() ->  | AN58: =IF(ISNA(AM58),0,INDEX(IF(UPPER(RIGHT(AM58,1))=Low,UnitCostLow, IF(UPPER(RIGHT(AM58,1))=High,UnitCostHigh,UnitCostSpecified)),MATCH(UPPER(LEFT(AM58,LEN(AM58)-1)),CostCode,0))) -> 0 | AO58: =AN58*AL58 -> 0 | AQ58: =AO58*AP58 -> 0 | AR58: =AO58*(1-AP58) -> 0 | AT58: Passive additives purchase and shipping | AV58: tonne | AX58: =NA() ->  | AY58: =IF(ISNA(AX58),0,INDEX(IF(UPPER(RIGHT(AX58,1))=Low,UnitCostLow, IF(UPPER(RIGHT(AX58,1))=High,UnitCostHigh,UnitCostSpecified)),MATCH(UPPER(LEFT(AX58,LEN(AX58)-1)),CostCode,0))) -> 0 | AZ58: =AY58*AW58 -> 0 | BB58: =AZ58*BA58 -> 0 | BC58: =AZ58*(1-BA58) -> 0
B59: Other | F59: =NA() ->  | G59: 0 | H59: 0 | J59: =H59*I59 -> 0 | K59: 0 | M59: Other | Q59: =NA() ->  | R59: =IF(ISNA(Q59),0,INDEX(IF(UPPER(RIGHT(Q59,1))=Low,UnitCostLow, IF(UPPER(RIGHT(Q59,1))=High,UnitCostHigh,UnitCostSpecified)),MATCH(UPPER(LEFT(Q59,LEN(Q59)-1)),CostCode,0))) -> 0 | S59: =R59*P59 -> 0 | U59: =S59*T59 -> 0 | V59: =S59*(1-T59) -> 0 | X59: Other | AB59: =NA() ->  | AC59: =IF(ISNA(AB59),0,INDEX(IF(UPPER(RIGHT(AB59,1))=Low,UnitCostLow, IF(UPPER(RIGHT(AB59,1))=High,UnitCostHigh,UnitCostSpecified)),MATCH(UPPER(LEFT(AB59,LEN(AB59)-1)),CostCode,0))) -> 0 | AD59: =AC59*AA59 -> 0 | AF59: =AD59*AE59 -> 0 | AG59: =AD59*(1-AE59) -> 0 | AI59: Other | AM59: =NA() ->  | AN59: =IF(ISNA(AM59),0,INDEX(IF(UPPER(RIGHT(AM59,1))=Low,UnitCostLow, IF(UPPER(RIGHT(AM59,1))=High,UnitCostHigh,UnitCostSpecified)),MATCH(UPPER(LEFT(AM59,LEN(AM59)-1)),CostCode,0))) -> 0 | AO59: =AN59*AL59 -> 0 | AQ59: =AO59*AP59 -> 0 | AR59: =AO59*(1-AP59) -> 0 | AT59: Other | AX59: =NA() ->  | AY59: =IF(ISNA(AX59),0,INDEX(IF(UPPER(RIGHT(AX59,1))=Low,UnitCostLow, IF(UPPER(RIGHT(AX59,1))=High,UnitCostHigh,UnitCostSpecified)),MATCH(UPPER(LEFT(AX59,LEN(AX59)-1)),CostCode,0))) -> 0 | AZ59: =AY59*AW59 -> 0 | BB59: =AZ59*BA59 -> 0 | BC59: =AZ59*(1-BA59) -> 0
G60: Annual pumping costs | H60: =SUM(H52:H59)+0.0001 -> 0.0001 | R60: Annual pumping costs | S60: =SUM(S52:S59)+0.0001 -> 0.0001 | AC60: Annual pumping costs | AD60: =SUM(AD52:AD59)+0.0001 -> 0.0001 | AN60: Annual pumping costs | AO60: =SUM(AO52:AO59)+0.0001 -> 0.0001 | AY60: Annual pumping costs | AZ60: =SUM(AZ52:AZ59)+0.0001 -> 0.0001
B61: Number of years of pump flooding | C61: passive pit flooding | D61: years | E61: 0 | M61: Number of years of pump flooding | N61: passive pit flooding | O61: years | P61: 0 | X61: Number of years of pump flooding | Y61: passive pit flooding | Z61: years | AA61: 0 | AI61: Number of years of pump flooding | AJ61: passive pit flooding | AK61: years | AL61: 0 | AT61: Number of years of pump flooding | AU61: No flooding | AV61: years | AW61: 0
G62: Total pumping costs | H62: =H60*E61 -> 0 | J62: =H62*I62 -> 0 | K62: =H62*(1-I62) -> 0 | R62: Total pumping costs | S62: =S60*P61 -> 0 | U62: =S62*T62 -> 0 | V62: =S62*(1-T62) -> 0 | AC62: Total pumping costs | AD62: =AD60*AA61 -> 0 | AF62: =AD62*AE62 -> 0 | AG62: =AD62*(1-AE62) -> 0 | AN62: Total pumping costs | AO62: =AO60*AL61 -> 0 | AQ62: =AO62*AP62 -> 0 | AR62: =AO62*(1-AP62) -> 0 | AY62: Total pumping costs | AZ62: =AZ60*AW61 -> 0 | BB62: =AZ62*BA62 -> 0 | BC62: =AZ62*(1-BA62) -> 0
G63: Total | H63: =SUM(H5:H50)+H62+0.0001 -> 60120.2393 | J63: =SUM(J5:J50)+J62 -> 0 | K63: =SUM(K5:K59)+K62 -> 60120.2392 | R63: Total | S63: =SUM(S5:S50)+S62+0.0001 -> 66015.71187 | U63: =SUM(U5:U50)+U62 -> 0 | V63: =SUM(V5:V59)+V62 -> 66015.71177 | AC63: Total | AD63: =SUM(AD5:AD50)+AD62+0.0001 -> 19697.76725 | AF63: =SUM(AF5:AF50)+AF62 -> 0 | AG63: =SUM(AG5:AG59)+AG62 -> 19697.76715 | AN63: Total | AO63: =SUM(AO5:AO50)+AO62+0.0001 -> 102333.7501 | AQ63: =SUM(AQ5:AQ50)+AQ62 -> 0 | AR63: =SUM(AR5:AR59)+AR62 -> 102333.75 | AY63: Total | AZ63: =SUM(AZ5:AZ50)+AZ62+0.0001 -> 4675.190617 | BB63: =SUM(BB5:BB50)+BB62 -> 0 | BC63: =SUM(BC5:BC59)+BC62 -> 4675.190517
G64: % of Total | J64: =J63/H63 -> 0 | K64: =K63/H63 -> 0.9999999983 | R64: % of Total | U64: =U63/S63 -> 0 | V64: =V63/S63 -> 0.9999999985 | AC64: % of Total | AF64: =AF63/AD63 -> 0 | AG64: =AG63/AD63 -> 0.9999999949 | AN64: % of Total | AQ64: =AQ63/AO63 -> 0 | AR64: =AR63/AO63 -> 0.999999999 | AY64: % of Total | BB64: =BB63/AZ63 -> 0 | BC64: =BC63/AZ63 -> 0.9999999786

Sheet UG Mine
A1: 4 | B1: Underground Mine Name | C1: Umwelt | G1: UG Mine # | H1: 1 | K1: =H1 -> 1 | M1: Underground Mine Name | N1: Llama | R1: UG Mine # | S1: =H1+1 -> 2 | V1: =S1 -> 2 | X1: Underground Mine Name | Y1: Goose Main | AC1: UG Mine # | AD1: =S1+1 -> 3 | AG1: =AD1 -> 3 | AI1: Underground Mine Name | AJ1: Echo | AN1: UG Mine # | AO1: =AD1+1 -> 4 | AR1: =AO1 -> 4
B3: ACTIVITY/MATERIAL | C3: Notes | D3: Unit | E3: Qty | F3: Cost Code | G3: Unit Cost | H3: Cost | I3: % Land | J3: Land Cost | K3: Total Cost | M3: ACTIVITY/MATERIAL | N3: Notes | O3: Unit | P3: Qty | Q3: Cost Code | R3: Unit Cost | S3: Cost | T3: % Land | U3: Land Cost | V3: Total Cost | X3: ACTIVITY/MATERIAL | Y3: Notes | Z3: Unit | AA3: Qty | AB3: Cost Code | AC3: Unit Cost | AD3: Cost | AE3: % Land | AF3: Land Cost | AG3: Total Cost | AI3: ACTIVITY/MATERIAL | AJ3: Notes | AK3: Unit | AL3: Qty | AM3: Cost Code | AN3: Unit Cost | AO3: Cost | AP3: % Land | AQ3: Land Cost | AR3: Total Cost
B4: CONTROL ACCESS | M4: CONTROL ACCESS | X4: CONTROL ACCESS | AI4: CONTROL ACCESS
B5: Fence | D5: m | F5: =NA() ->  | G5: =IF(ISNA(F5),0,INDEX(IF(UPPER(RIGHT(F5,1))=Low,UnitCostLow, IF(UPPER(RIGHT(F5,1))=High,UnitCostHigh,UnitCostSpecified)),MATCH(UPPER(LEFT(F5,LEN(F5)-1)),CostCode,0))) -> 0 | H5: =G5*E5 -> 0 | J5: =H5*I5 -> 0 | K5: =H5*(1-I5) -> 0 | M5: Fence | O5: m | Q5: =NA() ->  | R5: =IF(ISNA(Q5),0,INDEX(IF(UPPER(RIGHT(Q5,1))=Low,UnitCostLow, IF(UPPER(RIGHT(Q5,1))=High,UnitCostHigh,UnitCostSpecified)),MATCH(UPPER(LEFT(Q5,LEN(Q5)-1)),CostCode,0))) -> 0 | S5: =R5*P5 -> 0 | U5: =S5*T5 -> 0 | V5: =S5*(1-T5) -> 0 | X5: Fence | Z5: m | AB5: =NA() ->  | AC5: =IF(ISNA(AB5),0,INDEX(IF(UPPER(RIGHT(AB5,1))=Low,UnitCostLow, IF(UPPER(RIGHT(AB5,1))=High,UnitCostHigh,UnitCostSpecified)),MATCH(UPPER(LEFT(AB5,LEN(AB5)-1)),CostCode,0))) -> 0 | AD5: =AC5*AA5 -> 0 | AF5: =AD5*AE5 -> 0 | AG5: =AD5*(1-AE5) -> 0 | AI5: Fence | AK5: m | AM5: =NA() ->  | AN5: =IF(ISNA(AM5),0,INDEX(IF(UPPER(RIGHT(AM5,1))=Low,UnitCostLow, IF(UPPER(RIGHT(AM5,1))=High,UnitCostHigh,UnitCostSpecified)),MATCH(UPPER(LEFT(AM5,LEN(AM5)-1)),CostCode,0))) -> 0 | AO5: =AN5*AL5 -> 0 | AQ5: =AO5*AP5 -> 0 | AR5: =AO5*(1-AP5) -> 0
B6: Signs | D6: each | F6: =NA() ->  | G6: 0 | H6: 0 | J6: =H6*I6 -> 0 | K6: 0 | M6: Signs | O6: each | Q6: =NA() ->  | R6: 0 | S6: 0 | U6: =S6*T6 -> 0 | V6: =S6*(1-T6) -> 0 | X6: Signs | Z6: each | AB6: =NA() ->  | AC6: 0 | AD6: 0 | AF6: =AD6*AE6 -> 0 | AG6: =AD6*(1-AE6) -> 0 | AI6: Signs | AK6: each | AM6: =NA() ->  | AN6: 0 | AO6: 0 | AQ6: =AO6*AP6 -> 0 | AR6: =AO6*(1-AP6) -> 0
B7: Block roads | D7: m3 | F7: =NA() ->  | G7: 0 | H7: =G7*E7 -> 0 | J7: 0 | K7: 0 | M7: Block roads | O7: m3 | Q7: =NA() ->  | R7: 0 | S7: =R7*P7 -> 0 | U7: 0 | V7: 0 | X7: Block roads | Z7: m3 | AB7: =NA() ->  | AC7: 0 | AD7: =AC7*AA7 -> 0 | AF7: 0 | AG7: 0 | AI7: Block roads | AK7: m3 | AM7: =NA() ->  | AN7: 0 | AO7: =AN7*AL7 -> 0 | AQ7: 0 | AR7: 0
B8: Berm | D8: m3 | F8: =NA() ->  | G8: 0 | H8: 0 | J8: 0 | K8: 0 | M8: Berm | O8: m3 | Q8: =NA() ->  | R8: 0 | S8: =R8*P8 -> 0 | U8: 0 | V8: 0 | X8: Berm | Z8: m3 | AB8: =NA() ->  | AC8: 0 | AD8: =AC8*AA8 -> 0 | AF8: 0 | AG8: 0 | AI8: Berm | AK8: m3 | AM8: =NA() ->  | AN8: 0 | AO8: =AN8*AL8 -> 0 | AQ8: 0 | AR8: 0
B9: Backfill Portal (NPAG waste rock plug) | C9: At least 5 m deep into 5x4.5m portal and slope at least 2:1 outside of portal | D9: m3 | E9: ='SBB Comp. Est.'!F38 -> 150 | F9: PORL | G9: 23.12988992 | H9: 3469.483489 | J9: =H9*I9 -> 0 | K9: 3469.483489 | M9: Backfill Portal (NPAG waste rock plug) | N9: At least 5 m deep into 5x4.5m portal and slope at least 2:1 outside of portal | O9: m3 | P9: ='SBB Comp. Est.'!F40 -> 150 | Q9: PORL | R9: 23.12988992 | S9: 3469.483489 | U9: =S9*T9 -> 0 | V9: =S9*(1-T9) -> 3469.483489 | X9: Backfill Portal (NPAG waste rock plug) | Y9: At least 5 m deep into 5x4.5m portal and slope at least 2:1 outside of portal | Z9: m3 | AA9: ='SBB Comp. Est.'!F42 -> 150 | AB9: PORL | AC9: 23.12988992 | AD9: 3469.483489 | AF9: =AD9*AE9 -> 0 | AG9: =AD9*(1-AE9) -> 3469.483489 | AI9: Backfill Portal (NPAG waste rock plug) | AJ9: At least 5 m deep into 5x4.5m portal and slope at least 2:1 outside of portal | AK9: m3 | AL9: ='SBB Comp. Est.'!F44 -> 150 | AM9: PORL | AN9: 23.12988992 | AO9: 3469.483489 | AQ9: =AO9*AP9 -> 0 | AR9: =AO9*(1-AP9) -> 3469.483489
B10: Backfill portal #2 | D10: m3 | F10: =NA() ->  | G10: 0 | H10: 0 | J10: 0 | K10: 0 | M10: Backfill portal #2 | O10: m3 | Q10: =NA() ->  | R10: =IF(ISNA(Q10),0,INDEX(IF(UPPER(RIGHT(Q10,1))=Low,UnitCostLow, IF(UPPER(RIGHT(Q10,1))=High,UnitCostHigh,UnitCostSpecified)),MATCH(UPPER(LEFT(Q10,LEN(Q10)-1)),CostCode,0))) -> 0 | S10: 0 | U10: =S10*T10 -> 0 | V10: =S10*(1-T10) -> 0 | X10: Backfill portal #2 | Z10: m3 | AB10: =NA() ->  | AC10: =IF(ISNA(AB10),0,INDEX(IF(UPPER(RIGHT(AB10,1))=Low,UnitCostLow, IF(UPPER(RIGHT(AB10,1))=High,UnitCostHigh,UnitCostSpecified)),MATCH(UPPER(LEFT(AB10,LEN(AB10)-1)),CostCode,0))) -> 0 | AD10: 0 | AF10: =AD10*AE10 -> 0 | AG10: =AD10*(1-AE10) -> 0 | AI10: Backfill portal #2 | AK10: m3 | AM10: =NA() ->  | AN10: =IF(ISNA(AM10),0,INDEX(IF(UPPER(RIGHT(AM10,1))=Low,UnitCostLow, IF(UPPER(RIGHT(AM10,1))=High,UnitCostHigh,UnitCostSpecified)),MATCH(UPPER(LEFT(AM10,LEN(AM10)-1)),CostCode,0))) -> 0 | AO10: 0 | AQ10: =AO10*AP10 -> 0 | AR10: =AO10*(1-AP10) -> 0
B11: Cap raise # 1 | C11: Concrete plug over 4m-dia. vent raise | D11: m3 | E11: 28.3 | F11: SRH | G11: 2623.027942 | H11: 74231.69077 | J11: 0 | K11: 74231.69077 | M11: Cap raise # 1 | N11: Concrete plug over 4m-dia. vent raise | O11: LS | P11: 28.3 | Q11: SRH | R11: 2623.027942 | S11: 74231.69077 | U11: 0 | V11: 74231.69077 | X11: Cap raise # 1 | Y11: Concrete plug over 4m-dia. vent raise | Z11: LS | AA11: 28.3 | AB11: SRH | AC11: 2623.027942 | AD11: 74231.69077 | AF11: 0 | AG11: 74231.69077 | AI11: Cap raise # 1 | AJ11: Concrete plug over 4m-dia. vent raise | AK11: LS | AL11: 28.3 | AM11: SRH | AN11: 2623.027942 | AO11: 74231.69077 | AQ11: 0 | AR11: 74231.69077
B12: Cap raise #2 | C12: Concrete plug over 4m-dia. vent raise | D12: m3 | E12: 28.3 | F12: SRH | G12: =IF(ISNA(F12),0,INDEX(IF(UPPER(RIGHT(F12,1))=Low,UnitCostLow, IF(UPPER(RIGHT(F12,1))=High,UnitCostHigh,UnitCostSpecified)),MATCH(UPPER(LEFT(F12,LEN(F12)-1)),CostCode,0))) -> 2623.027942 | H12: =G12*E12 -> 74231.69077 | J12: =H12*I12 -> 0 | K12: =H12*(1-I12) -> 74231.69077 | M12: Cap raise #2 | O12: m3 | Q12: =NA() ->  | R12: =IF(ISNA(Q12),0,INDEX(IF(UPPER(RIGHT(Q12,1))=Low,UnitCostLow, IF(UPPER(RIGHT(Q12,1))=High,UnitCostHigh,UnitCostSpecified)),MATCH(UPPER(LEFT(Q12,LEN(Q12)-1)),CostCode,0))) -> 0 | S12: 0 | U12: 0 | V12: 0 | X12: Cap raise #2 | Z12: m3 | AB12: =NA() ->  | AC12: =IF(ISNA(AB12),0,INDEX(IF(UPPER(RIGHT(AB12,1))=Low,UnitCostLow, IF(UPPER(RIGHT(AB12,1))=High,UnitCostHigh,UnitCostSpecified)),MATCH(UPPER(LEFT(AB12,LEN(AB12)-1)),CostCode,0))) -> 0 | AD12: 0 | AF12: 0 | AG12: 0 | AI12: Cap raise #2 | AK12: m3 | AM12: =NA() ->  | AN12: =IF(ISNA(AM12),0,INDEX(IF(UPPER(RIGHT(AM12,1))=Low,UnitCostLow, IF(UPPER(RIGHT(AM12,1))=High,UnitCostHigh,UnitCostSpecified)),MATCH(UPPER(LEFT(AM12,LEN(AM12)-1)),CostCode,0))) -> 0 | AO12: 0 | AQ12: 0 | AR12: 0
B13: Cap shaft #1 | C13: Concrete plug over 4m-dia. fresh air vent | D13: m3 | E13: 28.3 | F13: SRH | G13: 2623.027942 | H13: 74231.69077 | J13: 0 | K13: 74231.69077 | M13: Cap shaft #1 | O13: m3 | Q13: =NA() ->  | R13: 0 | S13: 0 | U13: 0 | V13: 0 | X13: Cap shaft #1 | Z13: m3 | AB13: =NA() ->  | AC13: 0 | AD13: 0 | AF13: 0 | AG13: 0 | AI13: Cap shaft #1 | AK13: m3 | AM13: =NA() ->  | AN13: 0 | AO13: 0 | AQ13: 0 | AR13: 0
B14: Cap shaft #2 | D14: m3 | F14: =NA() ->  | G14: 0 | H14: 0 | J14: 0 | K14: 0 | M14: Cap shaft #2 | O14: m3 | Q14: =NA() ->  | R14: 0 | S14: 0 | U14: 0 | V14: 0 | X14: Cap shaft #2 | Z14: m3 | AB14: =NA() ->  | AC14: 0 | AD14: 0 | AF14: 0 | AG14: 0 | AI14: Cap shaft #2 | AK14: m3 | AM14: =NA() ->  | AN14: 0 | AO14: 0 | AQ14: 0 | AR14: 0
B15: Backfill adits | D15: m3 | F15: =NA() ->  | G15: 0 | H15: 0 | J15: =H15*I15 -> 0 | K15: 0 | M15: Backfill adits | O15: m3 | Q15: =NA() ->  | R15: 0 | S15: 0 | U15: =S15*T15 -> 0 | V15: =S15*(1-T15) -> 0 | X15: Backfill adits | Z15: m3 | AB15: =NA() ->  | AC15: 0 | AD15: 0 | AF15: =AD15*AE15 -> 0 | AG15: =AD15*(1-AE15) -> 0 | AI15: Backfill adits | AK15: m3 | AM15: =NA() ->  | AN15: 0 | AO15: 0 | AQ15: =AO15*AP15 -> 0 | AR15: =AO15*(1-AP15) -> 0
B16: Backfill open stope | D16: m3 | F16: =NA() ->  | G16: 0 | H16: 0 | J16: 0 | K16: 0 | M16: Backfill open stope | O16: m3 | Q16: =NA() ->  | R16: 0 | S16: 0 | U16: =S16*T16 -> 0 | V16: =S16*(1-T16) -> 0 | X16: Backfill open stope | Z16: m3 | AB16: =NA() ->  | AC16: 0 | AD16: 0 | AF16: =AD16*AE16 -> 0 | AG16: =AD16*(1-AE16) -> 0 | AI16: Backfill open stope | AK16: m3 | AL16: ='SBB Comp. Est.'!F54 -> 3550 | AM16: Sabina | AN16: ='SBB Comp. Est.'!X54 -> 6.95215311 | AO16: 24680.14354 | AQ16: =AO16*AP16 -> 0 | AR16: =AO16*(1-AP16) -> 24680.14354
B17: Concrete cap over open stope | D17: m3 | F17: =NA() ->  | G17: 0 | H17: 0 | J17: 0 | K17: 0 | M17: Concrete cap over open stope | O17: m3 | Q17: =NA() ->  | R17: 0 | S17: 0 | U17: 0 | V17: 0 | X17: Concrete cap over open stope | Z17: m3 | AB17: =NA() ->  | AC17: 0 | AD17: 0 | AF17: 0 | AG17: 0 | AI17: Concrete cap over open stope | AK17: m3 | AM17: =NA() ->  | AN17: 0 | AO17: 0 | AQ17: 0 | AR17: 0
B18: Other | F18: =NA() ->  | G18: 0 | H18: 0 | J18: 0 | K18: 0 | M18: Other | X18: Other | AI18: Other | AM18: =NA() ->  | AN18: 0 | AO18: 0 | AQ18: 0 | AR18: 0
B19: REMOVE HAZARDOUS MATERIALS | M19: REMOVE HAZARDOUS MATERIALS | X19: REMOVE HAZARDOUS MATERIALS | AI19: REMOVE HAZARDOUS MATERIALS
B20: Remove hazardous materials, U/G labor | C20: Three shifts with loader, incl. operator and fuel | D20: manhour | E20: 30 | F20: load-sL | G20: 215.3048264 | H20: =G20*E20 -> 6459.144793 | J20: =H20*I20 -> 0 | K20: =H20*(1-I20) -> 6459.144793 | M20: Remove hazardous materials, U/G labor | N20: Two shifts with loader, incl. operator and fuel | O20: manhour | P20: 20 | Q20: load-sL | R20: =IF(ISNA(Q20),0,INDEX(IF(UPPER(RIGHT(Q20,1))=Low,UnitCostLow, IF(UPPER(RIGHT(Q20,1))=High,UnitCostHigh,UnitCostSpecified)),MATCH(UPPER(LEFT(Q20,LEN(Q20)-1)),CostCode,0))) -> 215.3048264 | S20: =R20*P20 -> 4306.096528 | U20: =S20*T20 -> 0 | V20: =S20*(1-T20) -> 4306.096528 | X20: Remove hazardous materials, U/G labor | Y20: Two shifts with loader, incl. operator and fuel | Z20: manhour | AA20: 20 | AB20: load-sL | AC20: =IF(ISNA(AB20),0,INDEX(IF(UPPER(RIGHT(AB20,1))=Low,UnitCostLow, IF(UPPER(RIGHT(AB20,1))=High,UnitCostHigh,UnitCostSpecified)),MATCH(UPPER(LEFT(AB20,LEN(AB20)-1)),CostCode,0))) -> 215.3048264 | AD20: =AC20*AA20 -> 4306.096528 | AF20: =AD20*AE20 -> 0 | AG20: =AD20*(1-AE20) -> 4306.096528 | AI20: Remove hazardous materials, U/G labor | AJ20: One shift with loader, incl. operator and fuel | AK20: manhour | AL20: 10 | AM20: load-sL | AN20: =IF(ISNA(AM20),0,INDEX(IF(UPPER(RIGHT(AM20,1))=Low,UnitCostLow, IF(UPPER(RIGHT(AM20,1))=High,UnitCostHigh,UnitCostSpecified)),MATCH(UPPER(LEFT(AM20,LEN(AM20)-1)),CostCode,0))) -> 215.3048264 | AO20: =AN20*AL20 -> 2153.048264 | AQ20: =AO20*AP20 -> 0 | AR20: =AO20*(1-AP20) -> 2153.048264
B21: Remove/decontam. stationary & elect. equip | D21: mandays | F21: =NA() ->  | G21: =IF(ISNA(F21),0,INDEX(IF(UPPER(RIGHT(F21,1))=Low,UnitCostLow, IF(UPPER(RIGHT(F21,1))=High,UnitCostHigh,UnitCostSpecified)),MATCH(UPPER(LEFT(F21,LEN(F21)-1)),CostCode,0))) -> 0 | H21: =G21*E21 -> 0 | J21: =H21*I21 -> 0 | K21: =H21*(1-I21) -> 0 | M21: Remove/decontam. stationary & elect. equip | O21: mandays | Q21: =NA() ->  | R21: =IF(ISNA(Q21),0,INDEX(IF(UPPER(RIGHT(Q21,1))=Low,UnitCostLow, IF(UPPER(RIGHT(Q21,1))=High,UnitCostHigh,UnitCostSpecified)),MATCH(UPPER(LEFT(Q21,LEN(Q21)-1)),CostCode,0))) -> 0 | S21: =R21*P21 -> 0 | U21: =S21*T21 -> 0 | V21: =S21*(1-T21) -> 0 | X21: Remove/decontam. stationary & elect. equip | Z21: mandays | AB21: =NA() ->  | AC21: =IF(ISNA(AB21),0,INDEX(IF(UPPER(RIGHT(AB21,1))=Low,UnitCostLow, IF(UPPER(RIGHT(AB21,1))=High,UnitCostHigh,UnitCostSpecified)),MATCH(UPPER(LEFT(AB21,LEN(AB21)-1)),CostCode,0))) -> 0 | AD21: =AC21*AA21 -> 0 | AF21: =AD21*AE21 -> 0 | AG21: =AD21*(1-AE21) -> 0 | AI21: Remove/decontam. stationary & elect. equip | AK21: mandays | AM21: =NA() ->  | AN21: =IF(ISNA(AM21),0,INDEX(IF(UPPER(RIGHT(AM21,1))=Low,UnitCostLow, IF(UPPER(RIGHT(AM21,1))=High,UnitCostHigh,UnitCostSpecified)),MATCH(UPPER(LEFT(AM21,LEN(AM21)-1)),CostCode,0))) -> 0 | AO21: =AN21*AL21 -> 0 | AQ21: =AO21*AP21 -> 0 | AR21: =AO21*(1-AP21) -> 0
B22: Remove/decontam. mobile equipment | D22: each | F22: =NA() ->  | G22: =IF(ISNA(F22),0,INDEX(IF(UPPER(RIGHT(F22,1))=Low,UnitCostLow, IF(UPPER(RIGHT(F22,1))=High,UnitCostHigh,UnitCostSpecified)),MATCH(UPPER(LEFT(F22,LEN(F22)-1)),CostCode,0))) -> 0 | H22: =G22*E22 -> 0 | J22: =H22*I22 -> 0 | K22: =H22*(1-I22) -> 0 | M22: Remove/decontam. mobile equipment | O22: each | Q22: =NA() ->  | R22: =IF(ISNA(Q22),0,INDEX(IF(UPPER(RIGHT(Q22,1))=Low,UnitCostLow, IF(UPPER(RIGHT(Q22,1))=High,UnitCostHigh,UnitCostSpecified)),MATCH(UPPER(LEFT(Q22,LEN(Q22)-1)),CostCode,0))) -> 0 | S22: =R22*P22 -> 0 | U22: =S22*T22 -> 0 | V22: =S22*(1-T22) -> 0 | X22: Remove/decontam. mobile equipment | Z22: each | AB22: =NA() ->  | AC22: =IF(ISNA(AB22),0,INDEX(IF(UPPER(RIGHT(AB22,1))=Low,UnitCostLow, IF(UPPER(RIGHT(AB22,1))=High,UnitCostHigh,UnitCostSpecified)),MATCH(UPPER(LEFT(AB22,LEN(AB22)-1)),CostCode,0))) -> 0 | AD22: =AC22*AA22 -> 0 | AF22: =AD22*AE22 -> 0 | AG22: =AD22*(1-AE22) -> 0 | AI22: Remove/decontam. mobile equipment | AK22: each | AM22: =NA() ->  | AN22: =IF(ISNA(AM22),0,INDEX(IF(UPPER(RIGHT(AM22,1))=Low,UnitCostLow, IF(UPPER(RIGHT(AM22,1))=High,UnitCostHigh,UnitCostSpecified)),MATCH(UPPER(LEFT(AM22,LEN(AM22)-1)),CostCode,0))) -> 0 | AO22: =AN22*AL22 -> 0 | AQ22: =AO22*AP22 -> 0 | AR22: =AO22*(1-AP22) -> 0
B23: Remove misc. haz. mat & explosives | C23: Dispose of up to 1 week's inventory of explosives | D23: kg | E23: 100 | F23: Sabina | G23: =Unit_Costs!F180 -> 57.93460925 | H23: =G23*E23 -> 5793.460925 | J23: =H23*I23 -> 0 | K23: =H23*(1-I23) -> 5793.460925 | M23: Remove misc. haz. mat & explosives | N23: Mining will cease before closure | O23: kg | Q23: =NA() ->  | R23: =IF(ISNA(Q23),0,INDEX(IF(UPPER(RIGHT(Q23,1))=Low,UnitCostLow, IF(UPPER(RIGHT(Q23,1))=High,UnitCostHigh,UnitCostSpecified)),MATCH(UPPER(LEFT(Q23,LEN(Q23)-1)),CostCode,0))) -> 0 | S23: =R23*P23 -> 0 | U23: =S23*T23 -> 0 | V23: =S23*(1-T23) -> 0 | X23: Remove misc. haz. mat & explosives | Y23: Mining will cease before closure | Z23: kg | AB23: =NA() ->  | AC23: =IF(ISNA(AB23),0,INDEX(IF(UPPER(RIGHT(AB23,1))=Low,UnitCostLow, IF(UPPER(RIGHT(AB23,1))=High,UnitCostHigh,UnitCostSpecified)),MATCH(UPPER(LEFT(AB23,LEN(AB23)-1)),CostCode,0))) -> 0 | AD23: =AC23*AA23 -> 0 | AF23: =AD23*AE23 -> 0 | AG23: =AD23*(1-AE23) -> 0 | AI23: Remove misc. haz. mat & explosives | AJ23: Mining will cease before closure | AK23: kg | AM23: =NA() ->  | AN23: =IF(ISNA(AM23),0,INDEX(IF(UPPER(RIGHT(AM23,1))=Low,UnitCostLow, IF(UPPER(RIGHT(AM23,1))=High,UnitCostHigh,UnitCostSpecified)),MATCH(UPPER(LEFT(AM23,LEN(AM23)-1)),CostCode,0))) -> 0 | AO23: =AN23*AL23 -> 0 | AQ23: =AO23*AP23 -> 0 | AR23: =AO23*(1-AP23) -> 0
B24: Decommission Pipeline | C24: Clean Umwelt UG to SWP pipeline, decommission and landfill | D24: m | E24: ='SBB Comp. Est.'!$F$27 -> 1662 | F24: Sabina | G24: ='SBB Comp. Est.'!X27 -> 11.58692185 | H24: =G24*E24 -> 19257.46411 | J24: =H24*I24 -> 0 | K24: =H24*(1-I24) -> 19257.46411 | M24: Decommission Pipeline | N24: Clean Llama UG to SWP pipeline, decommission and landfill | O24: m | P24: ='SBB Comp. Est.'!F36 -> 2700 | Q24: Sabina | R24: ='SBB Comp. Est.'!X36 -> 11.58692185 | S24: =R24*P24 -> 31284.689 | U24: =S24*T24 -> 0 | V24: =S24*(1-T24) -> 31284.689 | X24: Decommission WTP - Goose Lake Pipeline | Y24: In Water Management tab | Z24: m | AB24: =NA() ->  | AC24: =IF(ISNA(AB24),0,INDEX(IF(UPPER(RIGHT(AB24,1))=Low,UnitCostLow, IF(UPPER(RIGHT(AB24,1))=High,UnitCostHigh,UnitCostSpecified)),MATCH(UPPER(LEFT(AB24,LEN(AB24)-1)),CostCode,0))) -> 0 | AD24: =AC24*AA24 -> 0 | AF24: =AD24*AE24 -> 0 | AG24: =AD24*(1-AE24) -> 0 | AI24: Decommission Pipeline | AK24: m | AM24: =NA() ->  | AN24: =IF(ISNA(AM24),0,INDEX(IF(UPPER(RIGHT(AM24,1))=Low,UnitCostLow, IF(UPPER(RIGHT(AM24,1))=High,UnitCostHigh,UnitCostSpecified)),MATCH(UPPER(LEFT(AM24,LEN(AM24)-1)),CostCode,0))) -> 0 | AO24: =AN24*AL24 -> 0 | AQ24: =AO24*AP24 -> 0 | AR24: =AO24*(1-AP24) -> 0
B25: INSTALL BULKHEADS | M25: INSTALL BULKHEADS | X25: INSTALL BULKHEADS | AI25: INSTALL BULKHEADS
B26: Bulkheads to control water flow | D26: each | F26: =NA() ->  | G26: =IF(ISNA(F26),0,INDEX(IF(UPPER(RIGHT(F26,1))=Low,UnitCostLow, IF(UPPER(RIGHT(F26,1))=High,UnitCostHigh,UnitCostSpecified)),MATCH(UPPER(LEFT(F26,LEN(F26)-1)),CostCode,0))) -> 0 | H26: =G26*E26 -> 0 | J26: =H26*I26 -> 0 | K26: =H26*(1-I26) -> 0 | M26: Bulkheads to control water flow | O26: each | Q26: =NA() ->  | R26: =IF(ISNA(Q26),0,INDEX(IF(UPPER(RIGHT(Q26,1))=Low,UnitCostLow, IF(UPPER(RIGHT(Q26,1))=High,UnitCostHigh,UnitCostSpecified)),MATCH(UPPER(LEFT(Q26,LEN(Q26)-1)),CostCode,0))) -> 0 | S26: =R26*P26 -> 0 | U26: =S26*T26 -> 0 | V26: =S26*(1-T26) -> 0 | X26: Bulkheads to control water flow | Z26: each | AB26: =NA() ->  | AC26: =IF(ISNA(AB26),0,INDEX(IF(UPPER(RIGHT(AB26,1))=Low,UnitCostLow, IF(UPPER(RIGHT(AB26,1))=High,UnitCostHigh,UnitCostSpecified)),MATCH(UPPER(LEFT(AB26,LEN(AB26)-1)),CostCode,0))) -> 0 | AD26: =AC26*AA26 -> 0 | AF26: =AD26*AE26 -> 0 | AG26: =AD26*(1-AE26) -> 0 | AI26: Bulkheads to control water flow | AK26: each | AM26: =NA() ->  | AN26: =IF(ISNA(AM26),0,INDEX(IF(UPPER(RIGHT(AM26,1))=Low,UnitCostLow, IF(UPPER(RIGHT(AM26,1))=High,UnitCostHigh,UnitCostSpecified)),MATCH(UPPER(LEFT(AM26,LEN(AM26)-1)),CostCode,0))) -> 0 | AO26: =AN26*AL26 -> 0 | AQ26: =AO26*AP26 -> 0 | AR26: =AO26*(1-AP26) -> 0
B27: Grout bulkhead | D27: m3 | F27: =NA() ->  | G27: =IF(ISNA(F27),0,INDEX(IF(UPPER(RIGHT(F27,1))=Low,UnitCostLow, IF(UPPER(RIGHT(F27,1))=High,UnitCostHigh,UnitCostSpecified)),MATCH(UPPER(LEFT(F27,LEN(F27)-1)),CostCode,0))) -> 0 | H27: =G27*E27 -> 0 | J27: =H27*I27 -> 0 | K27: =H27*(1-I27) -> 0 | M27: Grout bulkhead | O27: m3 | Q27: =NA() ->  | R27: =IF(ISNA(Q27),0,INDEX(IF(UPPER(RIGHT(Q27,1))=Low,UnitCostLow, IF(UPPER(RIGHT(Q27,1))=High,UnitCostHigh,UnitCostSpecified)),MATCH(UPPER(LEFT(Q27,LEN(Q27)-1)),CostCode,0))) -> 0 | S27: =R27*P27 -> 0 | U27: =S27*T27 -> 0 | V27: =S27*(1-T27) -> 0 | X27: Grout bulkhead | Z27: m3 | AB27: =NA() ->  | AC27: =IF(ISNA(AB27),0,INDEX(IF(UPPER(RIGHT(AB27,1))=Low,UnitCostLow, IF(UPPER(RIGHT(AB27,1))=High,UnitCostHigh,UnitCostSpecified)),MATCH(UPPER(LEFT(AB27,LEN(AB27)-1)),CostCode,0))) -> 0 | AD27: =AC27*AA27 -> 0 | AF27: =AD27*AE27 -> 0 | AG27: =AD27*(1-AE27) -> 0 | AI27: Grout bulkhead | AK27: m3 | AM27: =NA() ->  | AN27: =IF(ISNA(AM27),0,INDEX(IF(UPPER(RIGHT(AM27,1))=Low,UnitCostLow, IF(UPPER(RIGHT(AM27,1))=High,UnitCostHigh,UnitCostSpecified)),MATCH(UPPER(LEFT(AM27,LEN(AM27)-1)),CostCode,0))) -> 0 | AO27: =AN27*AL27 -> 0 | AQ27: =AO27*AP27 -> 0 | AR27: =AO27*(1-AP27) -> 0
B28: FLOOD MINE | M28: FLOOD MINE | X28: FLOOD MINE | AI28: FLOOD MINE
B29: Supply/install pump | C29: UG mine is expected to be flooded in Year 10 and active flooding will take about a year, relocation of pipelines and flooding will occur as part of operations but cost is provided as a conservative approach (see "Relocate Pipeline".) | D29: each | F29: =NA() ->  | G29: =IF(ISNA(F29),0,INDEX(IF(UPPER(RIGHT(F29,1))=Low,UnitCostLow, IF(UPPER(RIGHT(F29,1))=High,UnitCostHigh,UnitCostSpecified)),MATCH(UPPER(LEFT(F29,LEN(F29)-1)),CostCode,0))) -> 0 | H29: =G29*E29 -> 0 | J29: 0 | K29: =H29*(1-I29) -> 0 | M29: Supply/install pump | N29: UG mine is expected to be flooded in Year 5 and active flooding will take about a year, relocation of pipelines and flooding will occur as part of operations | O29: each | Q29: =NA() ->  | R29: =IF(ISNA(Q29),0,INDEX(IF(UPPER(RIGHT(Q29,1))=Low,UnitCostLow, IF(UPPER(RIGHT(Q29,1))=High,UnitCostHigh,UnitCostSpecified)),MATCH(UPPER(LEFT(Q29,LEN(Q29)-1)),CostCode,0))) -> 0 | S29: =R29*P29 -> 0 | U29: =S29*T29 -> 0 | V29: =S29*(1-T29) -> 0 | X29: Supply/install pump | Y29: UG mine is expected to be flooded in Year 10 and active flooding will take about a year, relocation of pipelines and flooding will occur as progressive reclamation but cost is provided as a conservative approach | Z29: each | AB29: =NA() ->  | AC29: =IF(ISNA(AB29),0,INDEX(IF(UPPER(RIGHT(AB29,1))=Low,UnitCostLow, IF(UPPER(RIGHT(AB29,1))=High,UnitCostHigh,UnitCostSpecified)),MATCH(UPPER(LEFT(AB29,LEN(AB29)-1)),CostCode,0))) -> 0 | AD29: =AC29*AA29 -> 0 | AF29: =AD29*AE29 -> 0 | AG29: =AD29*(1-AE29) -> 0 | AI29: Supply/install pump | AJ29: Passive flooding of Echo UG in Year 10, complete flooding is expected to occur within a few months. | AK29: each | AM29: =NA() ->  | AN29: =IF(ISNA(AM29),0,INDEX(IF(UPPER(RIGHT(AM29,1))=Low,UnitCostLow, IF(UPPER(RIGHT(AM29,1))=High,UnitCostHigh,UnitCostSpecified)),MATCH(UPPER(LEFT(AM29,LEN(AM29)-1)),CostCode,0))) -> 0 | AO29: =AN29*AL29 -> 0 | AQ29: =AO29*AP29 -> 0 | AR29: =AO29*(1-AP29) -> 0
B30: Relocate Pipeline | C30: Move SWP-Llama UG pipeline discharge to Umwelt UG | D30: m | E30: ='SBB Comp. Est.'!F25 -> 800 | F30: Sabina | G30: ='SBB Comp. Est.'!X25 -> 11.58692185 | H30: =G30*E30 -> 9269.53748 | J30: =H30*I30 -> 0 | K30: =H30*(1-I30) -> 9269.53748 | M30: Supply/install piping system | O30: m | Q30: =NA() ->  | R30: =IF(ISNA(Q30),0,INDEX(IF(UPPER(RIGHT(Q30,1))=Low,UnitCostLow, IF(UPPER(RIGHT(Q30,1))=High,UnitCostHigh,UnitCostSpecified)),MATCH(UPPER(LEFT(Q30,LEN(Q30)-1)),CostCode,0))) -> 0 | S30: =R30*P30 -> 0 | U30: =S30*T30 -> 0 | V30: =S30*(1-T30) -> 0 | X30: Supply/install piping system | Y30: Adjust pipe line to route to Goose UG in Year 10 | Z30: m | AA30: ='SBB Comp. Est.'!F30 -> 4500 | AB30: Sabina | AC30: ='SBB Comp. Est.'!X30 -> 14.80551125 | AD30: 66624.80064 | AF30: 0 | AG30: 66624.80064 | AI30: Supply/install piping system | AK30: each | AM30: =NA() ->  | AN30: 0 | AO30: =AN30*AL30 -> 0 | AQ30: =AO30*AP30 -> 0 | AR30: =AO30*(1-AP30) -> 0
B31: Operate pumps to flood workings | C31: Accounts for Umwelt Underground Extension | D31: m3 | E31: ='SBB Comp. Est.'!F26 -> 1071225 | F31: Sabina | G31: ='SBB Comp. Est.'!X26 -> 0.1547648675 | H31: =G31*E31 -> 165787.9952 | J31: 0 | K31: =H31*(1-I31) -> 165787.9952 | M31: Operate pumps to flood workings | O31: m3 | Q31: =NA() ->  | R31: =IF(ISNA(Q31),0,INDEX(IF(UPPER(RIGHT(Q31,1))=Low,UnitCostLow, IF(UPPER(RIGHT(Q31,1))=High,UnitCostHigh,UnitCostSpecified)),MATCH(UPPER(LEFT(Q31,LEN(Q31)-1)),CostCode,0))) -> 0 | S31: =R31*P31 -> 0 | U31: 0 | V31: 0 | X31: Operate pumps to flood workings | Z31: m3 | AA31: ='SBB Comp. Est.'!F31 -> 391630 | AB31: Sabina | AC31: ='SBB Comp. Est.'!X29 -> 0.1546157245 | AD31: 60552.15618 | AF31: 0 | AG31: 60552.15618 | AI31: Operate pumps to flood workings | AK31: m3 | AM31: =NA() ->  | AN31: 0 | AO31: 0 | AQ31: 0 | AR31: 0
B32: Decommission of pipeline | F32: =NA() ->  | G32: =IF(ISNA(F32),0,INDEX(IF(UPPER(RIGHT(F32,1))=Low,UnitCostLow, IF(UPPER(RIGHT(F32,1))=High,UnitCostHigh,UnitCostSpecified)),MATCH(UPPER(LEFT(F32,LEN(F32)-1)),CostCode,0))) -> 0 | H32: =G32*E32 -> 0 | J32: 0 | K32: =H32*(1-I32) -> 0 | M32: Decommission of pipelines | Q32: =NA() ->  | R32: =IF(ISNA(Q32),0,INDEX(IF(UPPER(RIGHT(Q32,1))=Low,UnitCostLow, IF(UPPER(RIGHT(Q32,1))=High,UnitCostHigh,UnitCostSpecified)),MATCH(UPPER(LEFT(Q32,LEN(Q32)-1)),CostCode,0))) -> 0 | S32: =R32*P32 -> 0 | U32: =S32*T32 -> 0 | V32: =S32*(1-T32) -> 0 | X32: Decommission SWP to Goose UG pipeline | Z32: m | AA32: ='SBB Comp. Est.'!F32 -> 10800 | AB32: Sabina | AC32: ='SBB Comp. Est.'!X32 -> 11.58692185 | AD32: 125138.756 | AF32: 0 | AG32: 125138.756 | AI32: Decommission | AM32: =NA() ->  | AN32: 0 | AO32: 0 | AQ32: 0 | AR32: 0
B33: Other | F33: =NA() ->  | G33: =IF(ISNA(F33),0,INDEX(IF(UPPER(RIGHT(F33,1))=Low,UnitCostLow, IF(UPPER(RIGHT(F33,1))=High,UnitCostHigh,UnitCostSpecified)),MATCH(UPPER(LEFT(F33,LEN(F33)-1)),CostCode,0))) -> 0 | H33: =G33*E33 -> 0 | J33: 0 | K33: =H33*(1-I33) -> 0 | M33: Other | Q33: =NA() ->  | R33: =IF(ISNA(Q33),0,INDEX(IF(UPPER(RIGHT(Q33,1))=Low,UnitCostLow, IF(UPPER(RIGHT(Q33,1))=High,UnitCostHigh,UnitCostSpecified)),MATCH(UPPER(LEFT(Q33,LEN(Q33)-1)),CostCode,0))) -> 0 | S33: =R33*P33 -> 0 | U33: 0 | V33: 0 | X33: Other | AB33: =NA() ->  | AC33: =IF(ISNA(AB33),0,INDEX(IF(UPPER(RIGHT(AB33,1))=Low,UnitCostLow, IF(UPPER(RIGHT(AB33,1))=High,UnitCostHigh,UnitCostSpecified)),MATCH(UPPER(LEFT(AB33,LEN(AB33)-1)),CostCode,0))) -> 0 | AD33: 0 | AF33: 0 | AG33: 0 | AI33: Other | AM33: =NA() ->  | AN33: 0 | AO33: =AN33*AL33 -> 0 | AQ33: 0 | AR33: 0
B34: INSTALL GROUNDWATER COLLECTION SYSTEM | M34: INSTALL GROUNDWATER COLLECTION SYSTEM | X34: INSTALL GROUNDWATER COLLECTION SYSTEM | AI34: INSTALL GROUNDWATER COLLECTION SYSTEM
B35: Excavate/install sumps | D35: m2 | F35: =NA() ->  | G35: =IF(ISNA(F35),0,INDEX(IF(UPPER(RIGHT(F35,1))=Low,UnitCostLow, IF(UPPER(RIGHT(F35,1))=High,UnitCostHigh,UnitCostSpecified)),MATCH(UPPER(LEFT(F35,LEN(F35)-1)),CostCode,0))) -> 0 | H35: =G35*E35 -> 0 | J35: =H35*I35 -> 0 | K35: =+H35*(1-I35) -> 0 | M35: Excavate/install sumps | O35: m2 | Q35: =NA() ->  | R35: =IF(ISNA(Q35),0,INDEX(IF(UPPER(RIGHT(Q35,1))=Low,UnitCostLow, IF(UPPER(RIGHT(Q35,1))=High,UnitCostHigh,UnitCostSpecified)),MATCH(UPPER(LEFT(Q35,LEN(Q35)-1)),CostCode,0))) -> 0 | S35: =R35*P35 -> 0 | U35: =S35*T35 -> 0 | V35: =+S35*(1-T35) -> 0 | X35: Excavate/install sumps | Z35: m2 | AB35: =NA() ->  | AC35: =IF(ISNA(AB35),0,INDEX(IF(UPPER(RIGHT(AB35,1))=Low,UnitCostLow, IF(UPPER(RIGHT(AB35,1))=High,UnitCostHigh,UnitCostSpecified)),MATCH(UPPER(LEFT(AB35,LEN(AB35)-1)),CostCode,0))) -> 0 | AD35: =AC35*AA35 -> 0 | AF35: =AD35*AE35 -> 0 | AG35: =+AD35*(1-AE35) -> 0 | AI35: Excavate/install sumps | AK35: m2 | AM35: =NA() ->  | AN35: =IF(ISNA(AM35),0,INDEX(IF(UPPER(RIGHT(AM35,1))=Low,UnitCostLow, IF(UPPER(RIGHT(AM35,1))=High,UnitCostHigh,UnitCostSpecified)),MATCH(UPPER(LEFT(AM35,LEN(AM35)-1)),CostCode,0))) -> 0 | AO35: =AN35*AL35 -> 0 | AQ35: =AO35*AP35 -> 0 | AR35: =+AO35*(1-AP35) -> 0
B36: Install pumping wells | D36: m3 | F36: =NA() ->  | G36: 0 | H36: 0 | J36: 0 | K36: =+H36*(1-I36) -> 0 | M36: Install pumping wells | O36: m3 | Q36: =NA() ->  | R36: 0 | S36: 0 | U36: 0 | V36: 0 | X36: Install pumping wells | Z36: m3 | AB36: =NA() ->  | AC36: 0 | AD36: 0 | AF36: 0 | AG36: 0 | AI36: Install pumping wells | AK36: m3 | AM36: =NA() ->  | AN36: 0 | AO36: 0 | AQ36: 0 | AR36: 0
B37: Install pumps/pipelines/power supply | D37: LS | F37: =NA() ->  | G37: 0 | H37: 0 | J37: 0 | K37: =+H37*(1-I37) -> 0 | M37: Install pumps/pipelines/power supply | O37: LS | Q37: =NA() ->  | R37: 0 | S37: 0 | U37: 0 | V37: 0 | X37: Install pumps/pipelines/power supply | Z37: LS | AB37: =NA() ->  | AC37: 0 | AD37: 0 | AF37: 0 | AG37: 0 | AI37: Install pumps/pipelines/power supply | AK37: LS | AM37: =NA() ->  | AN37: 0 | AO37: 0 | AQ37: 0 | AR37: 0
B38: SPECIALIZED ITEMS | M38: SPECIALIZED ITEMS | X38: SPECIALIZED ITEMS | AI38: SPECIALIZED ITEMS
B39: Install water quality monitoring pipes | D39: each | F39: =NA() ->  | G39: =IF(ISNA(F39),0,INDEX(IF(UPPER(RIGHT(F39,1))=Low,UnitCostLow, IF(UPPER(RIGHT(F39,1))=High,UnitCostHigh,UnitCostSpecified)),MATCH(UPPER(LEFT(F39,LEN(F39)-1)),CostCode,0))) -> 0 | H39: =G39*E39 -> 0 | J39: =H39*I39 -> 0 | K39: =H39*(1-I39) -> 0 | M39: Install water quality monitoring pipes | O39: each | Q39: =NA() ->  | R39: =IF(ISNA(Q39),0,INDEX(IF(UPPER(RIGHT(Q39,1))=Low,UnitCostLow, IF(UPPER(RIGHT(Q39,1))=High,UnitCostHigh,UnitCostSpecified)),MATCH(UPPER(LEFT(Q39,LEN(Q39)-1)),CostCode,0))) -> 0 | S39: =R39*P39 -> 0 | U39: =S39*T39 -> 0 | V39: =S39*(1-T39) -> 0 | X39: Install water quality monitoring pipes | Z39: each | AB39: =NA() ->  | AC39: =IF(ISNA(AB39),0,INDEX(IF(UPPER(RIGHT(AB39,1))=Low,UnitCostLow, IF(UPPER(RIGHT(AB39,1))=High,UnitCostHigh,UnitCostSpecified)),MATCH(UPPER(LEFT(AB39,LEN(AB39)-1)),CostCode,0))) -> 0 | AD39: =AC39*AA39 -> 0 | AF39: =AD39*AE39 -> 0 | AG39: =AD39*(1-AE39) -> 0 | AI39: Install water quality monitoring pipes | AK39: each | AM39: =NA() ->  | AN39: =IF(ISNA(AM39),0,INDEX(IF(UPPER(RIGHT(AM39,1))=Low,UnitCostLow, IF(UPPER(RIGHT(AM39,1))=High,UnitCostHigh,UnitCostSpecified)),MATCH(UPPER(LEFT(AM39,LEN(AM39)-1)),CostCode,0))) -> 0 | AO39: =AN39*AL39 -> 0 | AQ39: =AO39*AP39 -> 0 | AR39: =AO39*(1-AP39) -> 0
B40: Install permanent pumping system | D40: each | F40: =NA() ->  | G40: 0 | H40: =G40*E40 -> 0 | J40: =H40*I40 -> 0 | K40: =H40*(1-I40) -> 0 | M40: Install permanent pumping system | O40: each | Q40: =NA() ->  | R40: 0 | S40: =R40*P40 -> 0 | U40: =S40*T40 -> 0 | V40: 0 | X40: Install permanent pumping system | Z40: each | AB40: =NA() ->  | AC40: 0 | AD40: =AC40*AA40 -> 0 | AF40: =AD40*AE40 -> 0 | AG40: 0 | AI40: Install permanent pumping system | AK40: each | AM40: =NA() ->  | AN40: 0 | AO40: =AN40*AL40 -> 0 | AQ40: =AO40*AP40 -> 0 | AR40: 0
B41: Assess underground stability | C41: Rock mechanics inspection before closure | D41: each | E41: 1 | F41: Sabina | G41: =Unit_Costs!F181 -> 11586.92185 | H41: =G41*E41 -> 11586.92185 | J41: =H41*I41 -> 0 | K41: =H41*(1-I41) -> 11586.92185 | M41: Assess underground stability | N41: Rock mechanics inspection before closure | O41: each | P41: 1 | Q41: Sabina | R41: =Unit_Costs!F181 -> 11586.92185 | S41: =R41*P41 -> 11586.92185 | U41: =S41*T41 -> 0 | V41: 11586.92185 | X41: Other | AB41: =NA() ->  | AC41: =IF(ISNA(AB41),0,INDEX(IF(UPPER(RIGHT(AB41,1))=Low,UnitCostLow, IF(UPPER(RIGHT(AB41,1))=High,UnitCostHigh,UnitCostSpecified)),MATCH(UPPER(LEFT(AB41,LEN(AB41)-1)),CostCode,0))) -> 0 | AD41: =AC41*AA41 -> 0 | AF41: =AD41*AE41 -> 0 | AG41: 0 | AI41: Assess underground stability | AJ41: Rock mechanics inspection before closure | AK41: each | AL41: 1 | AM41: Sabina | AN41: =Unit_Costs!F181 -> 11586.92185 | AO41: =AN41*AL41 -> 11586.92185 | AQ41: =AO41*AP41 -> 0 | AR41: 11586.92185
G42: Total | H42: =SUM(H5:H41)+0.0001 -> 444319.0803 | J42: =SUM(J5:J41) -> 0 | K42: =SUM(K5:K41) -> 444319.0802 | R42: Total | S42: =SUM(S5:S41)+0.0001 -> 124878.8817 | U42: =SUM(U5:U41) -> 0 | V42: =SUM(V5:V41) -> 124878.8816 | AC42: Total | AD42: =SUM(AD5:AD41)+0.0001 -> 334322.9837 | AF42: =SUM(AF5:AF41) -> 0 | AG42: =SUM(AG5:AG41) -> 334322.9836 | AN42: Total | AO42: =SUM(AO5:AO41)+0.0001 -> 116121.288 | AQ42: =SUM(AQ5:AQ41) -> 0 | AR42: =SUM(AR5:AR41) -> 116121.2879
G43: % of Total | J43: =J42/H42 -> 0 | K43: =K42/H42 -> 0.9999999998 | R43: % of Total | U43: =U42/S42 -> 0 | V43: =V42/S42 -> 0.9999999992 | AC43: % of Total | AF43: =AF42/AD42 -> 0 | AG43: =AG42/AD42 -> 0.9999999997 | AN43: % of Total | AQ43: =AQ42/AO42 -> 0 | AR43: =AR42/AO42 -> 0.9999999991

Sheet Tailings
A1: 1 | B1: Tailings Impoundment Name: | C1: TSF | G1: Pond # | H1: 1
B3: ACTIVITY/MATERIAL | C3: Notes | D3: Units | E3: Quantity | F3: Cost Code | G3: Unit Cost | H3: Cost | I3: % Land | J3: Land Cost | K3: Total Cost
B4: CONTROL ACCESS
B5: Fence | D5: m | F5: =NA() ->  | G5: =IF(ISNA(F5),0,INDEX(IF(UPPER(RIGHT(F5,1))=Low,UnitCostLow, IF(UPPER(RIGHT(F5,1))=High,UnitCostHigh,UnitCostSpecified)),MATCH(UPPER(LEFT(F5,LEN(F5)-1)),CostCode,0))) -> 0 | H5: =G5*E5 -> 0 | J5: =H5*I5 -> 0 | K5: =+H5*(1-I5) -> 0
B6: Signs | D6: each | F6: =NA() ->  | G6: 0 | H6: 0 | J6: =H6*I6 -> 0 | K6: =+H6*(1-I6) -> 0
B7: Berm | D7: m3 | F7: =NA() ->  | G7: 0 | H7: 0 | J7: 0 | K7: 0
B8: Block roads | D8: m3 | F8: =NA() ->  | G8: 0 | H8: 0 | J8: 0 | K8: 0
B9: Other | F9: =NA() ->  | G9: 0 | H9: 0 | J9: 0 | K9: 0
B10: STABILIZE EMBANKMENT(S)
B11: Toe buttress, drainage layer | D11: m3 | F11: =NA() ->  | G11: 0 | H11: =G11*E11 -> 0 | J11: 0 | K11: 0
B12: Toe buttress, bulk fill | D12: m3 | F12: =NA() ->  | G12: 0 | H12: 0 | J12: 0 | K12: 0
B13: Rip rap | D13: m3 | F13: =NA() ->  | G13: 0 | H13: 0 | J13: 0 | K13: 0
B14: Vegetate | D14: ha | F14: =NA() ->  | G14: 0 | H14: 0 | J14: 0 | K14: 0
B15: Raise crest | D15: m3 | F15: =NA() ->  | G15: 0 | H15: 0 | J15: 0 | K15: 0
B16: Flatten slopes | D16: m3 | F16: =NA() ->  | G16: 0 | H16: 0 | J16: 0 | K16: 0
B17: Other | F17: =NA() ->  | G17: 0 | H17: 0 | J17: 0 | K17: 0
B18: COVER TAILINGS
B19: Grade/shape tailings surface | D19: m3 | F19: =NA() ->  | G19: =IF(ISNA(F19),0,INDEX(IF(UPPER(RIGHT(F19,1))=Low,UnitCostLow, IF(UPPER(RIGHT(F19,1))=High,UnitCostHigh,UnitCostSpecified)),MATCH(UPPER(LEFT(F19,LEN(F19)-1)),CostCode,0))) -> 0 | H19: =G19*E19 -> 0 | J19: =H19*I19 -> 0 | K19: =+H19*(1-I19) -> 0
B20: Liner bedding | D20: m3 | F20: =NA() ->  | G20: =IF(ISNA(F20),0,INDEX(IF(UPPER(RIGHT(F20,1))=Low,UnitCostLow, IF(UPPER(RIGHT(F20,1))=High,UnitCostHigh,UnitCostSpecified)),MATCH(UPPER(LEFT(F20,LEN(F20)-1)),CostCode,0))) -> 0 | H20: =G20*E20 -> 0 | J20: =H20*I20 -> 0 | K20: =+H20*(1-I20) -> 0
B21: Subgrade preparation - compact | D21: m2 | F21: =NA() ->  | G21: =IF(ISNA(F21),0,INDEX(IF(UPPER(RIGHT(F21,1))=Low,UnitCostLow, IF(UPPER(RIGHT(F21,1))=High,UnitCostHigh,UnitCostSpecified)),MATCH(UPPER(LEFT(F21,LEN(F21)-1)),CostCode,0))) -> 0 | H21: =G21*E21 -> 0 | J21: =H21*I21 -> 0 | K21: =+H21*(1-I21) -> 0
B22: Supply geotextile/geosynthetic | D22: m2 | F22: =NA() ->  | G22: =IF(ISNA(F22),0,INDEX(IF(UPPER(RIGHT(F22,1))=Low,UnitCostLow, IF(UPPER(RIGHT(F22,1))=High,UnitCostHigh,UnitCostSpecified)),MATCH(UPPER(LEFT(F22,LEN(F22)-1)),CostCode,0))) -> 0 | H22: 0 | J22: 0 | K22: 0
B23: Install geotextile/geosynthetic | D23: m2 | F23: =NA() ->  | G23: =IF(ISNA(F23),0,INDEX(IF(UPPER(RIGHT(F23,1))=Low,UnitCostLow, IF(UPPER(RIGHT(F23,1))=High,UnitCostHigh,UnitCostSpecified)),MATCH(UPPER(LEFT(F23,LEN(F23)-1)),CostCode,0))) -> 0 | H23: =G23*E23 -> 0 | J23: =H23*I23 -> 0 | K23: =+H23*(1-I23) -> 0
B24: Soil cover | D24: m3 | F24: =NA() ->  | G24: =IF(ISNA(F24),0,INDEX(IF(UPPER(RIGHT(F24,1))=Low,UnitCostLow, IF(UPPER(RIGHT(F24,1))=High,UnitCostHigh,UnitCostSpecified)),MATCH(UPPER(LEFT(F24,LEN(F24)-1)),CostCode,0))) -> 0 | H24: 0 | J24: 0 | K24: 0
B25: Rock cover (Echo TF Project Year 4 Only) | C25: Incorporated into NPAG rock cover costed on "Rock Piles" tab. | D25: m3 | F25: =NA() ->  | G25: =IF(ISNA(F25),0,INDEX(IF(UPPER(RIGHT(F25,1))=Low,UnitCostLow, IF(UPPER(RIGHT(F25,1))=High,UnitCostHigh,UnitCostSpecified)),MATCH(UPPER(LEFT(F25,LEN(F25)-1)),CostCode,0))) -> 0 | H25: =G25*E25 -> 0 | J25: =H25*I25 -> 0 | K25: =+H25*(1-I25) -> 0
B26: TSF WRSA Pond Sediment Removal | D26: m3 | F26: =NA() ->  | G26: =IF(ISNA(F26),0,INDEX(IF(UPPER(RIGHT(F26,1))=Low,UnitCostLow, IF(UPPER(RIGHT(F26,1))=High,UnitCostHigh,UnitCostSpecified)),MATCH(UPPER(LEFT(F26,LEN(F26)-1)),CostCode,0))) -> 0 | H26: =G26*E26 -> 0 | J26: =H26*I26 -> 0 | K26: =+H26*(1-I26) -> 0
B27: Vegetate | D27: ha | F27: =NA() ->  | G27: 0 | H27: 0 | J27: 0 | K27: 0
B28: Other | F28: =NA() ->  | G28: 0 | H28: =G28*E28 -> 0 | J28: =H28*I28 -> 0 | K28: =+H28*(1-I28) -> 0
B29: BURY PAG ROCK
B30: Relocate PAG rock | D30: m3 | F30: =NA() ->  | G30: 0 | H30: =G30*E30 -> 0 | J30: 0 | K30: 0
B31: Place cover over PAG rock | D31: m3 | F31: =NA() ->  | G31: 0 | H31: =G31*E31 -> 0 | J31: 0 | K31: 0
B32: Raise crest of dam | D32: m3 | F32: =NA() ->  | G32: 0 | H32: =G32*E32 -> 0 | J32: 0 | K32: 0
B33: Other | F33: =NA() ->  | G33: 0 | H33: =G33*E33 -> 0 | J33: 0 | K33: 0
B34: STABILIZE DECANT SYSTEM
B35: Excavate and replace | D35: m3 | F35: =NA() ->  | G35: =IF(ISNA(F35),0,INDEX(IF(UPPER(RIGHT(F35,1))=Low,UnitCostLow, IF(UPPER(RIGHT(F35,1))=High,UnitCostHigh,UnitCostSpecified)),MATCH(UPPER(LEFT(F35,LEN(F35)-1)),CostCode,0))) -> 0 | H35: =G35*E35 -> 0 | J35: =H35*I35 -> 0 | K35: =+H35*(1-I35) -> 0
B36: Plug/backfill with concrete or clay | D36: m3 | F36: =NA() ->  | G36: =IF(ISNA(F36),0,INDEX(IF(UPPER(RIGHT(F36,1))=Low,UnitCostLow, IF(UPPER(RIGHT(F36,1))=High,UnitCostHigh,UnitCostSpecified)),MATCH(UPPER(LEFT(F36,LEN(F36)-1)),CostCode,0))) -> 0 | H36: =G36*E36 -> 0 | J36: =H36*I36 -> 0 | K36: =+H36*(1-I36) -> 0
B37: Other | F37: =NA() ->  | G37: =IF(ISNA(F37),0,INDEX(IF(UPPER(RIGHT(F37,1))=Low,UnitCostLow, IF(UPPER(RIGHT(F37,1))=High,UnitCostHigh,UnitCostSpecified)),MATCH(UPPER(LEFT(F37,LEN(F37)-1)),CostCode,0))) -> 0 | H37: =G37*E37 -> 0 | J37: =H37*I37 -> 0 | K37: =+H37*(1-I37) -> 0
B38: REMOVE TAILINGS DISCHARGE
B39: Cyclones | D39: m3 | F39: =NA() ->  | G39: =IF(ISNA(F39),0,INDEX(IF(UPPER(RIGHT(F39,1))=Low,UnitCostLow, IF(UPPER(RIGHT(F39,1))=High,UnitCostHigh,UnitCostSpecified)),MATCH(UPPER(LEFT(F39,LEN(F39)-1)),CostCode,0))) -> 0 | H39: =G39*E39 -> 0 | J39: =H39*I39 -> 0 | K39: =+H39*(1-I39) -> 0
B40: Pipe | D40: m3 | F40: =NA() ->  | G40: =IF(ISNA(F40),0,INDEX(IF(UPPER(RIGHT(F40,1))=Low,UnitCostLow, IF(UPPER(RIGHT(F40,1))=High,UnitCostHigh,UnitCostSpecified)),MATCH(UPPER(LEFT(F40,LEN(F40)-1)),CostCode,0))) -> 0 | H40: =G40*E40 -> 0 | J40: =H40*I40 -> 0 | K40: =+H40*(1-I40) -> 0
B41: Remove reclaim barge | D41: allow | F41: =NA() ->  | G41: =IF(ISNA(F41),0,INDEX(IF(UPPER(RIGHT(F41,1))=Low,UnitCostLow, IF(UPPER(RIGHT(F41,1))=High,UnitCostHigh,UnitCostSpecified)),MATCH(UPPER(LEFT(F41,LEN(F41)-1)),CostCode,0))) -> 0 | H41: =G41*E41 -> 0 | J41: =H41*I41 -> 0 | K41: =+H41*(1-I41) -> 0
B42: CONSTRUCT DIVERSION DITCHES
B43: Excavate ditches -soil | D43: m3 | F43: =NA() ->  | G43: =IF(ISNA(F43),0,INDEX(IF(UPPER(RIGHT(F43,1))=Low,UnitCostLow, IF(UPPER(RIGHT(F43,1))=High,UnitCostHigh,UnitCostSpecified)),MATCH(UPPER(LEFT(F43,LEN(F43)-1)),CostCode,0))) -> 0 | H43: =G43*E43 -> 0 | J43: =H43*I43 -> 0 | K43: =+H43*(1-I43) -> 0
B44: Excavate ditches -rock | D44: m3 | F44: =NA() ->  | G44: =IF(ISNA(F44),0,INDEX(IF(UPPER(RIGHT(F44,1))=Low,UnitCostLow, IF(UPPER(RIGHT(F44,1))=High,UnitCostHigh,UnitCostSpecified)),MATCH(UPPER(LEFT(F44,LEN(F44)-1)),CostCode,0))) -> 0 | H44: =G44*E44 -> 0 | J44: 0 | K44: 0
B45: Rip rap in channel base (liner) | D45: m2 | F45: =NA() ->  | G45: =IF(ISNA(F45),0,INDEX(IF(UPPER(RIGHT(F45,1))=Low,UnitCostLow, IF(UPPER(RIGHT(F45,1))=High,UnitCostHigh,UnitCostSpecified)),MATCH(UPPER(LEFT(F45,LEN(F45)-1)),CostCode,0))) -> 0 | H45: =G45*E45 -> 0 | J45: 0 | K45: 0
B46: FLOOD TAILINGS
B47: Doze tailings to final contour | D47: m3 | F47: =NA() ->  | G47: 0 | H47: =G47*E47 -> 0 | J47: 0 | K47: 0
B48: Raise crest of dam | D48: m3 | F48: =NA() ->  | G48: 0 | H48: =G48*E48 -> 0 | J48: 0 | K48: 0
B49: Other | F49: =NA() ->  | G49: 0 | H49: =G49*E49 -> 0 | J49: 0 | K49: 0
B50: UPGRADE SPILLWAY
B51: Excavate channel on TSF | D51: m3 | F51: =NA() ->  | G51: =IF(ISNA(F51),0,INDEX(IF(UPPER(RIGHT(F51,1))=Low,UnitCostLow, IF(UPPER(RIGHT(F51,1))=High,UnitCostHigh,UnitCostSpecified)),MATCH(UPPER(LEFT(F51,LEN(F51)-1)),CostCode,0))) -> 0 | H51: =G51*E51 -> 0 | J51: =H51*I51 -> 0 | K51: =+H51*(1-I51) -> 0
B52: Excavate channel, soil | D52: m3 | F52: =NA() ->  | G52: 0 | H52: 0 | J52: 0 | K52: 0
B53: Concrete | D53: m3 | F53: =NA() ->  | G53: 0 | H53: 0 | J53: 0 | K53: 0
B54: Rip rap | D54: m3 | F54: =NA() ->  | G54: 0 | H54: 0 | J54: 0 | K54: 0
B55: Other | D55: m2 | F55: =NA() ->  | G55: 0 | H55: 0 | J55: 0 | K55: 0
B56: CONSTRUCT SEEPAGE COLLECTION POND
B57: Excavate seepage collection pond | D57: m3 | F57: =NA() ->  | G57: =IF(ISNA(F57),0,INDEX(IF(UPPER(RIGHT(F57,1))=Low,UnitCostLow, IF(UPPER(RIGHT(F57,1))=High,UnitCostHigh,UnitCostSpecified)),MATCH(UPPER(LEFT(F57,LEN(F57)-1)),CostCode,0))) -> 0 | H57: =G57*E57 -> 0 | J57: =H57*I57 -> 0 | K57: =+H57*(1-I57) -> 0
B58: Doze & spread excavated material | D58: m3 | F58: =NA() ->  | G58: 0 | H58: 0 | J58: 0 | K58: 0
B59: Vegetate spread material | D59: ha | F59: =NA() ->  | G59: 0 | H59: 0 | J59: 0 | K59: 0
B60: Bedding layer | D60: m3 | F60: =NA() ->  | G60: 0 | H60: 0 | J60: 0 | K60: 0
B61: Supply geomembrane | D61: m2 | F61: =NA() ->  | G61: 0 | H61: 0 | J61: 0 | K61: 0
B62: Install geomembrane | D62: m2 | F62: =NA() ->  | G62: 0 | H62: 0 | J62: 0 | K62: 0
B63: Erosion protection layer | D63: m3 | F63: =NA() ->  | G63: 0 | H63: 0 | J63: 0 | K63: 0
B64: Breach seepage diversion berm | D64: m3 | F64: =NA() ->  | G64: 0 | H64: =G64*E64 -> 0 | J64: 0 | K64: 0
B65: INSTALL GROUNDWATER COLLECTION SYSTEM
B66: Excavate/install sumps | D66: m3 | F66: =NA() ->  | G66: =IF(ISNA(F66),0,INDEX(IF(UPPER(RIGHT(F66,1))=Low,UnitCostLow, IF(UPPER(RIGHT(F66,1))=High,UnitCostHigh,UnitCostSpecified)),MATCH(UPPER(LEFT(F66,LEN(F66)-1)),CostCode,0))) -> 0 | H66: =G66*E66 -> 0 | J66: =H66*I66 -> 0 | K66: =+H66*(1-I66) -> 0
B67: Install pumping wells | D67: m3 | F67: =NA() ->  | G67: 0 | H67: 0 | J67: 0 | K67: 0
B68: Install pumps/pipelines/power supply | D68: LS | F68: =NA() ->  | G68: 0 | H68: 0 | J68: 0 | K68: 0
B69: SPECIALIZED ITEMS
B70: Install permanent instrumentation, supply & technician | D70: each | F70: =NA() ->  | G70: 0 | H70: =G70*E70 -> 0 | J70: =H70*I70 -> 0 | K70: =+H70*(1-I70) -> 0
B71: Install permanent instrumentation, drilling | D71: each | F71: =NA() ->  | G71: =IF(ISNA(F71),0,INDEX(IF(UPPER(RIGHT(F71,1))=Low,UnitCostLow, IF(UPPER(RIGHT(F71,1))=High,UnitCostHigh,UnitCostSpecified)),MATCH(UPPER(LEFT(F71,LEN(F71)-1)),CostCode,0))) -> 0 | H71: =G71*E71 -> 0 | K71: =+H71*(1-I71) -> 0
B72: TREAT SEEPAGE - see "Water Management" and "Water Treatment"
B73: TREAT SUPERNATANT
B74: Pump water (to pit, U/G) | D74: m3 | F74: =NA() ->  | G74: =IF(ISNA(F74),0,INDEX(IF(UPPER(RIGHT(F74,1))=Low,UnitCostLow, IF(UPPER(RIGHT(F74,1))=High,UnitCostHigh,UnitCostSpecified)),MATCH(UPPER(LEFT(F74,LEN(F74)-1)),CostCode,0))) -> 0 | H74: =G74*E74 -> 0 | J74: =H74*I74 -> 0 | K74: =+H74*(1-I74) -> 0
B75: Equipment maintenance and parts | D75: allow | F75: =NA() ->  | G75: =IF(ISNA(F75),0,INDEX(IF(UPPER(RIGHT(F75,1))=Low,UnitCostLow, IF(UPPER(RIGHT(F75,1))=High,UnitCostHigh,UnitCostSpecified)),MATCH(UPPER(LEFT(F75,LEN(F75)-1)),CostCode,0))) -> 0 | H75: =G75*E75 -> 0 | J75: =H75*I75 -> 0 | K75: =+H75*(1-I75) -> 0
B76: Supply reagents | D76: tonne | F76: =NA() ->  | G76: =IF(ISNA(F76),0,INDEX(IF(UPPER(RIGHT(F76,1))=Low,UnitCostLow, IF(UPPER(RIGHT(F76,1))=High,UnitCostHigh,UnitCostSpecified)),MATCH(UPPER(LEFT(F76,LEN(F76)-1)),CostCode,0))) -> 0 | H76: =G76*E76 -> 0 | J76: =H76*I76 -> 0 | K76: =+H76*(1-I76) -> 0
G77: Annual treatment costs | H77: =SUM(H74:H76)+0.0001 -> 0.0001
B78: Number of years of treatment | D78: years | E78: 0
G79: Total treatment costs | H79: =H77*E78 -> 0 | K79: =H79 -> 0
G80: Total | H80: =SUM(H5:H71)+H79+0.0001 -> 0.0001 | J80: =SUM(J5:J71)+J79 -> 0 | K80: =SUM(K5:K71)+K79 -> 0
G81: % of Total | J81: =J80/H80 -> 0 | K81: =K80/H80 -> 0
B82: * for construction of passive treatment system refer to "Water Management"

Sheet Rock Pile
A1: 1 | B1: Rock Pile Name: | C1: Umwelt, Llama, Goose Main, and Echo
B3: ACTIVITY/MATERIAL | C3: Notes | D3: Units | E3: Quantity | F3: Cost Code | G3: Unit Cost | H3: Cost | I3: % Land | J3: Land Cost | K3: Total Cost
B4: STABILIZE SLOPES
B5: Flatten slopes with dozer | D5: m3 | F5: =NA() ->  | G5: =IF(ISNA(F5),0,INDEX(IF(UPPER(RIGHT(F5,1))=Low,UnitCostLow, IF(UPPER(RIGHT(F5,1))=High,UnitCostHigh,UnitCostSpecified)),MATCH(UPPER(LEFT(F5,LEN(F5)-1)),CostCode,0))) -> 0 | H5: =G5*E5 -> 0 | J5: =H5*I5 -> 0 | K5: =+H5*(1-I5) -> 0
B6: Flatten "bubble dump" areas | D6: m3 | F6: =NA() ->  | G6: 0 | H6: 0 | J6: 0 | K6: 0
B7: Divert runon, ditch mat'l A | D7: m3 | F7: =NA() ->  | G7: 0 | H7: 0 | J7: 0 | K7: 0
B8: Divert runon, ditch mat'l B | D8: m3 | F8: =NA() ->  | G8: 0 | H8: 0 | J8: 0 | K8: 0
B9: Toe buttress, drain mat'l | D9: m3 | F9: =NA() ->  | G9: 0 | H9: 0 | J9: 0 | K9: 0
B10: Toe buttress, fill mat'l A | D10: m3 | F10: =NA() ->  | G10: 0 | H10: 0 | J10: 0 | K10: 0
B11: Toe buttress, fill mat'l B | D11: m3 | F11: =NA() ->  | G11: 0 | H11: 0 | J11: 0 | K11: 0
B12: Other | F12: =NA() ->  | G12: 0 | H12: 0 | J12: 0 | K12: 0
B13: COVER ROCK PILE
B14: Subgrade preparation - doze surface | D14: m3 | F14: =NA() ->  | G14: =IF(ISNA(F14),0,INDEX(IF(UPPER(RIGHT(F14,1))=Low,UnitCostLow, IF(UPPER(RIGHT(F14,1))=High,UnitCostHigh,UnitCostSpecified)),MATCH(UPPER(LEFT(F14,LEN(F14)-1)),CostCode,0))) -> 0 | H14: =G14*E14 -> 0 | J14: =H14*I14 -> 0 | K14: =+H14*(1-I14) -> 0
B15: Soil cover - excavate,haul,spread&compact | D15: m3 | F15: =NA() ->  | G15: 0 | H15: 0 | J15: 0 | K15: 0
B16: Rock cover - excavate, haul & spread | C16: Cover 3 rock piles: Umwelt, Llama, and Goose Main (incorporates Echo WRSA and Echo TF into Goose Main WRSA). WRSAs will be covered progressively by direct hauling NPAG during mining. Maximum PAG Exposure occurs end of Year 3 for 31.5 ha; 5 m cover converts this area to 1.6 Mm3. | D16: m3 | E16: 1574457 | F16: RBSS | G16: 8.110845295 | H16: =G16*E16 -> 12770177.15 | J16: =H16*I16 -> 0 | K16: =+H16*(1-I16) -> 12770177.15
B17: Excavate downslope drainage channel & chute | D17: m3 | F17: =NA() ->  | G17: 0 | H17: 0 | J17: 0 | K17: 0
B18: Rip rap drainage channel and chute | D18: m3 | F18: =NA() ->  | G18: 0 | H18: 0 | J18: 0 | K18: 0
B19: Vegetate | D19: ha | F19: =NA() ->  | G19: 0 | H19: 0 | J19: 0 | K19: 0
B20: Other | F20: =NA() ->  | G20: 0 | H20: 0 | J20: 0 | K20: 0
B21: VERY LOW PERMEABILITY COVER (in addition to above)
B22: Liner subgrade preparation - compact | D22: m2 | F22: =NA() ->  | G22: =IF(ISNA(F22),0,INDEX(IF(UPPER(RIGHT(F22,1))=Low,UnitCostLow, IF(UPPER(RIGHT(F22,1))=High,UnitCostHigh,UnitCostSpecified)),MATCH(UPPER(LEFT(F22,LEN(F22)-1)),CostCode,0))) -> 0 | H22: =G22*E22 -> 0 | J22: =H22*I22 -> 0 | K22: =+H22*(1-I22) -> 0
B23: Supply geomembrane | D23: m2 | F23: =NA() ->  | G23: =IF(ISNA(F23),0,INDEX(IF(UPPER(RIGHT(F23,1))=Low,UnitCostLow, IF(UPPER(RIGHT(F23,1))=High,UnitCostHigh,UnitCostSpecified)),MATCH(UPPER(LEFT(F23,LEN(F23)-1)),CostCode,0))) -> 0 | H23: =G23*E23 -> 0 | J23: 0 | K23: 0
B24: Install geomembrane | D24: m2 | F24: =NA() ->  | G24: =IF(ISNA(F24),0,INDEX(IF(UPPER(RIGHT(F24,1))=Low,UnitCostLow, IF(UPPER(RIGHT(F24,1))=High,UnitCostHigh,UnitCostSpecified)),MATCH(UPPER(LEFT(F24,LEN(F24)-1)),CostCode,0))) -> 0 | H24: =G24*E24 -> 0 | J24: 0 | K24: 0
B25: Protective cover - excavate,haul,spread&compact | D25: m3 | F25: =NA() ->  | G25: 0 | H25: 0 | J25: 0 | K25: 0
B26: Vegetate | D26: ha | F26: =NA() ->  | G26: 0 | H26: 0 | J26: 0 | K26: 0
B27: Install infiltration/seepage instrumentation | D27: allow | F27: =NA() ->  | G27: 0 | H27: 0 | J27: 0 | K27: 0
B28: CONSTRUCT DIVERSION DITCHES
B29: Excavate ditches -soil | D29: m3 | F29: =NA() ->  | G29: =IF(ISNA(F29),0,INDEX(IF(UPPER(RIGHT(F29,1))=Low,UnitCostLow, IF(UPPER(RIGHT(F29,1))=High,UnitCostHigh,UnitCostSpecified)),MATCH(UPPER(LEFT(F29,LEN(F29)-1)),CostCode,0))) -> 0 | H29: =G29*E29 -> 0 | J29: =H29*I29 -> 0 | K29: =+H29*(1-I29) -> 0
B30: Excavate ditches -rock | D30: m3 | F30: =NA() ->  | G30: =IF(ISNA(F30),0,INDEX(IF(UPPER(RIGHT(F30,1))=Low,UnitCostLow, IF(UPPER(RIGHT(F30,1))=High,UnitCostHigh,UnitCostSpecified)),MATCH(UPPER(LEFT(F30,LEN(F30)-1)),CostCode,0))) -> 0 | H30: 0 | J30: 0 | K30: 0
B31: Rip rap in channel base | D31: m3 | F31: =NA() ->  | G31: =IF(ISNA(F31),0,INDEX(IF(UPPER(RIGHT(F31,1))=Low,UnitCostLow, IF(UPPER(RIGHT(F31,1))=High,UnitCostHigh,UnitCostSpecified)),MATCH(UPPER(LEFT(F31,LEN(F31)-1)),CostCode,0))) -> 0 | H31: 0 | J31: 0 | K31: 0
B32: CONSTRUCT SEEPAGE COLLECTION POND
B33: Excavate seepage collection pond | C33: See Water Management tab for berm breaching | D33: m3 | F33: =NA() ->  | G33: 0 | H33: 0 | J33: =H33*I33 -> 0 | K33: =+H33*(1-I33) -> 0
B34: Doze & spread excavated material | D34: m3 | F34: =NA() ->  | G34: 0 | H34: 0 | J34: 0 | K34: 0
B35: Vegetate spread material | D35: ha | F35: =NA() ->  | G35: 0 | H35: 0 | J35: 0 | K35: 0
B36: Bedding layer | D36: m3 | F36: =NA() ->  | G36: 0 | H36: 0 | J36: 0 | K36: 0
B37: Supply geomembrane | D37: m2 | F37: =NA() ->  | G37: 0 | H37: 0 | J37: 0 | K37: 0
B38: Install geomembrane | D38: m2 | F38: =NA() ->  | G38: 0 | H38: 0 | J38: 0 | K38: 0
B39: Erosion protection layer | D39: m3 | F39: =NA() ->  | G39: 0 | H39: 0 | J39: 0 | K39: 0
B40: INSTALL GROUNDWATER COLLECTION SYSTEM
B41: Excavate/install sumps | D41: m3 | F41: =NA() ->  | G41: =IF(ISNA(F41),0,INDEX(IF(UPPER(RIGHT(F41,1))=Low,UnitCostLow, IF(UPPER(RIGHT(F41,1))=High,UnitCostHigh,UnitCostSpecified)),MATCH(UPPER(LEFT(F41,LEN(F41)-1)),CostCode,0))) -> 0 | H41: =G41*E41 -> 0 | J41: =H41*I41 -> 0 | K41: =+H41*(1-I41) -> 0
B42: Install pumping wells | D42: m3 | F42: =NA() ->  | G42: 0 | H42: 0 | J42: 0 | K42: 0
B43: Install pumps/pipelines/power supply | D43: allow | F43: =NA() ->  | G43: 0 | H43: 0 | J43: 0 | K43: 0
B44: RELOCATE DUMPS
B45: Load, haul, dump or doze | D45: m3 | F45: =NA() ->  | G45: =IF(ISNA(F45),0,INDEX(IF(UPPER(RIGHT(F45,1))=Low,UnitCostLow, IF(UPPER(RIGHT(F45,1))=High,UnitCostHigh,UnitCostSpecified)),MATCH(UPPER(LEFT(F45,LEN(F45)-1)),CostCode,0))) -> 0 | H45: =G45*E45 -> 0 | J45: =H45*I45 -> 0 | K45: =+H45*(1-I45) -> 0
B46: Add lime | D46: tonne | F46: =NA() ->  | G46: =IF(ISNA(F46),0,INDEX(IF(UPPER(RIGHT(F46,1))=Low,UnitCostLow, IF(UPPER(RIGHT(F46,1))=High,UnitCostHigh,UnitCostSpecified)),MATCH(UPPER(LEFT(F46,LEN(F46)-1)),CostCode,0))) -> 0 | H46: =G46*E46 -> 0 | J46: =H46*I46 -> 0 | K46: =+H46*(1-I46) -> 0
B47: Contour reclaimed area | D47: ha | F47: =NA() ->  | G47: =IF(ISNA(F47),0,INDEX(IF(UPPER(RIGHT(F47,1))=Low,UnitCostLow, IF(UPPER(RIGHT(F47,1))=High,UnitCostHigh,UnitCostSpecified)),MATCH(UPPER(LEFT(F47,LEN(F47)-1)),CostCode,0))) -> 0 | H47: =G47*E47 -> 0 | J47: =H47*I47 -> 0 | K47: =+H47*(1-I47) -> 0
B48: Other | F48: =NA() ->  | G48: =IF(ISNA(F48),0,INDEX(IF(UPPER(RIGHT(F48,1))=Low,UnitCostLow, IF(UPPER(RIGHT(F48,1))=High,UnitCostHigh,UnitCostSpecified)),MATCH(UPPER(LEFT(F48,LEN(F48)-1)),CostCode,0))) -> 0 | H48: =G48*E48 -> 0 | J48: =H48*I48 -> 0 | K48: =+H48*(1-I48) -> 0
B49: SPECIALIZED ITEMS
B50: Install ground temperature monitoring cables | C50: Will be installed during Operations to meet operational monitoring commitments | D50: each | F50: =NA() ->  | G50: =IF(ISNA(F50),0,INDEX(IF(UPPER(RIGHT(F50,1))=Low,UnitCostLow, IF(UPPER(RIGHT(F50,1))=High,UnitCostHigh,UnitCostSpecified)),MATCH(UPPER(LEFT(F50,LEN(F50)-1)),CostCode,0))) -> 0 | H50: =G50*E50 -> 0 | J50: =H50*I50 -> 0 | K50: =+H50*(1-I50) -> 0
B51: Install permanent instrumentation, drilling | D51: each | F51: =NA() ->  | G51: =IF(ISNA(F51),0,INDEX(IF(UPPER(RIGHT(F51,1))=Low,UnitCostLow, IF(UPPER(RIGHT(F51,1))=High,UnitCostHigh,UnitCostSpecified)),MATCH(UPPER(LEFT(F51,LEN(F51)-1)),CostCode,0))) -> 0 | H51: =G51*E51 -> 0 | J51: =H51*I51 -> 0 | K51: =+H51*(1-I51) -> 0
B52: TREAT ROCK PILE SEEPAGE - see "Water Management"
B53: HEAP LEACH SEEPAGE TREATMENT - Cyanide Detox
B54: Cyanide destruction water treatment pumping | D54: m3 | F54: =NA() ->  | G54: =IF(ISNA(F54),0,INDEX(IF(UPPER(RIGHT(F54,1))=Low,UnitCostLow, IF(UPPER(RIGHT(F54,1))=High,UnitCostHigh,UnitCostSpecified)),MATCH(UPPER(LEFT(F54,LEN(F54)-1)),CostCode,0))) -> 0 | H54: =G54*E54 -> 0 | J54: =H54*I54 -> 0 | K54: =+H54*(1-I54) -> 0
B55: Reagents | D55: tonnes | F55: =NA() ->  | G55: =IF(ISNA(F55),0,INDEX(IF(UPPER(RIGHT(F55,1))=Low,UnitCostLow, IF(UPPER(RIGHT(F55,1))=High,UnitCostHigh,UnitCostSpecified)),MATCH(UPPER(LEFT(F55,LEN(F55)-1)),CostCode,0))) -> 0 | H55: =G55*E55 -> 0 | J55: =H55*I55 -> 0 | K55: =+H55*(1-I55) -> 0
B56: Electrician/mechanic to maintain treatment plant | D56: allow | F56: =NA() ->  | G56: =IF(ISNA(F56),0,INDEX(IF(UPPER(RIGHT(F56,1))=Low,UnitCostLow, IF(UPPER(RIGHT(F56,1))=High,UnitCostHigh,UnitCostSpecified)),MATCH(UPPER(LEFT(F56,LEN(F56)-1)),CostCode,0))) -> 0 | H56: =G56*E56 -> 0 | J56: =H56*I56 -> 0 | K56: =+H56*(1-I56) -> 0
B57: Equipment maintenance and parts | D57: allow | F57: =NA() ->  | G57: =IF(ISNA(F57),0,INDEX(IF(UPPER(RIGHT(F57,1))=Low,UnitCostLow, IF(UPPER(RIGHT(F57,1))=High,UnitCostHigh,UnitCostSpecified)),MATCH(UPPER(LEFT(F57,LEN(F57)-1)),CostCode,0))) -> 0 | H57: =G57*E57 -> 0 | J57: =H57*I57 -> 0 | K57: =+H57*(1-I57) -> 0
G58: Annual treatment costs | H58: =SUM(H54:H57)+0.0001 -> 0.0001
B59: Number of years of treatment | D59: years | E59: 0
G60: Total treatment costs | H60: =H58*E59 -> 0 | K60: =H60 -> 0
B61: HEAP LEACH SEEPAGE TREATMENT - ARD/ML
B62: Upgrade/modify pumping system - report to WTP | D62: allow | F62: =NA() ->  | G62: =IF(ISNA(F62),0,INDEX(IF(UPPER(RIGHT(F62,1))=Low,UnitCostLow, IF(UPPER(RIGHT(F62,1))=High,UnitCostHigh,UnitCostSpecified)),MATCH(UPPER(LEFT(F62,LEN(F62)-1)),CostCode,0))) -> 0 | H62: =G62*E62 -> 0 | K62: =H62 -> 0
G63: Total | H63: =SUM(H5:H51)+H60+H62+0.0001 -> 12770177.15 | J63: =SUM(J5:J51)+J60+J62 -> 0 | K63: =SUM(K5:K51)+K60+K62 -> 12770177.15
G64: % of Total | J64: =J63/H63 -> 0 | K64: =K63/H63 -> 1
B66: * For construction of passive treatment system refer to "Water Management".

Sheet Bldgs & Equip
A1: 1 | B1: Building / Equip Name: | G1: Bldg / Equip #: | H1: 1 | M1: Approximate Timing as proposed in 2020 Modification Package
M2: =Summary!K8 -> Y-2 | N2: =Summary!L8 -> Y-1 | O2: =Summary!M8 -> Y-1 | P2: =Summary!N8 -> NA | Q2: =Summary!O8 -> NA | R2: =Summary!P8 -> Y2Q4 | S2: =Summary!Q8 -> Y5Q1 | T2: =Summary!R8 -> Y-1 | U2: =Summary!S8 -> Y6Q2 | V2: =Summary!T8 -> Y10Q2 | W2: =Summary!U8 -> Y10Q3 | X2: =Summary!V8 -> Y1
B3: ACTIVITY/MATERIAL | C3: Notes | D3: Units | E3: Quantity | F3: Cost Code | G3: Unit Cost | H3: Cost | I3: % Land | J3: Land Cost | K3: Total Cost | M3: Initial Infrastructure | N3: Umwelt UG | O3: Umwelt OP | P3: TSF - Dam Construction | Q3: TSF - Use | R3: Llama OP | S3: Goose Main OP | T3: Echo OP | U3: Llama UG | V3: Goose Main UG | W3: Echo UG | X3: Mill Startup Long Term Water Treatment (LTWT)
B4: DISPOSE MOBILE EQUIPMENT
B5: Decontaminate and ship off-site | D5: allow | F5: =NA() ->  | G5: =IF(ISNA(F5),0,INDEX(IF(UPPER(RIGHT(F5,1))=Low,UnitCostLow, IF(UPPER(RIGHT(F5,1))=High,UnitCostHigh,UnitCostSpecified)),MATCH(UPPER(LEFT(F5,LEN(F5)-1)),CostCode,0))) -> 0 | H5: =G5*E5 -> 0 | J5: =H5*I5 -> 0 | K5: =+H5*(1-I5) -> 0
B6: Decontaminate and dispose on-site | C6: Drive or transport to landfill; drain fluids; NPAG cover cost below | D6: allow | E6: 1 | F6: Sabina | G6: =Unit_Costs!F182 -> 23173.8437 | H6: =G6*E6 -> 23173.8437 | J6: =H6*I6 -> 0 | K6: =+H6*(1-I6) -> 23173.8437 | T6: =$H$6 -> 23173.8437
B7: Other | F7: =NA() ->  | G7: =IF(ISNA(F7),0,INDEX(IF(UPPER(RIGHT(F7,1))=Low,UnitCostLow, IF(UPPER(RIGHT(F7,1))=High,UnitCostHigh,UnitCostSpecified)),MATCH(UPPER(LEFT(F7,LEN(F7)-1)),CostCode,0))) -> 0 | H7: =G7*E7 -> 0 | J7: 0 | K7: 0
B8: REMOVE BUILDINGS - see note below
B9: Accommodation Complex | C9: Goose Admin: Kitchen/camp. Landfill building materials and pad. | D9: m2 | E9: ='SBB Comp. Est.'!F96 -> 1980 | F9: BRS1L | G9: =IF(ISNA(F9),0,INDEX(IF(UPPER(RIGHT(F9,1))=Low,UnitCostLow, IF(UPPER(RIGHT(F9,1))=High,UnitCostHigh,UnitCostSpecified)),MATCH(UPPER(LEFT(F9,LEN(F9)-1)),CostCode,0))) -> 55.36409822 | H9: =G9*E9 -> 109620.9145 | J9: 0 | K9: 109620.9145 | M9: =H9 -> 109620.9145
B10: Process Facilities | D10: m2 | E10: ='SBB Comp. Est.'!F89 -> 6464 | F10: BRS1H | G10: 79.9703641 | H10: 516928.4335 | J10: 0 | K10: 516928.4335 | M10: =H10 -> 516928.4335
B11: Crusher | D11: m2 | E11: ='SBB Comp. Est.'!F90 -> 1630 | F11: BRS1H | G11: 79.9703641 | H11: =G11*E11 -> 130351.6935 | J11: =H11*I11 -> 0 | K11: =+H11*(1-I11) -> 130351.6935 | M11: 130351.6935
B12: Power plant | D12: m2 | E12: ='SBB Comp. Est.'!F91 -> 2040 | F12: BRS1H | G12: 79.9703641 | H12: 163139.5428 | J12: 0 | K12: 163139.5428 | M12: 163139.5428
B13: Emergency power plant | D13: m2 | E13: ='SBB Comp. Est.'!F92 -> 300 | F13: BRS1H | G13: 79.9703641 | H13: 23991.10923 | J13: 0 | K13: 23991.10923 | M13: 23991.10923
B14: Truck Shop/Office | C14: Goose Admin building | D14: m2 | E14: ='SBB Comp. Est.'!F95 -> 2349.45 | F14: BRS1L | G14: 55.36409822 | H14: 130075.1806 | J14: 0 | K14: 130075.1806 | M14: 130075.1806
B15: Cold storage | C15: Goose Admin building | D15: m2 | E15: ='SBB Comp. Est.'!F97 -> 840 | F15: BRS1L | G15: 55.36409822 | H15: 46505.84251 | J15: 0 | K15: 46505.84251 | M15: 46505.84251
B16: Storage Facilities | C16: Waste oil storage Goose Site | D16: Lot | E16: ='SBB Comp. Est.'!F98 -> 1 | F16: Sabina | G16: ='SBB Comp. Est.'!X98 -> 50209.99468 | H16: =G16*E16 -> 50209.99468 | J16: =H16*I16 -> 0 | K16: =+H16*(1-I16) -> 50209.99468 | M16: 50209.99468
B17: Storage Facility | C17: Goose freight storage | D17: Lot | E17: ='SBB Comp. Est.'!F99 -> 1 | F17: Sabina | G17: ='SBB Comp. Est.'!X99 -> 22304.82456 | H17: 22304.82456 | J17: 0 | K17: 22304.82456 | M17: 22304.82456
B18: Water and Wastewater Treatment Facilities | C18: Water treatment plant Goose Building | D18: m2 | E18: 647 | F18: BRS1L | G18: =IF(ISNA(F18),0,INDEX(IF(UPPER(RIGHT(F18,1))=Low,UnitCostLow, IF(UPPER(RIGHT(F18,1))=High,UnitCostHigh,UnitCostSpecified)),MATCH(UPPER(LEFT(F18,LEN(F18)-1)),CostCode,0))) -> 55.36409822 | H18: 35820.57155 | J18: 0 | K18: 35820.57155 | O18: =$H18*0.25 -> 8955.142887 | S18: =$H18*0.75 -> 26865.42866
B19: Sewage Treatment Plant | C19: Remove hazardous materials and dispose of at licensed facility, landfill building materials | D19: Lot | E19: ='SBB Comp. Est.'!F101 -> 1 | F19: Sabina | G19: ='SBB Comp. Est.'!X101 -> 13382.89474 | H19: 13382.89474 | J19: 0 | K19: 13382.89474 | M19: 13382.89474
B20: Fuel Tanks | C20: Fuel storage and distribution Goose facility | D20: Lot | E20: ='SBB Comp. Est.'!F93 -> 1 | F20: Sabina | G20: ='SBB Comp. Est.'!X93 -> 178438.5965 | H20: =G20*E20 -> 178438.5965 | J20: =H20*I20 -> 0 | K20: =+H20*(1-I20) -> 178438.5965 | M20: 178438.5965
B21: Offices, Repair, Lab, Warehouse | C21: MLA infrastructure Port Office | D21: Units | E21: ='SBB Comp. Est.'!F103 -> 5 | F21: Sabina | G21: ='SBB Comp. Est.'!X103 -> 2711.339713 | H21: 13556.69856 | J21: =H21*I21 -> 0 | K21: =+H21*(1-I21) -> 13556.69856 | M21: 13556.69856
B22: Pipeline | C22: MLA Infrastructure | D22: m | E22: ='SBB Comp. Est.'!F104 -> 10000 | F22: Sabina | G22: ='SBB Comp. Est.'!X104 -> 11.58692185 | H22: 115869.2185 | J22: =H22*I22 -> 0 | K22: =+H22*(1-I22) -> 115869.2185 | M22: 115869.2185
B23: Warehouse, Shops and Others | C23: MLA Infrastructure. Includes: Incinerator and waste management, Warehouses, Genset, Maintenance shop, water storage, WTP/STP, camp/office, freight storage area, waste area, MLA Fuel Storage Area. Cost includes grade and contour pads, disposal at designated areas, remove hazard material when applicable. Additional Cost included for MLA Fuel Transfer Area tank and liner removal. | D23: LS | E23: 1 | F23: Sabina | G23: ='SBB Comp. Est.'!X105+'SBB Comp. Est.'!X106+'SBB Comp. Est.'!X107+'SBB Comp. Est.'!X108+'SBB Comp. Est.'!X109+'SBB Comp. Est.'!X110+'SBB Comp. Est.'!X111+'SBB Comp. Est.'!X112+'SBB Comp. Est.'!X113+'SBB Comp. Est.'!X114 -> 376702.4163 | H23: 376702.4163 | J23: 0 | K23: 376702.4163 | M23: 376702.4163
B24: Freshwater intakes | C24: pipes will be capped at substrate and left in place. | D24: m2 | F24: =NA() ->  | G24: =IF(ISNA(F24),0,INDEX(IF(UPPER(RIGHT(F24,1))=Low,UnitCostLow, IF(UPPER(RIGHT(F24,1))=High,UnitCostHigh,UnitCostSpecified)),MATCH(UPPER(LEFT(F24,LEN(F24)-1)),CostCode,0))) -> 0 | H24: 0 | J24: 0 | K24: 0
B25: Reclaim pumps | D25: m2 | F25: =NA() ->  | G25: 0 | H25: 0 | J25: 0 | K25: 0
B26: Outfall & Diffuser | D26: m2 | F26: =NA() ->  | G26: 0 | H26: 0 | J26: 0 | K26: 0
B27: Airstrip lighting, navigation, electrician | C27: Accounts for Goose 6,000-ft airstrip | D27: manhours | E27: 24 | F27: elecH | G27: =IF(ISNA(F27),0,INDEX(IF(UPPER(RIGHT(F27,1))=Low,UnitCostLow, IF(UPPER(RIGHT(F27,1))=High,UnitCostHigh,UnitCostSpecified)),MATCH(UPPER(LEFT(F27,LEN(F27)-1)),CostCode,0))) -> 116.8797629 | H27: 2805.11431 | J27: 0 | K27: 2805.11431 | M27: =H27 -> 2805.11431
B28: Airstrip lighting, navigation, mechanical | C28: Accounts for Goose 6,000-ft airstrip | D28: manhours | E28: 24 | F28: mechH | G28: =IF(ISNA(F28),0,INDEX(IF(UPPER(RIGHT(F28,1))=Low,UnitCostLow, IF(UPPER(RIGHT(F28,1))=High,UnitCostHigh,UnitCostSpecified)),MATCH(UPPER(LEFT(F28,LEN(F28)-1)),CostCode,0))) -> 89.62832345 | H28: 2151.079763 | J28: 0 | K28: 2151.079763 | M28: 2151.079763
B29: Break foundation slabs | D29: m2 | F29: =NA() ->  | G29: =IF(ISNA(F29),0,INDEX(IF(UPPER(RIGHT(F29,1))=Low,UnitCostLow, IF(UPPER(RIGHT(F29,1))=High,UnitCostHigh,UnitCostSpecified)),MATCH(UPPER(LEFT(F29,LEN(F29)-1)),CostCode,0))) -> 0 | H29: =G29*E29 -> 0 | J29: =H29*I29 -> 0 | K29: =+H29*(1-I29) -> 0
B30: Consolidate & dump boneyard debris | D30: m3 | F30: =NA() ->  | G30: 0 | H30: 0 | J30: 0 | K30: 0
B31: Other | C31: Remove Buildings - WIR Service/Emergency Camps, total of 3 1-ha area for 3 camps; assume all structures will be sprung structures. | D31: LS | E31: 3 | F31: Sabina | G31: =Unit_Costs!F183 -> 82933.78995 | H31: 248801.3699 | J31: 0 | K31: 248801.3699 | M31: =H31 -> 248801.3699
B32: LANDFILL FOR DEMOLITION WASTE
B33: Place rock cover | D33: m3 | E33: ='SBB Comp. Est.'!F59 -> 25000 | F33: RR3L | G33: 8.612193057 | H33: =G33*E33 -> 215304.8264 | J33: =H33*I33 -> 0 | K33: =+H33*(1-I33) -> 215304.8264 | M33: =H33/2 -> 107652.4132 | S33: =$H$33/2 -> 107652.4132
B34: Place soil cover | D34: m3 | F34: =NA() ->  | G34: =IF(ISNA(F34),0,INDEX(IF(UPPER(RIGHT(F34,1))=Low,UnitCostLow, IF(UPPER(RIGHT(F34,1))=High,UnitCostHigh,UnitCostSpecified)),MATCH(UPPER(LEFT(F34,LEN(F34)-1)),CostCode,0))) -> 0 | H34: =G34*E34 -> 0 | J34: 0 | K34: =+H34*(1-I34) -> 0
B35: Vegetate | D35: ha | F35: =NA() ->  | G35: =IF(ISNA(F35),0,INDEX(IF(UPPER(RIGHT(F35,1))=Low,UnitCostLow, IF(UPPER(RIGHT(F35,1))=High,UnitCostHigh,UnitCostSpecified)),MATCH(UPPER(LEFT(F35,LEN(F35)-1)),CostCode,0))) -> 0 | H35: =G35*E35 -> 0 | J35: 0 | K35: 0
B36: GRADE AND CONTOUR PADS
B37: Accommodation Complex | C37: Goose Admin: Kitchen/camp. no concrete foundation | D37: ha | E37: =ROUNDUP(E9/10000,1) -> 0.2 | F37: SCFYL | G37: =IF(ISNA(F37),0,INDEX(IF(UPPER(RIGHT(F37,1))=Low,UnitCostLow, IF(UPPER(RIGHT(F37,1))=High,UnitCostHigh,UnitCostSpecified)),MATCH(UPPER(LEFT(F37,LEN(F37)-1)),CostCode,0))) -> 5290.347163 | H37: =G37*E37 -> 1058.069433 | J37: 0 | K37: 1058.069433 | M37: =H37 -> 1058.069433
B38: Process Facilities | C38: concrete foundation demolished to ground level | D38: m2 | E38: =E10 -> 6464 | F38: BRCS | G38: 7.381879763 | H38: 47716.47079 | J38: 0 | K38: 47716.47079 | M38: 47716.47079
B39: Crusher | C39: concrete foundation demolished to ground level | D39: m2 | E39: 1630 | F39: BRCS | G39: 7.381879763 | H39: 12032.46401 | J39: 0 | K39: 12032.46401 | M39: 12032.46401
B40: Power plant | C40: no concrete foundation | D40: ha | E40: =ROUNDUP(E12/10000,1) -> 0.3 | F40: SCFYL | G40: 5290.347163 | H40: 1587.104149 | J40: 0 | K40: 1587.104149 | M40: 1587.104149
B41: Emergency power plant | C41: no concrete foundation | D41: ha | E41: =ROUNDUP(E13/10000,1) -> 0.1 | F41: SCFYL | G41: 5290.347163 | H41: 529.0347163 | J41: 0 | K41: 529.0347163 | M41: 529.0347163
B42: Truck Shop/Office | C42: concrete foundation demolished to ground level | D42: m2 | E42: 2349.45 | F42: BRCS | G42: =IF(ISNA(F42),0,INDEX(IF(UPPER(RIGHT(F42,1))=Low,UnitCostLow, IF(UPPER(RIGHT(F42,1))=High,UnitCostHigh,UnitCostSpecified)),MATCH(UPPER(LEFT(F42,LEN(F42)-1)),CostCode,0))) -> 7.381879763 | H42: =G42*E42 -> 17343.35741 | J42: =H42*I42 -> 0 | K42: =+H42*(1-I42) -> 17343.35741 | M42: 17343.35741
B43: Cold storage | C43: no concrete foundation | D43: ha | E43: =ROUNDUP(E15/10000,1) -> 0.1 | F43: SCFYL | G43: 5290.347163 | H43: 529.0347163 | J43: 0 | K43: 529.0347163 | M43: 529.0347163
B44: Water and Wastewater Treatment Facilities | C44: no concrete foundation | D44: ha | E44: =ROUNDUP(E18/10000,1) -> 0.1 | F44: SCFYL | G44: 5290.347163 | H44: 529.0347163 | J44: 0 | K44: 529.0347163 | S44: =H44 -> 529.0347163
B45: Sewage Treatment Plant | C45: no concrete foundation | D45: m2 | E45: =ROUNDUP(13.7*2.4,0) -> 33 | F45: BRCS | G45: =IF(ISNA(F45),0,INDEX(IF(UPPER(RIGHT(F45,1))=Low,UnitCostLow, IF(UPPER(RIGHT(F45,1))=High,UnitCostHigh,UnitCostSpecified)),MATCH(UPPER(LEFT(F45,LEN(F45)-1)),CostCode,0))) -> 7.381879763 | H45: =G45*E45 -> 243.6020322 | J45: =H45*I45 -> 0 | K45: =+H45*(1-I45) -> 243.6020322 | M45: 243.6020322
B46: Fuel Tanks | C46: Fuel storage and distribution Goose facility; no concrete foundation | D46: ha | E46: 2.2 | F46: SCFYL | G46: 5290.347163 | H46: 11638.76376 | J46: 0 | K46: 11638.76376 | M46: 11638.76376
B47: Warehouse, Shops and Other | C47: MLA, includes all storage/laydown pads, Fuel Tank areas, airstrip, shoreline pads, and camp area | D47: ha | E47: 20 | F47: SCFYL | G47: 5290.347163 | H47: 105806.9433 | J47: 0 | K47: 105806.9433 | M47: 105806.9433
B48: Place rock cover | D48: m3 | F48: =NA() ->  | G48: 0 | H48: 0 | J48: 0 | K48: 0
B49: Vegetate | D49: ha | F49: =NA() ->  | G49: 0 | H49: 0 | J49: 0 | K49: 0
B50: PUNCTURE LINED SUMPS
B51: Puncture liner and place soil cover | D51: m3 | F51: =NA() ->  | G51: =IF(ISNA(F51),0,INDEX(IF(UPPER(RIGHT(F51,1))=Low,UnitCostLow, IF(UPPER(RIGHT(F51,1))=High,UnitCostHigh,UnitCostSpecified)),MATCH(UPPER(LEFT(F51,LEN(F51)-1)),CostCode,0))) -> 0 | H51: =G51*E51 -> 0 | J51: =H51*I51 -> 0 | K51: =+H51*(1-I51) -> 0
B52: RECLAIM ROADS
B53: Restore drainage, remove culverts haul road | C53: Restore drainage including culverts at Goose Property; no culverts at MLA. Roads will remain intact to facilitate long-term access. | D53: m3 | E53: ='SBB Comp. Est.'!F122 -> 1488 | F53: Sabina | G53: ='SBB Comp. Est.'!X122 -> 12.74561404 | H53: =G53*E53 -> 18965.47368 | J53: 0 | K53: 18965.47368 | M53: =H53 -> 18965.47368
B54: Remove bridges | D54: each | F54: =NA() ->  | G54: =IF(ISNA(F54),0,INDEX(IF(UPPER(RIGHT(F54,1))=Low,UnitCostLow, IF(UPPER(RIGHT(F54,1))=High,UnitCostHigh,UnitCostSpecified)),MATCH(UPPER(LEFT(F54,LEN(F54)-1)),CostCode,0))) -> 0 | H54: 0 | J54: 0 | K54: 0
B55: Scarify and install water breaks | D55: ha | F55: =NA() ->  | G55: 0 | H55: 0 | J55: 0 | K55: 0
B56: Restore drainage airstrip | C56: Accounts for Goose 6,000ft by 200ft airstrip dimensions | D56: m3 | E56: ='SBB Comp. Est.'!F125 -> 1360 | F56: Sabina | G56: ='SBB Comp. Est.'!X125 -> 13.90430622 | H56: 18909.85646 | J56: 0 | K56: 18909.85646 | M56: =H56 -> 18909.85646
B57: Scarify airstrip area | C57: Accounts for Goose 6,000ft by 200ft airstrip (1,829 m x 61 m = 11.2 ha) | D57: ha | E57: 11.2 | F57: SCFYL | G57: 5290.347163 | H57: 59251.88823 | J57: 0 | K57: 59251.88823 | M57: 59251.88823
B58: Scarify Winter Ice Roads & WIR Camps | C58: Fill sections on land - 15 km x 10 m wide = 15.0 ha; plus 3 ha for WIR Service/Emergency Camps (1 ha/camp x 3) | D58: ha | E58: =8+7+3 -> 18 | F58: SCFYH | G58: =IF(ISNA(F58),0,INDEX(IF(UPPER(RIGHT(F58,1))=Low,UnitCostLow, IF(UPPER(RIGHT(F58,1))=High,UnitCostHigh,UnitCostSpecified)),MATCH(UPPER(LEFT(F58,LEN(F58)-1)),CostCode,0))) -> 7418.789162 | H58: =G58*E58 -> 133538.2049 | J58: =H58*I58 -> 0 | K58: =+H58*(1-I58) -> 133538.2049 | M58: 133538.2049
B59: Vegetate - Subbase & WIR Camps | C59: Potential vegetation of roads to include 18 ha of scarified subbase and camps, plus a nominal area of 3 ha for spill or other road remediation area. | D59: ha | E59: =11+7+3 -> 21 | F59: VHFL | G59: 4921.253175 | H59: 103346.3167 | J59: =H59*I59 -> 0 | K59: 103346.3167 | M59: 103346.3167
B60: Other | F60: =NA() ->  | G60: 0 | H60: 0 | J60: =H60*I60 -> 0 | K60: 0
B61: SPECIALIZED ITEMS
B62: Dispose of misc. debris and laydown area refuse | F62: =NA() ->  | G62: =IF(ISNA(F62),0,INDEX(IF(UPPER(RIGHT(F62,1))=Low,UnitCostLow, IF(UPPER(RIGHT(F62,1))=High,UnitCostHigh,UnitCostSpecified)),MATCH(UPPER(LEFT(F62,LEN(F62)-1)),CostCode,0))) -> 0 | H62: =G62*E62 -> 0 | J62: =H62*I62 -> 0 | K62: 0
G63: Total | H63: =SUM(H5:H62)+0.0001 -> 2952159.785 | J63: =SUM(J5:J62) -> 0 | K63: =SUM(K5:K62) -> 2952159.785 | M63: =SUM(M4:M62) -> 2784983.922 | N63: =SUM(N4:N62) -> 0 | O63: 8955.142887 | P63: 0 | Q63: 0 | R63: 0 | S63: 135046.8766 | T63: 23173.8437 | U63: 0 | V63: 0 | W63: 0 | X63: 0 | Y63: =SUM(M63:X63) -> 2952159.785
G64: % of Total | J64: =J63/H63 -> 0 | K64: =K63/H63 -> 1
B68: Note: Unit costs are based on 3m high, single story building. Scale larger building areas accordingly. E.g. 10m high building multiply area by 3.3 (10/3)

Sheet Chemicals
A1: 1 | B1: Chemicals/Soil Area Name:
M2: Approximate Timing as proposed in 2020 Modification Package
B3: Note: The procedures, equipment and packaging for clean up and removal of chemicals or contaminated soils are highly dependent on the nature of the chemicals and their existing state of containment. Government guidelines should be consulted on an individual chemical basis. Any estimate made here should be considered very rough unless specific evaluations have been conducted. | M3: =Summary!K8 -> Y-2 | N3: =Summary!L8 -> Y-1 | O3: =Summary!M8 -> Y-1 | P3: =Summary!N8 -> NA | Q3: =Summary!O8 -> NA | R3: =Summary!P8 -> Y2Q4 | S3: =Summary!Q8 -> Y5Q1 | T3: =Summary!R8 -> Y-1 | U3: =Summary!S8 -> Y6Q2 | V3: =Summary!T8 -> Y10Q2 | W3: =Summary!U8 -> Y10Q3 | X3: =Summary!V8 -> Y1
B4: ACTIVITY/MATERIAL | C4: Notes | D4: Units | E4: Quantity | F4: Cost Code | G4: Unit Cost | H4: Cost | I4: % Land | J4: Land Cost | K4: Total Cost | M4: Initial Infrastructure | N4: Umwelt UG | O4: Umwelt OP | P4: TSF - Dam Construction | Q4: TSF - Use | R4: Llama OP | S4: Goose Main OP | T4: Echo OP | U4: Llama UG | V4: Goose Main UG | W4: Echo UG | X4: Mill Startup Long Term Water Treatment (LTWT)
B5: HAZARDOUS MATERIALS AUDIT
B6: Hazardous materials audit | D6: mandays | F6: =NA() ->  | G6: =IF(ISNA(F6),0,INDEX(IF(UPPER(RIGHT(F6,1))=Low,UnitCostLow, IF(UPPER(RIGHT(F6,1))=High,UnitCostHigh,UnitCostSpecified)),MATCH(UPPER(LEFT(F6,LEN(F6)-1)),CostCode,0))) -> 0 | H6: =G6*E6 -> 0 | J6: =H6*I6 -> 0 | K6: =+H6*(1-I6) -> 0
B7: Phase 1 audit | D7: each | E7: 1 | F7: CS1L | G7: =IF(ISNA(F7),0,INDEX(IF(UPPER(RIGHT(F7,1))=Low,UnitCostLow, IF(UPPER(RIGHT(F7,1))=High,UnitCostHigh,UnitCostSpecified)),MATCH(UPPER(LEFT(F7,LEN(F7)-1)),CostCode,0))) -> 9227.349704 | H7: =G7*E7 -> 9227.349704 | J7: =H7*I7 -> 0 | K7: =+H7*(1-I7) -> 9227.349704 | M7: =$K$7/9 -> 1025.261078 | N7: =$K$7/9 -> 1025.261078 | O7: =$K$7/9 -> 1025.261078 | R7: =$K$7/9 -> 1025.261078 | S7: 1025.261078 | T7: 1025.261078 | U7: 1025.261078 | V7: 1025.261078 | W7: 1025.261078
B8: Phase 2 audit | D8: each | E8: 1 | F8: CS2L | G8: =IF(ISNA(F8),0,INDEX(IF(UPPER(RIGHT(F8,1))=Low,UnitCostLow, IF(UPPER(RIGHT(F8,1))=High,UnitCostHigh,UnitCostSpecified)),MATCH(UPPER(LEFT(F8,LEN(F8)-1)),CostCode,0))) -> 61515.66469 | H8: 61515.66469 | J8: 0 | K8: 61515.66469 | M8: =$K$8/9 -> 6835.073855 | N8: =$K$8/9 -> 6835.073855 | O8: =$K$8/9 -> 6835.073855 | R8: =$K$8/9 -> 6835.073855 | S8: 6835.073855 | T8: 6835.073855 | U8: 6835.073855 | V8: 6835.073855 | W8: 6835.073855
B9: BUILDING DECONTAMINATION & CONSOLIDATION OF HAZARDOUS MATERIALS
B10: Environmental technician/coordinator | D10: mandays | F10: =NA() ->  | G10: =IF(ISNA(F10),0,INDEX(IF(UPPER(RIGHT(F10,1))=Low,UnitCostLow, IF(UPPER(RIGHT(F10,1))=High,UnitCostHigh,UnitCostSpecified)),MATCH(UPPER(LEFT(F10,LEN(F10)-1)),CostCode,0))) -> 0 | H10: =G10*E10 -> 0 | J10: =H10*I10 -> 0 | K10: =+H10*(1-I10) -> 0
B11: Decontaminate: oil, fuel | D11: mandays | F11: =NA() ->  | G11: =IF(ISNA(F11),0,INDEX(IF(UPPER(RIGHT(F11,1))=Low,UnitCostLow, IF(UPPER(RIGHT(F11,1))=High,UnitCostHigh,UnitCostSpecified)),MATCH(UPPER(LEFT(F11,LEN(F11)-1)),CostCode,0))) -> 0 | H11: 0 | J11: 0 | K11: 0
B12: Decontaminate maintenance shop | D12: mandays | F12: =NA() ->  | G12: =IF(ISNA(F12),0,INDEX(IF(UPPER(RIGHT(F12,1))=Low,UnitCostLow, IF(UPPER(RIGHT(F12,1))=High,UnitCostHigh,UnitCostSpecified)),MATCH(UPPER(LEFT(F12,LEN(F12)-1)),CostCode,0))) -> 0 | H12: 0 | J12: 0 | K12: 0
B13: Decontaminate power plant | D13: mandays | F13: =NA() ->  | G13: 0 | H13: 0 | J13: 0 | K13: 0
B14: Decontaminate bulk fuel storage | D14: mandays | F14: =NA() ->  | G14: 0 | H14: 0 | J14: 0 | K14: 0
B15: Decontaminate ANFO plant | D15: mandays | F15: =NA() ->  | G15: 0 | H15: 0 | J15: 0 | K15: 0
B16: Decontaminate offices/warehouse/accom | D16: mandays | F16: =NA() ->  | G16: 0 | H16: 0 | J16: 0 | K16: 0
B17: Removal of asbestos siding on buildings | D17: m2 | F17: =NA() ->  | G17: 0 | H17: 0 | J17: 0 | K17: 0
B18: Removal of friable asbestos on equipment | D18: m2 | F18: =NA() ->  | G18: 0 | H18: 0 | J18: 0 | K18: 0
B19: Other | F19: =NA() ->  | G19: 0 | H19: 0 | J19: 0 | K19: 0
B20: HAZARDOUS MATERIALS REMOVAL
B21: Waste oils | C21: Consume in a waste oil burner on-site | D21: litre | E21: 10000 | F21: ORL | G21: =IF(ISNA(F21),0,INDEX(IF(UPPER(RIGHT(F21,1))=Low,UnitCostLow, IF(UPPER(RIGHT(F21,1))=High,UnitCostHigh,UnitCostSpecified)),MATCH(UPPER(LEFT(F21,LEN(F21)-1)),CostCode,0))) -> 0.5290347163 | H21: =G21*E21 -> 5290.347163 | J21: =H21*I21 -> 0 | K21: =+H21*(1-I21) -> 5290.347163 | M21: =$K$21/9 -> 587.8163515 | N21: =$K$21/9 -> 587.8163515 | O21: =$K$21/9 -> 587.8163515 | R21: =$K$21/9 -> 587.8163515 | S21: 587.8163515 | T21: 587.8163515 | U21: 587.8163515 | V21: 587.8163515 | W21: 587.8163515
B22: Waste fuel | C22: Consume on-site to power an incinerator, or in a waste oil burner | D22: litre | E22: 250000 | F22: ORL | G22: 0.5290347163 | H22: 132258.6791 | J22: 0 | K22: 132258.6791 | M22: =$K$22/9 -> 14695.40879 | N22: =$K$22/9 -> 14695.40879 | O22: =$K$22/9 -> 14695.40879 | R22: =$K$22/9 -> 14695.40879 | S22: 14695.40879 | T22: 14695.40879 | U22: 14695.40879 | V22: 14695.40879 | W22: 14695.40879
B23: Waste batteries | C23: Assumed 10 20-kg batteries generated in the final year of closure | D23: kg | E23: 200 | F23: PCRH | G23: 3.075783235 | H23: 615.1566469 | J23: 0 | K23: 615.1566469 | M23: =$K$23/9 -> 68.35073855 | N23: =$K$23/9 -> 68.35073855 | O23: =$K$23/9 -> 68.35073855 | R23: =$K$23/9 -> 68.35073855 | S23: 68.35073855 | T23: 68.35073855 | U23: 68.35073855 | V23: 68.35073855 | W23: 68.35073855
B24: Assay & environmental lab reagents | D24: kg | E24: 500 | F24: PCRH | G24: 3.075783235 | H24: 1537.891617 | J24: 0 | K24: 1537.891617 | M24: =$K$24/9 -> 170.8768464 | N24: =$K$24/9 -> 170.8768464 | O24: =$K$24/9 -> 170.8768464 | R24: =$K$24/9 -> 170.8768464 | S24: 170.8768464 | T24: 170.8768464 | U24: 170.8768464 | V24: 170.8768464 | W24: 170.8768464
B25: Machine shop paints, solvents etc. | D25: litre | E25: 200 | F25: PCRH | G25: 3.075783235 | H25: 615.1566469 | J25: 0 | K25: 615.1566469 | M25: =K25 -> 615.1566469
B26: Glycol | D26: litre | E26: 5000 | F26: PCRH | G26: 3.075783235 | H26: 15378.91617 | J26: =H26*I26 -> 0 | K26: =+H26*(1-I26) -> 15378.91617 | M26: =$K$26/9 -> 1708.768464 | N26: =$K$26/9 -> 1708.768464 | O26: =$K$26/9 -> 1708.768464 | R26: =$K$26/9 -> 1708.768464 | S26: 1708.768464 | T26: 1708.768464 | U26: 1708.768464 | V26: 1708.768464 | W26: 1708.768464
B27: Process reagents | D27: kg | E27: 130000 | F27: PCRH | G27: =IF(ISNA(F27),0,INDEX(IF(UPPER(RIGHT(F27,1))=Low,UnitCostLow, IF(UPPER(RIGHT(F27,1))=High,UnitCostHigh,UnitCostSpecified)),MATCH(UPPER(LEFT(F27,LEN(F27)-1)),CostCode,0))) -> 3.075783235 | H27: =G27*E27 -> 399851.8205 | J27: =H27*I27 -> 0 | K27: =+H27*(1-I27) -> 399851.8205 | M27: =K27 -> 399851.8205
B28: WTP sludge from Water Treatment | C28: All sludge created and disposed during Operations. Conitngency 3 years of sludge disposal included (9,000 kg over 3 seasons). | D28: kg | E28: =3000*3 -> 9000 | F28: PCRH | G28: =IF(ISNA(F28),0,INDEX(IF(UPPER(RIGHT(F28,1))=Low,UnitCostLow, IF(UPPER(RIGHT(F28,1))=High,UnitCostHigh,UnitCostSpecified)),MATCH(UPPER(LEFT(F28,LEN(F28)-1)),CostCode,0))) -> 3.075783235 | H28: =G28*E28 -> 27682.04911 | J28: =H28*I28 -> 0 | K28: =+H28*(1-I28) -> 27682.04911 | S28: =K28 -> 27682.04911
B29: Nuclear sources | D29: allow | F29: =NA() ->  | G29: =IF(ISNA(F29),0,INDEX(IF(UPPER(RIGHT(F29,1))=Low,UnitCostLow, IF(UPPER(RIGHT(F29,1))=High,UnitCostHigh,UnitCostSpecified)),MATCH(UPPER(LEFT(F29,LEN(F29)-1)),CostCode,0))) -> 0 | H29: 0 | J29: =H29*I29 -> 0 | K29: =+H29*(1-I29) -> 0
B30: Mobile Equipment | C30: Remove hazardous waste from equipment not being salvaged, clean, landfill equipment | D30: each | E30: ='SBB Comp. Est.'!F22 -> 41 | F30: Sabina | G30: ='SBB Comp. Est.'!X22 -> 2641.818182 | H30: =G30*E30 -> 108314.5455 | J30: =H30*I30 -> 0 | K30: =+H30*(1-I30) -> 108314.5455 | M30: =$K$30/9 -> 12034.94949 | N30: =$K$30/9 -> 12034.94949 | O30: =$K$30/9 -> 12034.94949 | R30: =$K$30/9 -> 12034.94949 | S30: 12034.94949 | T30: 12034.94949 | U30: 12034.94949 | V30: 12034.94949 | W30: 12034.94949
B31: HAZARDOUS MATERIALS
B32: Transportation to disposal facility | C32: Included in hazardous materials removal cost | D32: allow | F32: =NA() ->  | G32: =IF(ISNA(F32),0,INDEX(IF(UPPER(RIGHT(F32,1))=Low,UnitCostLow, IF(UPPER(RIGHT(F32,1))=High,UnitCostHigh,UnitCostSpecified)),MATCH(UPPER(LEFT(F32,LEN(F32)-1)),CostCode,0))) -> 0 | H32: =G32*E32 -> 0 | J32: =H32*I32 -> 0 | K32: =+H32*(1-I32) -> 0
B33: Disposal fees | C33: Included in hazardous materials removal cost | D33: allow | F33: =NA() ->  | G33: =IF(ISNA(F33),0,INDEX(IF(UPPER(RIGHT(F33,1))=Low,UnitCostLow, IF(UPPER(RIGHT(F33,1))=High,UnitCostHigh,UnitCostSpecified)),MATCH(UPPER(LEFT(F33,LEN(F33)-1)),CostCode,0))) -> 0 | H33: =G33*E33 -> 0 | J33: =H33*I33 -> 0 | K33: =+H33*(1-I33) -> 0
B34: Other | F34: =NA() ->  | G34: =IF(ISNA(F34),0,INDEX(IF(UPPER(RIGHT(F34,1))=Low,UnitCostLow, IF(UPPER(RIGHT(F34,1))=High,UnitCostHigh,UnitCostSpecified)),MATCH(UPPER(LEFT(F34,LEN(F34)-1)),CostCode,0))) -> 0 | H34: =G34*E34 -> 0 | J34: =H34*I34 -> 0 | K34: =+H34*(1-I34) -> 0
B35: CONTAMINATED SOILS
B36: Contam. soil investigation - Phase 1 | D36: LS | E36: 1 | F36: Sabina | G36: =Unit_Costs!F184 -> 8690.191388 | H36: =G36*E36 -> 8690.191388 | J36: =H36*I36 -> 0 | K36: =+H36*(1-I36) -> 8690.191388 | M36: =$K$36/9 -> 965.5768208 | N36: =$K$36/9 -> 965.5768208 | O36: =$K$36/9 -> 965.5768208 | R36: =$K$36/9 -> 965.5768208 | S36: 965.5768208 | T36: 965.5768208 | U36: 965.5768208 | V36: 965.5768208 | W36: 965.5768208
B37: Contam. soil investigation - Phase 2 | D37: LS | E37: 1 | F37: Sabina | G37: ='SBB Comp. Est.'!X136 -> 57934.60925 | H37: 57934.60925 | J37: 0 | K37: 57934.60925 | M37: =$K$37/9 -> 6437.178806 | N37: =$K$37/9 -> 6437.178806 | O37: =$K$37/9 -> 6437.178806 | R37: =$K$37/9 -> 6437.178806 | S37: 6437.178806 | T37: 6437.178806 | U37: 6437.178806 | V37: 6437.178806 | W37: 6437.178806
B38: CONTAMINATED SOIL REMOVAL
B39: Excavate and transport to onsite facility | D39: m3 | E39: ='SBB Comp. Est.'!F138 -> 10000 | F39: SB1H | G39: =IF(ISNA(F39),0,INDEX(IF(UPPER(RIGHT(F39,1))=Low,UnitCostLow, IF(UPPER(RIGHT(F39,1))=High,UnitCostHigh,UnitCostSpecified)),MATCH(UPPER(LEFT(F39,LEN(F39)-1)),CostCode,0))) -> 7.258848434 | H39: =G39*E39 -> 72588.48434 | J39: =H39*I39 -> 0 | K39: =+H39*(1-I39) -> 72588.48434 | M39: =$K$39/9 -> 8065.387148 | N39: =$K$39/9 -> 8065.387148 | O39: =$K$39/9 -> 8065.387148 | R39: =$K$39/9 -> 8065.387148 | S39: 8065.387148 | T39: 8065.387148 | U39: 8065.387148 | V39: 8065.387148 | W39: 8065.387148
B40: Manage hydrocarbon remediation at facility | D40: m3 | E40: 10000 | F40: CSRL | G40: =IF(ISNA(F40),0,INDEX(IF(UPPER(RIGHT(F40,1))=Low,UnitCostLow, IF(UPPER(RIGHT(F40,1))=High,UnitCostHigh,UnitCostSpecified)),MATCH(UPPER(LEFT(F40,LEN(F40)-1)),CostCode,0))) -> 57.82472481 | H40: 578247.2481 | J40: 0 | K40: 578247.2481 | M40: =$K$40/9 -> 64249.69423 | N40: =$K$40/9 -> 64249.69423 | O40: =$K$40/9 -> 64249.69423 | R40: =$K$40/9 -> 64249.69423 | S40: 64249.69423 | T40: 64249.69423 | U40: 64249.69423 | V40: 64249.69423 | W40: 64249.69423
B41: Reagents/stabilizing agent | D41: m2 | F41: =NA() ->  | G41: =IF(ISNA(F41),0,INDEX(IF(UPPER(RIGHT(F41,1))=Low,UnitCostLow, IF(UPPER(RIGHT(F41,1))=High,UnitCostHigh,UnitCostSpecified)),MATCH(UPPER(LEFT(F41,LEN(F41)-1)),CostCode,0))) -> 0 | H41: =G41*E41 -> 0 | J41: =H41*I41 -> 0 | K41: =+H41*(1-I41) -> 0
B42: Excavate and transport to offsite facility | D42: m3 | F42: =NA() ->  | G42: =IF(ISNA(F42),0,INDEX(IF(UPPER(RIGHT(F42,1))=Low,UnitCostLow, IF(UPPER(RIGHT(F42,1))=High,UnitCostHigh,UnitCostSpecified)),MATCH(UPPER(LEFT(F42,LEN(F42)-1)),CostCode,0))) -> 0 | H42: 0 | J42: 0 | K42: 0
B43: Contour decontaminated area | C43: Decommission 2 landfarms and confirmation soil sampling; estimated 6,000m3 at each of Goose and MLA sites. | D43: m3 | E43: 12000 | F43: SB1L | G43: =IF(ISNA(F43),0,INDEX(IF(UPPER(RIGHT(F43,1))=Low,UnitCostLow, IF(UPPER(RIGHT(F43,1))=High,UnitCostHigh,UnitCostSpecified)),MATCH(UPPER(LEFT(F43,LEN(F43)-1)),CostCode,0))) -> 5.290347163 | H43: 63484.16596 | J43: =H43*I43 -> 0 | K43: =+H43*(1-I43) -> 63484.16596 | M43: =K43 -> 63484.16596
B44: CONTAMINATED SOIL VERY LOW PERMEABILITY COVER
B45: Supply geomembrane, HDPE, ES3, GCL | D45: m2 | F45: =NA() ->  | G45: =IF(ISNA(F45),0,INDEX(IF(UPPER(RIGHT(F45,1))=Low,UnitCostLow, IF(UPPER(RIGHT(F45,1))=High,UnitCostHigh,UnitCostSpecified)),MATCH(UPPER(LEFT(F45,LEN(F45)-1)),CostCode,0))) -> 0 | H45: =G45*E45 -> 0 | J45: =H45*I45 -> 0 | K45: =+H45*(1-I45) -> 0
B46: Upper and lower bedding layers | D46: m3 | F46: =NA() ->  | G46: 0 | H46: 0 | J46: 0 | K46: 0
B47: Install geomembrane, HDPE, ES3, GCL | D47: m2 | F47: =NA() ->  | G47: 0 | H47: 0 | J47: 0 | K47: 0
B48: Erosion protection layer | D48: m3 | F48: =NA() ->  | G48: 0 | H48: 0 | J48: 0 | K48: 0
B49: Vegetate | D49: m2 | F49: =NA() ->  | G49: 0 | H49: 0 | J49: 0 | K49: 0
B50: Install infiltration/seepage instrumentation | D50: allow | F50: =NA() ->  | G50: 0 | H50: 0 | J50: =H50*I50 -> 0 | K50: =+H50*(1-I50) -> 0
B51: Other | C51: Operate 2 landfarms: 1 at Goose, 1 at MLA | D51: allow | E51: 2 | F51: Sabina | G51: =Unit_Costs!F185 -> 57934.60925 | H51: 115869.2185 | J51: =H51*I51 -> 0 | K51: =+H51*(1-I51) -> 115869.2185 | M51: =K51 -> 115869.2185
B52: OTHER
F53: =NA() ->  | G53: =IF(ISNA(F53),0,INDEX(IF(UPPER(RIGHT(F53,1))=Low,UnitCostLow, IF(UPPER(RIGHT(F53,1))=High,UnitCostHigh,UnitCostSpecified)),MATCH(UPPER(LEFT(F53,LEN(F53)-1)),CostCode,0))) -> 0 | H53: =G53*E53 -> 0 | J53: =H53*I53 -> 0 | K53: =+H53*(1-I53) -> 0
G54: Total | H54: =SUM(H6:H53)+0.0001 -> 1659101.494 | J54: =SUM(J6:J53) -> 0 | K54: =SUM(K6:K53) -> 1659101.494 | M54: =SUM(M5:M53) -> 696664.7042 | N54: =SUM(N5:N53) -> 116844.3426 | O54: 116844.3426 | P54: 0 | Q54: 0 | R54: 116844.3426 | S54: 144526.3917 | T54: 116844.3426 | U54: 116844.3426 | V54: 116844.3426 | W54: 116844.3426 | X54: 0 | Y54: =SUM(M54:X54) -> 1659101.494
G55: % of Total | J55: =J54/H54 -> 0 | K55: =K54/H54 -> 0.9999999999

Sheet Water Management
A1: 1 | B1: Water Management | J1: Approximate Timing as proposed in 2020 Modification Package
J2: =Summary!K8 -> Y-2 | K2: =Summary!L8 -> Y-1 | L2: =Summary!M8 -> Y-1 | M2: =Summary!N8 -> NA | N2: =Summary!O8 -> NA | O2: =Summary!P8 -> Y2Q4 | P2: =Summary!Q8 -> Y5Q1 | Q2: =Summary!R8 -> Y-1 | R2: =Summary!S8 -> Y6Q2 | S2: =Summary!T8 -> Y10Q2 | T2: =Summary!U8 -> Y10Q3 | U2: =Summary!V8 -> Y1
B3: ACTIVITY/MATERIAL | C3: Notes | D3: Units | E3: Quantity | F3: Cost Code | G3: Unit Cost | H3: Total Cost | J3: Initial Infrastructure | K3: Umwelt UG | L3: Umwelt OP | M3: TSF - Dam Construction | N3: TSF - Use | O3: Llama OP | P3: Goose Main OP | Q3: Echo OP | R3: Llama UG | S3: Goose Main UG | T3: Echo UG | U3: Mill Startup Long Term Water Treatment (LTWT)
B4: BREACH DYKE EMBANKMENT
B5: Breach Llama Lake Diversion Berms | C5: During closure. | D5: m3 | E5: ='SBB Comp. Est.'!F62 -> 665 | F5: =NA() ->  | G5: ='SBB Comp. Est.'!X62 -> 8.458452951 | H5: =G5*E5 -> 5624.871212 | O5: =$H5 -> 5624.871212
B6: Breach Llama WRSA Diversion Berm | C6: During closure. | D6: m3 | E6: ='SBB Comp. Est.'!F63 -> 95 | F6: =NA() ->  | G6: ='SBB Comp. Est.'!X63 -> 8.458452951 | H6: =G6*E6 -> 803.5530303 | O6: =$H6 -> 803.5530303
B7: Breach Llama WRSA Containment Dam | C7: During closure. | D7: m3 | E7: ='SBB Comp. Est.'!F64 -> 95 | F7: =NA() ->  | G7: ='SBB Comp. Est.'!X64 -> 8.458452951 | H7: 803.5530303 | O7: 803.5530303
B8: Breach Primary Pond Containment Dam | C8: During closure. | D8: m3 | E8: ='SBB Comp. Est.'!F67 -> 200 | F8: =NA() ->  | G8: ='SBB Comp. Est.'!X67 -> 8.458452951 | H8: =G8*E8 -> 1691.69059 | J8: =$H8 -> 1691.69059
B9: Breach Umwelt WRSA Containment Dam | C9: Dam has been removed from water management design | D9: m3 | E9: 0 | F9: =NA() ->  | G9: ='SBB Comp. Est.'!X68 -> 0 | H9: 0
B10: Breach Umwelt WRSA Diversion Berm | C10: Berm has been removed from water management design | D10: m3 | E10: 0 | F10: =NA() ->  | G10: ='SBB Comp. Est.'!X69 -> 0 | H10: 0
B11: Breach Echo WRSA Containment Dam | C11: Dam has been removed from water management design | D11: m3 | E11: 0 | F11: =NA() ->  | G11: ='SBB Comp. Est.'!X73 -> 8.458452951 | H11: 0 | Q11: =H11 -> 0
B12: Breach Echo Diversion Berm | C12: During closure. | D12: m3 | E12: ='SBB Comp. Est.'!F74 -> 190 | F12: =NA() ->  | G12: ='SBB Comp. Est.'!X74 -> 8.458452951 | H12: 1607.106061 | Q12: =H12 -> 1607.106061
B13: Breach Echo WRSA Diversion Berm | C13: Berm has been removed from water management design | D13: m3 | E13: 0 | F13: =NA() ->  | G13: ='SBB Comp. Est.'!X75 -> 8.458452951 | H13: 0 | Q13: =H13 -> 0
B14: Breach Echo/Goose Main Containment Dam | C14: During closure. | D14: m3 | E14: ='SBB Comp. Est.'!F76 -> 95 | F14: =NA() ->  | G14: ='SBB Comp. Est.'!X76 -> 8.458452951 | H14: 803.5530303 | Q14: =H14 -> 803.5530303
B15: Breach Goose Main Diversion Berm | C15: During closure. | D15: m3 | E15: ='SBB Comp. Est.'!F80 -> 95 | F15: =NA() ->  | G15: ='SBB Comp. Est.'!X80 -> 8.458452951 | H15: 803.5530303 | P15: =H15 -> 803.5530303
B16: Breach Plant Site Pond Containment Dam | C16: During closure. | D16: m3 | E16: ='SBB Comp. Est.'!F86 -> 215 | F16: =NA() ->  | G16: ='SBB Comp. Est.'!X86 -> 8.458452951 | H16: 1818.567384 | J16: =H16 -> 1818.567384
B17: Breach SWP Containment Dam | C17: During closure. | D17: m3 | E17: ='SBB Comp. Est.'!F33 -> 430 | F17: =NA() ->  | G17: ='SBB Comp. Est.'!X33 -> 9.26953748 | H17: 3985.901116 | K17: =$H17/4 -> 996.4752791 | R17: =$H17/4 -> 996.4752791 | S17: =$H17/4 -> 996.4752791 | T17: =$H17/4 -> 996.4752791
B18: Remove Liner from all berms | C18: Remove liner from all berms. | D18: m2 | E18: =30700 -> 30700 | F18: Sabina | G18: =Unit_Costs!F186 -> 0.8110845295 | H18: =G18*E18 -> 24900.29506 | J18: =$H18*0.5 -> 12450.14753 | P18: =$H18*0.5 -> 12450.14753
B19: Contour water intake area | D19: m3 | F19: =NA() ->  | G19: =IF(ISNA(F19),0,INDEX(IF(UPPER(RIGHT(F19,1))=Low,UnitCostLow, IF(UPPER(RIGHT(F19,1))=High,UnitCostHigh,UnitCostSpecified)),MATCH(UPPER(LEFT(F19,LEN(F19)-1)),CostCode,0))) -> 0 | H19: =G19*E19 -> 0
B20: STABILIZE SEDIMENT PONDS/WATER MANAGEMENT PONDS
B21: Place soil cover | D21: m3 | F21: =NA() ->  | G21: =IF(ISNA(F21),0,INDEX(IF(UPPER(RIGHT(F21,1))=Low,UnitCostLow, IF(UPPER(RIGHT(F21,1))=High,UnitCostHigh,UnitCostSpecified)),MATCH(UPPER(LEFT(F21,LEN(F21)-1)),CostCode,0))) -> 0 | H21: =G21*E21 -> 0
B22: Doze & spread excavated material | D22: m3 | F22: =NA() ->  | G22: =IF(ISNA(F22),0,INDEX(IF(UPPER(RIGHT(F22,1))=Low,UnitCostLow, IF(UPPER(RIGHT(F22,1))=High,UnitCostHigh,UnitCostSpecified)),MATCH(UPPER(LEFT(F22,LEN(F22)-1)),CostCode,0))) -> 0 | H22: =G22*E22 -> 0
B23: Vegetate spread material | D23: ha | F23: =NA() ->  | G23: =IF(ISNA(F23),0,INDEX(IF(UPPER(RIGHT(F23,1))=Low,UnitCostLow, IF(UPPER(RIGHT(F23,1))=High,UnitCostHigh,UnitCostSpecified)),MATCH(UPPER(LEFT(F23,LEN(F23)-1)),CostCode,0))) -> 0 | H23: =G23*E23 -> 0
B24: Rip rap in channel base | D24: each | F24: =NA() ->  | G24: =IF(ISNA(F24),0,INDEX(IF(UPPER(RIGHT(F24,1))=Low,UnitCostLow, IF(UPPER(RIGHT(F24,1))=High,UnitCostHigh,UnitCostSpecified)),MATCH(UPPER(LEFT(F24,LEN(F24)-1)),CostCode,0))) -> 0 | H24: =G24*E24 -> 0
B25: REDIRECT RUNOFF/CONSTRUCT DIVERSION DITCHES
B26: Excavate ditches -soil | D26: m3 | F26: =NA() ->  | G26: =IF(ISNA(F26),0,INDEX(IF(UPPER(RIGHT(F26,1))=Low,UnitCostLow, IF(UPPER(RIGHT(F26,1))=High,UnitCostHigh,UnitCostSpecified)),MATCH(UPPER(LEFT(F26,LEN(F26)-1)),CostCode,0))) -> 0 | H26: =G26*E26 -> 0
B27: Excavate ditches -rock | D27: m3 | F27: =NA() ->  | G27: =IF(ISNA(F27),0,INDEX(IF(UPPER(RIGHT(F27,1))=Low,UnitCostLow, IF(UPPER(RIGHT(F27,1))=High,UnitCostHigh,UnitCostSpecified)),MATCH(UPPER(LEFT(F27,LEN(F27)-1)),CostCode,0))) -> 0 | H27: =G27*E27 -> 0
B28: Stabilize side slopes | D28: m3 | F28: =NA() ->  | G28: =IF(ISNA(F28),0,INDEX(IF(UPPER(RIGHT(F28,1))=Low,UnitCostLow, IF(UPPER(RIGHT(F28,1))=High,UnitCostHigh,UnitCostSpecified)),MATCH(UPPER(LEFT(F28,LEN(F28)-1)),CostCode,0))) -> 0 | H28: =G28*E28 -> 0
B29: Rip rap in channel base | D29: m3 | F29: =NA() ->  | G29: =IF(ISNA(F29),0,INDEX(IF(UPPER(RIGHT(F29,1))=Low,UnitCostLow, IF(UPPER(RIGHT(F29,1))=High,UnitCostHigh,UnitCostSpecified)),MATCH(UPPER(LEFT(F29,LEN(F29)-1)),CostCode,0))) -> 0 | H29: =G29*E29 -> 0
B30: BREACH DITCHES
B31: Excavate breaches | D31: m3 | F31: =NA() ->  | G31: =IF(ISNA(F31),0,INDEX(IF(UPPER(RIGHT(F31,1))=Low,UnitCostLow, IF(UPPER(RIGHT(F31,1))=High,UnitCostHigh,UnitCostSpecified)),MATCH(UPPER(LEFT(F31,LEN(F31)-1)),CostCode,0))) -> 0 | H31: =G31*E31 -> 0
B32: Install flow dissipation | D32: m3 | F32: =NA() ->  | G32: =IF(ISNA(F32),0,INDEX(IF(UPPER(RIGHT(F32,1))=Low,UnitCostLow, IF(UPPER(RIGHT(F32,1))=High,UnitCostHigh,UnitCostSpecified)),MATCH(UPPER(LEFT(F32,LEN(F32)-1)),CostCode,0))) -> 0 | H32: =G32*E32 -> 0
B33: Vegetate remainder of ditch | D33: m2 | F33: =NA() ->  | G33: =IF(ISNA(F33),0,INDEX(IF(UPPER(RIGHT(F33,1))=Low,UnitCostLow, IF(UPPER(RIGHT(F33,1))=High,UnitCostHigh,UnitCostSpecified)),MATCH(UPPER(LEFT(F33,LEN(F33)-1)),CostCode,0))) -> 0 | H33: =G33*E33 -> 0
B34: DECOMISSION FRESH WATER SUPPLY
B35: Breach embankment | D35: m3 | F35: =NA() ->  | G35: =IF(ISNA(F35),0,INDEX(IF(UPPER(RIGHT(F35,1))=Low,UnitCostLow, IF(UPPER(RIGHT(F35,1))=High,UnitCostHigh,UnitCostSpecified)),MATCH(UPPER(LEFT(F35,LEN(F35)-1)),CostCode,0))) -> 0 | H35: =G35*E35 -> 0
B36: Remove pump | D36: LS | F36: =NA() ->  | G36: =IF(ISNA(F36),0,INDEX(IF(UPPER(RIGHT(F36,1))=Low,UnitCostLow, IF(UPPER(RIGHT(F36,1))=High,UnitCostHigh,UnitCostSpecified)),MATCH(UPPER(LEFT(F36,LEN(F36)-1)),CostCode,0))) -> 0 | H36: =G36*E36 -> 0
B37: Remove pipelines | D37: m | F37: =NA() ->  | G37: =IF(ISNA(F37),0,INDEX(IF(UPPER(RIGHT(F37,1))=Low,UnitCostLow, IF(UPPER(RIGHT(F37,1))=High,UnitCostHigh,UnitCostSpecified)),MATCH(UPPER(LEFT(F37,LEN(F37)-1)),CostCode,0))) -> 0 | H37: =G37*E37 -> 0
B38: DECOMISSION WATER RECLAIM BARGE
B39: Decommission reclaim barge from Llama TF | D39: LS | E39: 1 | F39: Sabina | G39: =Unit_Costs!F187 -> 11586.92185 | H39: =G39*E39 -> 11586.92185 | O39: =H39 -> 11586.92185
B40: WATER CONTROL IN RECLAMATION QUARRY
B41: Install pumping system | D41: LS | F41: =NA() ->  | G41: =IF(ISNA(F41),0,INDEX(IF(UPPER(RIGHT(F41,1))=Low,UnitCostLow, IF(UPPER(RIGHT(F41,1))=High,UnitCostHigh,UnitCostSpecified)),MATCH(UPPER(LEFT(F41,LEN(F41)-1)),CostCode,0))) -> 0 | H41: =G41*E41 -> 0
B42: Remove pumping system | D42: m | F42: =NA() ->  | G42: =IF(ISNA(F42),0,INDEX(IF(UPPER(RIGHT(F42,1))=Low,UnitCostLow, IF(UPPER(RIGHT(F42,1))=High,UnitCostHigh,UnitCostSpecified)),MATCH(UPPER(LEFT(F42,LEN(F42)-1)),CostCode,0))) -> 0 | H42: =G42*E42 -> 0
B43: REMOVE PIPELINES
B44: Decommission Llama pump and pipeline | D44: m | E44: ='SBB Comp. Est.'!F65 -> 700 | F44: Sabina | G44: ='SBB Comp. Est.'!X65 -> 21.51856915 | H44: =G44*E44 -> 15062.99841 | R44: =H44 -> 15062.99841
B45: Decommission WTP-Goose Lake pipeline | D45: m | E45: ='SBB Comp. Est.'!F34 -> 1140 | F45: Sabina | G45: ='SBB Comp. Est.'!X34 -> 11.58692185 | H45: =G45*E45 -> 13209.09091 | S45: =H45 -> 13209.09091
B46: Remove Saline Water Pond pump and pipeline | D46: m | E46: ='SBB Comp. Est.'!F70 -> 10800 | F46: Sabina | G46: ='SBB Comp. Est.'!X70 -> 12.3915692 | H46: =G46*E46 -> 133828.9474 | K46: =$H46/4 -> 33457.23684 | R46: =$H46/4 -> 33457.23684 | S46: =$H46/4 -> 33457.23684 | T46: =$H46/4 -> 33457.23684
B47: Remove Primary Pond pump and pipeline | D47: m | E47: ='SBB Comp. Est.'!F71 -> 7250 | F47: Sabina | G47: ='SBB Comp. Est.'!X71 -> 12.78556894 | H47: 92695.3748 | J47: =H47 -> 92695.3748
B48: Remove Echo WRSA Pond pump and pipeline | C48: Has been removed from water management design | D48: m | E48: 0 | F48: Sabina | G48: ='SBB Comp. Est.'!X77 -> 11.58692185 | H48: =G48*E48 -> 0 | Q48: =H48 -> 0
B49: Remove Echo NCW pond pump and pipeline | C49: Has been removed from water management design | D49: m | E49: 0 | F49: Sabina | G49: ='SBB Comp. Est.'!X78 -> 27.38726983 | H49: =G49*E49 -> 0 | Q49: =H49 -> 0
B50: Remove Plant Site Pond pump and pipeline | D50: m | E50: ='SBB Comp. Est.'!F85 -> 4550 | F50: Sabina | G50: ='SBB Comp. Est.'!X85 -> 11.58692185 | H50: 52720.49442 | J50: =H50 -> 52720.49442
B51: Decommission WTP pump and pipeline | D51: m | E51: ='SBB Comp. Est.'!F131+'SBB Comp. Est.'!F132 -> 7520 | F51: Sabina | G51: ='SBB Comp. Est.'!X131 -> 12.62455664 | H51: 94936.66595 | L51: =$H51*0.25 -> 23734.16649 | P51: =$H51*0.75 -> 71202.49946
B52: Decommission WTP | D52: LS | E52: 2 | F52: Sabina | G52: ='SBB Comp. Est.'!X133 -> 11297.2488 | H52: 22594.49761 | L52: =$H52*0.25 -> 5648.624402 | P52: =$H52*0.75 -> 16945.87321
B53: Concrete plug deep pipes | D53: m3 | F53: =NA() ->  | G53: =IF(ISNA(F53),0,INDEX(IF(UPPER(RIGHT(F53,1))=Low,UnitCostLow, IF(UPPER(RIGHT(F53,1))=High,UnitCostHigh,UnitCostSpecified)),MATCH(UPPER(LEFT(F53,LEN(F53)-1)),CostCode,0))) -> 0 | H53: =G53*E53 -> 0
B54: Other | F54: =NA() ->  | G54: =IF(ISNA(F54),0,INDEX(IF(UPPER(RIGHT(F54,1))=Low,UnitCostLow, IF(UPPER(RIGHT(F54,1))=High,UnitCostHigh,UnitCostSpecified)),MATCH(UPPER(LEFT(F54,LEN(F54)-1)),CostCode,0))) -> 0 | H54: =G54*E54 -> 0
B55: OPERATE WATER TREATMENT PLANT
B56: Pump from TSF to WTP | C56: No treatment required for early closure at end Year 4 (max PAG exposure). End Year 4 is transition from Echo TF to Umwelt TF. | D56: m3 | E56: 0 | F56: POCL | G56: =IF(ISNA(F56),0,INDEX(IF(UPPER(RIGHT(F56,1))=Low,UnitCostLow, IF(UPPER(RIGHT(F56,1))=High,UnitCostHigh,UnitCostSpecified)),MATCH(UPPER(LEFT(F56,LEN(F56)-1)),CostCode,0))) -> 0.1476375953 | H56: =G56*E56 -> 0 | N56: =H56 -> 0
B57: Treat water in WTP | D57: m3 | E57: 0 | F57: Sabina | G57: =Unit_Costs!F188 -> 0.7531499203 | H57: =G57*E57 -> 0 | N57: =H57 -> 0
B58: Pump water out of WTP | D58: m3 | E58: 0 | F58: POCL | G58: =IF(ISNA(F58),0,INDEX(IF(UPPER(RIGHT(F58,1))=Low,UnitCostLow, IF(UPPER(RIGHT(F58,1))=High,UnitCostHigh,UnitCostSpecified)),MATCH(UPPER(LEFT(F58,LEN(F58)-1)),CostCode,0))) -> 0.1476375953 | H58: =G58*E58 -> 0 | N58: =H58 -> 0
B59: OPERATE WATER TREATMENT PLANT
B60: Pump to WTP | C60: Water treatment (and pumping) allotment to address potential water treatment considerations during the Closure Phase. | D60: m3 | E60: 3000000 | F60: POCL | G60: =IF(ISNA(F60),0,INDEX(IF(UPPER(RIGHT(F60,1))=Low,UnitCostLow, IF(UPPER(RIGHT(F60,1))=High,UnitCostHigh,UnitCostSpecified)),MATCH(UPPER(LEFT(F60,LEN(F60)-1)),CostCode,0))) -> 0.1476375953 | H60: =G60*E60 -> 442912.7858 | U60: =$H60 -> 442912.7858
B61: Treat water in WTP | D61: m3 | E61: =E60 -> 3000000 | F61: Sabina | G61: =Unit_Costs!F188 -> 0.7531499203 | H61: =G61*E61 -> 2259449.761 | U61: =$H61 -> 2259449.761
B62: Pump water out of WTP | D62: m3 | E62: =E60 -> 3000000 | F62: POCL | G62: =IF(ISNA(F62),0,INDEX(IF(UPPER(RIGHT(F62,1))=Low,UnitCostLow, IF(UPPER(RIGHT(F62,1))=High,UnitCostHigh,UnitCostSpecified)),MATCH(UPPER(LEFT(F62,LEN(F62)-1)),CostCode,0))) -> 0.1476375953 | H62: =G62*E62 -> 442912.7858 | U62: =$H62 -> 442912.7858
B63: GROUNDWATER COLLECTION SYSTEM
B64: Excavate/install sumps | D64: m3 | F64: =NA() ->  | G64: =IF(ISNA(F64),0,INDEX(IF(UPPER(RIGHT(F64,1))=Low,UnitCostLow, IF(UPPER(RIGHT(F64,1))=High,UnitCostHigh,UnitCostSpecified)),MATCH(UPPER(LEFT(F64,LEN(F64)-1)),CostCode,0))) -> 0 | H64: =G64*E64 -> 0
B65: Install pumping wells | D65: m3 | F65: =NA() ->  | G65: =IF(ISNA(F65),0,INDEX(IF(UPPER(RIGHT(F65,1))=Low,UnitCostLow, IF(UPPER(RIGHT(F65,1))=High,UnitCostHigh,UnitCostSpecified)),MATCH(UPPER(LEFT(F65,LEN(F65)-1)),CostCode,0))) -> 0 | H65: =G65*E65 -> 0
B66: Install pumps/pipelines/power supply | D66: LS | F66: =NA() ->  | G66: =IF(ISNA(F66),0,INDEX(IF(UPPER(RIGHT(F66,1))=Low,UnitCostLow, IF(UPPER(RIGHT(F66,1))=High,UnitCostHigh,UnitCostSpecified)),MATCH(UPPER(LEFT(F66,LEN(F66)-1)),CostCode,0))) -> 0 | H66: =G66*E66 -> 0
B67: CONSTRUCT CONTAMINATED WATER STORAGE POND
B68: Excavate pond | D68: m3 | F68: =NA() ->  | G68: =IF(ISNA(F68),0,INDEX(IF(UPPER(RIGHT(F68,1))=Low,UnitCostLow, IF(UPPER(RIGHT(F68,1))=High,UnitCostHigh,UnitCostSpecified)),MATCH(UPPER(LEFT(F68,LEN(F68)-1)),CostCode,0))) -> 0 | H68: =G68*E68 -> 0
B69: Doze & spread excavated material | D69: m3 | F69: =NA() ->  | G69: 0 | H69: 0
B70: Vegetate spread material | D70: ha | F70: =NA() ->  | G70: 0 | H70: 0
B71: Bedding layer | D71: m3 | F71: =NA() ->  | G71: 0 | H71: 0
B72: Supply geomembrane | D72: m2 | F72: =NA() ->  | G72: 0 | H72: 0
B73: Install geomembrane | D73: m2 | F73: =NA() ->  | G73: 0 | H73: 0
B74: Erosion protection layer | D74: m3 | F74: =NA() ->  | G74: 0 | H74: 0
B75: CONSTRUCT PASSIVE TREATMENT SYSTEM (e.g. Constructed Wetland)
B76: Construct access roads | D76: km | F76: =NA() ->  | G76: 0 | H76: =G76*E76 -> 0
B77: Install HDPE piping system from collection pond | D77: m | F77: =NA() ->  | G77: 0 | H77: =G77*E77 -> 0
B78: Inter-cell flow structures | D78: allow | F78: =NA() ->  | G78: 0 | H78: 0
B79: Install liners | D79: m2 | F79: =NA() ->  | G79: 0 | H79: =G79*E79 -> 0
B80: Install growth media | D80: m3 | F80: =NA() ->  | G80: 0 | H80: 0
B81: Wetland vegetation | D81: ha | F81: =NA() ->  | G81: 0 | H81: 0
B82: CONSTRUCT WATER TREATMENT PLANT
B83: Build treatment plant | C83: Treatment Plant will be constructed as part of operations | D83: LS | F83: =NA() ->  | G83: =IF(ISNA(F83),0,INDEX(IF(UPPER(RIGHT(F83,1))=Low,UnitCostLow, IF(UPPER(RIGHT(F83,1))=High,UnitCostHigh,UnitCostSpecified)),MATCH(UPPER(LEFT(F83,LEN(F83)-1)),CostCode,0))) -> 0 | H83: =G83*E83 -> 0
B84: Build sludge containment facility | D84: LS | F84: =NA() ->  | G84: =IF(ISNA(F84),0,INDEX(IF(UPPER(RIGHT(F84,1))=Low,UnitCostLow, IF(UPPER(RIGHT(F84,1))=High,UnitCostHigh,UnitCostSpecified)),MATCH(UPPER(LEFT(F84,LEN(F84)-1)),CostCode,0))) -> 0 | H84: =G84*E84 -> 0
G85: Total | H85: =SUM(H4:H84)+0.0001 -> 3624752.967 | J85: =SUM(J4:J84) -> 161376.2747 | K85: =SUM(K4:K84) -> 34453.71212 | L85: 29382.79089 | M85: 0 | N85: 0 | O85: 18818.89912 | P85: 101402.0732 | Q85: 2410.659091 | R85: 49516.71053 | S85: 47662.80303 | T85: 34453.71212 | U85: 3145275.332 | V85: =SUM(J85:U85) -> 3624752.967
B86: For details of long-term/post-closure water treatment see "WATER TREATMENT" Worksheet"; costs included in this tab.

Sheet Water Treatment
A1: 1 | B1: Post Closure Water Treatment - Identified as long term/post-closure in 'Instructions' worksheet
B3: ACTIVITY/MATERIAL | C3: Notes | D3: Units | E3: Quantity | F3: Cost Code | G3: Unit Cost | H3: Total Cost
B4: ADDITION OF REAGENTS TO WTP
B5: H2O2 | D5: kg | F5: =NA() ->  | G5: =IF(ISNA(F5),0,INDEX(IF(UPPER(RIGHT(F5,1))=Low,UnitCostLow, IF(UPPER(RIGHT(F5,1))=High,UnitCostHigh,UnitCostSpecified)),MATCH(UPPER(LEFT(F5,LEN(F5)-1)),CostCode,0))) -> 0 | H5: =G5*E5 -> 0
B6: lime | D6: kg | F6: =NA() ->  | G6: 0 | H6: 0
B7: ferric sulphate | D7: kg | F7: =NA() ->  | G7: 0 | H7: 0
B8: ferrous sulphate | D8: kg | F8: =NA() ->  | G8: 0 | H8: 0
B9: flocculants | D9: kg | F9: =NA() ->  | G9: 0 | H9: 0
B10: Other | F10: =NA() ->  | G10: 0 | H10: 0
B11: LABOUR AND SUPPLIES
B12: Annual fuel | D12: litres | F12: =NA() ->  | G12: =IF(ISNA(F12),0,INDEX(IF(UPPER(RIGHT(F12,1))=Low,UnitCostLow, IF(UPPER(RIGHT(F12,1))=High,UnitCostHigh,UnitCostSpecified)),MATCH(UPPER(LEFT(F12,LEN(F12)-1)),CostCode,0))) -> 0 | H12: =G12*E12 -> 0
B13: Annual power | D13: kW-h | F13: =NA() ->  | G13: =IF(ISNA(F13),0,INDEX(IF(UPPER(RIGHT(F13,1))=Low,UnitCostLow, IF(UPPER(RIGHT(F13,1))=High,UnitCostHigh,UnitCostSpecified)),MATCH(UPPER(LEFT(F13,LEN(F13)-1)),CostCode,0))) -> 0 | H13: =G13*E13 -> 0
B14: Electrician/mechanic to maintain treatment plant | D14: allow | F14: =NA() ->  | G14: 0 | H14: 0
B15: Equipment maintenance and parts | D15: allow | F15: =NA() ->  | G15: 0 | H15: 0
B16: Misc. supplies, hoses, tools | D16: allow | F16: =NA() ->  | G16: 0 | H16: 0
B17: Communications | D17: allow | F17: =NA() ->  | G17: 0 | H17: 0
B18: Other | F18: =NA() ->  | G18: 0 | H18: 0
B19: WATER MANAGEMENT
B20: Pump from TSF to WTP | C20: TSF not planned. | D20: m3 | F20: =NA() ->  | G20: 0 | H20: 0
B21: Treat water in WTP | D21: m3 | F21: =NA() ->  | G21: =Unit_Costs!F188 -> 0.7531499203 | H21: 0
B22: Pump water out of WTP | D22: m3 | F22: =NA() ->  | G22: =IF(ISNA(F22),0,INDEX(IF(UPPER(RIGHT(F22,1))=Low,UnitCostLow, IF(UPPER(RIGHT(F22,1))=High,UnitCostHigh,UnitCostSpecified)),MATCH(UPPER(LEFT(F22,LEN(F22)-1)),CostCode,0))) -> 0 | H22: 0
B23: WTP WATER SAMPLING AND ANALYSES
B24: Sampling equipment | D24: allow | F24: =NA() ->  | G24: =IF(ISNA(F24),0,INDEX(IF(UPPER(RIGHT(F24,1))=Low,UnitCostLow, IF(UPPER(RIGHT(F24,1))=High,UnitCostHigh,UnitCostSpecified)),MATCH(UPPER(LEFT(F24,LEN(F24)-1)),CostCode,0))) -> 0 | H24: =G24*E24 -> 0
B25: Analyses | D25: allow | F25: =NA() ->  | G25: =IF(ISNA(F25),0,INDEX(IF(UPPER(RIGHT(F25,1))=Low,UnitCostLow, IF(UPPER(RIGHT(F25,1))=High,UnitCostHigh,UnitCostSpecified)),MATCH(UPPER(LEFT(F25,LEN(F25)-1)),CostCode,0))) -> 0 | H25: =G25*E25 -> 0
B26: Shipping to laboratory | D26: allow | F26: =NA() ->  | G26: =IF(ISNA(F26),0,INDEX(IF(UPPER(RIGHT(F26,1))=Low,UnitCostLow, IF(UPPER(RIGHT(F26,1))=High,UnitCostHigh,UnitCostSpecified)),MATCH(UPPER(LEFT(F26,LEN(F26)-1)),CostCode,0))) -> 0 | H26: =G26*E26 -> 0
B27: Reporting | D27: allow | F27: =NA() ->  | G27: =IF(ISNA(F27),0,INDEX(IF(UPPER(RIGHT(F27,1))=Low,UnitCostLow, IF(UPPER(RIGHT(F27,1))=High,UnitCostHigh,UnitCostSpecified)),MATCH(UPPER(LEFT(F27,LEN(F27)-1)),CostCode,0))) -> 0 | H27: =G27*E27 -> 0
B28: Other | F28: =NA() ->  | G28: =IF(ISNA(F28),0,INDEX(IF(UPPER(RIGHT(F28,1))=Low,UnitCostLow, IF(UPPER(RIGHT(F28,1))=High,UnitCostHigh,UnitCostSpecified)),MATCH(UPPER(LEFT(F28,LEN(F28)-1)),CostCode,0))) -> 0 | H28: =G28*E28 -> 0
B29: SITE ACCESS
B30: Road maintenance (incl. snow removal) | D30: allow | F30: =NA() ->  | G30: =IF(ISNA(F30),0,INDEX(IF(UPPER(RIGHT(F30,1))=Low,UnitCostLow, IF(UPPER(RIGHT(F30,1))=High,UnitCostHigh,UnitCostSpecified)),MATCH(UPPER(LEFT(F30,LEN(F30)-1)),CostCode,0))) -> 0 | H30: =G30*E30 -> 0
B31: Winter road tariff | D31: allow | F31: =NA() ->  | G31: =IF(ISNA(F31),0,INDEX(IF(UPPER(RIGHT(F31,1))=Low,UnitCostLow, IF(UPPER(RIGHT(F31,1))=High,UnitCostHigh,UnitCostSpecified)),MATCH(UPPER(LEFT(F31,LEN(F31)-1)),CostCode,0))) -> 0 | H31: =G31*E31 -> 0
B32: Truck rental | D32: allow | F32: =NA() ->  | G32: =IF(ISNA(F32),0,INDEX(IF(UPPER(RIGHT(F32,1))=Low,UnitCostLow, IF(UPPER(RIGHT(F32,1))=High,UnitCostHigh,UnitCostSpecified)),MATCH(UPPER(LEFT(F32,LEN(F32)-1)),CostCode,0))) -> 0 | H32: =G32*E32 -> 0
B33: Air support | D33: allow | F33: =NA() ->  | G33: =IF(ISNA(F33),0,INDEX(IF(UPPER(RIGHT(F33,1))=Low,UnitCostLow, IF(UPPER(RIGHT(F33,1))=High,UnitCostHigh,UnitCostSpecified)),MATCH(UPPER(LEFT(F33,LEN(F33)-1)),CostCode,0))) -> 0 | H33: =G33*E33 -> 0
G35: Annual water treatment costs | H35: =(SUM(H5:H33)+0.0001) -> 0.0001
B36: Number of years of water treatment | D36: years | E36: 0
G37: Total | H37: =AnnualTreat1Cost*E36 -> 0

Sheet ICM
A1: 1 | B1: Interim Care and Maintenance
B3: ACTIVITY/MATERIAL | C3: Notes | D3: Units | E3: Quantity | F3: Cost Code | G3: Unit Cost | H3: Total Cost
B4: INTERIM CARE & MAINTENANCE
B5: Camp operation | C5: Caretaker and summer personnel | D5: mandays | E5: =180+6*21 -> 306 | F5: Sabina | G5: ='SBB Comp. Est.'!X118 -> 127.4561404 | H5: =G5*E5 -> 39001.57895
B6: On-site staff | C6: Caretaker and summer personnel | D6: manhours | E6: =(180+6*21)*10 -> 3060 | F6: ENVCO | G6: =Unit_Costs!F79 -> 91.24003387 | H6: 279194.5036
B7: extra personnel | D7: manmonths | F7: =NA() ->  | G7: =IF(ISNA(F7),0,INDEX(IF(UPPER(RIGHT(F7,1))=Low,UnitCostLow, IF(UPPER(RIGHT(F7,1))=High,UnitCostHigh,UnitCostSpecified)),MATCH(UPPER(LEFT(F7,LEN(F7)-1)),CostCode,0))) -> 0 | H7: 0
B8: -electrician | D8: manmonths | F8: =NA() ->  | G8: =IF(ISNA(F8),0,INDEX(IF(UPPER(RIGHT(F8,1))=Low,UnitCostLow, IF(UPPER(RIGHT(F8,1))=High,UnitCostHigh,UnitCostSpecified)),MATCH(UPPER(LEFT(F8,LEN(F8)-1)),CostCode,0))) -> 0 | H8: =G8*E8 -> 0
B9: -mechanic | D9: manmonths | F9: =NA() ->  | G9: =IF(ISNA(F9),0,INDEX(IF(UPPER(RIGHT(F9,1))=Low,UnitCostLow, IF(UPPER(RIGHT(F9,1))=High,UnitCostHigh,UnitCostSpecified)),MATCH(UPPER(LEFT(F9,LEN(F9)-1)),CostCode,0))) -> 0 | H9: =G9*E9 -> 0
B10: annual fuel | C10: Fuel for vehicles; fuel for pumping included in water treatment cost | D10: litre | E10: 5000 | F10: FCDH | G10: 1.710135478 | H10: 8550.677392
B11: misc. supplies | D11: allow | E11: 1 | F11: Sabina | G11: =Unit_Costs!F189 -> 23173.8437 | H11: =G11*E11 -> 23173.8437
B12: pick-up truck | D12: each | F12: =NA() ->  | G12: 0 | H12: 0
B13: small dozer | D13: allow | F13: =NA() ->  | G13: 0 | H13: 0
B14: small excavator | D14: allow | F14: =NA() ->  | G14: 0 | H14: 0
B15: snow machine | D15: allow | F15: =NA() ->  | G15: 0 | H15: 0
B16: communications | D16: allow | F16: =NA() ->  | G16: 0 | H16: 0
B17: SNP/AEMP water sampling & reporting | C17: Sampling and lab costs | D17: each | E17: 1 | F17: WSH | G17: 12303.13294 | H17: 12303.13294
B18: geotechnical assessment | C18: Annual geotechnical inspection | D18: each | E18: 1 | F18: RPTH | G18: 24606.26588 | H18: 24606.26588
B19: interim water treatment | C19: Captured under Water Treatment | D19: each | E19: 1 | F19: =NA() ->  | G19: =IF(ISNA(F19),0,INDEX(IF(UPPER(RIGHT(F19,1))=Low,UnitCostLow, IF(UPPER(RIGHT(F19,1))=High,UnitCostHigh,UnitCostSpecified)),MATCH(UPPER(LEFT(F19,LEN(F19)-1)),CostCode,0))) -> 0 | H19: =G19*E19 -> 0
B20: other | D20: each | F20: =NA() ->  | G20: 0 | H20: 0
G21: Annual Interim C&M Cost | H21: =SUM(H5:H20) -> 386830.0025
B22: Number of years of ICM | D22: years | E22: 3 | G22: Total | H22: =H21*E22 -> 1160490.007

Sheet PostClosure
A1: 1 | G1: 0 Years | O1: 1 Year (Year 13) | W1: 10 Years (Year 13 to 22) | AE1: 13 Years (Year 13 to 25) | AM1: Beyond Post Closure (Long Term 1 to 5, 7, 10, 15, 25)
B3: ACTIVITY/MATERIAL - WATER TREATMENT | C3: Notes | D3: Units | E3: Quantity | F3: Cost Code | G3: Unit Cost | H3: Total Cost | J3: ACTIVITY/MATERIAL - GEOTECHNICAL INSPECTIONS OF TSF | K3: Notes | L3: Units | M3: Quantity | N3: Cost Code | O3: Unit Cost | P3: Total Cost | R3: ACTIVITY/MATERIAL - WEMP and TERRESTRIAL | S3: Notes | T3: Units | U3: Quantity | V3: Cost Code | W3: Unit Cost | X3: Total Cost | Z3: ACTIVITY/MATERIAL - Monitoring & Maintenance | AA3: Notes | AB3: Units | AC3: Quantity | AD3: Cost Code | AE3: Unit Cost | AF3: Total Cost | AH3: ACTIVITY/MATERIAL - Long Term Monitoring | AI3: Notes | AJ3: Units | AK3: Quantity | AL3: Cost Code | AM3: Unit Cost | AN3: Total Cost
B4: MONITORING & INSPECTIONS | J4: MONITORING & INSPECTIONS | R4: MONITORING & INSPECTIONS | Z4: MONITORING & INSPECTIONS | AH4: MONITORING & INSPECTIONS
B5: Total geotechnical inspections (1 yearly) | D5: year | E5: ='SBB Comp. Est.'!N142/8 -> 0 | F5: =NA() ->  | G5: =IF(ISNA(F5),0,INDEX(IF(UPPER(RIGHT(F5,1))=Low,UnitCostLow, IF(UPPER(RIGHT(F5,1))=High,UnitCostHigh,UnitCostSpecified)),MATCH(UPPER(LEFT(F5,LEN(F5)-1)),CostCode,0))) -> 0 | H5: =G5*E5 -> 0 | J5: Total geotechnical inspections (1 yearly) | L5: year | M5: 0 | N5: RPTH | O5: =IF(ISNA(N5),0,INDEX(IF(UPPER(RIGHT(N5,1))=Low,UnitCostLow, IF(UPPER(RIGHT(N5,1))=High,UnitCostHigh,UnitCostSpecified)),MATCH(UPPER(LEFT(N5,LEN(N5)-1)),CostCode,0))) -> 24606.26588 | P5: =O5*M5 -> 0 | R5: Total geotechnical inspections (1 yearly) | T5: year | V5: =NA() ->  | W5: =IF(ISNA(V5),0,INDEX(IF(UPPER(RIGHT(V5,1))=Low,UnitCostLow, IF(UPPER(RIGHT(V5,1))=High,UnitCostHigh,UnitCostSpecified)),MATCH(UPPER(LEFT(V5,LEN(V5)-1)),CostCode,0))) -> 0 | X5: =W5*U5 -> 0 | Z5: Total geotechnical inspections (1 yearly) | AB5: year | AD5: =NA() ->  | AE5: =IF(ISNA(AD5),0,INDEX(IF(UPPER(RIGHT(AD5,1))=Low,UnitCostLow, IF(UPPER(RIGHT(AD5,1))=High,UnitCostHigh,UnitCostSpecified)),MATCH(UPPER(LEFT(AD5,LEN(AD5)-1)),CostCode,0))) -> 0 | AF5: =AE5*AC5 -> 0 | AH5: General Water Sampling and Stability Monitoring | AI5: long term general monitoring | AJ5: year | AK5: 1 | AL5: Sabina | AM5: =Unit_Costs!F191 -> 46347.6874 | AN5: =AM5*AK5 -> 46347.6874
B6: Waste Rock Piles | D6: year | F6: =NA() ->  | G6: =IF(ISNA(F6),0,INDEX(IF(UPPER(RIGHT(F6,1))=Low,UnitCostLow, IF(UPPER(RIGHT(F6,1))=High,UnitCostHigh,UnitCostSpecified)),MATCH(UPPER(LEFT(F6,LEN(F6)-1)),CostCode,0))) -> 0 | H6: =G6*E6 -> 0 | J6: Waste Rock Piles | L6: year | N6: =NA() ->  | O6: 0 | P6: 0 | R6: Waste Rock Piles | T6: year | V6: =NA() ->  | W6: =IF(ISNA(V6),0,INDEX(IF(UPPER(RIGHT(V6,1))=Low,UnitCostLow, IF(UPPER(RIGHT(V6,1))=High,UnitCostHigh,UnitCostSpecified)),MATCH(UPPER(LEFT(V6,LEN(V6)-1)),CostCode,0))) -> 0 | X6: =W6*U6 -> 0 | Z6: Waste Rock Piles | AA6: Annual inspection of WR piles from closure to post-closure (13 years) | AB6: year | AC6: ='SBB Comp. Est.'!F143/13 -> 1 | AD6: Sabina | AE6: ='SBB Comp. Est.'!X143 -> 9617.145136 | AF6: =AE6*AC6 -> 9617.145136 | AH6: Waste Rock Piles | AJ6: year | AL6: =NA() ->  | AM6: =IF(ISNA(AL6),0,INDEX(IF(UPPER(RIGHT(AL6,1))=Low,UnitCostLow, IF(UPPER(RIGHT(AL6,1))=High,UnitCostHigh,UnitCostSpecified)),MATCH(UPPER(LEFT(AL6,LEN(AL6)-1)),CostCode,0))) -> 0 | AN6: 0
B7: Pit Walls | D7: year | F7: =NA() ->  | G7: 0 | H7: 0 | J7: Pit Walls | L7: year | N7: =NA() ->  | O7: 0 | P7: 0 | R7: Pit Walls | T7: year | V7: =NA() ->  | W7: 0 | X7: 0 | Z7: Pit Walls | AA7: Annual inspection of pit walls from closure to post-closure (13 years) | AB7: year | AC7: ='SBB Comp. Est.'!F144/13 -> 1 | AD7: Sabina | AE7: ='SBB Comp. Est.'!X144 -> 4634.76874 | AF7: =AE7*AC7 -> 4634.76874 | AH7: Pit Walls | AJ7: year | AL7: =NA() ->  | AM7: 0 | AN7: 0
B8: WR GTC Monitoring | D8: year | F8: =NA() ->  | G8: 0 | H8: 0 | J8: WR GTC Monitoring | L8: year | N8: =NA() ->  | O8: =IF(ISNA(N8),0,INDEX(IF(UPPER(RIGHT(N8,1))=Low,UnitCostLow, IF(UPPER(RIGHT(N8,1))=High,UnitCostHigh,UnitCostSpecified)),MATCH(UPPER(LEFT(N8,LEN(N8)-1)),CostCode,0))) -> 0 | P8: =O8*M8 -> 0 | R8: WR GTC Monitoring | T8: year | V8: =NA() ->  | W8: 0 | X8: 0 | Z8: WR GTC Monitoring | AA8: Umwelt, Llama, and TSF WRSA ground temp cable annual monitoring. No GTCs at Echo WRSA (13 years) | AB8: year | AC8: 1 | AD8: Sabina | AE8: =('SBB Comp. Est.'!X146+'SBB Comp. Est.'!X147+'SBB Comp. Est.'!X148) -> 16685.16746 | AF8: =AE8*AC8 -> 16685.16746 | AH8: WR GTC Monitoring | AJ8: year | AL8: =NA() ->  | AM8: 0 | AN8: 0
B9: Survey inspection | D9: each | F9: =NA() ->  | G9: 0 | H9: 0 | J9: Survey inspection | L9: each | N9: =NA() ->  | O9: =IF(ISNA(N9),0,INDEX(IF(UPPER(RIGHT(N9,1))=Low,UnitCostLow, IF(UPPER(RIGHT(N9,1))=High,UnitCostHigh,UnitCostSpecified)),MATCH(UPPER(LEFT(N9,LEN(N9)-1)),CostCode,0))) -> 0 | P9: 0 | R9: Survey inspection | T9: each | V9: =NA() ->  | W9: =IF(ISNA(V9),0,INDEX(IF(UPPER(RIGHT(V9,1))=Low,UnitCostLow, IF(UPPER(RIGHT(V9,1))=High,UnitCostHigh,UnitCostSpecified)),MATCH(UPPER(LEFT(V9,LEN(V9)-1)),CostCode,0))) -> 0 | X9: =W9*U9 -> 0 | Z9: Survey inspection | AB9: each | AD9: =NA() ->  | AE9: =IF(ISNA(AD9),0,INDEX(IF(UPPER(RIGHT(AD9,1))=Low,UnitCostLow, IF(UPPER(RIGHT(AD9,1))=High,UnitCostHigh,UnitCostSpecified)),MATCH(UPPER(LEFT(AD9,LEN(AD9)-1)),CostCode,0))) -> 0 | AF9: =AE9*AC9 -> 0 | AH9: Survey inspection | AJ9: each | AL9: =NA() ->  | AM9: =IF(ISNA(AL9),0,INDEX(IF(UPPER(RIGHT(AL9,1))=Low,UnitCostLow, IF(UPPER(RIGHT(AL9,1))=High,UnitCostHigh,UnitCostSpecified)),MATCH(UPPER(LEFT(AL9,LEN(AL9)-1)),CostCode,0))) -> 0 | AN9: =AM9*AK9 -> 0
B10: Regulatory costs | D10: year | F10: =NA() ->  | G10: 0 | H10: 0 | J10: Regulatory costs | L10: year | N10: =NA() ->  | O10: 0 | P10: =O10*M10 -> 0 | R10: Regulatory costs* | T10: year | V10: =NA() ->  | W10: 0 | X10: 0 | Z10: Regulatory costs | AA10: annual reporting, management plans, progress reports (13 years) | AB10: year | AC10: 1 | AD10: Sabina | AE10: =Unit_Costs!F190 -> 28967.30463 | AF10: 28967.30463 | AH10: Regulatory costs | AJ10: each | AK10: 1 | AL10: RPTH | AM10: =IF(ISNA(AL10),0,INDEX(IF(UPPER(RIGHT(AL10,1))=Low,UnitCostLow, IF(UPPER(RIGHT(AL10,1))=High,UnitCostHigh,UnitCostSpecified)),MATCH(UPPER(LEFT(AL10,LEN(AL10)-1)),CostCode,0))) -> 24606.26588 | AN10: =AM10*AK10 -> 24606.26588
B11: Site water monitoring | D11: each | F11: =NA() ->  | G11: 0 | H11: 0 | J11: Site water monitoring | L11: each | N11: =NA() ->  | O11: 0 | P11: 0 | R11: Site water monitoring | T11: each | V11: =NA() ->  | W11: 0 | X11: =W11*U11 -> 0 | Z11: Site water monitoring | AA11: All pits and WR piles closure and post closure monitoring (13 years) | AB11: year | AC11: ='SBB Comp. Est.'!F150/13 -> 1 | AD11: Sabina | AE11: =SUM('SBB Comp. Est.'!X150:X157) -> 10567.27273 | AF11: =AE11*AC11 -> 10567.27273 | AH11: Site water monitoring | AJ11: year | AL11: =NA() ->  | AM11: 0 | AN11: 0
B12: - Active closure and flooding | D12: each | F12: =NA() ->  | G12: 0 | H12: 0 | J12: - Active closure and flooding | L12: each | N12: =NA() ->  | O12: 0 | P12: 0 | R12: - Active closure and flooding | T12: each | V12: =NA() ->  | W12: =IF(ISNA(V12),0,INDEX(IF(UPPER(RIGHT(V12,1))=Low,UnitCostLow, IF(UPPER(RIGHT(V12,1))=High,UnitCostHigh,UnitCostSpecified)),MATCH(UPPER(LEFT(V12,LEN(V12)-1)),CostCode,0))) -> 0 | X12: 0 | Z12: - Active closure and flooding | AB12: each | AD12: =NA() ->  | AE12: =IF(ISNA(AD12),0,INDEX(IF(UPPER(RIGHT(AD12,1))=Low,UnitCostLow, IF(UPPER(RIGHT(AD12,1))=High,UnitCostHigh,UnitCostSpecified)),MATCH(UPPER(LEFT(AD12,LEN(AD12)-1)),CostCode,0))) -> 0 | AF12: 0 | AH12: - Active closure and flooding | AJ12: each | AL12: =NA() ->  | AM12: =IF(ISNA(AL12),0,INDEX(IF(UPPER(RIGHT(AL12,1))=Low,UnitCostLow, IF(UPPER(RIGHT(AL12,1))=High,UnitCostHigh,UnitCostSpecified)),MATCH(UPPER(LEFT(AL12,LEN(AL12)-1)),CostCode,0))) -> 0 | AN12: =AM12*AK12 -> 0
B13: - Post pit flooding | D13: each | F13: =NA() ->  | G13: 0 | H13: 0 | J13: - Post pit flooding | L13: each | N13: =NA() ->  | O13: 0 | P13: 0 | R13: - Post pit flooding | T13: each | V13: =NA() ->  | W13: 0 | X13: 0 | Z13: - Post pit flooding | AB13: each | AD13: =NA() ->  | AE13: 0 | AF13: 0 | AH13: - Post pit flooding | AJ13: each | AL13: =NA() ->  | AM13: 0 | AN13: 0
B14: Wildlife Effects Monitoring Program (WEMP) | D14: year | F14: =NA() ->  | G14: 0 | H14: 0 | J14: Wildlife Effects Monitoring Program (WEMP) | L14: year | N14: =NA() ->  | O14: 0 | P14: =O14*M14 -> 0 | R14: Wildlife Effects Monitoring Program (WEMP) | S14: Aquatics - Non-contact water basins (10 years) | T14: year | U14: ='SBB Comp. Est.'!F159/10 -> 1 | V14: Sabina | W14: ='SBB Comp. Est.'!X159 -> 5561.722488 | X14: =W14*U14 -> 5561.722488 | Z14: Wildlife Effects Monitoring Program (WEMP) | AB14: year | AD14: =NA() ->  | AE14: =IF(ISNA(AD14),0,INDEX(IF(UPPER(RIGHT(AD14,1))=Low,UnitCostLow, IF(UPPER(RIGHT(AD14,1))=High,UnitCostHigh,UnitCostSpecified)),MATCH(UPPER(LEFT(AD14,LEN(AD14)-1)),CostCode,0))) -> 0 | AF14: =AE14*AC14 -> 0 | AH14: Wildlife Effects Monitoring Program (WEMP) | AJ14: year | AL14: =NA() ->  | AM14: 0 | AN14: 0
B15: Terrestrial Animal Monitoring | D15: year | F15: =NA() ->  | G15: 0 | H15: 0 | J15: Terrestrial Animal Monitoring | L15: year | N15: =NA() ->  | O15: 0 | P15: 0 | R15: Terrestrial Animal Monitoring | S15: Terrestrial Animal Monitoring (10 years) | T15: year | U15: ='SBB Comp. Est.'!F161/10 -> 1 | V15: Sabina | W15: ='SBB Comp. Est.'!X161 -> 27808.61244 | X15: =W15*U15 -> 27808.61244 | Z15: Terrestrial Animal Monitoring | AB15: year | AD15: =NA() ->  | AE15: 0 | AF15: 0 | AH15: Terrestrial Animal Monitoring | AJ15: year | AL15: =NA() ->  | AM15: 0 | AN15: 0
B16: Vegetation Monitoring | D16: each | F16: =NA() ->  | G16: 0 | H16: 0 | J16: Vegetation Monitoring | L16: each | N16: =NA() ->  | O16: =IF(ISNA(N16),0,INDEX(IF(UPPER(RIGHT(N16,1))=Low,UnitCostLow, IF(UPPER(RIGHT(N16,1))=High,UnitCostHigh,UnitCostSpecified)),MATCH(UPPER(LEFT(N16,LEN(N16)-1)),CostCode,0))) -> 0 | P16: 0 | R16: Vegetation Monitoring | T16: each | V16: =NA() ->  | W16: =IF(ISNA(V16),0,INDEX(IF(UPPER(RIGHT(V16,1))=Low,UnitCostLow, IF(UPPER(RIGHT(V16,1))=High,UnitCostHigh,UnitCostSpecified)),MATCH(UPPER(LEFT(V16,LEN(V16)-1)),CostCode,0))) -> 0 | X16: 0 | Z16: Vegetation Monitoring | AB16: each | AD16: =NA() ->  | AE16: =IF(ISNA(AD16),0,INDEX(IF(UPPER(RIGHT(AD16,1))=Low,UnitCostLow, IF(UPPER(RIGHT(AD16,1))=High,UnitCostHigh,UnitCostSpecified)),MATCH(UPPER(LEFT(AD16,LEN(AD16)-1)),CostCode,0))) -> 0 | AF16: 0 | AH16: Vegetation Monitoring | AJ16: each | AL16: =NA() ->  | AM16: 0 | AN16: 0
B17: Maintain gravel road surface | D17: each | F17: =NA() ->  | G17: 0 | H17: 0 | J17: Maintain gravel road surface | L17: each | N17: =NA() ->  | O17: =IF(ISNA(N17),0,INDEX(IF(UPPER(RIGHT(N17,1))=Low,UnitCostLow, IF(UPPER(RIGHT(N17,1))=High,UnitCostHigh,UnitCostSpecified)),MATCH(UPPER(LEFT(N17,LEN(N17)-1)),CostCode,0))) -> 0 | P17: =O17*M17 -> 0 | R17: Maintain gravel road surface | T17: year | V17: =NA() ->  | W17: 0 | X17: 0 | Z17: Maintain gravel road surface | AA17: maintenance from closure to post-closure (13 years) | AB17: year | AC17: ='SBB Comp. Est.'!F121/13 -> 1 | AD17: Sabina | AE17: ='SBB Comp. Est.'!X121 -> 15816.14833 | AF17: =AE17*AC17 -> 15816.14833 | AH17: Maintain gravel road surface | AJ17: year | AL17: =NA() ->  | AM17: 0 | AN17: 0
B18: Maintain airstrip surface | D18: each | F18: =NA() ->  | G18: 0 | H18: 0 | J18: Maintain airstrip surface | L18: each | N18: =NA() ->  | O18: 0 | P18: 0 | R18: Maintain airstrip surface | T18: year | V18: =NA() ->  | W18: 0 | X18: 0 | Z18: Maintain airstrip surface | AA18: maintenance from closure to post-closure (13 years) | AB18: year | AC18: ='SBB Comp. Est.'!F124/13 -> 1 | AD18: Sabina | AE18: ='SBB Comp. Est.'!X124 -> 4518.899522 | AF18: =AE18*AC18 -> 4518.899522 | AH18: Maintain airstrip surface | AJ18: year | AL18: =NA() ->  | AM18: 0 | AN18: 0
B19: Other | F19: =NA() ->  | G19: =IF(ISNA(F19),0,INDEX(IF(UPPER(RIGHT(F19,1))=Low,UnitCostLow, IF(UPPER(RIGHT(F19,1))=High,UnitCostHigh,UnitCostSpecified)),MATCH(UPPER(LEFT(F19,LEN(F19)-1)),CostCode,0))) -> 0 | H19: =G19*E19 -> 0 | J19: Other | N19: =NA() ->  | O19: =IF(ISNA(N19),0,INDEX(IF(UPPER(RIGHT(N19,1))=Low,UnitCostLow, IF(UPPER(RIGHT(N19,1))=High,UnitCostHigh,UnitCostSpecified)),MATCH(UPPER(LEFT(N19,LEN(N19)-1)),CostCode,0))) -> 0 | P19: =O19*M19 -> 0 | R19: Other | V19: =NA() ->  | W19: =IF(ISNA(V19),0,INDEX(IF(UPPER(RIGHT(V19,1))=Low,UnitCostLow, IF(UPPER(RIGHT(V19,1))=High,UnitCostHigh,UnitCostSpecified)),MATCH(UPPER(LEFT(V19,LEN(V19)-1)),CostCode,0))) -> 0 | X19: =W19*U19 -> 0 | Z19: Other | AD19: =NA() ->  | AE19: =IF(ISNA(AD19),0,INDEX(IF(UPPER(RIGHT(AD19,1))=Low,UnitCostLow, IF(UPPER(RIGHT(AD19,1))=High,UnitCostHigh,UnitCostSpecified)),MATCH(UPPER(LEFT(AD19,LEN(AD19)-1)),CostCode,0))) -> 0 | AF19: =AE19*AC19 -> 0 | AH19: Other - Site Access | AI19: Float plane access | AJ19: each | AK19: 1 | AL19: MWH | AM19: =IF(ISNA(AL19),0,INDEX(IF(UPPER(RIGHT(AL19,1))=Low,UnitCostLow, IF(UPPER(RIGHT(AL19,1))=High,UnitCostHigh,UnitCostSpecified)),MATCH(UPPER(LEFT(AL19,LEN(AL19)-1)),CostCode,0))) -> 11195.85097 | AN19: =AM19*AK19 -> 11195.85097
B20: COVER MAINTENANCE | J20: COVER MAINTENANCE | R20: COVER MAINTENANCE | Z20: COVER MAINTENANCE | AH20: COVER MAINTENANCE
B21: Repair erosion - infill gullies | D21: allow | F21: =NA() ->  | G21: =IF(ISNA(F21),0,INDEX(IF(UPPER(RIGHT(F21,1))=Low,UnitCostLow, IF(UPPER(RIGHT(F21,1))=High,UnitCostHigh,UnitCostSpecified)),MATCH(UPPER(LEFT(F21,LEN(F21)-1)),CostCode,0))) -> 0 | H21: =G21*E21 -> 0 | J21: Repair erosion - infill gullies | L21: allow | N21: =NA() ->  | O21: 0 | P21: =O21*M21 -> 0 | R21: Repair erosion - infill gullies | T21: allow | V21: =NA() ->  | W21: =IF(ISNA(V21),0,INDEX(IF(UPPER(RIGHT(V21,1))=Low,UnitCostLow, IF(UPPER(RIGHT(V21,1))=High,UnitCostHigh,UnitCostSpecified)),MATCH(UPPER(LEFT(V21,LEN(V21)-1)),CostCode,0))) -> 0 | X21: =W21*U21 -> 0 | Z21: Repair erosion - infill gullies | AB21: allow | AD21: =NA() ->  | AE21: =IF(ISNA(AD21),0,INDEX(IF(UPPER(RIGHT(AD21,1))=Low,UnitCostLow, IF(UPPER(RIGHT(AD21,1))=High,UnitCostHigh,UnitCostSpecified)),MATCH(UPPER(LEFT(AD21,LEN(AD21)-1)),CostCode,0))) -> 0 | AF21: =AE21*AC21 -> 0 | AH21: Repair erosion - infill gullies | AJ21: allow | AL21: =NA() ->  | AM21: =IF(ISNA(AL21),0,INDEX(IF(UPPER(RIGHT(AL21,1))=Low,UnitCostLow, IF(UPPER(RIGHT(AL21,1))=High,UnitCostHigh,UnitCostSpecified)),MATCH(UPPER(LEFT(AL21,LEN(AL21)-1)),CostCode,0))) -> 0 | AN21: =AM21*AK21 -> 0
B22: Repair erosion - upgrade diversion ditches | D22: allow | F22: =NA() ->  | G22: 0 | H22: 0 | J22: Repair erosion - upgrade diversion ditches | L22: allow | N22: =NA() ->  | O22: 0 | P22: 0 | R22: Repair erosion - upgrade diversion ditches | T22: allow | V22: =NA() ->  | W22: 0 | X22: 0 | Z22: Repair erosion - upgrade diversion ditches | AB22: allow | AD22: =NA() ->  | AE22: 0 | AF22: 0 | AH22: Repair erosion - upgrade diversion ditches | AJ22: allow | AL22: =NA() ->  | AM22: 0 | AN22: 0
B23: Remove problem vegetation | D23: allow | F23: =NA() ->  | G23: 0 | H23: 0 | J23: Remove problem vegetation | L23: allow | N23: =NA() ->  | O23: 0 | P23: 0 | R23: Remove problem vegetation | T23: allow | V23: =NA() ->  | W23: 0 | X23: 0 | Z23: Remove problem vegetation | AB23: allow | AD23: =NA() ->  | AE23: 0 | AF23: 0 | AH23: Remove problem vegetation | AJ23: allow | AL23: =NA() ->  | AM23: 0 | AN23: 0
B24: Repair animal damage | D24: allow | F24: =NA() ->  | G24: 0 | H24: 0 | J24: Repair animal damage | L24: allow | N24: =NA() ->  | O24: 0 | P24: 0 | R24: Repair animal damage | T24: allow | V24: =NA() ->  | W24: 0 | X24: 0 | Z24: Repair animal damage | AB24: allow | AD24: =NA() ->  | AE24: 0 | AF24: 0 | AH24: Repair animal damage | AJ24: allow | AL24: =NA() ->  | AM24: 0 | AN24: 0
B25: Repair/upgrade access controls | D25: allow | F25: =NA() ->  | G25: 0 | H25: 0 | J25: Repair/upgrade access controls | L25: allow | N25: =NA() ->  | O25: 0 | P25: 0 | R25: Repair/upgrade access controls | T25: allow | V25: =NA() ->  | W25: 0 | X25: 0 | Z25: Repair/upgrade access controls | AB25: allow | AD25: =NA() ->  | AE25: 0 | AF25: 0 | AH25: Repair/upgrade access controls | AJ25: allow | AL25: =NA() ->  | AM25: 0 | AN25: 0
B26: Other | F26: =NA() ->  | G26: 0 | H26: 0 | J26: Other | N26: =NA() ->  | O26: 0 | P26: 0 | R26: Other | V26: =NA() ->  | W26: 0 | X26: 0 | Z26: Other | AD26: =NA() ->  | AE26: 0 | AF26: 0 | AH26: Other | AL26: =NA() ->  | AM26: 0 | AN26: 0
B27: SPILLWAY MAINTENANCE | J27: SPILLWAY MAINTENANCE | R27: SPILLWAY MAINTENANCE | Z27: SPILLWAY MAINTENANCE | AH27: SPILLWAY MAINTENANCE
B28: Repair erosion | D28: m3 | F28: =NA() ->  | G28: =IF(ISNA(F28),0,INDEX(IF(UPPER(RIGHT(F28,1))=Low,UnitCostLow, IF(UPPER(RIGHT(F28,1))=High,UnitCostHigh,UnitCostSpecified)),MATCH(UPPER(LEFT(F28,LEN(F28)-1)),CostCode,0))) -> 0 | H28: =G28*E28 -> 0 | J28: Repair erosion | L28: m3 | N28: =NA() ->  | O28: 0 | P28: =O28*M28 -> 0 | R28: Repair erosion | T28: m3 | V28: =NA() ->  | W28: =IF(ISNA(V28),0,INDEX(IF(UPPER(RIGHT(V28,1))=Low,UnitCostLow, IF(UPPER(RIGHT(V28,1))=High,UnitCostHigh,UnitCostSpecified)),MATCH(UPPER(LEFT(V28,LEN(V28)-1)),CostCode,0))) -> 0 | X28: =W28*U28 -> 0 | Z28: Repair erosion | AB28: m3 | AD28: =NA() ->  | AE28: =IF(ISNA(AD28),0,INDEX(IF(UPPER(RIGHT(AD28,1))=Low,UnitCostLow, IF(UPPER(RIGHT(AD28,1))=High,UnitCostHigh,UnitCostSpecified)),MATCH(UPPER(LEFT(AD28,LEN(AD28)-1)),CostCode,0))) -> 0 | AF28: =AE28*AC28 -> 0 | AH28: Repair erosion | AJ28: m3 | AL28: =NA() ->  | AM28: =IF(ISNA(AL28),0,INDEX(IF(UPPER(RIGHT(AL28,1))=Low,UnitCostLow, IF(UPPER(RIGHT(AL28,1))=High,UnitCostHigh,UnitCostSpecified)),MATCH(UPPER(LEFT(AL28,LEN(AL28)-1)),CostCode,0))) -> 0 | AN28: =AM28*AK28 -> 0
B29: Clear spillway | D29: each | F29: =NA() ->  | G29: 0 | H29: =G29*E29 -> 0 | J29: Clear spillway | L29: each | N29: =NA() ->  | O29: 0 | P29: =O29*M29 -> 0 | R29: Clear spillway | T29: each | V29: =NA() ->  | W29: 0 | X29: =W29*U29 -> 0 | Z29: Clear spillway | AB29: each | AD29: =NA() ->  | AE29: 0 | AF29: =AE29*AC29 -> 0 | AH29: Clear spillway | AJ29: each | AL29: =NA() ->  | AM29: 0 | AN29: =AM29*AK29 -> 0
B30: CWTS MAINTENANCE | J30: CWTS MAINTENANCE | R30: CWTS MAINTENANCE | Z30: CWTS MAINTENANCE | AH30: CWTS MAINTENANCE
B31: Maintain flow, restore vegetation | D31: allow | F31: =NA() ->  | G31: =IF(ISNA(F31),0,INDEX(IF(UPPER(RIGHT(F31,1))=Low,UnitCostLow, IF(UPPER(RIGHT(F31,1))=High,UnitCostHigh,UnitCostSpecified)),MATCH(UPPER(LEFT(F31,LEN(F31)-1)),CostCode,0))) -> 0 | H31: =G31*E31 -> 0 | J31: Maintain flow, restore vegetation | L31: allow | N31: =NA() ->  | O31: =IF(ISNA(N31),0,INDEX(IF(UPPER(RIGHT(N31,1))=Low,UnitCostLow, IF(UPPER(RIGHT(N31,1))=High,UnitCostHigh,UnitCostSpecified)),MATCH(UPPER(LEFT(N31,LEN(N31)-1)),CostCode,0))) -> 0 | P31: =O31*M31 -> 0 | R31: Maintain flow, restore vegetation | T31: allow | V31: =NA() ->  | W31: =IF(ISNA(V31),0,INDEX(IF(UPPER(RIGHT(V31,1))=Low,UnitCostLow, IF(UPPER(RIGHT(V31,1))=High,UnitCostHigh,UnitCostSpecified)),MATCH(UPPER(LEFT(V31,LEN(V31)-1)),CostCode,0))) -> 0 | X31: =W31*U31 -> 0 | Z31: Maintain flow, restore vegetation | AB31: allow | AD31: =NA() ->  | AE31: =IF(ISNA(AD31),0,INDEX(IF(UPPER(RIGHT(AD31,1))=Low,UnitCostLow, IF(UPPER(RIGHT(AD31,1))=High,UnitCostHigh,UnitCostSpecified)),MATCH(UPPER(LEFT(AD31,LEN(AD31)-1)),CostCode,0))) -> 0 | AF31: =AE31*AC31 -> 0 | AH31: Maintain flow, restore vegetation | AJ31: allow | AL31: =NA() ->  | AM31: =IF(ISNA(AL31),0,INDEX(IF(UPPER(RIGHT(AL31,1))=Low,UnitCostLow, IF(UPPER(RIGHT(AL31,1))=High,UnitCostHigh,UnitCostSpecified)),MATCH(UPPER(LEFT(AL31,LEN(AL31)-1)),CostCode,0))) -> 0 | AN31: =AM31*AK31 -> 0
B32: POST-CLOSURE WATER TREATMENT | J32: POST-CLOSURE WATER TREATMENT | R32: POST-CLOSURE WATER TREATMENT | Z32: POST-CLOSURE WATER TREATMENT | AH32: POST-CLOSURE WATER TREATMENT
B33: Annual water treatment cost, from "Water Treatment" | D33: LS | F33: =NA() ->  | G33: =AnnualTreat1Cost -> 0.0001 | H33: =G33*E33 -> 0 | J33: Annual water treatment cost, from "Water Treatment" | L33: LS | N33: =NA() ->  | O33: =IF(ISNA(N33),0,INDEX(IF(UPPER(RIGHT(N33,1))=Low,UnitCostLow, IF(UPPER(RIGHT(N33,1))=High,UnitCostHigh,UnitCostSpecified)),MATCH(UPPER(LEFT(N33,LEN(N33)-1)),CostCode,0))) -> 0 | P33: =O33*M33 -> 0 | R33: Annual water treatment cost, from "Water Treatment" | T33: LS | V33: =NA() ->  | W33: 0 | X33: =W33*U33 -> 0 | Z33: Annual water treatment cost, from "Water Treatment" | AB33: LS | AD33: =NA() ->  | AE33: =IF(ISNA(AD33),0,INDEX(IF(UPPER(RIGHT(AD33,1))=Low,UnitCostLow, IF(UPPER(RIGHT(AD33,1))=High,UnitCostHigh,UnitCostSpecified)),MATCH(UPPER(LEFT(AD33,LEN(AD33)-1)),CostCode,0))) -> 0 | AF33: =AE33*AC33 -> 0 | AH33: Annual water treatment cost, from "Water Treatment" | AJ33: LS | AL33: =NA() ->  | AM33: =IF(ISNA(AL33),0,INDEX(IF(UPPER(RIGHT(AL33,1))=Low,UnitCostLow, IF(UPPER(RIGHT(AL33,1))=High,UnitCostHigh,UnitCostSpecified)),MATCH(UPPER(LEFT(AL33,LEN(AL33)-1)),CostCode,0))) -> 0 | AN33: =AM33*AK33 -> 0
B35: Subtotal, Annual post-closure costs | H35: =SUM(H5:H34)+0.0001 -> 0.0001 | J35: Subtotal, Annual post-closure costs | P35: =SUM(P5:P34)+0.0001 -> 0.0001 | R35: Subtotal, Annual post-closure costs | X35: =SUM(X5:X34)+0.0001 -> 33370.33503 | Z35: Subtotal, Annual post-closure costs | AF35: =SUM(AF5:AF34)+0.0001 -> 90806.70664 | AH35: Subtotal, Annual post-closure costs | AN35: =SUM(AN5:AN34)+0.0001 -> 82149.80435
B36: Discount rate for calculation of net present value of post-closure cost, % | F36: 0 | J36: Discount rate for calculation of net present value of post-closure cost, % | N36: 0 | R36: Discount rate for calculation of net present value of post-closure cost, % | V36: 0 | Z36: Discount rate for calculation of net present value of post-closure cost, % | AD36: 0 | AH36: Discount rate for calculation of net present value of post-closure cost, % | AL36: 0
B37: Number of years of post-closure activity | F37: 0 | G37: years | J37: Number of years of post-closure activity | N37: 1 | O37: years | R37: Number of years of post-closure activity | V37: 10 | W37: years | Z37: Number of years of post-closure activity | AD37: 13 | AE37: years | AH37: Number of years of post-closure activity | AL37: See Long Term | AM37: years
B38: Present Value of payment stream | H38: =PV(F36,F37,H35)*-1 -> 0 | J38: Present Value of payment stream | P38: =PV(N36,N37,P35)*-1 -> 0.0001 | R38: Present Value of payment stream | X38: =PV(V36,V37,X35)*-1 -> 333703.3503 | Z38: Present Value of payment stream | AF38: =PV(AD36,AD37,AF35)*-1 -> 1180487.186 | AH38: Present Value of payment stream | AN38: ='LongTerm Monitoring'!F49 -> 739348.2392
B40: Combined NPV of payment stream | H40: =P38+X38+AF38+H38+AN38 -> 2253538.776

Sheet LongTerm Monitoring
B1: Annual Discount Rate: | D1: 0
A2: Project Phase | B2: Annual Discount Rate: | C2: Closure Year | D2: Post-Closure Monitoring Year | E2: Long Term Monitoring (GTCs, physical, water)
E3: One Time Cost | F3: Yearly Total NPV
A4: Operations | B4: 1 | F4: =E4/(1+$D$1)^($C4-1) -> 0
B5: =B4+1 -> 2 | F5: 0
B6: =B5+1 -> 3 | F6: 0
B7: 4 | F7: 0
B8: 5 | F8: 0
B9: 6 | F9: 0
B10: 7 | F10: 0
B11: 8 | F11: 0
B12: 9 | F12: 0
B13: 10 | F13: 0
B14: 11 | F14: 0
B15: 12 | F15: =E15/(1+$D$1)^($C15-1) -> 0
A16: Active Closure | B16: =B15+1 -> 13 | C16: 1 | F16: 0
B17: 14 | C17: =C16+1 -> 2 | F17: 0
A18: Passive Closure | B18: 15 | C18: =C17+1 -> 3 | F18: 0
B19: 16 | C19: 4 | F19: 0
B20: 17 | C20: 5 | F20: 0
B21: 18 | C21: 6 | F21: 0
B22: 19 | C22: 7 | F22: 0
B23: 20 | C23: 8 | F23: 0
A24: Post Closure | B24: 21 | C24: 9 | D24: 1 | E24: =PostClosure!AN$35 -> 82149.80435 | F24: 82149.80435
B25: 22 | C25: 10 | D25: =D24+1 -> 2 | E25: =PostClosure!AN$35 -> 82149.80435 | F25: 82149.80435
B26: 23 | C26: 11 | D26: =D25+1 -> 3 | E26: =PostClosure!AN$35 -> 82149.80435 | F26: 82149.80435
B27: 24 | C27: 12 | D27: 4 | E27: =PostClosure!AN$35 -> 82149.80435 | F27: 82149.80435
B28: 25 | C28: 13 | D28: 5 | E28: =PostClosure!AN$35 -> 82149.80435 | F28: 82149.80435
A29: Beyond Post Closure | B29: 26 | C29: 14 | D29: 6 | F29: 0
B30: 27 | C30: 15 | D30: 7 | E30: =PostClosure!AN$35 -> 82149.80435 | F30: 82149.80435
B31: 28 | C31: 16 | D31: 8 | F31: 0
B32: 29 | C32: 17 | D32: 9 | F32: 0
B33: 30 | C33: 18 | D33: 10 | E33: =PostClosure!AN$35 -> 82149.80435 | F33: 82149.80435
B34: 31 | C34: 19 | D34: 11 | F34: 0
B35: 32 | C35: 20 | D35: 12 | F35: 0
B36: 33 | C36: 21 | D36: 13 | F36: 0
B37: 34 | C37: 22 | D37: 14 | F37: 0
B38: 35 | C38: 23 | D38: 15 | E38: =PostClosure!AN$35 -> 82149.80435 | F38: 82149.80435
B39: 36 | C39: 24 | D39: 16 | F39: 0
B40: 37 | C40: 25 | D40: 17 | F40: 0
B41: 38 | C41: 26 | D41: 18 | F41: 0
B42: 39 | C42: 27 | D42: 19 | F42: 0
B43: 40 | C43: 28 | D43: 20 | F43: 0
B44: 41 | C44: 29 | D44: 21 | F44: 0
B45: 42 | C45: 30 | D45: 22 | F45: 0
B46: 43 | C46: 31 | D46: 23 | F46: 0
B47: 44 | C47: 32 | D47: 24 | F47: 0
B48: 45 | C48: 33 | D48: 25 | E48: =PostClosure!AN$35 -> 82149.80435 | F48: 82149.80435
B49: Net Present Value: | F49: =SUM(F4:F48) -> 739348.2392

Sheet Mobilization
A1: 1 | B1: Mobilization/Demobilization:
B3: ACTIVITY/MATERIAL | C3: Notes | D3: Units | E3: Quantity | F3: Cost Code | G3: Unit Cost | H3: Cost
B4: MOBILIZE HEAVY EQUIPMENT | C4: Assumes mining equipment on abandoned mine site is operable and available.
B5: Light duty vehicles | C5: Purchase pickups and Vans | D5: each | F5: =NA() ->  | G5: =IF(ISNA(F5),0,INDEX(IF(UPPER(RIGHT(F5,1))=Low,UnitCostLow, IF(UPPER(RIGHT(F5,1))=High,UnitCostHigh,UnitCostSpecified)),MATCH(UPPER(LEFT(F5,LEN(F5)-1)),CostCode,0))) -> 0 | H5: =G5*E5 -> 0
B6: Telehandlers | C6: Purchase (standby) | D6: each | F6: =NA() ->  | G6: 0 | H6: 0
B7: Excavators | C7: Purchase (320 Ex) | D7: each | F7: =NA() ->  | G7: 0 | H7: 0
B8: Dump trucks | C8: Purchase 30T | D8: each | F8: =NA() ->  | G8: 0 | H8: 0
B9: Dozers | C9: Purchase (D6T) | D9: each | F9: =NA() ->  | G9: 0 | H9: 0
B10: Grader | C10: Purchase (140M) | D10: each | F10: =NA() ->  | G10: 0 | H10: 0
B11: Demolition shears | C11: For a 320 Exc | D11: each | F11: =NA() ->  | G11: =IF(ISNA(F11),0,INDEX(IF(UPPER(RIGHT(F11,1))=Low,UnitCostLow, IF(UPPER(RIGHT(F11,1))=High,UnitCostHigh,UnitCostSpecified)),MATCH(UPPER(LEFT(F11,LEN(F11)-1)),CostCode,0))) -> 0 | H11: =G11*E11 -> 0
B12: Crane | C12: Purchase | D12: each | F12: =NA() ->  | G12: =IF(ISNA(F12),0,INDEX(IF(UPPER(RIGHT(F12,1))=Low,UnitCostLow, IF(UPPER(RIGHT(F12,1))=High,UnitCostHigh,UnitCostSpecified)),MATCH(UPPER(LEFT(F12,LEN(F12)-1)),CostCode,0))) -> 0 | H12: =G12*E12 -> 0
B13: Loader | C13: Purchase (966 Loader) | D13: each | F13: =NA() ->  | G13: =IF(ISNA(F13),0,INDEX(IF(UPPER(RIGHT(F13,1))=Low,UnitCostLow, IF(UPPER(RIGHT(F13,1))=High,UnitCostHigh,UnitCostSpecified)),MATCH(UPPER(LEFT(F13,LEN(F13)-1)),CostCode,0))) -> 0 | H13: 0
B14: Manlifts | C14: Purchase (standby) | D14: each | F14: =NA() ->  | G14: =IF(ISNA(F14),0,INDEX(IF(UPPER(RIGHT(F14,1))=Low,UnitCostLow, IF(UPPER(RIGHT(F14,1))=High,UnitCostHigh,UnitCostSpecified)),MATCH(UPPER(LEFT(F14,LEN(F14)-1)),CostCode,0))) -> 0 | H14: 0
B15: Small Equipment | D15: LS | F15: =NA() ->  | G15: =IF(ISNA(F15),0,INDEX(IF(UPPER(RIGHT(F15,1))=Low,UnitCostLow, IF(UPPER(RIGHT(F15,1))=High,UnitCostHigh,UnitCostSpecified)),MATCH(UPPER(LEFT(F15,LEN(F15)-1)),CostCode,0))) -> 0 | H15: 0
B16: Compactor | D16: each | F16: =NA() ->  | G16: =IF(ISNA(F16),0,INDEX(IF(UPPER(RIGHT(F16,1))=Low,UnitCostLow, IF(UPPER(RIGHT(F16,1))=High,UnitCostHigh,UnitCostSpecified)),MATCH(UPPER(LEFT(F16,LEN(F16)-1)),CostCode,0))) -> 0 | H16: =G16*E16 -> 0
B17: MOBILIZE MISC. EQUIPMENT | C17: Assumes mining equipment on abandoned mine site is operable and available.
B18: Pump shipping | D18: each | F18: =NA() ->  | G18: =IF(ISNA(F18),0,INDEX(IF(UPPER(RIGHT(F18,1))=Low,UnitCostLow, IF(UPPER(RIGHT(F18,1))=High,UnitCostHigh,UnitCostSpecified)),MATCH(UPPER(LEFT(F18,LEN(F18)-1)),CostCode,0))) -> 0 | H18: =G18*E18 -> 0
B19: Pipe shipping | D19: m | F19: =NA() ->  | G19: =IF(ISNA(F19),0,INDEX(IF(UPPER(RIGHT(F19,1))=Low,UnitCostLow, IF(UPPER(RIGHT(F19,1))=High,UnitCostHigh,UnitCostSpecified)),MATCH(UPPER(LEFT(F19,LEN(F19)-1)),CostCode,0))) -> 0 | H19: =G19*E19 -> 0
B20: Minor tools and equipment | D20: allow | F20: =NA() ->  | G20: =IF(ISNA(F20),0,INDEX(IF(UPPER(RIGHT(F20,1))=Low,UnitCostLow, IF(UPPER(RIGHT(F20,1))=High,UnitCostHigh,UnitCostSpecified)),MATCH(UPPER(LEFT(F20,LEN(F20)-1)),CostCode,0))) -> 0 | H20: =G20*E20 -> 0
B21: Truck tires | D21: allow | F21: =NA() ->  | G21: =IF(ISNA(F21),0,INDEX(IF(UPPER(RIGHT(F21,1))=Low,UnitCostLow, IF(UPPER(RIGHT(F21,1))=High,UnitCostHigh,UnitCostSpecified)),MATCH(UPPER(LEFT(F21,LEN(F21)-1)),CostCode,0))) -> 0 | H21: =G21*E21 -> 0
B22: Other | F22: =NA() ->  | G22: =IF(ISNA(F22),0,INDEX(IF(UPPER(RIGHT(F22,1))=Low,UnitCostLow, IF(UPPER(RIGHT(F22,1))=High,UnitCostHigh,UnitCostSpecified)),MATCH(UPPER(LEFT(F22,LEN(F22)-1)),CostCode,0))) -> 0 | H22: 0
B23: MOBILIZE CAMP
B24: Build 20 Person Camp | C24: Goose Closure Camp | D24: LS | E24: ='SBB Comp. Est.'!F109 -> 1 | F24: Sabina | G24: ='SBB Comp. Est.'!X116 -> 22304.82456 | H24: =G24*E24 -> 22304.82456
B25: Build 20 Person Power Plant | C25: Goose Closure Camp | D25: LS | E25: ='SBB Comp. Est.'!F110 -> 1 | F25: Sabina | G25: ='SBB Comp. Est.'!X117 -> 22304.82456 | H25: 22304.82456
B26: Reclamation activities | D26: allow | F26: =NA() ->  | G26: =IF(ISNA(F26),0,INDEX(IF(UPPER(RIGHT(F26,1))=Low,UnitCostLow, IF(UPPER(RIGHT(F26,1))=High,UnitCostHigh,UnitCostSpecified)),MATCH(UPPER(LEFT(F26,LEN(F26)-1)),CostCode,0))) -> 0 | H26: =G26*E26 -> 0
B27: Long term reclamation activities (e.g. pump flooding) | D27: allow | F27: =NA() ->  | G27: =IF(ISNA(F27),0,INDEX(IF(UPPER(RIGHT(F27,1))=Low,UnitCostLow, IF(UPPER(RIGHT(F27,1))=High,UnitCostHigh,UnitCostSpecified)),MATCH(UPPER(LEFT(F27,LEN(F27)-1)),CostCode,0))) -> 0 | H27: =G27*E27 -> 0
B28: WORKER ACCOMODATIONS
B29: Camp operation | D29: mandays | E29: ='SBB Comp. Est.'!F118 -> 12000 | F29: Sabina | G29: ='SBB Comp. Est.'!X118 -> 127.4561404 | H29: =G29*E29 -> 1529473.684
B30: Reclamation activities | D30: manmonths | F30: =NA() ->  | G30: =IF(ISNA(F30),0,INDEX(IF(UPPER(RIGHT(F30,1))=Low,UnitCostLow, IF(UPPER(RIGHT(F30,1))=High,UnitCostHigh,UnitCostSpecified)),MATCH(UPPER(LEFT(F30,LEN(F30)-1)),CostCode,0))) -> 0 | H30: =G30*E30 -> 0
B31: Long term reclamation activities (e.g. pump flooding) | D31: manmonths | F31: =NA() ->  | G31: =IF(ISNA(F31),0,INDEX(IF(UPPER(RIGHT(F31,1))=Low,UnitCostLow, IF(UPPER(RIGHT(F31,1))=High,UnitCostHigh,UnitCostSpecified)),MATCH(UPPER(LEFT(F31,LEN(F31)-1)),CostCode,0))) -> 0 | H31: =G31*E31 -> 0
B32: MOBILIZE FUEL
B33: Fuel freight - reclamation activities | D33: litre | F33: =NA() ->  | G33: =IF(ISNA(F33),0,INDEX(IF(UPPER(RIGHT(F33,1))=Low,UnitCostLow, IF(UPPER(RIGHT(F33,1))=High,UnitCostHigh,UnitCostSpecified)),MATCH(UPPER(LEFT(F33,LEN(F33)-1)),CostCode,0))) -> 0 | H33: =G33*E33 -> 0
B34: Fuel freight - long term reclamation activities | D34: litre | F34: =NA() ->  | G34: =IF(ISNA(F34),0,INDEX(IF(UPPER(RIGHT(F34,1))=Low,UnitCostLow, IF(UPPER(RIGHT(F34,1))=High,UnitCostHigh,UnitCostSpecified)),MATCH(UPPER(LEFT(F34,LEN(F34)-1)),CostCode,0))) -> 0 | H34: =G34*E34 -> 0
B35: Oil & Other | D35: litre | F35: =NA() ->  | G35: =IF(ISNA(F35),0,INDEX(IF(UPPER(RIGHT(F35,1))=Low,UnitCostLow, IF(UPPER(RIGHT(F35,1))=High,UnitCostHigh,UnitCostSpecified)),MATCH(UPPER(LEFT(F35,LEN(F35)-1)),CostCode,0))) -> 0 | H35: =G35*E35 -> 0
B36: Fuel freight accommodations | D36: litre | F36: =NA() ->  | G36: =IF(ISNA(F36),0,INDEX(IF(UPPER(RIGHT(F36,1))=Low,UnitCostLow, IF(UPPER(RIGHT(F36,1))=High,UnitCostHigh,UnitCostSpecified)),MATCH(UPPER(LEFT(F36,LEN(F36)-1)),CostCode,0))) -> 0 | H36: =G36*E36 -> 0
B37: GENERAL CONSTRUCTION INDIRECT
B38: Tooling, consumables, office & safety supplies | C38: covered in Summary tab indirects | D38: mandays | F38: =NA() ->  | G38: =IF(ISNA(F38),0,INDEX(IF(UPPER(RIGHT(F38,1))=Low,UnitCostLow, IF(UPPER(RIGHT(F38,1))=High,UnitCostHigh,UnitCostSpecified)),MATCH(UPPER(LEFT(F38,LEN(F38)-1)),CostCode,0))) -> 0 | H38: =G38*E38 -> 0
B39: DEMOBILIZE HEAVY EQUIPMENT
B40: Excavators | D40: km | F40: =NA() ->  | G40: =IF(ISNA(F40),0,INDEX(IF(UPPER(RIGHT(F40,1))=Low,UnitCostLow, IF(UPPER(RIGHT(F40,1))=High,UnitCostHigh,UnitCostSpecified)),MATCH(UPPER(LEFT(F40,LEN(F40)-1)),CostCode,0))) -> 0 | H40: =G40*E40 -> 0
B41: Dump trucks | D41: km | F41: =NA() ->  | G41: =IF(ISNA(F41),0,INDEX(IF(UPPER(RIGHT(F41,1))=Low,UnitCostLow, IF(UPPER(RIGHT(F41,1))=High,UnitCostHigh,UnitCostSpecified)),MATCH(UPPER(LEFT(F41,LEN(F41)-1)),CostCode,0))) -> 0 | H41: 0
B42: Dozers | D42: km | F42: =NA() ->  | G42: 0 | H42: 0
B43: Demolition shears | D43: km | F43: =NA() ->  | G43: 0 | H43: 0
B44: Crane | D44: km | F44: =NA() ->  | G44: 0 | H44: 0
B45: Loader | D45: km | F45: =NA() ->  | G45: =IF(ISNA(F45),0,INDEX(IF(UPPER(RIGHT(F45,1))=Low,UnitCostLow, IF(UPPER(RIGHT(F45,1))=High,UnitCostHigh,UnitCostSpecified)),MATCH(UPPER(LEFT(F45,LEN(F45)-1)),CostCode,0))) -> 0 | H45: =G45*E45 -> 0
B46: Compactor | D46: each | F46: =NA() ->  | G46: =IF(ISNA(F46),0,INDEX(IF(UPPER(RIGHT(F46,1))=Low,UnitCostLow, IF(UPPER(RIGHT(F46,1))=High,UnitCostHigh,UnitCostSpecified)),MATCH(UPPER(LEFT(F46,LEN(F46)-1)),CostCode,0))) -> 0 | H46: =G46*E46 -> 0
B47: Light duty vehicles | D47: km | F47: =NA() ->  | G47: 0 | H47: 0
B48: Other | D48: km | F48: =NA() ->  | G48: 0 | H48: 0
B49: DEMOBILIZE CAMP
B50: Food and Freight | D50: kg | E50: ='SBB Comp. Est.'!F165 -> 27600 | F50: Sabina | G50: ='SBB Comp. Est.'!X165 -> 13.90430622 | H50: =G50*E50 -> 383758.8517
B51: Freight | D51: Lot | E51: ='SBB Comp. Est.'!F166 -> 1 | F51: Sabina | G51: ='SBB Comp. Est.'!X166 -> 579346.0925 | H51: 579346.0925
B52: Mobilization | D52: tonnes | E52: ='SBB Comp. Est.'!F167 -> 500 | F52: Sabina | G52: ='SBB Comp. Est.'!X167 -> 1738.038278 | H52: =G52*E52 -> 869019.1388
B53: MOBILZE & DEMOBILIZE WORKERS
B54: Crew travel time - inbound & outbound | C54: 16 manhours per rotation | D54: manhours | E54: =(E55+E56)*16 -> 6864 | F54: lab-sh | G54: =Unit_Costs!G83 -> 61.02353937 | H54: =G54*E54 -> 418865.5743
B55: Crew transportation - in& outbound from Yellowknife | C55: 28 day rotations - 12,000 man days - 2/3 | D55: each | E55: ='SBB Comp. Est.'!F172*2/3 -> 286 | F55: Sabina | G55: ='SBB Comp. Est.'!X172 -> 663.2997785 | H55: =G55*E55 -> 189703.7366
B56: Crew transportation - in& outbound from south | C56: 28 day rotations - 12,000 man days - 1/3 | D56: each | E56: ='SBB Comp. Est.'!F172*1/3 -> 143 | F56: Sabina | G56: ='SBB Comp. Est.'!X172+550*(1+Unit_Costs!G5) -> 1339.97209 | H56: =G56*E56 -> 191616.0089
B57: WINTER ROAD
B58: Construction and operation | C58: Assumes construction and maintenance of 2-160 km winter ice roads; once during Active Closure and once in approximately Year 18. | D58: km | E58: =160*2 -> 320 | F58: WRCL | G58: =IF(ISNA(F58),0,INDEX(IF(UPPER(RIGHT(F58,1))=Low,UnitCostLow, IF(UPPER(RIGHT(F58,1))=High,UnitCostHigh,UnitCostSpecified)),MATCH(UPPER(LEFT(F58,LEN(F58)-1)),CostCode,0))) -> 2460.626588 | H58: =G58*E58 -> 787400.508
B59: Limited winter use | D59: km | F59: =NA() ->  | G59: =IF(ISNA(F59),0,INDEX(IF(UPPER(RIGHT(F59,1))=Low,UnitCostLow, IF(UPPER(RIGHT(F59,1))=High,UnitCostHigh,UnitCostSpecified)),MATCH(UPPER(LEFT(F59,LEN(F59)-1)),CostCode,0))) -> 0 | H59: =G59*E59 -> 0
B60: Winter road tariff | D60: km | F60: =NA() ->  | G60: =IF(ISNA(F60),0,INDEX(IF(UPPER(RIGHT(F60,1))=Low,UnitCostLow, IF(UPPER(RIGHT(F60,1))=High,UnitCostHigh,UnitCostSpecified)),MATCH(UPPER(LEFT(F60,LEN(F60)-1)),CostCode,0))) -> 0 | H60: =G60*E60 -> 0
G61: Total | H61: =SUM(H5:H60)+0.0001 -> 4993793.244

Sheet CPI-NU Inflation Calculator
B1: CPI-NU Inflation Calculator
C3: 2014 | D3: 2015 | E3: 2016 | F3: 2017 | G3: 2018 | H3: 2019 | I3: 2020 | J3: 2021 | K3: 2022 | L3: 2023 | M3: 2024 | N3: 2025
B4: CPI-NU: | C4: 118.1 | D4: 120.4 | E4: 123.4 | F4: 125.4 | G4: 129.2 | H4: 131.4 | I4: 131.4 | J4: 133.2 | K4: 138.4 | L4: 141.9 | M4: 144.1 | N4: 145.3
G6: Inflation Factor 2014 to 2026: | H6: =N4/C4 -> 1.230313294 | I6: (Reclaim Unit Costs)
G7: Inflation Factor 2017 to 2026: | H7: =N4/F4 -> 1.158692185 | I7: (Project-Specific Unit Costs, except those originating 2020)
G8: Inflation Factor 2020 to 2026: | H8: =N4/I4 -> 1.105783866 | I8: (Project-Specific Unit Costs originating 2020)

Sheet SBB Comp. Est.
A1: Goose Gold Closure Component Estimating
Y2: INFLATION | Z2: ='CPI-NU Inflation Calculator'!H7-1 -> 0.158692185
H3: Labour | M3: Material | O3: Fixed Equipment | Q3: Mobile Equip | S3: Const Equip Use | U3: Other | W3: Total
A4: Code | B4: Description | C4: NOTES | D4: EQUIPMENT NUMBER | E4: ESTIMATE SOURCE DOCUMENT | F4: Qty | G4: Unit of Measure | H4: Unit Man-hrs | I4: Prod Fact | J4: Total Man-hrs | K4: Unit Cost | L4: Total Cost | M4: Unit Cost | N4: Total Cost | O4: Unit Cost | P4: Total Cost | Q4: Unit Cost | R4: Total Cost | S4: Unit Cost | T4: Total Cost | U4: Unit Cost | V4: Total Cost | W4: Unit Cost | X4: Unit Cost (plus Inflation) | Y4: Total Cost | Z4: Total Cost (plus Inflation)
B5: Open Pit Closure
B6: Place Boulder Fence
B7: Umwelt Open Pit | C7: Updated for Modification Package | E7: x | F7: 1583 | G7: m | H7: 0.06 | I7: 1 | J7: =F7*H7*I7 -> 94.98 | K7: 95 | L7: =J7*K7 -> 9023.1 | M7: 0 | N7: =F7*M7 -> 0 | O7: 0 | P7: =F7*O7 -> 0 | Q7: 0 | R7: =F7*Q7 -> 0 | S7: 175 | T7: =S7*J7 -> 16621.5 | V7: =$F7*U7 -> 0 | W7: =IF(F7>0,Y7/F7,0) -> 16.2 | X7: =IF($F7>0,Z7/$F7,0) -> 18.7708134 | Y7: =L7+N7+P7+R7+T7+V7 -> 25644.6 | Z7: =Y7*(1+$Z$2) -> 29714.19761
B8: Echo open pit | C8: Not in current mine plan; item remains to keep Stage in tact. | E8: x | F8: 750 | G8: m | H8: 0.06 | I8: 1 | J8: =F8*H8*I8 -> 45 | K8: 95 | L8: 4275 | M8: 0 | N8: 0 | O8: 0 | P8: 0 | Q8: 0 | R8: 0 | S8: 175 | T8: =S8*J8 -> 7875 | V8: 0 | W8: 16.2 | X8: =IF($F8>0,Z8/$F8,0) -> 18.7708134 | Y8: 12150 | Z8: =Y8*(1+$Z$2) -> 14078.11005
B9: Goose open pit | C9: Updated for Modification Package | E9: x | F9: 2340 | G9: m | H9: 0.06 | I9: 1 | J9: 140.4 | K9: 95 | L9: 13338 | M9: 0 | N9: 0 | O9: 0 | P9: 0 | Q9: 0 | R9: 0 | S9: 175 | T9: 24570 | V9: 0 | W9: 16.2 | X9: =IF($F9>0,Z9/$F9,0) -> 18.7708134 | Y9: 37908 | Z9: 43923.70335
B10: Llama open pit | C10: Updated for Modification Package; Perimeter only required where pit edge will not abut final flooded lake footprint. (i.e., 600 m total) | E10: x | F10: 600 | G10: m | H10: 0.06 | I10: 1 | J10: =F10*H10*I10 -> 36 | K10: 95 | L10: =J10*K10 -> 3420 | M10: 0 | N10: =F10*M10 -> 0 | O10: 0 | P10: =F10*O10 -> 0 | Q10: 0 | R10: =F10*Q10 -> 0 | S10: 175 | T10: =S10*J10 -> 6300 | V10: =$F10*U10 -> 0 | W10: =IF(F10>0,Y10/F10,0) -> 16.2 | X10: =IF($F10>0,Z10/$F10,0) -> 18.7708134 | Y10: =L10+N10+P10+R10+T10+V10 -> 9720 | Z10: 11262.48804
B11: Remove Pump and Pipeline
B12: Umwelt pit sump | C12: Occurs during Operations | E12: x | F12: 1740 | G12: m | H12: 0.04 | I12: 1 | J12: =F12*H12*I12 -> 69.6 | K12: 95 | L12: =J12*K12 -> 6612 | M12: 0 | N12: =F12*M12 -> 0 | O12: 0 | P12: =F12*O12 -> 0 | Q12: 0 | R12: =F12*Q12 -> 0 | S12: 155 | T12: =S12*J12 -> 10788 | V12: 0 | W12: =IF(F12>0,Y12/F12,0) -> 10 | X12: =IF($F12>0,Z12/$F12,0) -> 11.58692185 | Y12: =L12+N12+P12+R12+T12+V12 -> 17400 | Z12: =Y12*(1+$Z$2) -> 20161.24402
B13: Llama pit sump | C13: Occurs during Closure | E13: x | F13: 2850 | G13: m | H13: 0.04 | I13: 1 | J13: 114 | K13: 95 | L13: 10830 | M13: 0 | N13: 0 | O13: 0 | P13: 0 | Q13: 0 | R13: 0 | S13: 155 | T13: =S13*J13 -> 17670 | V13: 0 | W13: 10 | X13: 11.58692185 | Y13: 28500 | Z13: 33022.72727
B14: Goose pit sump | C14: Occurs during Operations | E14: x | F14: 4325 | G14: m | H14: 0.04 | I14: 1 | J14: 173 | K14: 95 | L14: 16435 | M14: 0 | N14: 0 | O14: 0 | P14: 0 | Q14: 0 | R14: 0 | S14: 155 | T14: 26815 | V14: 0 | W14: 10 | X14: 11.58692185 | Y14: 43250 | Z14: 50113.437
B15: Echo pit sump | C15: Updated for Supplementary Adjustments | E15: x | F15: 2820 | G15: m | H15: 0.04 | I15: 1 | J15: 112.8 | K15: 95 | L15: 10716 | M15: 0 | N15: 0 | O15: 0 | P15: 0 | Q15: 0 | R15: 0 | S15: 155 | T15: 17484 | V15: 0 | W15: 10 | X15: 11.58692185 | Y15: 28200 | Z15: 32675.11962
B16: Breech Pits into Receiving Waters
B17: Umwelt open pit | E17: x | F17: 1200 | G17: m3 | H17: 0.12 | I17: 1 | J17: =F17*H17*I17 -> 144 | L17: =J17*K17 -> 0 | M17: 0 | N17: =F17*M17 -> 0 | O17: 0 | P17: =F17*O17 -> 0 | Q17: 0 | R17: =F17*Q17 -> 0 | S17: 5 | T17: =S17*F17 -> 6000 | V17: 0 | W17: =IF(F17>0,Y17/F17,0) -> 5 | X17: =IF($F17>0,Z17/$F17,0) -> 5.793460925 | Y17: =L17+N17+P17+R17+T17+V17 -> 6000 | Z17: =Y17*(1+$Z$2) -> 6952.15311
B18: Llama open pit | C18: Natural drainage connection | E18: x | F18: 0 | G18: m3 | H18: 0.12 | I18: 1 | J18: 0 | L18: 0 | M18: 0 | N18: 0 | O18: 0 | P18: 0 | Q18: 0 | R18: 0 | S18: 5 | T18: 0 | V18: 0 | W18: 0 | X18: 0 | Y18: =L18+N18+P18+R18+T18+V18 -> 0 | Z18: 0
B19: Echo open pit | C19: Natural drainage connection | E19: x | F19: 0 | G19: m3 | H19: 0.12 | I19: 1 | J19: 0 | L19: 0 | M19: 0 | N19: 0 | O19: 0 | P19: 0 | Q19: 0 | R19: 0 | S19: 5 | T19: 0 | V19: 0 | W19: 0 | X19: 0 | Y19: 0 | Z19: 0
B20: Goose open pit | E20: x | F20: 600 | G20: m3 | H20: 0.12 | I20: 1 | J20: 72 | L20: 0 | M20: 0 | N20: 0 | O20: 0 | P20: 0 | Q20: 0 | R20: 0 | S20: 5 | T20: 3000 | V20: 0 | W20: 5 | X20: 5.793460925 | Y20: 3000 | Z20: 3476.076555
B21: Landfill Mobile Equipment
B22: Goose Site Mobile Equipment | E22: x | F22: 41 | G22: units | H22: 24 | I22: 1 | J22: 984 | K22: 95 | L22: 93480 | M22: 0 | N22: 0 | O22: 0 | P22: 0 | Q22: 0 | R22: 0 | S22: 0 | T22: 0 | V22: 0 | W22: 2280 | X22: =IF($F22>0,Z22/$F22,0) -> 2641.818182 | Y22: 93480 | Z22: =Y22*(1+$Z$2) -> 108314.5455
B23: Underground Closure
B24: Saline Water Pond (SWP) / WTP
B25: Relocate pipeline to Umwelt UG from Llama UG | C25: Not in current mine plan; cost remains to keep Stage in tact. | E25: x | F25: 800 | G25: m | H25: 0.04 | I25: 1 | J25: 32 | K25: 95 | L25: =J25*K25 -> 3040 | M25: 0 | N25: =F25*M25 -> 0 | O25: 0 | P25: =F25*O25 -> 0 | Q25: 0 | R25: =F25*Q25 -> 0 | S25: 155 | T25: =S25*J25 -> 4960 | V25: =$F25*U25 -> 0 | W25: =IF(F25>0,Y25/F25,0) -> 10 | X25: =IF($F25>0,Z25/$F25,0) -> 11.58692185 | Y25: =L25+N25+P25+R25+T25+V25 -> 8000 | Z25: =Y25*(1+$Z$2) -> 9269.53748
B26: Dewater SWP to Umwelt UG | C26: Accounts for Umwelt Underground (650 m), and Umwelt Underground Extension (650m to 900m) | E26: x | F26: 1071225 | G26: m3 | H26: 1 | I26: 1 | J26: 153 | K26: 95 | L26: =J26*K26 -> 14535 | M26: 0 | N26: =F26*M26 -> 0 | O26: 0 | P26: =F26*O26 -> 0 | Q26: 0 | R26: =F26*Q26 -> 0 | T26: =S26*250 -> 0 | U26: 0.12 | V26: =$F26*U26 -> 128547 | W26: =IF(F26>0,Y26/F26,0) -> 0.133568578 | X26: 0.1547648675 | Y26: =L26+N26+P26+R26+T26+V26 -> 143082 | Z26: 165787.9952
B27: Decommission SWP to Umwelt UG pipeline | C27: Accounts for Umwelt Underground (650 m), and Umwelt Underground Extension (650m to 900m) | E27: x | F27: =1200+462 -> 1662 | G27: m | H27: 0.04 | I27: 1 | J27: =H27*I27*F27 -> 66.48 | K27: 95 | L27: 6315.6 | M27: 0 | N27: 0 | O27: 0 | P27: 0 | Q27: 0 | R27: 0 | S27: 155 | T27: =S27*J27 -> 10304.4 | V27: 0 | W27: =IF(F27>0,Y27/F27,0) -> 10 | X27: 11.58692185 | Y27: 16620 | Z27: 19257.46411
B28: Adjust pipeline to route to Llama UG | C28: Not in current mine plan; cost remains to keep Stage in tact. | E28: x | F28: 500 | G28: m | H28: =0.03 -> 0.03 | I28: 1 | J28: =F28*H28*I28+50 -> 65 | K28: 95 | L28: 6175 | M28: 0 | N28: 0 | O28: 0 | P28: 0 | Q28: 0 | R28: 0 | T28: 0 | V28: 0 | W28: =IF(F28>0,Y28/F28,0) -> 12.35 | X28: 14.30984848 | Y28: 6175 | Z28: 7154.924242
B29: Dewater SWP to Llama UG | C29: Not in current mine plan; cost remains to keep Stage in tact. | E29: x | F29: 324234 | G29: m3 | I29: 1 | J29: 80 | K29: 95 | L29: 7600 | M29: 0 | N29: 0 | O29: 0 | P29: 0 | Q29: 0 | R29: 0 | T29: 0 | U29: 0.11 | V29: 35665.74 | W29: 0.1334398613 | X29: 0.1546157245 | Y29: 43265.74 | Z29: 50131.67482
B30: Adjust pipeline to route to Goose UG | C30: Not in current mine plan; cost remains to keep Stage in tact. | E30: x | F30: 4500 | G30: m | H30: 0.04 | I30: 1 | J30: =F30*H30*I30+50 -> 230 | K30: 95 | L30: =J30*K30 -> 21850 | M30: 0 | N30: =F30*M30 -> 0 | O30: 0 | P30: =F30*O30 -> 0 | Q30: 0 | R30: =F30*Q30 -> 0 | S30: 155 | T30: =S30*J30 -> 35650 | V30: =$F30*U30 -> 0 | W30: =IF(F30>0,Y30/F30,0) -> 12.77777778 | X30: 14.80551125 | Y30: =L30+N30+P30+R30+T30+V30 -> 57500 | Z30: 66624.80064
B31: Dewater SWP to Goose UG | C31: Not in current mine plan; cost remains to keep Stage in tact. | E31: x | F31: 391630 | G31: m3 | I31: 1 | J31: 215 | K31: 95 | L31: 20425 | M31: 0 | N31: 0 | O31: 0 | P31: 0 | Q31: 0 | R31: 0 | T31: =S31*F31 -> 0 | U31: 0.11 | V31: 43079.3 | W31: =IF(F31>0,Y31/F31,0) -> 0.1621538187 | X31: 0.1878863624 | Y31: 63504.3 | Z31: 73581.93612
B32: Decommission SWP to Goose UG pipelines | C32: Not in current mine plan; cost remains to keep Stage in tact. | E32: x | F32: 10800 | G32: m | H32: 0.04 | I32: 1 | J32: =H32*I32*F32 -> 432 | K32: 95 | L32: 41040 | M32: 0 | N32: 0 | O32: 0 | P32: 0 | Q32: 0 | R32: 0 | S32: 155 | T32: =S32*J32 -> 66960 | V32: 0 | W32: 10 | X32: 11.58692185 | Y32: 108000 | Z32: 125138.756
B33: Breach SWP Diversion Berms and Containment Dams | E33: x | F33: 430 | G33: m3 | H33: 0.12 | I33: 1 | J33: =H33*I33*F33 -> 51.6 | L33: 0 | M33: 0 | N33: 0 | O33: 0 | P33: 0 | Q33: 0 | R33: 0 | S33: 8 | T33: =S33*F33 -> 3440 | V33: 0 | W33: 8 | X33: 9.26953748 | Y33: 3440 | Z33: 3985.901116
B34: Decommission WTP-Goose Lake pipeline | E34: x | F34: 1140 | G34: m | H34: 0.04 | I34: 1 | J34: =H34*I34*F34 -> 45.6 | K34: 95 | L34: 4332 | M34: 0 | N34: 0 | O34: 0 | P34: 0 | Q34: 0 | R34: 0 | S34: 155 | T34: =S34*J34 -> 7068 | V34: 0 | W34: 10 | X34: 11.58692185 | Y34: 11400 | Z34: 13209.09091
B35: Llama UG
B36: Decommission pipeline | C36: Not in current mine plan; item remains to keep Stage in tact. | E36: x | F36: 2700 | G36: m | H36: 0.04 | I36: 1 | J36: =F36*H36*I36 -> 108 | K36: 95 | L36: =J36*K36 -> 10260 | M36: 0 | N36: =F36*M36 -> 0 | O36: 0 | P36: =F36*O36 -> 0 | Q36: 0 | R36: =F36*Q36 -> 0 | S36: 155 | T36: =S36*J36 -> 16740 | V36: =$F36*U36 -> 0 | W36: =IF(F36>0,Y36/F36,0) -> 10 | X36: =IF($F36>0,Z36/$F36,0) -> 11.58692185 | Y36: =L36+N36+P36+R36+T36+V36 -> 27000 | Z36: =Y36*(1+$Z$2) -> 31284.689
B37: Umwelt portal
B38: Plug declines with waste rock | E38: x | F38: 150 | G38: m3 | H38: 0.052 | I38: 1 | J38: =F38*H38*I38 -> 7.8 | L38: =J38*K38 -> 0 | M38: 0 | N38: =F38*M38 -> 0 | O38: 0 | P38: =F38*O38 -> 0 | Q38: 0 | R38: =F38*Q38 -> 0 | S38: 6 | T38: =S38*F38 -> 900 | V38: =$F38*U38 -> 0 | W38: =IF(F38>0,Y38/F38,0) -> 6 | X38: =IF($F38>0,Z38/$F38,0) -> 6.95215311 | Y38: =L38+N38+P38+R38+T38+V38 -> 900 | Z38: =Y38*(1+$Z$2) -> 1042.822967
B39: Llama portal
B40: Plug declines with waste rock | C40: Not in current mine plan; item remains to keep Stage in tact. | E40: x | F40: 150 | G40: m3 | H40: 0.05 | I40: 1 | J40: =F40*H40*I40 -> 7.5 | L40: =J40*K40 -> 0 | M40: 0 | N40: =F40*M40 -> 0 | O40: 0 | P40: =F40*O40 -> 0 | Q40: 0 | R40: =F40*Q40 -> 0 | S40: 6 | T40: =S40*F40 -> 900 | V40: =$F40*U40 -> 0 | W40: =IF(F40>0,Y40/F40,0) -> 6 | X40: =IF($F40>0,Z40/$F40,0) -> 6.95215311 | Y40: =L40+N40+P40+R40+T40+V40 -> 900 | Z40: =Y40*(1+$Z$2) -> 1042.822967
B41: Goose portal
B42: Plug declines with waste rock | C42: Not in current mine plan; item remains to keep Stage in tact. | E42: x | F42: 150 | G42: m3 | H42: 0.05 | I42: 1 | J42: =F42*H42*I42 -> 7.5 | L42: =J42*K42 -> 0 | M42: 0 | N42: =F42*M42 -> 0 | O42: 0 | P42: =F42*O42 -> 0 | Q42: 0 | R42: =F42*Q42 -> 0 | S42: 6 | T42: =S42*F42 -> 900 | V42: =$F42*U42 -> 0 | W42: =IF(F42>0,Y42/F42,0) -> 6 | X42: =IF($F42>0,Z42/$F42,0) -> 6.95215311 | Y42: =L42+N42+P42+R42+T42+V42 -> 900 | Z42: =Y42*(1+$Z$2) -> 1042.822967
B43: Echo portal
B44: Plug declines with waste rock | C44: Not in current mine plan; item remains to keep Stage in tact. | E44: x | F44: 150 | G44: m3 | H44: 0.05 | I44: 1 | J44: =F44*H44*I44 -> 7.5 | L44: =J44*K44 -> 0 | M44: 0 | N44: =F44*M44 -> 0 | O44: 0 | P44: =F44*O44 -> 0 | Q44: 0 | R44: =F44*Q44 -> 0 | S44: 6 | T44: =S44*F44 -> 900 | V44: =$F44*U44 -> 0 | W44: =IF(F44>0,Y44/F44,0) -> 6 | X44: =IF($F44>0,Z44/$F44,0) -> 6.95215311 | Y44: =L44+N44+P44+R44+T44+V44 -> 900 | Z44: =Y44*(1+$Z$2) -> 1042.822967
B45: Umwelt vent/circular backfill raises
B46: Plug vent raises with concrete plug | E46: x | F46: 1 | G46: LS | H46: 1 | I46: 1 | J46: 60 | L46: =J46*K46 -> 0 | M46: 0 | N46: =F46*M46 -> 0 | O46: 0 | P46: =F46*O46 -> 0 | Q46: 0 | R46: =F46*Q46 -> 0 | S46: 0 | T46: =S46*F46 -> 0 | V46: =$F46*U46 -> 0 | W46: =IF(F46>0,Y46/F46,0) -> 120000 | X46: =IF($F46>0,Z46/$F46,0) -> 139043.0622 | Y46: 120000 | Z46: =Y46*(1+$Z$2) -> 139043.0622
B47: Llama vent/circular backfill raises
B48: Plug vent raises with concrete plug | C48: Not in current mine plan; item remains to keep Stage in tact. | E48: x | F48: 1 | G48: LS | H48: 1 | I48: 1 | J48: 60 | L48: =J48*K48 -> 0 | M48: 0 | N48: =F48*M48 -> 0 | O48: 0 | P48: =F48*O48 -> 0 | Q48: 0 | R48: =F48*Q48 -> 0 | S48: 0 | T48: =S48*F48 -> 0 | V48: =$F48*U48 -> 0 | W48: =IF(F48>0,Y48/F48,0) -> 50000 | X48: =IF($F48>0,Z48/$F48,0) -> 57934.60925 | Y48: 50000 | Z48: =Y48*(1+$Z$2) -> 57934.60925
B49: Goose vent/circular backfill raises
B50: Plug vent raises with concrete plug | C50: Not in current mine plan; item remains to keep Stage in tact. | E50: x | F50: 1 | G50: LS | H50: 1 | I50: 1 | J50: 60 | L50: =J50*K50 -> 0 | M50: 0 | N50: =F50*M50 -> 0 | O50: 0 | P50: =F50*O50 -> 0 | Q50: 0 | R50: =F50*Q50 -> 0 | S50: 0 | T50: =S50*F50 -> 0 | V50: =$F50*U50 -> 0 | W50: =IF(F50>0,Y50/F50,0) -> 50000 | X50: =IF($F50>0,Z50/$F50,0) -> 57934.60925 | Y50: 50000 | Z50: =Y50*(1+$Z$2) -> 57934.60925
B51: Echo vent/circular backfill raises
B52: Plug vent raises with concrete plug | C52: Not in current mine plan; item remains to keep Stage in tact. | E52: x | F52: 1 | G52: LS | H52: 1 | I52: 1 | J52: 60 | L52: =J52*K52 -> 0 | M52: 0 | N52: =F52*M52 -> 0 | O52: 0 | P52: =F52*O52 -> 0 | Q52: 0 | R52: =F52*Q52 -> 0 | S52: 0 | T52: =S52*F52 -> 0 | V52: =$F52*U52 -> 0 | W52: 50000 | X52: =IF($F52>0,Z52/$F52,0) -> 57934.60925 | Y52: 50000 | Z52: =Y52*(1+$Z$2) -> 57934.60925
B53: Echo crown pillar
B54: Plug UG stopes | C54: Not in current mine plan; item remains to keep Stage in tact. | E54: x | F54: 3550 | G54: m3 | H54: 0.05 | I54: 1 | J54: =F54*H54*I54 -> 177.5 | L54: =J54*K54 -> 0 | M54: 0 | N54: =F54*M54 -> 0 | O54: 0 | P54: =F54*O54 -> 0 | Q54: 0 | R54: =F54*Q54 -> 0 | S54: 6 | T54: =S54*F54 -> 21300 | V54: =$F54*U54 -> 0 | W54: =IF(F54>0,Y54/F54,0) -> 6 | X54: =IF($F54>0,Z54/$F54,0) -> 6.95215311 | Y54: =L54+N54+P54+R54+T54+V54 -> 21300 | Z54: =Y54*(1+$Z$2) -> 24680.14354
B55: Waste Rock Stockpiles and Landfills
B56: WR Pile Closure
B57: Cap and Slope WR Piles | C57: Updated Waste Rock Volume cover allotment. | E57: x | F57: 1200000 | G57: m3 | H57: 0.06 | I57: 1 | J57: =F57*H57*I57 -> 72000 | L57: =J57*K57 -> 0 | M57: 0 | N57: =F57*M57 -> 0 | O57: 0 | P57: =F57*O57 -> 0 | Q57: 0 | R57: =F57*Q57 -> 0 | S57: 6 | T57: =S57*F57 -> 7200000 | V57: =$F57*U57 -> 0 | W57: =IF(F57>0,Y57/F57,0) -> 6 | X57: =IF($F57>0,Z57/$F57,0) -> 6.95215311 | Y57: =(L57+N57+P57+R57+T57+V57) -> 7200000 | Z57: =Y57*(1+$Z$2) -> 8342583.732
B58: Landfill Closure
B59: Cap and Reslope Landfills | E59: x | F59: 25000 | G59: m3 | H59: 0.06 | I59: 1 | J59: =F59*H59*I59 -> 1500 | L59: =J59*K59 -> 0 | M59: 0 | N59: =F59*M59 -> 0 | O59: 0 | P59: =F59*O59 -> 0 | Q59: 0 | R59: =F59*Q59 -> 0 | S59: 6 | T59: =S59*F59 -> 150000 | V59: =$F59*U59 -> 0 | W59: =IF(F59>0,Y59/F59,0) -> 6 | X59: =IF($F59>0,Z59/$F59,0) -> 6.95215311 | Y59: =(L59+N59+P59+R59+T59+V59) -> 150000 | Z59: =Y59*(1+$Z$2) -> 173803.8278
B60: Water Management Structures
B61: Llama Structures
B62: Breach Llama Lake Diversion Berms | E62: x | F62: 665 | G62: m3 | H62: 0.064 | I62: 1 | J62: =F62*H62*I62 -> 42.56 | L62: =J62*K62 -> 0 | M62: 0 | N62: =F62*M62 -> 0 | O62: 0 | P62: =F62*O62 -> 0 | Q62: 0 | R62: =F62*Q62 -> 0 | S62: =7.3 -> 7.3 | T62: =S62*F62 -> 4854.5 | V62: =$F62*U62 -> 0 | W62: =IF(F62>0,Y62/F62,0) -> 7.3 | X62: =IF($F62>0,Z62/$F62,0) -> 8.458452951 | Y62: =L62+N62+P62+R62+T62+V62 -> 4854.5 | Z62: =Y62*(1+$Z$2) -> 5624.871212
B63: Breach Llama WRSA Diversion Berm | E63: x | F63: 95 | G63: m3 | H63: 0.064 | I63: 1 | J63: =F63*H63*I63 -> 6.08 | L63: =J63*K63 -> 0 | M63: 0 | N63: =F63*M63 -> 0 | O63: 0 | P63: =F63*O63 -> 0 | Q63: 0 | R63: =F63*Q63 -> 0 | S63: 7.3 | T63: =S63*F63 -> 693.5 | V63: =$F63*U63 -> 0 | W63: 7.3 | X63: 8.458452951 | Y63: =L63+N63+P63+R63+T63+V63 -> 693.5 | Z63: =Y63*(1+$Z$2) -> 803.5530303
B64: Breach Llama WRSA Containment Dam | F64: 95 | G64: m3 | H64: 0.064 | I64: 1 | J64: =F64*H64*I64 -> 6.08 | L64: =J64*K64 -> 0 | M64: 0 | N64: =F64*M64 -> 0 | O64: 0 | P64: =F64*O64 -> 0 | Q64: 0 | R64: =F64*Q64 -> 0 | S64: 7.3 | T64: =S64*F64 -> 693.5 | V64: =$F64*U64 -> 0 | W64: 7.3 | X64: 8.458452951 | Y64: =L64+N64+P64+R64+T64+V64 -> 693.5 | Z64: =Y64*(1+$Z$2) -> 803.5530303
B65: Decommission Llama pump and pipeline | E65: x | F65: 700 | G65: m | H65: 0.04 | I65: 1 | J65: =F65*H65*I65+24 -> 52 | K65: 95 | L65: =J65*K65 -> 4940 | M65: 0 | N65: =F65*M65 -> 0 | O65: 0 | P65: =F65*O65 -> 0 | Q65: 0 | R65: =F65*Q65 -> 0 | S65: 155 | T65: =S65*J65 -> 8060 | V65: =$F65*U65 -> 0 | W65: 18.57142857 | X65: 21.51856915 | Y65: =L65+N65+P65+R65+T65+V65 -> 13000 | Z65: =Y65*(1+$Z$2) -> 15062.99841
B66: Umwelt Structures
B67: Breach Primary Pond Containment Dam | E67: x | F67: 200 | G67: m3 | H67: 0.064 | I67: 1 | J67: =F67*H67*I67 -> 12.8 | L67: =J67*K67 -> 0 | M67: 0 | N67: =F67*M67 -> 0 | O67: 0 | P67: =F67*O67 -> 0 | Q67: 0 | R67: =F67*Q67 -> 0 | S67: 7.3 | T67: =S67*F67 -> 1460 | V67: =$F67*U67 -> 0 | W67: =IF(F67>0,Y67/F67,0) -> 7.3 | X67: =IF($F67>0,Z67/$F67,0) -> 8.458452951 | Y67: =L67+N67+P67+R67+T67+V67 -> 1460 | Z67: =Y67*(1+$Z$2) -> 1691.69059
B68: Breach Umwelt WRSA Containment Dam | C68: Berm has been removed from water management design | E68: x | F68: 0 | G68: m3 | H68: 0.064 | I68: 1 | J68: =F68*H68*I68 -> 0 | L68: =J68*K68 -> 0 | M68: 0 | N68: =F68*M68 -> 0 | O68: 0 | P68: =F68*O68 -> 0 | Q68: 0 | R68: =F68*Q68 -> 0 | S68: 7.3 | T68: =S68*F68 -> 0 | V68: =$F68*U68 -> 0 | W68: 0 | X68: 0 | Y68: =L68+N68+P68+R68+T68+V68 -> 0 | Z68: =Y68*(1+$Z$2) -> 0
B69: Breach Umwelt WRSA Diversion Berm | C69: Berm has been removed from water management design | E69: x | F69: 0 | G69: m3 | H69: 0.064 | I69: 1 | J69: =F69*H69*I69 -> 0 | L69: =J69*K69 -> 0 | M69: 0 | N69: =F69*M69 -> 0 | O69: 0 | P69: =F69*O69 -> 0 | Q69: 0 | R69: =F69*Q69 -> 0 | S69: 7.3 | T69: =S69*F69 -> 0 | V69: =$F69*U69 -> 0 | W69: 0 | X69: 0 | Y69: =L69+N69+P69+R69+T69+V69 -> 0 | Z69: =Y69*(1+$Z$2) -> 0
B70: Remove Saline Water Pond pump and pipeline | E70: x | F70: 10800 | G70: m | H70: 0.04 | I70: 1 | J70: =I70*H70*F70+30 -> 462 | K70: 95 | L70: =J70*K70 -> 43890 | M70: 0 | N70: =F70*M70 -> 0 | O70: 0 | P70: =F70*O70 -> 0 | Q70: 0 | R70: =F70*Q70 -> 0 | S70: 155 | T70: =S70*J70 -> 71610 | V70: =$F70*U70 -> 0 | W70: 10.69444444 | X70: 12.3915692 | Y70: =L70+N70+P70+R70+T70+V70 -> 115500 | Z70: =Y70*(1+$Z$2) -> 133828.9474
B71: Remove Primary pond pump and pipeline | C71: Occurs during Operations | E71: x | F71: 7250 | G71: m | H71: 0.04 | I71: 1 | J71: =I71*H71*F71+30 -> 320 | K71: 95 | L71: =J71*K71 -> 30400 | M71: 0 | N71: =F71*M71 -> 0 | O71: 0 | P71: =F71*O71 -> 0 | Q71: 0 | R71: =F71*Q71 -> 0 | S71: 155 | T71: 49600 | V71: =$F71*U71 -> 0 | W71: 11.03448276 | X71: 12.78556894 | Y71: =L71+N71+P71+R71+T71+V71 -> 80000 | Z71: =Y71*(1+$Z$2) -> 92695.3748
B72: Echo Structures
B73: Breach Echo WRSA Containment Dam | C73: Not in current mine plan; item remains to keep Stage in tact. | E73: x | F73: =19*5*2 -> 190 | G73: m3 | H73: 0.063 | I73: 1 | J73: =F73*H73*I73 -> 11.97 | L73: =J73*K73 -> 0 | M73: 0 | N73: =F73*M73 -> 0 | O73: 0 | P73: =F73*O73 -> 0 | Q73: 0 | R73: =F73*Q73 -> 0 | S73: 7.3 | T73: =S73*F73 -> 1387 | V73: =$F73*U73 -> 0 | W73: =IF(F73>0,Y73/F73,0) -> 7.3 | X73: =IF($F73>0,Z73/$F73,0) -> 8.458452951 | Y73: =L73+N73+P73+R73+T73+V73 -> 1387 | Z73: =Y73*(1+$Z$2) -> 1607.106061
B74: Breach Echo Diversion Berm (East and West) | C74: Not in current mine plan; item remains to keep Stage in tact. | E74: x | F74: =19*5*2 -> 190 | G74: m3 | H74: 0.063 | I74: 1 | J74: =F74*H74*I74 -> 11.97 | L74: 0 | M74: 0 | N74: 0 | O74: 0 | P74: 0 | Q74: 0 | R74: 0 | S74: 7.3 | T74: 1387 | V74: 0 | W74: 7.3 | X74: 8.458452951 | Y74: 1387 | Z74: 1607.106061
B75: Breach Echo WRSA Diversion Berm | C75: Not in current mine plan; item remains to keep Stage in tact. | E75: x | F75: =19*5*1 -> 95 | G75: m3 | H75: 0.064 | I75: 1 | J75: =F75*H75*I75 -> 6.08 | L75: 0 | M75: 0 | N75: 0 | O75: 0 | P75: 0 | Q75: 0 | R75: 0 | S75: 7.3 | T75: 693.5 | V75: 0 | W75: 7.3 | X75: 8.458452951 | Y75: 693.5 | Z75: 803.5530303
B76: Breach East Echo Containment Dam | C76: Not in current mine plan; item remains to keep Stage in tact. | E76: x | F76: =19*5*1 -> 95 | G76: m3 | H76: 0.064 | I76: 1 | J76: =F76*H76*I76 -> 6.08 | L76: 0 | M76: 0 | N76: 0 | O76: 0 | P76: 0 | Q76: 0 | R76: 0 | S76: 7.3 | T76: 693.5 | V76: 0 | W76: 7.3 | X76: 8.458452951 | Y76: 693.5 | Z76: 803.5530303
B77: Remove Echo WRSA Pond pump and pipeline | C77: Not in current mine plan; item remains to keep Stage in tact. | E77: x | F77: 2400 | G77: m | H77: 0.04 | I77: 1 | J77: =F77*H77*I77 -> 96 | K77: 95 | L77: 9120 | M77: 0 | N77: 0 | O77: 0 | P77: 0 | Q77: 0 | R77: 0 | S77: 155 | T77: =S77*J77 -> 14880 | V77: 0 | W77: 10 | X77: 11.58692185 | Y77: 24000 | Z77: 27808.61244
B78: Remove Echo NCW pond pump and pipeline | C78: Not in current mine plan; item remains to keep Stage in tact. | E78: x | F78: 220 | G78: m | H78: 0.04 | I78: 1 | J78: =F78*H78*I78+12 -> 20.8 | K78: 95 | L78: 1976 | M78: 0 | N78: 0 | O78: 0 | P78: 0 | Q78: 0 | R78: 0 | S78: 155 | T78: =S78*J78 -> 3224 | V78: 0 | W78: 23.63636364 | X78: 27.38726983 | Y78: 5200 | Z78: 6025.199362
B79: Goose Structures
B80: Breach Goose Main Diversion Berm | E80: x | F80: =19*5*1 -> 95 | G80: m3 | H80: 1 | I80: 1 | J80: =F80*H80*I80 -> 95 | L80: =J80*K80 -> 0 | M80: 0 | N80: =F80*M80 -> 0 | O80: 0 | P80: =F80*O80 -> 0 | Q80: 0 | R80: =F80*Q80 -> 0 | S80: 7.3 | T80: =S80*F80 -> 693.5 | V80: =$F80*U80 -> 0 | W80: =IF(F80>0,Y80/F80,0) -> 7.3 | X80: =IF($F80>0,Z80/$F80,0) -> 8.458452951 | Y80: =L80+N80+P80+R80+T80+V80 -> 693.5 | Z80: =Y80*(1+$Z$2) -> 803.5530303
B81: TSF Structures
B82: Breach TSF Dam | E82: x | F82: =550*20 -> 11000 | G82: m3 | H82: 0.05 | I82: 1 | J82: =F82*H82*I82 -> 550 | L82: =J82*K82 -> 0 | M82: 0 | N82: =F82*M82 -> 0 | O82: 0 | P82: =F82*O82 -> 0 | Q82: 0 | R82: =F82*Q82 -> 0 | S82: 7.3 | T82: =S82*F82 -> 80300 | V82: =$F82*U82 -> 0 | W82: =IF(F82>0,Y82/F82,0) -> 7.3 | X82: =IF($F82>0,Z82/$F82,0) -> 8.458452951 | Y82: =L82+N82+P82+R82+T82+V82 -> 80300 | Z82: =Y82*(1+$Z$2) -> 93042.98246
B83: Breach TSF WRSA Diversion Berm | E83: x | F83: =19*5*3 -> 285 | G83: m3 | H83: 0.05 | I83: 1 | J83: =F83*H83*I83 -> 14.25 | L83: =J83*K83 -> 0 | M83: 0 | N83: =F83*M83 -> 0 | O83: 0 | P83: =F83*O83 -> 0 | Q83: 0 | R83: =F83*Q83 -> 0 | S83: 7.3 | T83: =S83*F83 -> 2080.5 | V83: =$F83*U83 -> 0 | W83: =IF(F83>0,Y83/F83,0) -> 7.3 | X83: =IF($F83>0,Z83/$F83,0) -> 8.458452951 | Y83: =L83+N83+P83+R83+T83+V83 -> 2080.5 | Z83: =Y83*(1+$Z$2) -> 2410.659091
B84: Ore Stockpile Structures
B85: Remove pump and pipeline | E85: x | F85: 4550 | G85: m | H85: 0.04 | I85: 1 | J85: =F85*H85*I85 -> 182 | K85: 95 | L85: =J85*K85 -> 17290 | M85: 0 | N85: =F85*M85 -> 0 | O85: 0 | P85: =F85*O85 -> 0 | Q85: 0 | R85: =F85*Q85 -> 0 | S85: 155 | T85: =S85*J85 -> 28210 | V85: =$F85*U85 -> 0 | W85: =IF(F85>0,Y85/F85,0) -> 10 | X85: =IF($F85>0,Z85/$F85,0) -> 11.58692185 | Y85: =L85+N85+P85+R85+T85+V85 -> 45500 | Z85: =Y85*(1+$Z$2) -> 52720.49442
B86: Breach Plant Site Pond Containment Dam | E86: x | F86: =19*5+24*5 -> 215 | G86: m3 | H86: 0.06 | I86: 1 | J86: =F86*H86*I86 -> 12.9 | L86: =J86*K86 -> 0 | M86: 0 | N86: =F86*M86 -> 0 | O86: 0 | P86: =F86*O86 -> 0 | Q86: 0 | R86: =F86*Q86 -> 0 | S86: 7.3 | T86: =S86*F86 -> 1569.5 | V86: =$F86*U86 -> 0 | W86: =IF(F86>0,Y86/F86,0) -> 7.3 | X86: 8.458452951 | Y86: =L86+N86+P86+R86+T86+V86 -> 1569.5 | Z86: =Y86*(1+$Z$2) -> 1818.567384
B87: Buildings and Equipment
B88: Disassembly - Goose Plant and Crusher
B89: Dismantle Plant | E89: x | F89: =ROUNDUP(6463.2,0) -> 6464 | G89: m2 | H89: 1 | I89: 1 | J89: 3200 | K89: 95 | L89: =J89*K89 -> 304000 | M89: 0 | N89: =F89*M89 -> 0 | O89: 0 | P89: =F89*O89 -> 0 | Q89: 0 | R89: =F89*Q89 -> 0 | S89: 100 | T89: =J89*S89/3 -> 106666.6667 | U89: 0 | V89: =$F89*U89 -> 0 | W89: =IF(F89>0,Y89/F89,0) -> 63.53135314 | X89: =IF($F89>0,Z89/$F89,0) -> 73.61328238 | Y89: =L89+N89+P89+R89+T89+V89 -> 410666.6667 | Z89: =Y89*(1+$Z$2) -> 475836.2573
B90: Dismantle Crushers | E90: x | F90: 1630 | G90: m2 | H90: 1 | I90: 1 | J90: 800 | K90: 95 | L90: =J90*K90 -> 76000 | M90: 0 | N90: =F90*M90 -> 0 | O90: 0 | P90: =F90*O90 -> 0 | Q90: 0 | R90: =F90*Q90 -> 0 | S90: 100 | T90: =J90*S90/3 -> 26666.66667 | U90: 0 | V90: =$F90*U90 -> 0 | W90: =IF(F90>0,Y90/F90,0) -> 62.98568507 | X90: 72.98102106 | Y90: =L90+N90+P90+R90+T90+V90 -> 102666.6667 | Z90: =Y90*(1+$Z$2) -> 118959.0643
B91: Dismantle Power Plant | E91: x | F91: 2040 | G91: m2 | H91: 1 | I91: 1 | J91: 1000 | K91: 95 | L91: =J91*K91 -> 95000 | M91: 0 | N91: =F91*M91 -> 0 | O91: 0 | P91: =F91*O91 -> 0 | Q91: 0 | R91: =F91*Q91 -> 0 | S91: 100 | T91: =J91*S91/3 -> 33333.33333 | U91: 0 | V91: =$F91*U91 -> 0 | W91: =IF(F91>0,Y91/F91,0) -> 62.90849673 | X91: 72.89158353 | Y91: =L91+N91+P91+R91+T91+V91 -> 128333.3333 | Z91: =Y91*(1+$Z$2) -> 148698.8304
B92: Dismantle Emergency Power - Fuel | E92: x | F92: 300 | G92: m2 | H92: 1 | I92: 1 | J92: 150 | K92: 95 | L92: =J92*K92 -> 14250 | M92: 0 | N92: =F92*M92 -> 0 | O92: 0 | P92: =F92*O92 -> 0 | Q92: 0 | R92: =F92*Q92 -> 0 | S92: 100 | T92: =J92*S92/3 -> 5000 | U92: 0 | V92: =$F92*U92 -> 0 | W92: =IF(F92>0,Y92/F92,0) -> 64.16666667 | X92: 74.3494152 | Y92: =L92+N92+P92+R92+T92+V92 -> 19250 | Z92: =Y92*(1+$Z$2) -> 22304.82456
B93: Dismantle Fuel Storage and Distribution | E93: x | F93: 1 | G93: Lot | H93: 1 | I93: 1 | J93: 1200 | K93: 95 | L93: =J93*K93 -> 114000 | M93: 0 | N93: =F93*M93 -> 0 | O93: 0 | P93: =F93*O93 -> 0 | Q93: 0 | R93: =F93*Q93 -> 0 | S93: 100 | T93: =J93*S93/3 -> 40000 | U93: 0 | V93: =$F93*U93 -> 0 | W93: =IF(F93>0,Y93/F93,0) -> 154000 | X93: 178438.5965 | Y93: =L93+N93+P93+R93+T93+V93 -> 154000 | Z93: =Y93*(1+$Z$2) -> 178438.5965
B94: Goose Admin Buildings
B95: Demolish Truck Shop/Office | E95: x | F95: 2349.45 | G95: m2 | H95: 1 | I95: 1 | J95: 1000 | K95: 95 | L95: =J95*K95 -> 95000 | M95: 0 | N95: =F95*M95 -> 0 | O95: 0 | P95: =F95*O95 -> 0 | Q95: 0 | R95: =F95*Q95 -> 0 | S95: 100 | T95: =S95*J95/3 -> 33333.33333 | U95: 0 | V95: =$F95*U95 -> 0 | W95: =IF(F95>0,Y95/F95,0) -> 54.62271312 | X95: 63.29091081 | Y95: =L95+N95+P95+R95+T95+V95 -> 128333.3333 | Z95: =Y95*(1+$Z$2) -> 148698.8304
B96: Demolish Kitchen/Camp | E96: x | F96: =6*300*1.1 -> 1980 | G96: m2 | H96: 1 | I96: 1 | J96: 900 | K96: 95 | L96: 85500 | M96: 0 | N96: 0 | O96: 0 | P96: 0 | Q96: 0 | R96: 0 | S96: 100 | T96: =S96*J96/3 -> 30000 | U96: 0 | V96: 0 | W96: =IF(F96>0,Y96/F96,0) -> 58.33333333 | X96: 67.59037746 | Y96: 115500 | Z96: 133828.9474
B97: Demolish Cold Storage | E97: x | F97: 840 | G97: m2 | H97: 1 | I97: 1 | J97: 150 | K97: 95 | L97: 14250 | M97: 0 | N97: 0 | O97: 0 | P97: 0 | Q97: 0 | R97: 0 | S97: 100 | T97: 5000 | U97: 0 | V97: 0 | W97: 22.91666667 | X97: 26.55336257 | Y97: 19250 | Z97: 22304.82456
B98: Demolish Waste/Waste Oil Storage | E98: x | F98: 1 | G98: Lot | H98: 1 | I98: 1 | J98: 100 | L98: 0 | M98: 0 | N98: 0 | O98: 0 | P98: 0 | R98: 0 | S98: 100 | T98: 3333.333333 | U98: 40000 | V98: 40000 | W98: 43333.33333 | X98: 50209.99468 | Y98: 43333.33333 | Z98: 50209.99468
B99: Remove Freight Storage | E99: x | F99: 1 | G99: Lot | H99: 1 | I99: 1 | J99: 150 | K99: 95 | L99: 14250 | M99: 0 | N99: 0 | O99: 0 | P99: 0 | Q99: 0 | R99: 0 | S99: 100 | T99: 5000 | U99: 0 | V99: 0 | W99: 19250 | X99: 22304.82456 | Y99: 19250 | Z99: 22304.82456
B100: Demolish Water Treatment Plant | E100: x | F100: =ROUNDUP(0.1*F89,0) -> 647 | G100: m2 | H100: 8 | I100: 1 | J100: 100 | K100: 95 | L100: 9500 | M100: 0 | N100: 0 | O100: 0 | P100: 0 | Q100: 0 | R100: 0 | S100: 100 | T100: 3333.333333 | U100: 0 | V100: 0 | W100: 19.83513653 | X100: 22.98281768 | Y100: 12833.33333 | Z100: 14869.88304
B101: Demolish Sewage Treatment Plant | E101: x | F101: 1 | G101: Lot | H101: 1 | I101: 1 | J101: 90 | K101: 95 | L101: 8550 | M101: 0 | N101: 0 | O101: 0 | P101: 0 | Q101: 0 | R101: 0 | S101: 100 | T101: 3000 | U101: 0 | V101: 0 | W101: 11550 | X101: 13382.89474 | Y101: 11550 | Z101: 13382.89474
B102: MLA Infrastructure
B103: Demolish Port Office | E103: x | F103: 5 | G103: Units | H103: 12 | I103: 1 | J103: =H103*F103*I103 -> 60 | K103: 95 | L103: =J103*K103 -> 5700 | M103: 0 | N103: =F103*M103 -> 0 | O103: 0 | P103: =F103*O103 -> 0 | Q103: 0 | R103: =F103*Q103 -> 0 | S103: 100 | T103: =S103*J103 -> 6000 | U103: 0 | V103: =$F103*U103 -> 0 | W103: =IF(F103>0,Y103/F103,0) -> 2340 | X103: 2711.339713 | Y103: =L103+N103+P103+R103+T103+V103 -> 11700 | Z103: =Y103*(1+$Z$2) -> 13556.69856
B104: Remove Pipelines | E104: x | F104: 10000 | G104: m | H104: 0.04 | I104: 1 | J104: =F104*H104*I104 -> 400 | K104: 95 | L104: =J104*K104 -> 38000 | M104: 0 | N104: =F104*M104 -> 0 | O104: 0 | P104: =F104*O104 -> 0 | Q104: 0 | R104: =F104*Q104 -> 0 | S104: 155 | T104: =S104*J104 -> 62000 | U104: 0 | V104: =$F104*U104 -> 0 | W104: =IF(F104>0,Y104/F104,0) -> 10 | X104: 11.58692185 | Y104: =L104+N104+P104+R104+T104+V104 -> 100000 | Z104: 115869.2185
B105: Demolish Incinerator and Waste Management | E105: x | F105: 1 | G105: Lot | H105: 1 | I105: 1 | J105: 50 | K105: 95 | L105: =J105*K105 -> 4750 | M105: 0 | N105: =F105*M105 -> 0 | O105: 0 | P105: =F105*O105 -> 0 | Q105: 0 | R105: =F105*Q105 -> 0 | S105: 100 | T105: 5000 | U105: 0 | V105: =$F105*U105 -> 0 | W105: =IF(F105>0,Y105/F105,0) -> 9750 | X105: 11297.2488 | Y105: =L105+N105+P105+R105+T105+V105 -> 9750 | Z105: 11297.2488
B106: Demolish Warehouses | E106: x | F106: 1 | G106: Lot | H106: 1 | I106: 1 | J106: 30 | K106: 95 | L106: 2850 | M106: 0 | N106: 0 | O106: 0 | P106: 0 | Q106: 0 | R106: 0 | S106: 100 | T106: 3000 | U106: 0 | V106: 0 | W106: 5850 | X106: 6778.349282 | Y106: 5850 | Z106: 6778.349282
B107: Dismantle Genset | E107: x | F107: 1 | G107: Lot | H107: 1 | I107: 1 | J107: 150 | K107: 95 | L107: 14250 | M107: 0 | N107: 0 | O107: 0 | P107: 0 | Q107: 0 | R107: 0 | S107: 100 | T107: 15000 | U107: 0 | V107: 0 | W107: 29250 | X107: 33891.74641 | Y107: 29250 | Z107: 33891.74641
B108: Demolish Maintenance Shop | E108: x | F108: 1 | G108: Lot | H108: 1 | I108: 1 | J108: 50 | K108: 95 | L108: 4750 | M108: 0 | N108: 0 | O108: 0 | P108: 0 | Q108: 0 | R108: 0 | S108: 100 | T108: 5000 | U108: 0 | V108: 0 | W108: 9750 | X108: 11297.2488 | Y108: 9750 | Z108: 11297.2488
B109: Demolish Water Storage | E109: x | F109: 1 | G109: Lot | H109: 1 | I109: 1 | J109: 50 | K109: 95 | L109: 4750 | M109: 0 | N109: 0 | O109: 0 | P109: 0 | Q109: 0 | R109: 0 | S109: 100 | T109: 5000 | U109: 0 | V109: 0 | W109: 9750 | X109: 11297.2488 | Y109: 9750 | Z109: 11297.2488
B110: Demolish WTP/STP | E110: x | F110: 1 | G110: Lot | H110: 1 | I110: 1 | J110: 50 | K110: 95 | L110: 4750 | M110: 0 | N110: 0 | O110: 0 | P110: 0 | Q110: 0 | R110: 0 | S110: 100 | T110: 5000 | U110: 0 | V110: 0 | W110: 9750 | X110: 11297.2488 | Y110: 9750 | Z110: 11297.2488
B111: Demolish camp/offices | E111: x | F111: 1 | G111: Lot | H111: 1 | I111: 1 | J111: 50 | K111: 95 | L111: 4750 | M111: 0 | N111: 0 | O111: 0 | P111: 0 | Q111: 0 | R111: 0 | S111: 100 | T111: 5000 | U111: 0 | V111: 0 | W111: 9750 | X111: 11297.2488 | Y111: 9750 | Z111: 11297.2488
B112: Demolish freight storage area | E112: x | F112: 1 | G112: Lot | H112: 1 | I112: 1 | J112: 50 | K112: 95 | L112: 4750 | M112: 0 | N112: 0 | O112: 0 | P112: 0 | Q112: 0 | R112: 0 | S112: 100 | T112: 5000 | U112: 0 | V112: 0 | W112: 9750 | X112: 11297.2488 | Y112: 9750 | Z112: 11297.2488
B113: Demolish hazardous waste Area | E113: x | F113: 1 | G113: Lot | H113: 1 | I113: 1 | J113: 50 | K113: 95 | L113: 4750 | M113: 0 | N113: 0 | O113: 0 | P113: 0 | Q113: 0 | R113: 0 | S113: 100 | T113: 5000 | U113: 0 | V113: 0 | W113: 9750 | X113: 11297.2488 | Y113: 9750 | Z113: 11297.2488
B114: Dismantle Fuel Storage | C114: Includes MLA Fuel Storage area (60ML), and MLA Fuel Transfer Storage Area (0.5 ML) | E114: x | F114: 1 | G114: Lot | H114: 1 | I114: 1 | J114: =1600*1.08 -> 1728 | K114: 95 | L114: 164160 | M114: 0 | N114: 0 | O114: 0 | P114: 0 | Q114: 0 | R114: 0 | S114: 100 | T114: =S114*J114/3 -> 57600 | U114: 0 | V114: 0 | W114: 221760 | X114: 256951.5789 | Y114: 221760 | Z114: 256951.5789
B115: Goose Closure Camp
B116: Build 20 Person Camp | E116: x | F116: 1 | G116: Lot | H116: 1 | I116: 1 | J116: 150 | K116: 95 | L116: =J116*K116 -> 14250 | M116: 0 | N116: =F116*M116 -> 0 | P116: =F116*O116 -> 0 | Q116: 0 | R116: =F116*Q116 -> 0 | S116: 100 | T116: =J116*S116/3 -> 5000 | V116: =$F116*U116 -> 0 | W116: =IF(F116>0,Y116/F116,0) -> 19250 | X116: 22304.82456 | Y116: =L116+N116+P116+R116+T116+V116 -> 19250 | Z116: =Y116*(1+$Z$2) -> 22304.82456
B117: Build 20 Person Power Plant | E117: x | F117: 1 | G117: Lot | H117: 1 | I117: 1 | J117: 150 | K117: 95 | L117: =J117*K117 -> 14250 | M117: 0 | N117: =F117*M117 -> 0 | P117: =F117*O117 -> 0 | Q117: 0 | R117: =F117*Q117 -> 0 | S117: 100 | T117: =J117*S117/3 -> 5000 | V117: =$F117*U117 -> 0 | W117: =IF(F117>0,Y117/F117,0) -> 19250 | X117: 22304.82456 | Y117: =L117+N117+P117+R117+T117+V117 -> 19250 | Z117: 22304.82456
B118: Camp Operation | C118: Over 13 years of Closure and Post-Closure | E118: x | F118: 12000 | G118: Man Days | H118: 1 | I118: 1 | K118: =0 -> 0 | L118: =J118*K118 -> 0 | N118: =F118*M118 -> 0 | O118: 0 | P118: =F118*O118 -> 0 | Q118: 0 | R118: =F118*Q118 -> 0 | S118: 0 | T118: =F118*S118 -> 0 | U118: 110 | V118: =$F118*U118 -> 1320000 | W118: =IF(F118>0,Y118/F118,0) -> 110 | X118: 127.4561404 | Y118: =L118+N118+P118+R118+T118+V118 -> 1320000 | Z118: 1529473.684
B119: Roads and Airstrips
B120: Main Haul road
B121: Maintain Road Surface | E121: x | F121: 13 | G121: Yr | H121: 70 | I121: 1 | J121: =F121*H121*I121 -> 910 | K121: 95 | L121: =J121*K121 -> 86450 | M121: 0 | N121: =F121*M121 -> 0 | O121: 0 | P121: =F121*O121 -> 0 | Q121: 0 | R121: =F121*Q121 -> 0 | S121: 100 | T121: =S121*J121 -> 91000 | V121: =$F121*U121 -> 0 | W121: =IF(F121>0,Y121/F121,0) -> 13650 | X121: =IF($F121>0,Z121/$F121,0) -> 15816.14833 | Y121: =SUM(L121,N121,P121,R121,T121,V121) -> 177450 | Z121: =Y121*(1+$Z$2) -> 205609.9282
B122: Restore Drainage | C122: Remove Culverts | E122: x | F122: 1488 | G122: m3 | H122: 0.06 | I122: 1 | J122: =F122*H122*I122 -> 89.28 | L122: =J122*K122 -> 0 | M122: 0 | N122: =F122*M122 -> 0 | O122: 0 | P122: =F122*O122 -> 0 | Q122: 0 | R122: =F122*Q122 -> 0 | S122: 11 | T122: =S122*F122 -> 16368 | V122: =$F122*U122 -> 0 | W122: =IF(F122>0,Y122/F122,0) -> 11 | X122: 12.74561404 | Y122: =T122 -> 16368 | Z122: 18965.47368
B123: Airstrips
B124: Maintain Airstrip Surface | E124: x | F124: 13 | G124: Yr | H124: 20 | I124: 1 | J124: =F124*H124*I124 -> 260 | K124: 95 | L124: =J124*K124 -> 24700 | M124: 0 | N124: =F124*M124 -> 0 | O124: 0 | P124: =F124*O124 -> 0 | Q124: 0 | R124: =F124*Q124 -> 0 | S124: 100 | T124: =S124*J124 -> 26000 | V124: =$F124*U124 -> 0 | W124: =IF(F124>0,Y124/F124,0) -> 3900 | X124: =IF($F124>0,Z124/$F124,0) -> 4518.899522 | Y124: =SUM(L124,N124,P124,R124,T124,V124) -> 50700 | Z124: =Y124*(1+$Z$2) -> 58745.69378
B125: Restore Drainage | C125: Updated for Modification Package | E125: x | F125: 1360 | G125: m3 | H125: 0.06 | I125: 1 | J125: =F125*H125*I125 -> 81.6 | L125: =J125*K125 -> 0 | M125: 0 | N125: =F125*M125 -> 0 | O125: 0 | P125: =F125*O125 -> 0 | Q125: 0 | R125: =F125*Q125 -> 0 | S125: 12 | T125: =S125*F125 -> 16320 | V125: =$F125*U125 -> 0 | W125: =IF(F125>0,Y125/F125,0) -> 12 | X125: 13.90430622 | Y125: =T125 -> 16320 | Z125: 18909.85646
B126: Water Treatment
B127: WTP Pipelines and Treatment Plant
B128: Pump water from TSF to WTP | C128: No treatment required during Closure; Maximum PAG Exposure in Year 2. Potential Water Treatment in this year at TSF with 2.1 Mm3 over 3 years. | E128: x | F128: 2100000 | G128: m3 | I128: 1 | L128: =J128*K128 -> 0 | M128: 0 | N128: =F128*M128 -> 0 | O128: 0 | P128: =F128*O128 -> 0 | Q128: 0 | R128: =F128*Q128 -> 0 | S128: 0 | T128: =S128*F128 -> 0 | U128: 0.11 | V128: =$F128*U128 -> 231000 | W128: =IF(F128>0,Y128/F128,0) -> 0.11 | X128: =IF($F128>0,Z128/$F128,0) -> 0.1274561404 | Y128: =L128+N128+P128+R128+T128+V128 -> 231000 | Z128: =Y128*(1+$Z$2) -> 267657.8947
B129: Treat water from TSF in WTP | E129: x | F129: =$F$128 -> 2100000 | G129: m3 | I129: 1 | J129: =365*5.25 -> 1916.25 | L129: 0 | M129: 0 | N129: 0 | O129: 0 | P129: 0 | Q129: 0 | R129: 0 | S129: 0 | T129: 0 | U129: 0.35 | V129: 735000 | W129: =IF(F129>0,Y129/F129,0) -> 0.35 | X129: 0.4055422648 | Y129: 735000 | Z129: 851638.756
B130: Pump water out of WTP | E130: x | F130: =$F$128 -> 2100000 | G130: m3 | I130: 1 | J130: =F130*H130*I130 -> 0 | L130: 0 | M130: 0 | N130: 0 | O130: 0 | P130: 0 | Q130: 0 | R130: 0 | S130: 0 | T130: 0 | U130: 0.11 | V130: 231000 | W130: 0.11 | X130: 0.1274561404 | Y130: 231000 | Z130: 267657.8947
B131: Decommission WTP pump and pipeline | E131: x | F131: 6700 | G131: m | H131: 0.04 | I131: 1 | J131: =F131*H131*I131+24 -> 292 | K131: 95 | L131: 27740 | M131: 0 | N131: 0 | O131: 0 | P131: 0 | Q131: 0 | R131: 0 | S131: 155 | T131: =S131*J131 -> 45260 | V131: 0 | W131: 10.89552239 | X131: 12.62455664 | Y131: =L131+N131+P131+R131+T131+V131 -> 73000 | Z131: 84584.52951
B132: Decommission WTP pump and return pipeline | E132: x | F132: 820 | G132: m | H132: 0.04 | I132: 1 | J132: =F132*H132*I132+24 -> 56.8 | K132: 95 | L132: 5396 | M132: 0 | N132: 0 | O132: 0 | P132: 0 | Q132: 0 | R132: 0 | S132: 155 | T132: =S132*J132 -> 8804 | V132: 0 | W132: 17.31707317 | X132: 20.06515735 | Y132: =L132+N132+P132+R132+T132+V132 -> 14200 | Z132: 16453.42903
B133: Decommission WTP | E133: x | F133: 1 | G133: Lot | I133: 1 | J133: 50 | K133: 95 | L133: 4750 | M133: 0 | N133: 0 | O133: 0 | P133: 0 | Q133: 0 | R133: 0 | S133: 100 | T133: 5000 | V133: 0 | W133: 9750 | X133: 11297.2488 | Y133: 9750 | Z133: 11297.2488
B134: Contaminated Soil
B135: Sitewide Investigation
B136: Site Investigation to estimate quantity of contaminated soil | C136: Testpit program with excavator in all parking, fuel storage, washbays truck and maintenance shops and generator areas. | E136: x | F136: 1 | G136: Lot | H136: 1 | I136: 1 | L136: =J136*K136 -> 0 | M136: 0 | N136: =F136*M136 -> 0 | O136: 0 | P136: =F136*O136 -> 0 | Q136: 0 | R136: =F136*Q136 -> 0 | S136: 0 | T136: =S136*F136 -> 0 | V136: 50000 | W136: =IF(F136>0,Y136/F136,0) -> 50000 | X136: =IF($F136>0,Z136/$F136,0) -> 57934.60925 | Y136: =L136+N136+P136+R136+T136+V136 -> 50000 | Z136: =Y136*(1+$Z$2) -> 57934.60925
B137: Treatment
B138: Transport contaminated soil | E138: x | F138: 10000 | G138: m3 | H138: 0.05 | I138: 1 | J138: =F138*H138*I138 -> 500 | L138: =J138*K138 -> 0 | M138: 0 | N138: =F138*M138 -> 0 | O138: 0 | P138: =F138*O138 -> 0 | Q138: 0 | R138: =F138*Q138 -> 0 | S138: 7.3 | T138: =S138*F138 -> 73000 | V138: =$F138*U138 -> 0 | W138: =IF(F138>0,Y138/F138,0) -> 7.3 | X138: =IF($F138>0,Z138/$F138,0) -> 8.458452951 | Y138: =L138+N138+P138+R138+T138+V138 -> 73000 | Z138: =Y138*(1+$Z$2) -> 84584.52951
B139: Separation plant | C139: Purchase separation equipment | E139: x | F139: 1 | G139: Lot | H139: 1 | I139: 1 | L139: =J139*K139 -> 0 | M139: 0 | N139: =F139*M139 -> 0 | O139: 0 | P139: =F139*O139 -> 0 | Q139: 0 | R139: =F139*Q139 -> 0 | S139: 0 | T139: =S139*F139 -> 0 | V139: 100000 | W139: =IF(F139>0,Y139/F139,0) -> 100000 | X139: =IF($F139>0,Z139/$F139,0) -> 115869.2185 | Y139: =L139+N139+P139+R139+T139+V139 -> 100000 | Z139: =Y139*(1+$Z$2) -> 115869.2185
B140: Closure / Post-Closure Monitoring
B141: Geotechnical Inspections
B142: TSF embankments | E142: x | F142: 8 | G142: Units | H142: 20 | I142: 1 | J142: =F142*H142*I142 -> 160 | L142: =J142*K142 -> 0 | M142: 0 | N142: =F142*M142 -> 0 | O142: 0 | P142: =F142*O142 -> 0 | Q142: 0 | R142: =F142*Q142 -> 0 | S142: 0 | T142: =S142*F142 -> 0 | U142: 10000 | V142: =$F142*U142 -> 80000 | W142: =IF(F142>0,Y142/F142,0) -> 10000 | X142: =IF($F142>0,Z142/$F142,0) -> 11586.92185 | Y142: =L142+N142+P142+R142+T142+V142 -> 80000 | Z142: =Y142*(1+$Z$2) -> 92695.3748
B143: WR piles | E143: x | F143: 13 | G143: Units | H143: 20 | I143: 1 | J143: =F143*H143*I143 -> 260 | L143: =J143*K143 -> 0 | M143: 0 | N143: =F143*M143 -> 0 | O143: 0 | P143: =F143*O143 -> 0 | Q143: 0 | R143: =F143*Q143 -> 0 | S143: 0 | T143: =S143*F143 -> 0 | U143: 8300 | V143: =$F143*U143 -> 107900 | W143: =IF(F143>0,Y143/F143,0) -> 8300 | X143: 9617.145136 | Y143: =(L143+N143+P143+R143+T143+V143) -> 107900 | Z143: 125022.8868
B144: Pit walls | E144: x | F144: 13 | G144: Units | H144: 20 | I144: 1 | J144: =F144*H144*I144 -> 260 | L144: =J144*K144 -> 0 | M144: 0 | N144: =F144*M144 -> 0 | O144: 0 | P144: =F144*O144 -> 0 | Q144: 0 | R144: =F144*Q144 -> 0 | S144: 0 | T144: =S144*F144 -> 0 | U144: 4000 | V144: =$F144*U144 -> 52000 | W144: =IF(F144>0,Y144/F144,0) -> 4000 | X144: 4634.76874 | Y144: =(L144+N144+P144+R144+T144+V144) -> 52000 | Z144: 60251.99362
B145: Ground Temperature Monitoring
B146: Umwelt WRSA GTC Monitoring after Closure | C146: Monthly | E146: x | F146: 13 | G146: Years | H146: 24 | I146: 1 | J146: =F146*H146*I146 -> 312 | K146: 200 | L146: =J146*K146 -> 62400 | M146: 0 | N146: =F146*M146 -> 0 | O146: 0 | P146: =F146*O146 -> 0 | Q146: 0 | R146: =F146*Q146 -> 0 | S146: 0 | T146: =S146*F146 -> 0 | V146: =F146*U146 -> 0 | W146: =IF(F146>0,Y146/F146,0) -> 4800 | X146: =IF($F146>0,Z146/$F146,0) -> 5561.722488 | Y146: =L146+N146+P146+R146+T146+V146 -> 62400 | Z146: =Y146*(1+$Z$2) -> 72302.39234
B147: Llama WRSA GTC Monitoring after Closure | C147: Monthly | E147: x | F147: 13 | G147: Years | H147: 24 | I147: 1 | J147: 312 | K147: 200 | L147: 62400 | M147: 0 | N147: 0 | O147: 0 | P147: 0 | Q147: 0 | R147: 0 | S147: 0 | T147: 0 | V147: 0 | W147: 4800 | X147: 5561.722488 | Y147: 62400 | Z147: 72302.39234
B148: TSF WRSA GTC Monitoring after Closure | C148: Monthly | E148: x | F148: 13 | G148: Years | H148: 24 | I148: 1 | J148: 312 | K148: 200 | L148: 62400 | M148: 0 | N148: 0 | O148: 0 | P148: 0 | Q148: 0 | R148: 0 | S148: 0 | T148: 0 | V148: 0 | W148: 4800 | X148: 5561.722488 | Y148: 62400 | Z148: 72302.39234
B149: WQ Monitoring - Closure
B150: Llama pit | C150: Depends on Breech | E150: x | F150: 13 | G150: Years | H150: 12 | I150: 1 | J150: 156 | K150: 95 | L150: =J150*K150 -> 14820 | M150: 0 | N150: =F150*M150 -> 0 | O150: 0 | P150: =F150*O150 -> 0 | Q150: 0 | R150: =F150*Q150 -> 0 | S150: 0 | T150: =S150*F150 -> 0 | V150: =F150*U150 -> 0 | W150: =IF(F150>0,Y150/F150,0) -> 1140 | X150: =IF($F150>0,Z150/$F150,0) -> 1320.909091 | Y150: =L150+N150+P150+R150+T150+V150 -> 14820 | Z150: =Y150*(1+$Z$2) -> 17171.81818
B151: Llama WR Pile | E151: x | F151: 13 | G151: Years | H151: 12 | I151: 1 | J151: =F151*H151*I151 -> 156 | K151: 95 | L151: =J151*K151 -> 14820 | M151: 0 | N151: =F151*M151 -> 0 | O151: 0 | P151: =F151*O151 -> 0 | Q151: 0 | R151: =F151*Q151 -> 0 | S151: 0 | T151: =S151*F151 -> 0 | V151: =F151*U151 -> 0 | W151: =IF(F151>0,Y151/F151,0) -> 1140 | X151: 1320.909091 | Y151: =L151+N151+P151+R151+T151+V151 -> 14820 | Z151: 17171.81818
B152: Umwelt pit | C152: Depends on Breach | E152: x | F152: 13 | G152: Years | H152: 12 | I152: 1 | J152: 156 | K152: 95 | L152: 14820 | M152: 0 | N152: 0 | O152: 0 | P152: 0 | Q152: 0 | R152: 0 | S152: 0 | T152: 0 | V152: 0 | W152: 1140 | X152: 1320.909091 | Y152: 14820 | Z152: 17171.81818
B153: Umwelt WR Pile | E153: x | F153: 13 | G153: Years | H153: 12 | I153: 1 | J153: 156 | K153: 95 | L153: 14820 | M153: 0 | N153: 0 | O153: 0 | P153: 0 | Q153: 0 | R153: 0 | S153: 0 | T153: 0 | V153: 0 | W153: 1140 | X153: 1320.909091 | Y153: 14820 | Z153: 17171.81818
B154: Echo pit | C154: Depends on Breach | E154: x | F154: 13 | G154: Years | H154: 12 | I154: 1 | J154: 156 | K154: 95 | L154: 14820 | M154: 0 | N154: 0 | O154: 0 | P154: 0 | Q154: 0 | R154: 0 | S154: 0 | T154: 0 | V154: 0 | W154: 1140 | X154: 1320.909091 | Y154: 14820 | Z154: 17171.81818
B155: Echo WR pile | E155: x | F155: 13 | G155: Years | H155: 12 | I155: 1 | J155: 156 | K155: 95 | L155: 14820 | M155: 0 | N155: 0 | O155: 0 | P155: 0 | Q155: 0 | R155: 0 | S155: 0 | T155: 0 | V155: 0 | W155: 1140 | X155: 1320.909091 | Y155: 14820 | Z155: 17171.81818
B156: Goose pit | C156: Depends on Breach | E156: x | F156: 13 | G156: Years | H156: 12 | I156: 1 | J156: 156 | K156: 95 | L156: 14820 | M156: 0 | N156: 0 | O156: 0 | P156: 0 | Q156: 0 | R156: 0 | S156: 0 | T156: 0 | V156: 0 | W156: 1140 | X156: 1320.909091 | Y156: 14820 | Z156: 17171.81818
B157: TSF WR Pile | E157: x | F157: 13 | G157: Years | H157: 12 | I157: 1 | J157: 156 | K157: 95 | L157: 14820 | M157: 0 | N157: 0 | O157: 0 | P157: 0 | Q157: 0 | R157: 0 | S157: 0 | T157: 0 | V157: 0 | W157: 1140 | X157: 1320.909091 | Y157: 14820 | Z157: 17171.81818
B158: Aquatic Effects monitoring
B159: Aquatic effects monitoring | C159: Non-contact Water Basins | E159: x | F159: 10 | G159: Years | H159: 60 | I159: 1 | J159: 600 | K159: 80 | L159: =J159*K159 -> 48000 | M159: 0 | N159: =F159*M159 -> 0 | O159: 0 | P159: =F159*O159 -> 0 | Q159: 0 | R159: =F159*Q159 -> 0 | S159: 0 | T159: =S159*F159 -> 0 | V159: =$F159*U159 -> 0 | W159: =IF(F159>0,Y159/F159,0) -> 4800 | X159: =IF($F159>0,Z159/$F159,0) -> 5561.722488 | Y159: =(L159+N159+P159+R159+T159+V159) -> 48000 | Z159: =Y159*(1+$Z$2) -> 55617.22488
B160: Terrestrial Animal Monitoring
B161: Terrestrial Animal Monitoring | E161: x | F161: 10 | G161: Years | H161: 300 | I161: 1 | J161: 3000 | K161: 80 | L161: =J161*K161 -> 240000 | M161: 0 | N161: =F161*M161 -> 0 | O161: 0 | P161: =F161*O161 -> 0 | Q161: 0 | R161: =F161*Q161 -> 0 | S161: 0 | T161: =S161*F161 -> 0 | V161: =$F161*U161 -> 0 | W161: =IF(F161>0,Y161/F161,0) -> 24000 | X161: =IF($F161>0,Z161/$F161,0) -> 27808.61244 | Y161: =(L161+N161+P161+R161+T161+V161) -> 240000 | Z161: =Y161*(1+$Z$2) -> 278086.1244
B162: Total Direct Costs | Y162: =SUM(Y5:Y161) -> 14389570.31 | Z162: =SUM(Z5:Z161) -> 16673082.66
B163: CONSTRUCTION INDIRECTS
B164: Freight & Transport
B165: Food & Freight | C165: Total Mandays factored | E165: x | F165: =F118*2.3 -> 27600 | G165: kg | I165: 1 | K165: =0 -> 0 | L165: =J165*K165 -> 0 | P165: =F165*O165 -> 0 | R165: =F165*Q165 -> 0 | T165: =F165*S165 -> 0 | U165: 12 | V165: =$F165*U165 -> 331200 | W165: =IF(F165>0,Y165/F165,0) -> 12 | X165: =IF($F165>0,Z165/$F165,0) -> 13.90430622 | Y165: =(L165+N165+P165+R165+T165+V165) -> 331200 | Z165: =Y165*(1+$Z$2) -> 383758.8517
B166: Freight | C166: Rental equip, offices, etc.. | E166: x | F166: 1 | G166: Lot | H166: 0 | I166: 1 | J166: =F166*H166*I166 -> 0 | K166: =0 -> 0 | L166: =J166*K166 -> 0 | M166: 0 | N166: =F166*M166 -> 0 | O166: 0 | P166: =F166*O166 -> 0 | Q166: 0 | R166: =F166*Q166 -> 0 | S166: 0 | T166: =F166*S166 -> 0 | U166: 500000 | V166: =$F166*U166 -> 500000 | W166: =IF(F166>0,Y166/F166,0) -> 500000 | X166: 579346.0925 | Y166: =(L166+N166+P166+R166+T166+V166) -> 500000 | Z166: =Y166*(1+$Z$2) -> 579346.0925
B167: Mobilization | E167: x | F167: 500 | G167: Tonnes | U167: 1500 | V167: =$F167*U167 -> 750000 | W167: =IF(F167>0,Y167/F167,0) -> 1500 | X167: 1738.038278 | Y167: =V167 -> 750000 | Z167: =Y167*(1+$Z$2) -> 869019.1388
B168: General Construction Indirects
B169: Site Services Labour | E169: x | F169: 16000 | G169: HRS | H169: 1 | I169: 1 | J169: =F169*H169*I169 -> 16000 | K169: 65 | L169: =J169*K169 -> 1040000 | M169: 0 | N169: =F169*M169 -> 0 | O169: 0 | P169: =F169*O169 -> 0 | Q169: 0 | R169: =F169*Q169 -> 0 | S169: 0 | T169: =F169*S169 -> 0 | U169: 0 | V169: =$F169*U169 -> 0 | W169: =IF(F169>0,Y169/F169,0) -> 65 | X169: =IF($F169>0,Z169/$F169,0) -> 75.31499203 | Y169: =(L169+N169+P169+R169+T169+V169) -> 1040000 | Z169: =Y169*(1+$Z$2) -> 1205039.872
B170: Accommodations & Travel
B171: Camp Accommodations/Operation | E171: x | F171: =F118 -> 12000 | G171: Man Days | H171: 1 | I171: 1 | K171: =0 -> 0 | L171: =J171*K171 -> 0 | N171: =F171*M171 -> 0 | O171: 0 | P171: =F171*O171 -> 0 | Q171: 0 | R171: =F171*Q171 -> 0 | S171: 0 | T171: =F171*S171 -> 0 | U171: 110 | V171: =$F171*U171 -> 1320000 | W171: =IF(F171>0,Y171/F171,0) -> 110 | X171: =IF($F171>0,Z171/$F171,0) -> 127.4561404 | Y171: =(L171+N171+P171+R171+T171+V171) -> 1320000 | Z171: =Y171*(1+$Z$2) -> 1529473.684
B172: Airfare & Transportation | E172: x | F172: =ROUNDUP(F118/28,0) -> 429 | G172: Each | H172: 0 | I172: 1 | K172: =0 -> 0 | L172: =J172*K172 -> 0 | M172: 0 | N172: =F172*M172 -> 0 | O172: 0 | P172: =F172*O172 -> 0 | Q172: 0 | R172: =F172*Q172 -> 0 | S172: 0 | T172: =F172*S172 -> 0 | U172: =51521/90 -> 572.4555556 | V172: =$F172*U172 -> 245583.4333 | W172: =IF(F172>0,Y172/F172,0) -> 572.4555556 | X172: 663.2997785 | Y172: =(L172+N172+P172+R172+T172+V172) -> 245583.4333 | Z172: =Y172*(1+$Z$2) -> 284555.605
B173: Contractor Profit
B174: Total Component Estimate | Y174: =SUM(Y163:Y173)+Y162 -> 18576353.74 | Z174: =SUM(Z163:Z173)+Z162 -> 21524275.9

Sheet Unit_Costs
A1: Unit Cost Table (for refining unit costs see "Estimator" worksheet)
D2: Filter by unit
F3: Inflation 2020 to 2026: | G3: ='CPI-NU Inflation Calculator'!H8-1 -> 0.1057838661
F4: Inflation 2017 to 2026: | G4: ='CPI-NU Inflation Calculator'!H7-1 -> 0.158692185
F5: Inflation 2014 to 2026: | G5: ='CPI-NU Inflation Calculator'!H6-1 -> 0.2303132938 | K5: Inflation Rate | L5: n/a
A6: ITEM | B6: Detail | D6: COST CODE | E6: UNITS | F6: LOW $ | G6: HIGH $ | H6: SPECIFIED $ | J6: COMMENTS | K6: LOW $ | L6: HIGH $ | M6: SPECIFIED $
A8: Accomodation
D9: ACCM | E9: manday | F9: =K9*(1+$G$5) -> 123.0313294 | G9: =L9*(1+$G$5) -> 215.3048264 | H9: =M9*(1+$G$5) -> 0 | K9: 100 | L9: 175
A10: Buildings - Decontaminate
B11: Asbestos | D11: BDA | E11: m2 | F11: =K11*(1+$G$5) -> 31.49602032 | G11: =L11*(1+$G$5) -> 62.99204064 | H11: =M11*(1+$G$5) -> 0 | J11: Low: removal of asbestos siding & flooring; High: removal of insulated pipes, friable asbestos | K11: 25.6 | L11: 51.2
A12: Buildings - Remove | J12: Unit costs are based on 3m high, single storey building. Scale areas accordingly.
B13: Wood | D13: BRW | E13: m2 | F13: =K13*(1+$G$5) -> 33.83361558 | G13: 50.44284505 | H13: 0 | K13: 27.5 | L13: 41
B14: Concrete | D14: BRC | E14: m2 | F14: 49.21253175 | G14: 79.9703641 | H14: =M14*(1+$G$5) -> 7.381879763 | J14: Specified: puncture concrete foundation slabs | K14: 40 | L14: 65 | M14: 6
B15: Steel - teardown | D15: BRS1 | E15: m2 | F15: 55.36409822 | G15: 79.9703641 | H15: 0 | K15: 45 | L15: 65
B16: Steel - for salvage | D16: BRS2 | E16: m2 | F16: 82.43099069 | G16: 123.0313294 | H16: 0 | K16: 67 | L16: 100
A17: Concrete work
B18: Small pour | D18: CSF | E18: m3 | F18: =K18*(1+$G$5) -> 524.7286198 | G18: 787.0929297 | H18: 0 | J18: Low: YK; High=1.5xLow | K18: 426.5 | L18: 639.75
B19: Large pour | D19: CLF | E19: m3 | F19: 434.9157494 | G19: 652.373624 | H19: =M19*(1+$G$5) -> 2620.567316 | J19: Specified: concrete crown pillar | K19: 353.5 | L19: 530.25 | M19: 2130
A20: Contaminated Soils
B21: ESA Phase 1 | D21: CS1 | E21: each | F21: =K21*(1+$G$5) -> 9227.349704 | G21: 0 | H21: 0 | J21: Low: small, "clean" site | K21: 7500
B22: ESA Phase 1 | D22: CS2 | E22: each | F22: =K22*(1+$G$5) -> 61515.66469 | G22: 0 | H22: 0 | J22: Low: small, "clean" site | K22: 50000
B23: Remediate on site | D23: CSR | E23: m3 | F23: 57.82472481 | G23: 179.6257409 | H23: 0 | K23: 47 | L23: 146
A24: Dozing
B25: doze rock piles | D25: DR | E25: m3 | F25: =K25*(1+$G$5) -> 1.291828959 | G25: 2.952751905 | H25: 0 | J25: Low cost: doze crest off dump | K25: 1.05 | L25: 2.4
B26: doze overburden/soil piles | D26: DS | E26: m3 | F26: 1.168797629 | G26: 4.675190517 | H26: 0 | J26: High cost: push up to 300 m | K26: 0.95 | L26: 3.8
A27: Excavate Rock; Low Spec's and QA/QC
B28: drill/blast/load/short haul | D28: RB1 | E28: m3 | F28: =K28*(1+$G$5) -> 14.02557155 | G28: 20.97684166 | H28: 0 | J28: Low:quarry operations for bulk fill | K28: 11.4 | L28: 17.05
B29: drill/blast/load/long haul | D29: RB2 | E29: m3 | F29: 14.82527519 | G29: 21.89957663 | H29: 0 | K29: 12.05 | L29: 17.8
B30: RB1 + spread and compact | D30: RB3 | E30: m3 | F30: 14.82527519 | G30: 21.89957663 | H30: 0 | K30: 12.05 | L30: 17.8
B31: RB2 + spread and compact | D31: RB4 | E31: m3 | F31: 15.37891617 | G31: 37.83213378 | H31: 0 | K31: 12.5 | L31: 30.75
B32: Specified activity | D32: RBS | E32: m3 | F32: 0 | G32: 0 | H32: =M32*(1+$G$4) -> 8.110845295 | M32: 7
A33: Excavate Rock; High Spec's and QA/QC | J33: (e.g. ditch/spillway excavation)
B34: drill/blast/load/short haul | D34: RC1 | E34: m3 | F34: =K34*(1+$G$5) -> 14.82527519 | G34: 21.89957663 | H34: 0 | J34: Low:foundation excavation;High:spillway excavation | K34: 12.05 | L34: 17.8
B35: drill/blast/load/long haul | D35: RC2 | E35: m3 | F35: 15.62497883 | G35: 22.63776461 | H35: 0 | K35: 12.7 | L35: 18.4
B36: RC1 + spread and compact | D36: RC3 | E36: m3 | F36: 15.62497883 | G36: 22.63776461 | H36: 0 | J36: e,g, cover construction | K36: 12.7 | L36: 18.4
B37: RC2 + spread and compact | D37: RC4 | E37: m3 | F37: 16.60922947 | G37: 23.62201524 | H37: 0 | J37: e,g, cover construction | K37: 13.5 | L37: 19.2
B38: Specified activity | D38: RCS | E38: m3 | F38: 0 | G38: 0 | H38: =M38*(1+$G$5) -> 215.3048264 | J38: Specified-drift excavation | M38: 175
A39: Excavate Rip Rap
B40: drill/blast/load/short haul/place | D40: RR1 | E40: m3 | F40: =K40*(1+$G$5) -> 16.60922947 | G40: 21.83806097 | H40: 0 | J40: High: quarry & place rip rap in channel | K40: 13.5 | L40: 17.75
B41: drill/blast/load/long haul/place | D41: RR2 | E41: m3 | F41: 17.47044877 | G41: 25.40596952 | H41: 0 | K41: 14.2 | L41: 20.65
B42: source is waste dump/short haul | D42: RR3 | E42: m3 | F42: 8.612193057 | G42: 0 | H42: 0 | J42: cost includes sorting | K42: 7
B43: source is waste dump/long haul | D43: RR4 | E43: m3 | F43: 9.350381033 | G43: 0 | H43: 0 | K43: 7.6
B44: Specified activity | D44: RRS | E44: m3 | F44: 0 | G44: 0 | H44: 0
A45: Excavate Soil; Low Spec's and QA/QC
B46: clear & grub | D46: SBC | E46: m2 | F46: =K46*(1+$G$5) -> 4.183065199 | G46: 6.151566469 | H46: 0 | K46: 3.4 | L46: 5
B47: excavate/load/short haul | D47: SB1 | E47: m3 | F47: 5.290347163 | G47: 7.258848434 | H47: 0 | K47: 4.3 | L47: 5.9
B48: excavate/load/long haul | D48: SB2 | E48: m3 | F48: 5.659441152 | G48: 8.981287045 | H48: 0 | K48: 4.6 | L48: 7.3
B49: SB1 + spread and compact | D49: SB3 | E49: m3 | F49: 6.274597798 | G49: 10.94978831 | H49: 0 | J49: Low: non-engineered; High:engineered | K49: 5.1 | L49: 8.9
B50: SB2 + spread and compact | D50: SB4 | E50: m3 | F50: 6.766723116 | G50: 13.53344623 | H50: 0 | J50: Low: non-engineered; High:engineered | K50: 5.5 | L50: 11
B51: Specified activity | D51: SBS | E51: m3 | F51: 3.93700254 | G51: 7.750973751 | H51: 0 | J51: Low: rehandle waste rock dump by dozing; High:rehandle waste rock by hauling | K51: 3.2 | L51: 6.3
B52: Tailings | D52: SBT | E52: m3 | F52: 1.660922947 | G52: 4.552159187 | H52: =M52*(1+$G$5) -> 19.06985605 | J52: High:contour surface - wet or frozen; Specified:haul/place wet infill | K52: 1.35 | L52: 3.7 | M52: 15.5
A53: Excavate Soil, High Spec's and QA/QC
B54: excavate/load/short haul | D54: SC1 | E54: m3 | F54: =K54*(1+$G$5) -> 8.366130398 | G54: 11.44191363 | H54: 0 | K54: 6.8 | L54: 9.3
B55: excavate/load/long haul | D55: SC2 | E55: m3 | F55: 8.735224386 | G55: 14.4561812 | H55: 0 | K55: 7.1 | L55: 11.75
B56: SC1 + spread and compact | D56: SC3 | E56: m3 | F56: 10.94978831 | G56: 17.47044877 | H56: 0 | J56: Low: non-engineered; High:engineered | K56: 8.9 | L56: 14.2
B57: SC2 + spread and compact | D57: SC4 | E57: m3 | F57: 11.44191363 | G57: 28.54326842 | H57: 0 | J57: Low: non-engineered; High:engineered (e.g. complex covers, low volume dam construction) | K57: 9.3 | L57: 23.2
B58: Specified activity | D58: SCS | E58: m3 | F58: 0 | G58: 0 | H58: =M58*(1+$G$5) -> 23.12988992 | J58: Backfill adit with waste rock | M58: 18.8
A59: Fence
D60: FNC | E60: m | F60: =K60*(1+$G$5) -> 16.67074513 | G60: =L60*(1+$G$5) -> 249.7535986 | H60: =M60*(1+$G$5) -> 0 | K60: 13.55 | L60: 203
A61: Fuel and Electricity
B62: Fuel cost - gas | D62: FCG | E62: litre | F62: =K62*(1+$G$5) -> 1.291828959 | G62: 1.722438611 | H62: 0 | K62: 1.05 | L62: 1.4
B63: Fuel cost - diesel | D63: FCD | E63: litre | F63: 1.218010161 | G63: 1.710135478 | H63: 0 | K63: 0.99 | L63: 1.39
B64: Fuel mobilization | D64: FCM | E64: litre | F64: 0.2706689246 | G64: 0.5167315834 | H64: 0 | J64: High: winter road usage | K64: 0.22 | L64: 0.42
B65: Electricity | D65: FCE | E65: kW-h | F65: 0.2091532599 | G65: 0.2337595258 | H65: =M65*(1+$G$5) -> 0.602853514 | J65: Low and High:Yellowknife; Specified:diesel generator | K65: 0.17 | L65: 0.19 | M65: 0.49
A66: Geo-Synthetics
B67: geotextile | D67: GST | E67: m2 | F67: =K67*(1+$G$5) -> 4.232277731 | G67: 0 | H67: 0 | J67: Supply and install | K67: 3.44
B68: geogrid | D68: GSG | E68: m2 | F68: 7.074301439 | G68: 0 | H68: 0 | K68: 5.75
B69: liner, HDPE | D69: GSHDPE | E69: m2 | F69: 9.780990686 | G69: 0 | H69: 0 | J69: Supply and install; large quantity | K69: 7.95
B70: liner, ES3 | D70: GSES3 | E70: m2 | F70: 24.85232854 | G70: 0 | H70: 0 | J70: FOB Yellowknife | K70: 20.2
B71: geosynthetic installation | D71: GSI | E71: m2 | F71: 3.887790008 | G71: 17.22438611 | H71: 0 | J71: Low:geotextile; High:ES3 or HDPE | K71: 3.16 | L71: 14
B72: bentonite soil ammendment | D72: GSBA | E72: tonne | F72: 379.3055885 | G72: 428.7641829 | H72: 0 | J72: FOB Edmonton, add shipping & mixing | K72: 308.3 | L72: 348.5
A73: Grouting (/m3 of rock grouted)
D74: grout | E74: m3 | F74: =K74*(1+$G$5) -> 291.0306097 | G74: =L74*(1+$G$5) -> 352.792337 | H74: =M74*(1+$G$5) -> 0 | J74: High: cement, FOB Yellowknife | K74: 236.55 | L74: 286.75
A75: Labour & Equipment Rates
B76: Site manager | D76: sman | E76: $/hr | F76: =K76*(1+$G$5) -> 153.7891617 | G76: =L76*(1+$G$5) -> 187.0076207 | H76: =M76*(1+$G$5) -> 0 | K76: 125 | L76: 152
B77: Supervisor | D77: super | E77: $/hr | F77: 63.97629128 | G77: 112.9919729 | H77: 0 | K77: 52 | L77: 91.84
B78: Registered engineer | D78: eng | E78: $/hr | F78: 116.8797629 | G78: 270.6689246 | H78: 0 | K78: 95 | L78: 220
B79: Environmental coordinator | D79: envco | E79: $/hr | F79: 91.24003387 | G79: 159.9407282 | H79: 0 | K79: 74.16 | L79: 130
B80: Evironmental technologist | D80: envtech | E80: $/hr | F80: 44.29127858 | G80: 0 | H80: 0 | K80: 36
B81: Electrician | D81: elec | E81: $/hr | F81: 91.04318374 | G81: 116.8797629 | H81: 0 | K81: 74 | L81: 95
B82: Journeyman - various | D82: journey | E82: $/hr | F82: 54.13378493 | G82: 88.32419136 | H82: 0 | K82: 44 | L82: 71.79
B83: Labour - skilled | D83: lab-s | E83: $/hr | F83: 50.44284505 | G83: 61.02353937 | H83: 0 | K83: 41 | L83: 49.6
B84: Labour - unskilled | D84: lab-us | E84: $/hr | F84: 38.13971211 | G84: 54.10917866 | H84: 0 | K84: 31 | L84: 43.98
B85: Equipment operator | D85: oper | E85: $/hr | F85: 50.44284505 | G85: 79.9703641 | H85: 0 | K85: 41 | L85: 65
B86: Heavy duty mechanic | D86: mech | E86: $/hr | F86: 60.2853514 | G86: 89.62832345 | H86: 0 | K86: 49 | L86: 72.85
B87: Water treatment plant operator | D87: oper-wt | E87: $/hr | F87: 50.44284505 | G87: 73.64655377 | H87: 0 | K87: 41 | L87: 59.86
B88: Security / first aid | D88: safety | E88: $/hr | F88: 44.29127858 | G88: 82.39408129 | H88: 0 | K88: 36 | L88: 66.97
B89: Administative staff | D89: admin | E89: $/hr | F89: 46.75190517 | G89: 71.22283658 | H89: 0 | K89: 38 | L89: 57.89
B91: Equipment rates include operator and fuel
B92: Loader - 4 cu.yd (3.06m3) | D92: load-s | E92: $/hr | F92: =K92*(1+$G$5) -> 215.3048264 | G92: =L92*(1+$G$5) -> 0 | H92: =M92*(1+$G$5) -> 0 | K92: 175
B93: Loader - 7 cu.yd (5.35m3) | D93: load-l | E93: $/hr | F93: 387.5486876 | G93: 0 | H93: 0 | K93: 315
B94: Excavator - 26.76-30.84 tonnes | D94: exc-s | E94: $/hr | F94: 233.7595258 | G94: 0 | H94: 0 | K94: 190
B95: Excavator - 68.95+tonnes | D95: exc-l | E95: $/hr | F95: 516.7315834 | G95: 0 | H95: 0 | K95: 420
B96: Grader | D96: grad | E96: $/hr | F96: 233.7595258 | G96: 0 | H96: 0 | K96: 190
B97: Dump truck off hwy 30-50 tonnes | D97: truck-s | E97: $/hr | F97: 276.8204911 | G97: 0 | H97: 0 | K97: 225
B98: Dump truck off hwy 55-75 tonnes | D98: truck-l | E98: $/hr | F98: 369.0939881 | G98: 0 | H98: 0 | K98: 300
B99: dozer, small | D99: dozers | E99: $/hr | F99: 252.2142252 | G99: 319.8814564 | H99: 0 | K99: 205 | L99: 260
B100: dozer, large | D100: dozerl | E100: $/hr | F100: 602.853514 | G100: 695.127011 | H100: 0 | K100: 490 | L100: 565
B101: smooth drum compactor | D101: comp | E101: $/hr | F101: 190.6985605 | G101: 0 | H101: 0 | K101: 155
B102: scooptram, 6 yd3 bucket | D102: scoop | E102: $/hr | F102: 209.1532599 | G102: 0 | H102: 0 | K102: 170
B103: flat bed truck with hiab | D103: hiab | E103: $/hr | F103: 190.6985605 | G103: 0 | H103: 0 | K103: 155
B104: fuel truck | D104: ftruck | E104: $/hr | F104: 184.5469941 | G104: 0 | H104: 0 | K104: 150
B105: water truck | D105: wtruck | E105: $/hr | F105: 71.35817104 | G105: 184.5469941 | H105: 0 | K105: 58 | L105: 150
A106: Mobilize Heavy Equipment
B107: Road access | D107: MHER | E107: kmtonne | F107: =K107*(1+$G$5) -> 4.183065199 | G107: =L107*(1+$G$5) -> 12.61071126 | H107: =M107*(1+$G$5) -> 0 | K107: 3.4 | L107: 10.25
B108: Air access | D108: MHEA | E108: kmtonne | F108: 14.76375953 | G108: 0 | H108: 0 | J108: cargo rate>500lb | K108: 12
A109: Mobilize Camp
B110: Road access | D110: MCR | E110: each | F110: =K110*(1+$G$5) -> 61515.66469 | G110: =L110*(1+$G$5) -> 0 | H110: =M110*(1+$G$5) -> 0 | J110: refurbish existing camp | K110: 50000
A111: Mobilize Workers
B112: flight | D112: MW | E112: each | F112: =K112*(1+$G$5) -> 5536.409822 | G112: =L112*(1+$G$5) -> 11195.85097 | H112: =M112*(1+$G$5) -> 0 | J112: Low:e.g. 8 passenger; High: Dash 7 | K112: 4500 | L112: 9100
A113: Oil Removal
B114: oil removal | D114: OR | E114: litre | F114: =K114*(1+$G$5) -> 0.5290347163 | G114: =L114*(1+$G$5) -> 1.476375953 | H114: =M114*(1+$G$5) -> 0 | J114: Low:waste oil heater; High: ship offsite | K114: 0.43 | L114: 1.2
A115: PCB Removal
B116: Remove from site | D116: PCBR | E116: litre | F116: =K116*(1+$G$5) -> 49.45859441 | G116: =L116*(1+$G$5) -> 57.70169348 | H116: =M116*(1+$G$5) -> 0 | J116: Low: shipping, handling & disposal from Yellowknife | K116: 40.2 | L116: 46.9
A117: Pipes, small (<6in dia.)
B118: remove/dispose on site | D118: PSR | E118: m | F118: =K118*(1+$G$5) -> 1.230313294 | G118: 29.52751905 | H118: 0 | J118: Low: remove/dispose on site; High: remove/re-use | K118: 1 | L118: 24
B119: supply | D119: PSS | E119: m | F119: 7.504911092 | G119: 13.65647756 | H119: 0 | J119: Low:supply; High:supply and ship | K119: 6.1 | L119: 11.1
B120: install | D120: PSI | E120: m | F120: 30.75783235 | G120: 0 | H120: 0 | K120: 25
A121: Pipes, large (>6in dia.)
B122: remove/dispose on site | D122: PLR | E122: m | F122: =K122*(1+$G$5) -> 27.06689246 | G122: 88.58255715 | H122: 0 | J122: Low: remove/dispose on site; High: remove/re-use | K122: 22 | L122: 72
B123: supply | D123: PLS | E123: m | F123: 158.7104149 | G123: 175.934801 | H123: 0 | J123: Low:supply; High:supply and ship | K123: 129 | L123: 143
B124: install | D124: PLI | E124: m | F124: 61.51566469 | G124: 0 | H124: 0 | K124: 50
A125: Power Lines
B126: remove/dispose on site | D126: POWR | E126: m | F126: =K126*(1+$G$5) -> 31.37298899 | G126: =L126*(1+$G$5) -> 0 | H126: =M126*(1+$G$5) -> 0 | K126: 25.5
A127: Process Chemicals
B128: Remove from site | D128: PCR | E128: kg | F128: =K128*(1+$G$5) -> 0.5536409822 | G128: =L128*(1+$G$5) -> 3.075783235 | H128: =M128*(1+$G$5) -> 0 | J128: Low: shipping, handling & disposal from Yellowknife | K128: 0.45 | L128: 2.5
A129: Pumps
B130: Pump capital cost | D130: PC | E130: each | F130: =K130*(1+$G$5) -> 239911.0923 | G130: 0 | H130: 0 | K130: 195000
B131: Pump shipping | D131: PS | E131: each | F131: 3075.783235 | G131: 0 | H131: 0 | K131: 2500
B132: Pump operating cost | D132: POC | E132: m3 | F132: 0.1476375953 | G132: 0 | H132: 0 | J132: pump operating costs should be calculated based on pump capacity, fuel costs, etc. | K132: 0.12
B133: Pump maintenance | D133: PM | E133: allow | F133: 30757.83235 | G133: 0 | H133: 0 | K133: 25000
A134: Pump sand BackFill
D135: PBF | E135: m3 | F135: =K135*(1+$G$5) -> 104.57663 | G135: =L135*(1+$G$5) -> 369.0939881 | H135: =M135*(1+$G$5) -> 0 | K135: 85 | L135: 300
A136: Scarify - road/mine site
D137: SCFY | E137: ha | F137: =K137*(1+$G$5) -> 5290.347163 | G137: =L137*(1+$G$5) -> 7418.789162 | H137: =M137*(1+$G$5) -> 2645.173582 | K137: 4300 | L137: 6030 | M137: 2150
A138: Shaft, Raise & Portal Closures
B139: Shaft & Raises | D139: SR | E139: m2 | F139: =K139*(1+$G$5) -> 793.5520745 | G139: 2623.027942 | H139: 0 | J139: Low:pre-cast concrete slabs, little site prep. Area=shaft+>1m all around | K139: 645 | L139: 2132
B140: Portals | D140: POR | E140: m3 | F140: 23.12988992 | G140: 307.5783235 | H140: =M140*(1+$G$5) -> 1476.375953 | J140: Low:unit cost code SCS;High:excavate & backfill collapsed portal;Spec: installed pressure plug | K140: 18.8 | L140: 250 | M140: 1200
A141: Site Inspection Report
D142: RPT | E142: each | F142: =K142*(1+$G$5) -> 12303.13294 | G142: =L142*(1+$G$5) -> 24606.26588 | H142: =M142*(1+$G$5) -> 0 | K142: 10000 | L142: 20000
A143: SpillWay - Clear
D144: SW | E144: each | F144: =K144*(1+$G$5) -> 3690.939881 | G144: =L144*(1+$G$5) -> 8612.193057 | H144: =M144*(1+$G$5) -> 0 | K144: 3000 | L144: 7000
A145: Survey/Instrumentation
D146: SI | E146: each | F146: =K146*(1+$G$5) -> 2214.563929 | G146: =L146*(1+$G$5) -> 4429.127858 | H146: =M146*(1+$G$5) -> 0 | J146: 2 person crew | K146: 1800 | L146: 3600
A147: Treatment Plant - Construct
B148: Small (< 1000 m3/d) | D148: TPS | E148: lump sum | F148: =K148*(1+$G$5) -> 11072819.64 | G148: =L148*(1+$G$5) -> 18454699.41 | H148: =M148*(1+$G$5) -> 0 | K148: 9000000 | L148: 15000000
B149: Large (> 1000 m3/d) | D149: TPL | E149: lump sum | F149: 18454699.41 | G149: 56594411.52 | H149: 0 | K149: 15000000 | L149: 46000000
B150: Constructed Wetland | D150: CWTS | E150: ha | F150: 246062.6588 | G150: 369093.9881 | H150: 0 | K150: 200000 | L150: 300000
A151: Treatment Plant - Operate
D152: TPO | E152: m3 | F152: =K152*(1+$G$5) -> 0.4306096528 | G152: =L152*(1+$G$5) -> 2.460626588 | H152: =M152*(1+$G$5) -> 0 | K152: 0.35 | L152: 2
A153: Treatment Chemicals
B154: ferric sulphate | D154: ferric | E154: kg | F154: =K154*(1+$G$5) -> 1.46407282 | G154: =L154*(1+$G$5) -> 0 | H154: =M154*(1+$G$5) -> 0 | K154: 1.19
B155: ferrous sulphate | D155: ferrous | E155: kg | F155: 1.624013548 | G155: 0 | H155: 0 | K155: 1.32
B156: lime | D156: lime | E156: kg | F156: 0.6889754445 | G156: 0 | H156: 0 | K156: 0.56
B157: hydrogen peroxide, 35% | D157: hperox | E157: kg | F157: 1.845469941 | G157: 0 | H157: 0 | K157: 1.5
B158: Sodium Metabisulfate | D158: Nametab | E158: kg | F158: 1.451769687 | G158: 0 | H158: 0 | K158: 1.18
B159: Caustic soda, 50% | D159: caustic | E159: kg | F159: 0.9104318374 | G159: 0 | H159: 0 | K159: 0.74
B160: Sulfuric acid, 93% | D160: sulfuric | E160: kg | F160: 0.3813971211 | G160: 0 | H160: 0 | K160: 0.31
B161: flocculant | D161: flocc | E161: kg | F161: 7.381879763 | G161: 0 | H161: 0 | K161: 6
B162: copper sulphate | D162: copper | E162: kg | F162: 0 | G162: 0 | H162: 0
B163: shipping | D163: shipping | E163: kg | F163: 0.2460626588 | G163: 0 | H163: 0 | K163: 0.2
A164: Vegetation
B165: Hydroseed, Flat | D165: VHF | E165: ha | F165: =K165*(1+$G$5) -> 4921.253175 | G165: =L165*(1+$G$5) -> 0 | H165: =M165*(1+$G$5) -> 0 | K165: 4000
B166: Hydroseed, Sloped | D166: VHS | E166: ha | F166: 5536.409822 | G166: 0 | H166: 0 | K166: 4500
B167: Veg. blanket/erosion mat | D167: VB | E167: ha | F167: 15994.07282 | G167: 0 | H167: 0 | K167: 13000
B168: Tree planting | D168: VT | E168: ha | F168: 3198.814564 | G168: 7381.879763 | H168: 0 | K168: 2600 | L168: 6000
B169: Wetland species | D169: VW | E169: ha | F169: 0 | G169: 0 | H169: =M169*(1+$G$5) -> 58.71055038 | J169: Specified= /m3, Wetland Growth Media Substrate mixed and installed (sand, biochar and fertilizer, woodchips) | M169: 47.72
A170: Water Sampling/Analysis/Reporting
D171: WS | E171: each | F171: =K171*(1+$G$5) -> 8612.193057 | G171: =L171*(1+$G$5) -> 12303.13294 | H171: =M171*(1+$G$5) -> 0 | K171: 7000 | L171: 10000
A172: Winter Road
B173: Construction | D173: WRC | E173: km | F173: =K173*(1+$G$5) -> 2460.626588 | G173: 14148.60288 | H173: 0 | K173: 2000 | L173: 11500
B174: Usage | D174: WRU | E174: kmtonne | F174: 0.3567908552 | G174: 0 | H174: 0 | K174: 0.29
A176: Sabina Specific Costs
A177: OP Tab | B177: Signs | E177: each | F177: =K177*(1+$G$4) -> 86.90191388 | K177: 75
A178: OP Tab | B178: Block roads | E178: allow | F178: =K178*(1+$G$4) -> 5793.460925 | K178: 5000
A179: OP Tab | B179: Conduct stability and setback study | E179: allow | F179: 19697.76715 | K179: 17000
A180: UG Tab | B180: Remove misc. haz. mat & explosives | E180: kg | F180: 57.93460925 | K180: 50
A181: UG Tab | B181: Assess underground stability | E181: each | F181: 11586.92185 | K181: 10000
A182: Bldgs & Equip Tab | B182: Decontaminate and dispose on-site | E182: allow | F182: 23173.8437 | K182: 20000
A183: Bldgs & Equip Tab | B183: Remove Buildings - WIR Service/Emergency Camps, total of 3 1-ha area for 3 camps; assume all structures will be sprung structures. | E183: LS | F183: =K183*(1+$G$3) -> 82933.78995 | J183: Added during 2020 Mod Package. | K183: 75000
A184: Chemicals Tab | B184: Contam. soil investigation - Phase 1 | E184: allow | F184: 8690.191388 | K184: 7500
A185: Chemicals Tab | B185: Operate landfarm | E185: allow | F185: 57934.60925 | K185: 50000
A186: WM Tab | B186: Remove Liner from all berms | E186: m2 | F186: 0.8110845295 | K186: 0.7
A187: WM Tab | B187: Decommission reclaim barge from Llama TF | E187: LS | F187: 11586.92185 | K187: 10000
A188: WT Tab | B188: Treat water in WTP | E188: m3 | F188: 0.7531499203 | K188: 0.65
A189: ICM Tab | B189: misc. supplies | E189: allow | F189: 23173.8437 | K189: 20000
A190: PostClosure Tab | B190: Regulatory costs | E190: year | F190: 28967.30463 | K190: 25000
A191: PostClosure Tab | B191: General Water Sampling and Stability Monitoring | E191: year | F191: 46347.6874 | K191: 40000

Sheet Estimator
B1: Unit Cost Estimator | D1: 1 | E1: Equipment Productivity Figures and Graphs have been reproduced from Caterpillar Performance Handbook - Edition 42
B2: EXCAVATION | G2: HAUL AND DUMPING | L2: SPREADING/DOZING
B3: Productivity | G3: Productivity | L3: Productivity
B4: Machine | C4: Cat 336EL | G4: Machine | H4: Cat 770 | L4: Machine | M4: Cat D8
B5: bucket capacity | D5: 3.16 | E5: m3 | G5: truck capacity | I5: 25.1 | J5: m3 | L5: Estimate production using example curves provided or | N5: 600 | O5: m3/hr
B6: fill factor | D6: 0.75 | E6: % | G6: fill factor | I6: 0.8 | J6: % | L6: equivalent from other supplier
B7: cycle time | D7: 45 | E7: seconds | L7: Correction factors (see table provided)
B8: operator skill | D8: 0.8 | E8: % | G8: load time | I8: 6 | J8: min. | L8: operator skill | N8: 0.75
B9: machine availability | D9: 0.83 | E9: % | G9: haul distance | I9: 1.5 | J9: km | L9: material type, see table | N9: 0.8
B10: altitude adjustment | D10: 1 | E10: % | G10: average velocity | I10: 20 | J10: km/hr | L10: slot dozing | N10: 1
B11: Hourly productivity | D11: =D5*D6*(60*60/D7)*D8*D9*D10 -> 125.8944 | E11: m3/hr | G11: haul time + return time | I11: =+I9/I10*60*2 -> 9 | J11: min. | L11: side by side dozing | N11: 1
G12: wait time | I12: 0.5 | J12: min. | L12: visibility | N12: 1
G13: dump time | I13: 1 | J13: min. | L13: job efficiency | N13: 0.83
G14: cycle time | I14: =I8+SUM(I11:I13) -> 16.5 | J14: min. | L14: altitude adjustment | N14: 1
G15: machine availability | I15: 0.83 | J15: % | L15: slope adjustment | N15: 1
G16: altitude adjustment | I16: 1 | J16: % | L16: Hourly productivity | N16: =+N5*N8*N9*N10*N11*N12*N13*N14*N15 -> 298.8 | O16: m3/hr
I17: =I14*I15*I16 -> 13.695 | J17: ave. min/cycle
G18: Hourly productivity | I18: =I5*I6*60/I17 -> 87.97371303 | J18: m3/hr
B19: Operating Costs | G19: Operating Costs | L19: Operating Costs
B20: - Contractor | G20: - Contractor | L20: - Contractor
B21: Contractor hourly rate | D21: 180 | E21: $/hr | G21: Contractor hourly rate | I21: 225 | J21: $/hr | L21: Hourly rate - contractor supplied | N21: 260 | O21: $/hr
B22: Excavation cost - contractor rate | D22: =D21/D11 -> 1.429769712 | E22: $/m3 | G22: Haul and Dump - contractor rate | I22: =I21/I18 -> 2.557582171 | J22: $/m3 | L22: Dozing - contractor rate | N22: =N21/N16 -> 0.8701472557 | O22: $/m3
B24: - Owner | G24: - Owner | L24: - Owner
B25: ownership, daily | E25: $/day | G25: ownership, daily | J25: $/day | L25: ownership, daily | O25: $/day
B26: maintenance | E26: $/hr | G26: maintenance | J26: $/hr | L26: maintenance | O26: $/hr
B27: fuel | E27: $/hr | G27: fuel | J27: $/hr | L27: fuel | O27: $/hr
B28: consumables (cutters, tires) | E28: $/hr | G28: consumables (cutters, tires) | J28: $/hr | L28: consumables (cutters, tires) | O28: $/hr
B29: operator | E29: $/hr | G29: operator | J29: $/hr | L29: operator | O29: $/hr
B30: Owner hourly rate | D30: =D25/10+SUM(D26:D29) -> 0 | E30: $/hr | G30: Owner hourly rate | I30: =I25/10+SUM(I26:I29) -> 0 | J30: $/hr | L30: Owner hourly rate | N30: =N25/10+SUM(N26:N29) -> 0
B31: Excavation cost - owner rate | D31: =D30/D11 -> 0 | E31: $/m3 | G31: Haul/Dumping Cost - owner rate | I31: =I30/I18 -> 0 | J31: $/m3 | L31: Spreading/Dozing Cost - owner rate | N31: =N30/N16 -> 0 | O31: $/hr
B32: Excavation cost - select contractor or owner rate (D22 or D31) | E32: $/m3 | G32: Haul/Dumping Cost - select contractor or owner rate (I22 or I31 | J32: $/m3 | L32: Spreading/Dozing Cost - select contractor or owner rate (N22 or N31) | O32: $/m3
B36: Excavator | G36: Trucking | L36: Dozing
C37: Cat 320 | D37: Cat 325B | E37: Cat 375 | H37: Cat 771 D | I37: Cat 777D | J37: Cat 789C
B38: heaped bucket capacity, m3 | C38: 1.5 | D38: 2.2 | E38: 5.4 | G38: Truck capacity - heaped, m3 | H38: 27.5 | I38: 60.5 | J38: 137
D39: Typical Cycle Times (seconds)
B40: easy digging, shallow digging, small swing angle | C40: 16 | D40: 18 | E40: 20
B41: med. to hard digging, rocky soil, swing angle to 90 deg. | C41: 23 | D41: 23 | E41: 25
B42: tough digging, sandstone, caliche, at max. machine depth, swing angle > 120 deg. | C42: 27 | D42: 29 | E42: 35
B44: Material | C44: Fill Factor (% of heaped bucket capacity
B45: Moist loam or sandy clay | D45: 100 - 110
B46: sand and gravel (not till) | D46: 95 - 110
B47: hard tough clay | D47: 80 - 90
B48: rock - will blasted | D48: 60 - 75
B49: rock - poorly blasted | D49: 40 -60
B51: Operator Skill | C51: poor | D51: average | E51: good
B52: Correction factor | C52: 0.6 | D52: 0.75 | E52: 1
B54: Machine availability | C54: poor | D54: average | E54: good
B55: Correction factor | C55: 0.9 | D55: 0.95 | E55: 1

Sheet Tools
A1: The functions in this worksheet serve as a back up in the event that the menu item "Add-Ins" is not shown in Excel menu bar | M1: The functions in this worksheet serve as a back up in the event that the menu item "Add-Ins" is not shown in Excel menu bar
C4: Save file before clearing all data | O4: Save file before clearing all data
L6: These functions duplicate components within worksheet
C9: Shows both active worksheet as well as table of Unit Costs in a separate window | O9: Shows both active worksheet as well as table of Unit Costs in a separate window
C12: Prints all worksheets having non-zero sums | O12: Prints all worksheets having non-zero sums
